Workbook

Sheet A1 (hidden)
B3: Natural history | E3: Susc | F3: LTBI1 | G3: LTBI2 | H3: Asymp | I3: PTB | Q3: =CHOOSE('O4'!$O$21, D38,D42,D46,D50) -> Netherlands | Z3: Corresponding transition probabilities per month | AF3: For HR, JH | AH3: For prisoners
Q4: =CHOOSE('O4'!$O$21, D39,D43,D47,D51) -> 16.632349
B5: Average duration (months) | F5: 6 | G5: 240 | H5: 6 | I5: =1.5*12 -> 18 | AA5: =1-EXP(-1/$F$5) -> 0.1535182751 | AB5: =1-EXP(-1/$G$5) -> 0.004157998155 | AC5: =1-EXP(-1/$H$5) -> 0.1535182751 | AD5: =IF(ISNUMBER($I$11),($I$11/($I$5+$I$11))*(1-EXP(-(1/$I$5)-1/$I$11)),1-EXP(-1/$I$5)) -> 0.04724478157 | AF5: =IF(ISNUMBER($K$11),($K$11/($I$5+$K$11))*(1-EXP(-(1/$I$5)-1/$K$11)),1-EXP(-1/$I$5)) -> 0.05117275837 | AH5: =IF(ISNUMBER($M$11),($M$11/($I$5+$M$11))*(1-EXP(-(1/$I$5)-1/$M$11)),1-EXP(-1/$I$5)) -> 0.03511780882
Q6: None
B7: Immunity reinfection | G7: 0.79 | Q7: CXR
Q8: IGRA
B9: Proportion progressing | F9: 0.1890551815 | G9: 0.12052048 | H9: 0.3480565777 | I9: 0.5210194422 | Q9: TST
K10: For BRHR | M10: For prisoners | Q10: TST/IGRA
B11: Duration to treatment (months) | I11: =CHOOSE('O4'!$O$21, E33,E34,E35,E36) -> 3.6 | K11: =CHOOSE('O4'!$O$21, F33,F34,F35,F36) -> 9 | M11: =CHOOSE('O4'!$O$21, G33,G34,G35,G36) -> 1.058823529 | AD11: =IF(ISNUMBER($I$11),($I$5/($I$5+$I$11))*(1-EXP(-(1/$I$5)-1/$I$11)),0) -> 0.2362239079 | AF11: =IF(ISNUMBER($K$11),($I$5/($I$5+$K$11))*(1-EXP(-(1/$I$5)-1/$K$11)),0) -> 0.1023455167 | AH11: =IF(ISNUMBER($M$11),($I$5/($I$5+$M$11))*(1-EXP(-(1/$I$5)-1/$M$11)),0) -> 0.59700275
I12: =1/((1/3)-1/18) -> 3.6 | K12: =1/((1/4)-1/18) -> 5.142857143 | M12: =1/((1/1)-1/18) -> 1.058823529
B13: Overall duration in stage PTB; thus actual duration to treatment (months) | I13: =IF(ISNUMBER($I$11),1/((1/$I$5)+1/$I$11),$I$5) -> 3 | K13: =IF(ISNUMBER($K$11),1/((1/$I$5)+1/$K$11),$I$5) -> 6 | M13: =IF(ISNUMBER($M$11),1/((1/$I$5)+1/$M$11),$I$5) -> 1 | AC13: Resulting fraction of PTB to Susc_2 (i.e. becoming an incident case) | AD13: =$I$9*$AD$5 + $AD$11 -> 0.2608393576 | AF13: =$I$9*$AF$5 + $AF$11 -> 0.1290075188 | AH13: =$I$9*$AH$5 + $AH$11 -> 0.6152998112
AA16: LTBI1 | AB16: LTBI2 | AD16: Actual proportion progressing
B17: Activation multiplier | D17: 0-14 | F17: 0.25 | H17: EPTB/PTB ratios | O17: QALY loss scores | AA17: =1-EXP(-(1-(1-$F17)*$F$9)/$F$5) -> 0.1332760667 | AB17: =1-EXP(-(1-(1-$F17)*$G$9)/$G$5) -> 0.00378286703 | AD17: =$F17/($F17-1+1/$F$9) -> 0.05507261824 | AE17: =$F17/($F17-1+1/$G$9) -> 0.03312423117
D18: 15-44 | F18: 1 | H18: Natives | K18: Migrants | Q18: PTB, EPTB | S18: 0.331 | AA18: =1-EXP(-(1-(1-$F18)*$F$9)/$F$5) -> 0.1535182751 | AB18: =1-EXP(-(1-(1-$F18)*$G$9)/$G$5) -> 0.004157998155 | AD18: =$F18/($F18-1+1/$F$9) -> 0.1890551815 | AE18: =$F18/($F18-1+1/$G$9) -> 0.12052048
D19: 45+ | F19: 0.75 | H19: 0-14 | I19: 15-44 | J19: 45+ | K19: 15-44 | L19: 45+ | Q19: Death | S19: 1 | AA19: =1-EXP(-(1-(1-$F19)*$F$9)/$F$5) -> 0.1468239533 | AB19: =1-EXP(-(1-(1-$F19)*$G$9)/$G$5) -> 0.004032970144 | AD19: =$F19/($F19-1+1/$F$9) -> 0.1488254413 | AE19: =$F19/($F19-1+1/$G$9) -> 0.09319844015
D20: Behavior-related high risk (HR, JH, PH, PJ) | F20: 2 | H20: =CHOOSE('O4'!$O$21, I33,I34,I35,I36) -> 1.85840708 | I20: =CHOOSE('O4'!$O$21, J33,J34,J35,J36) -> 0.4743083004 | J20: =CHOOSE('O4'!$O$21, K33,K34,K35,K36) -> 0.5502920582 | K20: =CHOOSE('O4'!$O$21, L33,L34,L35,L36) -> 0.9692326143 | L20: =CHOOSE('O4'!$O$21, M33,M34,M35,M36) -> 0.9972260442 | AA20: =1-EXP(-(1-(1-$F20)*$F$9)/$F$5) -> 0.1797744074 | AB20: =1-EXP(-(1-(1-$F20)*$G$9)/$G$5) -> 0.004657953264 | AD20: =$F20/($F20-1+1/$F$9) -> 0.3179922756 | AE20: =$F20/($F20-1+1/$G$9) -> 0.2151151757
O21: Discounting
B22: Hospitalization of TB cases | H22: Additional duration of PTB burden (months) | Q22: QALYs | S22: 0.03
D23: PTB + EPTB cases with severe pathology | F23: 1 | J23: Severe pathology | L23: 1 | Q23: Cost items | S23: 0.03 | AC23: Additional months for QALY calculations | AD23: =$L$23*$I$9*$AD$5 + $L$24*$AD$11 -> 0.1427274037 | AF23: =$L$23*$I$9*$AF$5 + $L$24*$AF$11 -> 0.07783476039 | AH23: =$L$23*$I$9*$AH$5 + $L$24*$AH$11 -> 0.3167984362
D24: Other self-reported PTB + EPTB cases | F24: =CHOOSE('O4'!$O$21, O33,O34,O35,O36) -> 0.13 | J24: Treatment after self-reporting | L24: 0.5
D25: PTB cases detected by screening | F25: =CHOOSE('O4'!$O$21, P33,P34,P35,P36) -> 0 | O25: Other reasons years of work lost | R25: Times | S25: Dur. (wks) | T25: YWL
Q26: Travel for screening | R26: 1 | S26: N/A | T26: =0.5*R26/210 -> 0.002380952381
B27: Fraction severe pathology leading to TB death (PTB and EPTB) | H27: Years of life (and work) lost due to TB death | L27: YLL | M27: YWL | Q27: Travel for LTBI treatment consults | R27: 3 | S27: N/A | T27: =0.5*R27/210 -> 0.007142857143
D28: 0-14 | F28: =CHOOSE('O4'!$O$21, R33,R34,R35,R36) -> 0.138 | J28: 0-14 | L28: =CHOOSE('O4'!$O$21, E38,E42,E46,E50) -> 74.7 | M28: =CHOOSE('O4'!$O$21, F38,F42,F46,F50) -> 47 | Q28: Travel for TB treatment consults | R28: =CHOOSE('O4'!$O$21, T33,T34,T35,T36) -> 5 | S28: N/A | T28: =0.5*R28/210 -> 0.0119047619
D29: 15-44 | E29: 1 | F29: =E29*F$28 -> 0.138 | J29: 15-44 | L29: =CHOOSE('O4'!$O$21, E39,E43,E47,E51) -> 51.97 | M29: =CHOOSE('O4'!$O$21, F39,F43,F47,F51) -> 37.23492591 | Q29: Disease (self-reported PTB + EPTB) | R29: N/A | S29: N/A | T29: =2/12 -> 0.1666666667
D30: 45+ | E30: 4 | F30: =E30*F$28 -> 0.552 | J30: 45+ | L30: =CHOOSE('O4'!$O$21, E40,E44,E48,E52) -> 6.29 | M30: =CHOOSE('O4'!$O$21, F40,F44,F48,F52) -> 5.039708242 | Q30: Hospitalization | R30: N/A | S30: =CHOOSE('O4'!$O$21, U33,U34,U35,U36) -> 2.5 | T30: =S30/52 -> 0.04807692308
C33: 1 | D33: Netherlands | E33: =1/((1/3)-1/18) -> 3.6 | F33: =1/((1/6)-1/18) -> 9 | G33: =1/((1/1)-1/18) -> 1.058823529 | I33: 1.85840708 | J33: 0.4743083004 | K33: 0.5502920582 | L33: 0.9692326143 | M33: 0.9972260442 | O33: 0.13 | P33: 0 | R33: 0.138 | T33: 5 | U33: 2.5
C34: 2 | D34: Czech Republic | E34: =1/((1/4)-1/18) -> 5.142857143 | F34: =1/((1/7)-1/18) -> 11.45454545 | G34: =1/((1/2)-1/18) -> 2.25 | I34: 0.68 | J34: 0.08913857678 | K34: 0.1942800789 | L34: 0.202970297 | M34: 0.2695652174 | O34: 0.971 | P34: 1 | R34: 0.279 | T34: 0 | U34: 10
C35: 3 | D35: Portugal | E35: =1/((1/4)-1/18) -> 5.142857143 | F35: =1/((1/7)-1/18) -> 11.45454545 | G35: =1/((1/2)-1/18) -> 2.25 | I35: 0.5593227648 | J35: 0.2234259207 | K35: 0.373495703 | L35: 0.3537819373 | M35: 0.2929936066 | O35: 0.143 | P35: 0 | R35: 0.171 | T35: 6 | U35: 2.5
C36: 4 | D36: Spain | E36: =1/((1/4)-1/18) -> 5.142857143 | F36: =1/((1/7)-1/18) -> 11.45454545 | G36: =1/((1/2)-1/18) -> 2.25 | I36: 0.2627118644 | J36: 0.2723356733 | K36: 0.4215636822 | L36: 0.5852156057 | M36: 0.6047358834 | O36: 0.604 | P36: 0 | R36: 0.168 | T36: 4 | U36: 2
D38: Netherlands | E38: 74.7 | F38: =67-20 -> 47
D39: =16632349/1000000 -> 16.632349 | E39: 51.97 | F39: =67-29.7650740942369 -> 37.23492591
E40: =0.25*22.16+0.75*1 -> 6.29 | F40: =67-61.9602917584036 -> 5.039708242
D42: Czech Republic | E42: 71.98006564 | F42: 45
D43: =10524783/1000000 -> 10.524783 | E43: 48.40458334 | F43: 33.7179559
E44: =0.25*20.0866474008666+0.75*1 -> 5.77166185 | F44: 2.517281468
D46: Portugal | E46: 73.33 | F46: 46
D47: =10562178/1000000 -> 10.562178 | E47: 49.73 | F47: 35.1401307
E48: =0.25*20.62+0.75*1 -> 5.905 | F48: 2.72733397
D50: Spain | E50: 75.95176236 | F50: 47
D51: =46449564.792117/1000000 -> 46.44956479 | E51: 51.23852583 | F51: 35.4053186
E52: =0.25*22.4863195917185+0.75*1 -> 6.371579898 | F52: 4.404556587

Sheet A2 (hidden)
Z2: Corresponding transition probabilities per month
B3: Population groups | E3: GL | F3: GV | G3: HR | H3: PL | I3: PV | J3: PH | L3: MV | M3: JH | N3: PM | O3: PJ | Z3: GL | AA3: GV | AB3: HR | AC3: PL | AD3: PV | AE3: PH | AG3: MV | AH3: JH | AI3: PM | AJ3: PJ
B5: Duration to next age-group / death (years)
B6: 0-14 | E6: =CHOOSE('O4'!$O$21, E50,E75,E100,E125) -> 14.09018085 | Z6: =1-EXP(-1/(12*$E$6)) -> 0.005896829204 | AG6: =(1-EXP(-1/(12*$L$7)-1/(12*$L$19)-1/(12*$L$23)-1/(12*$L$15)))/(1+$L$7/$L$19+$L$7/$L$23+$L$7/$L$15) -> 0.002754021096
B7: 15-44 | E7: =CHOOSE('O4'!$O$21, E51,E76,E101,E126) -> 30 | F7: =CHOOSE('O4'!$O$21, F51,F76,F101,F126) -> 30 | G7: =CHOOSE('O4'!$O$21, G51,G76,G101,G126) -> 30 | H7: =CHOOSE('O4'!$O$21, H51,H76,H101,H126) -> 30 | I7: =CHOOSE('O4'!$O$21, I51,I76,I101,I126) -> 30 | J7: =CHOOSE('O4'!$O$21, J51,J76,J101,J126) -> 30 | L7: =CHOOSE('O4'!$O$21, L51,L76,L101,L126) -> 30 | M7: =CHOOSE('O4'!$O$21, M51,M76,M101,M126) -> 30 | N7: =CHOOSE('O4'!$O$21, N51,N76,N101,N126) -> 30 | O7: =CHOOSE('O4'!$O$21, O51,O76,O101,O126) -> 30 | Z7: =($E$23/($E$23+$E$7))*(1-EXP(-(1/(12*$E$7))-1/(12*$E$23))) -> 0.00277354794 | AA7: =(1-EXP(-1/(12*$F$7)-1/(12*$F$19)-1/(12*$F$23)))/(1+$F$7/$F$19+$F$7/$F$23) -> 0.002773273699 | AB7: =(1-EXP(-1/(12*$G$7)-1/(12*$G$19)-1/(12*$G$23)))/(1+$G$7/$G$19+$G$7/$G$23) -> 0.002714150916 | AC7: =($H$23/($H$23+$H$7))*(1-EXP(-(1/(12*$H$7))-1/(12*$H$23))) -> 0.002359142912 | AD7: =($I$23/($I$23+$I$7))*(1-EXP(-(1/(12*$I$7))-1/(12*$I$23))) -> 0.002359142912 | AE7: =($J$23/($J$23+$J$7))*(1-EXP(-(1/(12*$J$7))-1/(12*$J$23))) -> 0.002359142912 | AG7: =(1-EXP(-1/(12*$L$7)-1/(12*$L$19)-1/(12*$L$23)))/(1+$L$7/$L$19+$L$7/$L$23) -> 0.002773179876 | AH7: =(1-EXP(-1/(12*$M$7)-1/(12*$M$19)-1/(12*$M$23)))/(1+$M$7/$M$19+$M$7/$M$23) -> 0.00270505518 | AI7: =($N$23/($N$23+$N$7))*(1-EXP(-(1/(12*$N$7))-1/(12*$N$23))) -> 0.002359142912 | AJ7: =($O$23/($O$23+$O$7))*(1-EXP(-(1/(12*$O$7))-1/(12*$O$23))) -> 0.002359142912
B8: 45+ | E8: =CHOOSE('O4'!$O$21, E52,E77,E102,E127) -> 33.20361217 | F8: =CHOOSE('O4'!$O$21, F52,F77,F102,F127) -> 33.20361217 | G8: =CHOOSE('O4'!$O$21, G52,G77,G102,G127) -> 23.20361217 | H8: =CHOOSE('O4'!$O$21, H52,H77,H102,H127) -> 33.20361217 | I8: =CHOOSE('O4'!$O$21, I52,I77,I102,I127) -> 33.20361217 | J8: =CHOOSE('O4'!$O$21, J52,J77,J102,J127) -> 23.20361217 | L8: =CHOOSE('O4'!$O$21, L52,L77,L102,L127) -> 33.20361217 | M8: =CHOOSE('O4'!$O$21, M52,M77,M102,M127) -> 23.20361217 | N8: =CHOOSE('O4'!$O$21, N52,N77,N102,N127) -> 33.20361217 | O8: =CHOOSE('O4'!$O$21, O52,O77,O102,O127) -> 23.20361217 | Z8: =($E$24/($E$24+$E$8))*(1-EXP(-(1/(12*$E$8))-1/(12*$E$24))) -> 0.002506524664 | AA8: =(1-EXP(-1/(12*$F$8)-1/(12*$F$20)-1/(12*$F$24)))/(1+$F$8/$F$20+$F$8/$F$24) -> 0.002506396448 | AB8: =(1-EXP(-1/(12*$G$8)-1/(12*$G$20)-1/(12*$G$24)))/(1+$G$8/$G$20+$G$8/$G$24) -> 0.003541776422 | AC8: =($H$24/($H$24+$H$8))*(1-EXP(-(1/(12*$H$8))-1/(12*$H$24))) -> 0.002131793421 | AD8: =($I$24/($I$24+$I$8))*(1-EXP(-(1/(12*$I$8))-1/(12*$I$24))) -> 0.002131793421 | AE8: =($J$24/($J$24+$J$8))*(1-EXP(-(1/(12*$J$8))-1/(12*$J$24))) -> 0.003048969801 | AG8: =(1-EXP(-1/(12*$L$8)-1/(12*$L$20)-1/(12*$L$24)-1/(12*$L$16)))/(1+$L$8/$L$20+$L$8/$L$24+$L$8/$L$16) -> 0.002503915206 | AH8: =(1-EXP(-1/(12*$M$8)-1/(12*$M$20)-1/(12*$M$24)))/(1+$M$8/$M$20+$M$8/$M$24) -> 0.003538415733 | AI8: =($N$24/($N$24+$N$8))*(1-EXP(-(1/(12*$N$8))-1/(12*$N$24))) -> 0.002131793421 | AJ8: =($O$24/($O$24+$O$8))*(1-EXP(-(1/(12*$O$8))-1/(12*$O$24))) -> 0.003048969801
B10: Proportion general population vulnerable (GV) | F10: =CHOOSE('O4'!$O$21, F54,F79,F104,F129) -> 0.3
B11: Proportion immigrants in leaving group (MV) | L11: =CHOOSE('O4'!$O$21, L55,L80,L105,L130) -> 0.7
B12: Proportion immigrants 45+ | L12: =CHOOSE('O4'!$O$21, L56,L81,L106,L131) -> 0.05
B14: Duration MV till (r)emigration for those leaving
B15: 15-44 | L15: =CHOOSE('O4'!$O$21, L59,L84,L109,L134) -> 6 | AG15: =(1-EXP(-1/(12*$L$7)-1/(12*$L$19)-1/(12*$L$23)-1/(12*$L$15)))/($L$15/$L$7+$L$15/$L$19+$L$15/$L$23+1) -> 0.01377010548
B16: 45+ | L16: =CHOOSE('O4'!$O$21, L60,L85,L110,L135) -> 42.45103737 | AG16: =(1-EXP(-1/(12*$L$8)-1/(12*$L$20)-1/(12*$L$24)-1/(12*$L$16)))/($L$16/$L$8+$L$16/$L$20+$L$16/$L$24+1) -> 0.001958468734
B18: Duration to and from high-risk (years) | AG18: =(1-EXP(-1/(12*$L$7)-1/(12*$L$19)-1/(12*$L$23)-1/(12*$L$15)))/($L$19/$L$7+1+$L$19/$L$23+$L$19/$L$15) -> 0.0001961761252
B19: 15-44 | F19: =CHOOSE('O4'!$O$21, F63,F88,F113,F138) -> 421.1553918 | G19: =CHOOSE('O4'!$O$21, G63,G88,G113,G138) -> 5 | L19: =CHOOSE('O4'!$O$21, L63,L88,L113,L138) -> 421.1553918 | M19: =CHOOSE('O4'!$O$21, M63,M88,M113,M138) -> 5 | AA19: =(1-EXP(-1/(12*$F$7)-1/(12*$F$19)-1/(12*$F$23)))/($F$19/$F$7+1+$F$19/$F$23) -> 0.0001975475385 | AB19: =(1-EXP(-1/(12*$G$7)-1/(12*$G$19)-1/(12*$G$23)))/($G$19/$G$7+1+$G$19/$G$23) -> 0.0162849055 | AG19: =(1-EXP(-1/(12*$L$7)-1/(12*$L$19)-1/(12*$L$23)))/($L$19/$L$7+1+$L$19/$L$23) -> 0.0001975408553 | AH19: =(1-EXP(-1/(12*$M$7)-1/(12*$M$19)-1/(12*$M$23)))/($M$19/$M$7+1+$M$19/$M$23) -> 0.01623033108
B20: 45+ | F20: =CHOOSE('O4'!$O$21, F64,F89,F114,F139) -> 814.1737615 | G20: =CHOOSE('O4'!$O$21, G64,G89,G114,G139) -> 5 | L20: =CHOOSE('O4'!$O$21, L64,L89,L114,L139) -> 814.1737615 | M20: =CHOOSE('O4'!$O$21, M64,M89,M114,M139) -> 5 | AA20: =(1-EXP(-1/(12*$F$8)-1/(12*$F$20)-1/(12*$F$24)))/($F$20/$F$8+1+$F$20/$F$24) -> 0.0001022157917 | AB20: =(1-EXP(-1/(12*$G$8)-1/(12*$G$20)-1/(12*$G$24)))/($G$20/$G$8+1+$G$20/$G$24) -> 0.0164364013 | AG20: =(1-EXP(-1/(12*$L$8)-1/(12*$L$20)-1/(12*$L$24)-1/(12*$L$16)))/($L$20/$L$8+1+$L$20/$L$24+$L$20/$L$16) -> 0.0001021146018 | AH20: =(1-EXP(-1/(12*$M$8)-1/(12*$M$20)-1/(12*$M$24)))/($M$20/$M$8+1+$M$20/$M$24) -> 0.01642080527
B22: Duration to and from prison (years) | AG22: =(1-EXP(-1/(12*$L$7)-1/(12*$L$19)-1/(12*$L$23)-1/(12*$L$15)))/($L$23/$L$7+$L$23/$L$19+1+$L$23/$L$15) -> 0.0003356061519
B23: 15-44 | E23: =CHOOSE('O4'!$O$21, E67,E92,E117,E142) -> 307.7291358 | F23: =CHOOSE('O4'!$O$21, F67,F92,F117,F142) -> 307.7291358 | G23: =CHOOSE('O4'!$O$21, G67,G92,G117,G142) -> 3.077291358 | H23: =CHOOSE('O4'!$O$21, H67,H92,H117,H142) -> 0.25 | I23: =CHOOSE('O4'!$O$21, I67,I92,I117,I142) -> 0.25 | J23: =CHOOSE('O4'!$O$21, J67,J92,J117,J142) -> 0.25 | L23: =CHOOSE('O4'!$O$21, L67,L92,L117,L142) -> 246.1833086 | M23: =CHOOSE('O4'!$O$21, M67,M92,M117,M142) -> 2.461833086 | N23: =CHOOSE('O4'!$O$21, N67,N92,N117,N142) -> 0.25 | O23: =CHOOSE('O4'!$O$21, O67,O92,O117,O142) -> 0.25 | Z23: =($E$7/($E$23+$E$7))*(1-EXP(-(1/(12*$E$7))-1/(12*$E$23))) -> 0.000270388561 | AA23: =(1-EXP(-1/(12*$F$7)-1/(12*$F$19)-1/(12*$F$23)))/($F$23/$F$7+$F$23/$F$19+1) -> 0.0002703618257 | AB23: =(1-EXP(-1/(12*$G$7)-1/(12*$G$19)-1/(12*$G$23)))/($G$23/$G$7+$G$23/$G$19+1) -> 0.02645980443 | AC23: =($H$7/($H$23+$H$7))*(1-EXP(-(1/(12*$H$7))-1/(12*$H$23))) -> 0.2830971494 | AD23: =($I$7/($I$23+$I$7))*(1-EXP(-(1/(12*$I$7))-1/(12*$I$23))) -> 0.2830971494 | AE23: =($J$7/($J$23+$J$7))*(1-EXP(-(1/(12*$J$7))-1/(12*$J$23))) -> 0.2830971494 | AG23: =(1-EXP(-1/(12*$L$7)-1/(12*$L$19)-1/(12*$L$23)))/($L$23/$L$7+$L$23/$L$19+1) -> 0.0003379408488 | AH23: =(1-EXP(-1/(12*$M$7)-1/(12*$M$19)-1/(12*$M$23)))/($M$23/$M$7+$M$23/$M$19+1) -> 0.03296391451 | AI23: =($N$7/($N$23+$N$7))*(1-EXP(-(1/(12*$N$7))-1/(12*$N$23))) -> 0.2830971494 | AJ23: =($O$7/($O$23+$O$7))*(1-EXP(-(1/(12*$O$7))-1/(12*$O$23))) -> 0.2830971494
B24: 45+ | E24: =CHOOSE('O4'!$O$21, E68,E93,E118,E143) -> 1092.000182 | F24: =CHOOSE('O4'!$O$21, F68,F93,F118,F143) -> 1092.000182 | G24: =CHOOSE('O4'!$O$21, G68,G93,G118,G143) -> 10.92000182 | H24: =CHOOSE('O4'!$O$21, H68,H93,H118,H143) -> 0.25 | I24: =CHOOSE('O4'!$O$21, I68,I93,I118,I143) -> 0.25 | J24: =CHOOSE('O4'!$O$21, J68,J93,J118,J143) -> 0.25 | L24: =CHOOSE('O4'!$O$21, L68,L93,L118,L143) -> 873.6001455 | M24: =CHOOSE('O4'!$O$21, M68,M93,M118,M143) -> 8.736001455 | N24: =CHOOSE('O4'!$O$21, N68,N93,N118,N143) -> 0.25 | O24: =CHOOSE('O4'!$O$21, O68,O93,O118,O143) -> 0.25 | Z24: =($E$8/($E$24+$E$8))*(1-EXP(-(1/(12*$E$8))-1/(12*$E$24))) -> 7.621397343e-05 | AA24: =(1-EXP(-1/(12*$F$8)-1/(12*$F$20)-1/(12*$F$24)))/($F$24/$F$8+$F$24/$F$20+1) -> 7.621007487e-05 | AB24: =(1-EXP(-1/(12*$G$8)-1/(12*$G$20)-1/(12*$G$24)))/($G$24/$G$8+$G$24/$G$20+1) -> 0.007525823517 | AC24: =($H$8/($H$24+$H$8))*(1-EXP(-(1/(12*$H$8))-1/(12*$H$24))) -> 0.2831329679 | AD24: =($I$8/($I$24+$I$8))*(1-EXP(-(1/(12*$I$8))-1/(12*$I$24))) -> 0.2831329679 | AE24: =($J$8/($J$24+$J$8))*(1-EXP(-(1/(12*$J$8))-1/(12*$J$24))) -> 0.2829884511 | AG24: =(1-EXP(-1/(12*$L$8)-1/(12*$L$20)-1/(12*$L$24)-1/(12*$L$16)))/($L$24/$L$8+$L$24/$L$20+1+$L$24/$L$16) -> 9.516828705e-05 | AH24: =(1-EXP(-1/(12*$M$8)-1/(12*$M$20)-1/(12*$M$24)))/($M$24/$M$8+$M$24/$M$20+1) -> 0.009398353101 | AI24: =($N$8/($N$24+$N$8))*(1-EXP(-(1/(12*$N$8))-1/(12*$N$24))) -> 0.2831329679 | AJ24: =($O$8/($O$24+$O$8))*(1-EXP(-(1/(12*$O$8))-1/(12*$O$24))) -> 0.2829884511
B26: Equilibrium values
B27: 0-14 | E27: =CHOOSE('O4'!$O$21, E71,E96,E121,E146) -> 1749.916562 | L27: =CHOOSE('O4'!$O$21, L71,L96,L121,L146) -> 63.85055111 | R27: Fraction migrants | U27: =SUM(L27:O29)/C30 -> 0.04147953598
B28: 15-44 | E28: =CHOOSE('O4'!$O$21, E72,E97,E122,E147) -> 2602.247298 | F28: =CHOOSE('O4'!$O$21, F72,F97,F122,F147) -> 1103.373526 | G28: =CHOOSE('O4'!$O$21, G72,G97,G122,G147) -> 11.34206169 | H28: =CHOOSE('O4'!$O$21, H72,H97,H122,H147) -> 2.464888399 | I28: =CHOOSE('O4'!$O$21, I72,I97,I122,I147) -> 1.045028916 | J28: =CHOOSE('O4'!$O$21, J72,J97,J122,J147) -> 1.051329891 | L28: =CHOOSE('O4'!$O$21, L72,L97,L122,L147) -> 177.639721 | M28: =CHOOSE('O4'!$O$21, M72,M97,M122,M147) -> 2.479045937 | N28: =CHOOSE('O4'!$O$21, N72,N97,N122,N147) -> 0.2853689272 | O28: =CHOOSE('O4'!$O$21, O72,O97,O122,O147) -> 0.2862752041 | R28: Fraction BRHR | U28: =(SUM(G28:G29)+SUM(M28:M29))/C30 -> 0.002294013134
B29: 45+ | E29: =CHOOSE('O4'!$O$21, E73,E98,E123,E148) -> 2881.114198 | F29: =CHOOSE('O4'!$O$21, F73,F98,F123,F148) -> 1223.416356 | G29: =CHOOSE('O4'!$O$21, G73,G98,G123,G148) -> 7.891475849 | H29: =CHOOSE('O4'!$O$21, H73,H98,H123,H148) -> 0.7901297823 | I29: =CHOOSE('O4'!$O$21, I73,I98,I123,I148) -> 0.3354849207 | J29: =CHOOSE('O4'!$O$21, J73,J98,J123,J148) -> 0.216300694 | L29: =CHOOSE('O4'!$O$21, L73,L98,L123,L148) -> 168.9254391 | M29: =CHOOSE('O4'!$O$21, M73,M98,M123,M148) -> 1.227547862 | N29: =CHOOSE('O4'!$O$21, N73,N98,N123,N148) -> 0.05871587741 | O29: =CHOOSE('O4'!$O$21, O73,O98,O123,O148) -> 0.0426947367 | R29: Fraction prisoners | U29: =(SUM(H28:J29)+SUM(N28:O29))/C30 -> 0.0006576217349
B30: Total | C30: =SUM(E27:O29) -> 10000 | D30: =IF(((F45<1.0001)*(F46>0.9999)),"Demography in equilibrium","Not in equilibrium") -> Demography in equilibrium | E30: =IF(((F45<1.0001)*(F46>0.9999)),"","NOT OK !!") ->  | F30: =IF(((F45<1.0001)*(F46>0.9999)),"","NOT OK !!") ->  | G30: =IF(((F45<1.0001)*(F46>0.9999)),"","NOT OK !!") ->  | H30: =IF(((F45<1.0001)*(F46>0.9999)),"","NOT OK !!") ->  | I30: =IF(((F45<1.0001)*(F46>0.9999)),"","NOT OK !!") ->  | J30: =IF(((F45<1.0001)*(F46>0.9999)),"","NOT OK !!") ->  | L30: =IF(((F45<1.0001)*(F46>0.9999)),"","NOT OK !!") ->  | M30: =IF(((F45<1.0001)*(F46>0.9999)),"","NOT OK !!") ->  | N30: =IF(((F45<1.0001)*(F46>0.9999)),"","NOT OK !!") ->  | O30: =IF(((F45<1.0001)*(F46>0.9999)),"","NOT OK !!") -> 
D37: Last | E37: =GL0!$P$486 -> 1749.916566 | L37: =MV1a!$P$486 -> 63.85055498
E38: ='GL1'!$P$486 -> 2602.247073 | F38: ='GV1'!$P$486 -> 1103.373746 | G38: ='HR1'!$P$486 -> 11.34206438 | H38: ='PL1'!$P$486 -> 2.464888184 | I38: ='PV1'!$P$486 -> 1.045029127 | J38: ='PH1'!$P$486 -> 1.051330142 | L38: =MV1b!$P$486 -> 177.6397147 | M38: ='JH1'!$P$486 -> 2.479045897 | N38: ='PM1'!$P$486 -> 0.2853689241 | O38: ='PJ1'!$P$486 -> 0.2862751995
E39: ='GL2'!$P$486 -> 2881.114936 | F39: ='GV2'!$P$486 -> 1223.41562 | G39: ='HR2'!$P$486 -> 7.891471789 | H39: ='PL2'!$P$486 -> 0.7901299799 | I39: ='PV2'!$P$486 -> 0.3354847236 | J39: ='PH2'!$P$486 -> 0.216300588 | L39: ='MV2'!$P$486 -> 168.9254416 | M39: ='JH2'!$P$486 -> 1.227547872 | N39: ='PM2'!$P$486 -> 0.05871587824 | O39: ='PJ2'!$P$486 -> 0.04269473699
E41: =E37/E27 -> 1.000000002 | L41: =L37/L27 -> 1.000000061
E42: =E38/E28 -> 0.9999999134 | F42: =F38/F28 -> 1.0000002 | G42: 1.000000236 | H42: 0.9999999126 | I42: 1.000000202 | J42: 1.000000239 | L42: =L38/L28 -> 0.9999999643 | M42: =M38/M28 -> 0.9999999841 | N42: 0.9999999894 | O42: 0.9999999838
E43: =E39/E29 -> 1.000000256 | F43: 0.9999993987 | G43: 0.9999994855 | H43: 1.00000025 | I43: 0.9999994125 | J43: 0.9999995099 | L43: =L39/L29 -> 1.000000015 | M43: 1.000000008 | N43: 1.000000014 | O43: 1.000000007
E45: Max | F45: =MAX(E41:O43) -> 1.000000256
E46: Min | F46: =MIN(E41:O43) -> 0.9999993987
D50: Netherlands | E50: 14.09018085
E51: 30 | F51: 30 | G51: 30 | H51: 30 | I51: 30 | J51: 30 | L51: 30 | M51: 30 | N51: 30 | O51: 30
E52: 33.20361217 | F52: 33.20361217 | G52: 23.20361217 | H52: 33.20361217 | I52: 33.20361217 | J52: 23.20361217 | L52: 33.20361217 | M52: 23.20361217 | N52: 33.20361217 | O52: 23.20361217
F54: 0.3
L55: 0.7
L56: 0.05
L59: 6
L60: 42.45103737
F63: 421.1553918 | G63: 5 | L63: 421.1553918 | M63: 5
F64: 814.1737615 | G64: 5 | L64: 814.1737615 | M64: 5
E67: 307.7291358 | F67: 307.7291358 | G67: 3.077291358 | H67: 0.25 | I67: 0.25 | J67: 0.25 | L67: 246.1833086 | M67: 2.461833086 | N67: 0.25 | O67: 0.25
E68: 1092.000182 | F68: 1092.000182 | G68: 10.92000182 | H68: 0.25 | I68: 0.25 | J68: 0.25 | L68: 873.6001455 | M68: 8.736001455 | N68: 0.25 | O68: 0.25
E71: 1749.916562 | L71: 63.85055111
E72: 2602.247298 | F72: 1103.373526 | G72: 11.34206169 | H72: 2.464888399 | I72: 1.045028916 | J72: 1.051329891 | L72: 177.639721 | M72: 2.479045937 | N72: 0.2853689272 | O72: 0.2862752041
E73: 2881.114198 | F73: 1223.416356 | G73: 7.891475849 | H73: 0.7901297823 | I73: 0.3354849207 | J73: 0.216300694 | L73: 168.9254391 | M73: 1.227547862 | N73: 0.05871587741 | O73: 0.0426947367
D75: Czech Republic | E75: 10.37336004
E76: 30 | F76: 30 | G76: 30 | H76: 30 | I76: 30 | J76: 30 | L76: 30 | M76: 30 | N76: 30 | O76: 30
E77: 30.32757687 | F77: 30.32757687 | G77: 20.32757687 | H77: 30.32757687 | I77: 30.32757687 | J77: 20.32757687 | L77: 30.32757687 | M77: 20.32757687 | N77: 30.32757687 | O77: 20.32757687
F79: 0.3
L80: 0.7
L81: 0.05
L84: 6
L85: 34.75478335
F88: 208.125879 | G88: 5 | L88: 208.125879 | M88: 5
F89: 401.6829464 | G89: 5 | L89: 401.6829464 | M89: 5
E92: 132.9576267 | F92: 132.9576267 | G92: 1.329576267 | H92: 0.25 | I92: 0.25 | J92: 0.25 | L92: 106.3661014 | M92: 1.063661014 | N92: 0.25 | O92: 0.25
E93: 471.999575 | F93: 471.999575 | G93: 4.71999575 | H93: 0.25 | I93: 0.25 | J93: 0.25 | L93: 377.59966 | M93: 3.7759966 | N93: 0.25 | O93: 0.25
E96: 1435.623725 | L96: 35.8688526
E97: 2894.192828 | F97: 1211.828639 | G97: 25.26996468 | H97: 6.343869886 | I97: 2.655712841 | J97: 5.326723734 | L97: 109.3833379 | M97: 3.027290515 | N97: 0.3971889337 | O97: 0.7915314064
E98: 2928.967717 | F98: 1230.272258 | G98: 16.25812215 | H98: 1.861479736 | I98: 0.7817360314 | J98: 1.027113746 | L98: 88.57197669 | M98: 1.368603485 | N98: 0.07157431482 | O98: 0.1097541367
D100: Portugal | E100: 11.60373983
E101: 30 | F101: 30 | G101: 30 | H101: 30 | I101: 30 | J101: 30 | L101: 30 | M101: 30 | N101: 30 | O101: 30
E102: 35.95657605 | F102: 35.95657605 | G102: 25.95657605 | H102: 35.95657605 | I102: 35.95657605 | J102: 25.95657605 | L102: 35.95657605 | M102: 25.95657605 | N102: 35.95657605 | O102: 25.95657605
F104: 0.3
L105: 0.8
L106: 0.05
L109: 5
L110: 10.33225131
F113: 96.79662955 | G113: 5 | L113: 96.79662955 | M113: 5
F114: 186.817495 | G114: 5 | L114: 186.817495 | M114: 5
E117: 149.4773633 | F117: 149.4773633 | G117: 14.94773633 | H117: 0.25 | I117: 0.25 | J117: 0.25 | L117: 89.686418 | M117: 8.9686418 | N117: 0.25 | O117: 0.25
E118: 530.6446398 | F118: 530.6446398 | G118: 53.06446398 | H118: 0.25 | I118: 0.25 | J118: 0.25 | L118: 318.3867839 | M118: 31.83867839 | N118: 0.25 | O118: 0.25
E121: 1470.519781 | L121: 42.9321555
E122: 2651.783887 | F122: 1088.184091 | G122: 48.56776657 | H122: 5.170324359 | I122: 2.120777962 | J122: 0.9367641487 | L122: 101.8607724 | M122: 6.44710023 | N122: 0.4690732054 | O122: 0.2068673061
E123: 3180.656034 | F123: 1313.024222 | G123: 36.59850261 | H123: 1.792446371 | I123: 0.739676227 | J123: 0.2067181939 | L123: 45.76479912 | M123: 1.953183447 | N123: 0.04565935657 | O123: 0.0193975447
D125: Spain | E125: 11.30729313
E126: 30 | F126: 30 | G126: 30 | H126: 30 | I126: 30 | J126: 30 | L126: 30 | M126: 30 | N126: 30 | O126: 30
E127: 31.21549877 | F127: 31.21549877 | G127: 21.21549877 | H127: 31.21549877 | I127: 31.21549877 | J127: 21.21549877 | L127: 31.21549877 | M127: 21.21549877 | N127: 31.21549877 | O127: 21.21549877
F129: 0.3
L130: 0.7
L131: 0.05
L134: 8
L135: 7.7832354
F138: 1329.870497 | G138: 5 | L138: 1329.870497 | M138: 5
F139: 2566.650059 | G139: 5 | L139: 2566.650059 | M139: 5
E142: 172.543831 | F142: 172.543831 | G142: 1.72543831 | H142: 0.25 | I142: 0.25 | J142: 0.25 | L142: 103.5262986 | M142: 1.035262986 | N142: 0.25 | O142: 0.25
E143: 612.5306002 | F143: 612.5306002 | G143: 6.125306002 | H143: 0.25 | I143: 0.25 | J143: 0.25 | L143: 367.5183601 | M143: 3.675183601 | N143: 0.25 | O143: 0.25
E146: 1484.372487 | L146: 116.1109709
E147: 2747.188608 | F147: 1173.172148 | G147: 3.825217851 | H147: 4.640452208 | I147: 1.981618147 | J147: 0.6257618141 | L147: 284.1817183 | M147: 1.30634293 | N147: 1.125021501 | O147: 0.3505619903
E148: 2860.761123 | F148: 1222.261327 | G148: 2.517403348 | H148: 1.400249403 | I148: 0.5982392656 | J148: 0.1227686203 | L148: 92.98870786 | M148: 0.3560978589 | N148: 0.08268235202 | O148: 0.03049211085

Sheet A3 (hidden)
B3: Diagnostic characteristics (% positive) | E3: Susc_0 | F3: Susc_1 | G3: Susc_2 | H3: LTBI1_1 | I3: LTBI1_2 | J3: LTBI2_1 | K3: LTBI2_2 | L3: Asymp_1 | M3: Asymp_2 | N3: PTB | P3: Default strategies
C4: CXR | E4: 0.04 | F4: 0.04 | G4: 0.25 | H4: 0.04 | I4: 0.25 | J4: 0.04 | K4: 0.25 | L4: 0.25 | M4: 0.5 | N4: 0.975 | P4: Reset | R4: Baseline
C5: Culture | E5: 0.005 | F5: 0.005 | G5: 0.005 | H5: 0.005 | I5: 0.005 | J5: 0.005 | K5: 0.005 | L5: 1 | M5: 1 | N5: 1 | P5: None | R5: 0.8 | T5: 0.6 | V5: 0.95
C6: IGRA | E6: 0.02 | F6: 0.02 | G6: 0.02 | H6: 0.83 | I6: 0.83 | J6: 0.83 | K6: 0.83 | L6: 0.83 | M6: 0.83 | N6: 0.81 | P6: None | R6: 1 | T6: 0.7 | V6: 0.8
C7: TST | E7: 0.05 | F7: 0.89 | G7: 0.89 | H7: 0.89 | I7: 0.89 | J7: 0.89 | K7: 0.89 | L7: 0.89 | M7: 0.89 | N7: 0.75 | P7: None | R7: 0.9 | T7: 0.8 | V7: 0.8
C8: TB symptoms (not BR-HR) | E8: 0.1 | F8: 0.1 | G8: 0.1 | H8: 0.1 | I8: 0.1 | J8: 0.1 | K8: 0.1 | L8: 0.1 | M8: 0.1 | N8: 0.9 | P8: None | R8: 0.7 | T8: 0.6 | V8: 0.9
C9: TB symptoms (BR-HR) | E9: 0.32 | F9: 0.32 | G9: 0.32 | H9: 0.32 | I9: 0.32 | J9: 0.32 | K9: 0.32 | L9: 0.32 | M9: 0.32 | N9: 0.9
P10: Netherlands | R10: Czech Republic | T10: Portugal | V10: Spain
B11: Effectiveness TB treatment | H11: 1 | I11: 1 | J11: 1 | K11: 1 | L11: 1 | M11: 1 | N11: 1 | P11: CXR | R11: CXR | T11: None | V11: TST
B12: Effectiveness LTBI treatment | H12: 1 | I12: 1 | J12: 1 | K12: 1 | L12: 0.5 | M12: 0.5 | N12: 0 | P12: CXR | R12: CXR | T12: CXR | V12: TST
P13: CXR | R13: CXR | T13: CXR | V13: TST
P14: None | R14: None | T14: None | V14: None
B15: Screening options | D15: Description | H15: Interval
B16: 1 | C16: None | D16: No screening | H16: 1 | P16: Custom | R16: Custom
B17: 2 | C17: CXR | D17: Screening for TB with CXR | H17: 2
B18: 3 | C18: IGRA | D18: Screening for LTBI with IGRA | H18: 3
B19: 4 | C19: TST | D19: Screening for LTBI with TST | H19: 5
B20: 5 | C20: TST/IGRA | D20: Screening for LTBI with TST/IGRA | H20: 10
H21: Once
M22: Treatment started and successful
B23: Key population group | F23: Screening option | H23: Interval | J23: Coverage | L23: LTBI | N23: TB
B24: i | C24: Migrants (MV) at entry | E24: =IFERROR(MATCH(Calculator!D22,$C$16:$C$20,0),1) -> 2 | F24: =Calculator!D22 -> CXR | J24: =Calculator!F22 -> 0.8 | L24: =Calculator!H22 -> 0.6 | N24: =Calculator!J22 -> 0.95
B25: ii | C25: Migrant prisoners (PM, PJ) at entry | E25: =IFERROR(MATCH(Calculator!D23,$C$16:$C$20,0),1) -> 2 | F25: =Calculator!D23 -> CXR | J25: =Calculator!F23 -> 1 | L25: =Calculator!H23 -> 0.7 | N25: =Calculator!J23 -> 0.8
B26: iii | C26: Native prisoners (PL, PV, PH) at entry | E26: =IFERROR(MATCH(Calculator!D24,$C$16:$C$20,0),1) -> 2 | F26: =Calculator!D24 -> CXR | J26: =Calculator!F24 -> 0.9 | L26: =Calculator!H24 -> 0.8 | N26: =Calculator!J24 -> 0.8
B27: iv | C27: Behavior-related high risk (HR, JH) annually | E27: =IFERROR(MATCH(Calculator!D25,$C$16:$C$20,0),1) -> 1 | F27: =Calculator!D25 -> None | H27: =IF(Calculator!L25="Once",20,Calculator!L25) -> 3 | J27: =Calculator!F25 -> 0.7 | L27: =Calculator!H25 -> 0.6 | N27: =Calculator!J25 -> 0.9
B37: CXRs performed | E37: Susc_0 | F37: Susc_1 | G37: Susc_2 | H37: LTBI1_1 | I37: LTBI1_2 | J37: LTBI2_1 | K37: LTBI2_2 | L37: Asymp_1 | M37: Asymp_2 | N37: PTB
B38: i | C38: MV | E38: =$J24 * CHOOSE($E24, 0, 1, E$6+(1-E$6)*E$8, E$7+(1-E$7)*E$8, E$7*E$6+(1-E$7*E$6)*E$8) -> 0.8 | F38: 0.8 | G38: 0.8 | H38: 0.8 | I38: 0.8 | J38: 0.8 | K38: 0.8 | L38: 0.8 | M38: 0.8 | N38: 0.8
B39: ii | C39: PM, PJ | E39: =$J25 * CHOOSE($E25, 0, 1, E$6+(1-E$6)*E$8, E$7+(1-E$7)*E$8, E$7*E$6+(1-E$7*E$6)*E$8) -> 1 | F39: 1 | G39: 1 | H39: 1 | I39: 1 | J39: 1 | K39: 1 | L39: 1 | M39: 1 | N39: 1
B40: iii | C40: PL, PV, PH | E40: =$J26 * CHOOSE($E26, 0, 1, E$6+(1-E$6)*E$8, E$7+(1-E$7)*E$8, E$7*E$6+(1-E$7*E$6)*E$8) -> 0.9 | F40: 0.9 | G40: 0.9 | H40: 0.9 | I40: 0.9 | J40: 0.9 | K40: 0.9 | L40: 0.9 | M40: 0.9 | N40: 0.9
B41: iv | C41: HR, JH | E41: =$J27 * CHOOSE($E27, 0, 1, E$6+(1-E$6)*E$9, E$7+(1-E$7)*E$9, E$7*E$6+(1-E$7*E$6)*E$9) -> 0 | F41: 0 | G41: 0 | H41: 0 | I41: 0 | J41: 0 | K41: 0 | L41: 0 | M41: 0 | N41: 0
B43: Cultures performed | E43: Susc_0 | F43: Susc_1 | G43: Susc_2 | H43: LTBI1_1 | I43: LTBI1_2 | J43: LTBI2_1 | K43: LTBI2_2 | L43: Asymp_1 | M43: Asymp_2 | N43: PTB
B44: i | C44: MV | E44: =$J24 * CHOOSE($E24, 0, E$4, (E$6+(1-E$6)*E$8)*E$4, (E$7+(1-E$7)*E$8)*E$4, (E$7*E$6+(1-E$7*E$6)*E$8)*E$4) -> 0.032 | F44: 0.032 | G44: 0.2 | H44: 0.032 | I44: 0.2 | J44: 0.032 | K44: 0.2 | L44: 0.2 | M44: 0.4 | N44: 0.78
B45: ii | C45: PM, PJ | E45: =$J25 * CHOOSE($E25, 0, E$4, (E$6+(1-E$6)*E$8)*E$4, (E$7+(1-E$7)*E$8)*E$4, (E$7*E$6+(1-E$7*E$6)*E$8)*E$4) -> 0.04 | F45: 0.04 | G45: 0.25 | H45: 0.04 | I45: 0.25 | J45: 0.04 | K45: 0.25 | L45: 0.25 | M45: 0.5 | N45: 0.975
B46: iii | C46: PL, PV, PH | E46: =$J26 * CHOOSE($E26, 0, E$4, (E$6+(1-E$6)*E$8)*E$4, (E$7+(1-E$7)*E$8)*E$4, (E$7*E$6+(1-E$7*E$6)*E$8)*E$4) -> 0.036 | F46: 0.036 | G46: 0.225 | H46: 0.036 | I46: 0.225 | J46: 0.036 | K46: 0.225 | L46: 0.225 | M46: 0.45 | N46: 0.8775
B47: iv | C47: HR, JH | E47: =$J27 * CHOOSE($E27, 0, E$4, (E$6+(1-E$6)*E$9)*E$4, (E$7+(1-E$7)*E$9)*E$4, (E$7*E$6+(1-E$7*E$6)*E$9)*E$4) -> 0 | F47: 0 | G47: 0 | H47: 0 | I47: 0 | J47: 0 | K47: 0 | L47: 0 | M47: 0 | N47: 0
B49: IGRAs performed | E49: Susc_0 | F49: Susc_1 | G49: Susc_2 | H49: LTBI1_1 | I49: LTBI1_2 | J49: LTBI2_1 | K49: LTBI2_2 | L49: Asymp_1 | M49: Asymp_2 | N49: PTB
B50: i | C50: MV | E50: =$J24 * CHOOSE($E24, 0, 0, 1, 0, E$7) -> 0 | F50: 0 | G50: 0 | H50: 0 | I50: 0 | J50: 0 | K50: 0 | L50: 0 | M50: 0 | N50: 0
B51: ii | C51: PM, PJ | E51: =$J25 * CHOOSE($E25, 0, 0, 1, 0, E$7) -> 0 | F51: 0 | G51: 0 | H51: 0 | I51: 0 | J51: 0 | K51: 0 | L51: 0 | M51: 0 | N51: 0
B52: iii | C52: PL, PV, PH | E52: =$J26 * CHOOSE($E26, 0, 0, 1, 0, E$7) -> 0 | F52: 0 | G52: 0 | H52: 0 | I52: 0 | J52: 0 | K52: 0 | L52: 0 | M52: 0 | N52: 0
B53: iv | C53: HR, JH | E53: =$J27 * CHOOSE($E27, 0, 0, 1, 0, E$7) -> 0 | F53: 0 | G53: 0 | H53: 0 | I53: 0 | J53: 0 | K53: 0 | L53: 0 | M53: 0 | N53: 0
B55: TSTs performed | E55: Susc_0 | F55: Susc_1 | G55: Susc_2 | H55: LTBI1_1 | I55: LTBI1_2 | J55: LTBI2_1 | K55: LTBI2_2 | L55: Asymp_1 | M55: Asymp_2 | N55: PTB
B56: i | C56: MV | E56: =$J24 * CHOOSE($E24, 0, 0, 0, 1, 1) -> 0 | F56: 0 | G56: 0 | H56: 0 | I56: 0 | J56: 0 | K56: 0 | L56: 0 | M56: 0 | N56: 0
B57: ii | C57: PM, PJ | E57: =$J25 * CHOOSE($E25, 0, 0, 0, 1, 1) -> 0 | F57: 0 | G57: 0 | H57: 0 | I57: 0 | J57: 0 | K57: 0 | L57: 0 | M57: 0 | N57: 0
B58: iii | C58: PL, PV, PH | E58: =$J26 * CHOOSE($E26, 0, 0, 0, 1, 1) -> 0 | F58: 0 | G58: 0 | H58: 0 | I58: 0 | J58: 0 | K58: 0 | L58: 0 | M58: 0 | N58: 0
B59: iv | C59: HR, JH | E59: =$J27 * CHOOSE($E27, 0, 0, 0, 1, 1) -> 0 | F59: 0 | G59: 0 | H59: 0 | I59: 0 | J59: 0 | K59: 0 | L59: 0 | M59: 0 | N59: 0
B61: New TB case | E61: Susc_0 | F61: Susc_1 | G61: Susc_2 | H61: LTBI1_1 | I61: LTBI1_2 | J61: LTBI2_1 | K61: LTBI2_2 | L61: Asymp_1 | M61: Asymp_2 | N61: PTB
B62: i | C62: MV | E62: =$J24 * CHOOSE($E24, 0, E$4*E$5, (E$6+(1-E$6)*E$8)*E$4*E$5, (E$7+(1-E$7)*E$8)*E$4*E$5, (E$7*E$6+(1-E$7*E$6)*E$8)*E$4*E$5) -> 0.00016 | F62: 0.00016 | G62: 0.001 | H62: 0.00016 | I62: 0.001 | J62: 0.00016 | K62: 0.001 | L62: 0.2 | M62: 0.4 | N62: 0.78
B63: ii | C63: PM, PJ | E63: =$J25 * CHOOSE($E25, 0, E$4*E$5, (E$6+(1-E$6)*E$8)*E$4*E$5, (E$7+(1-E$7)*E$8)*E$4*E$5, (E$7*E$6+(1-E$7*E$6)*E$8)*E$4*E$5) -> 0.0002 | F63: 0.0002 | G63: 0.00125 | H63: 0.0002 | I63: 0.00125 | J63: 0.0002 | K63: 0.00125 | L63: 0.25 | M63: 0.5 | N63: 0.975
B64: iii | C64: PL, PV, PH | E64: =$J26 * CHOOSE($E26, 0, E$4*E$5, (E$6+(1-E$6)*E$8)*E$4*E$5, (E$7+(1-E$7)*E$8)*E$4*E$5, (E$7*E$6+(1-E$7*E$6)*E$8)*E$4*E$5) -> 0.00018 | F64: 0.00018 | G64: 0.001125 | H64: 0.00018 | I64: 0.001125 | J64: 0.00018 | K64: 0.001125 | L64: 0.225 | M64: 0.45 | N64: 0.8775
B65: iv | C65: HR, JH | E65: =$J27 * CHOOSE($E27, 0, E$4*E$5, (E$6+(1-E$6)*E$9)*E$4*E$5, (E$7+(1-E$7)*E$9)*E$4*E$5, (E$7*E$6+(1-E$7*E$6)*E$9)*E$4*E$5) -> 0 | F65: 0 | G65: 0 | H65: 0 | I65: 0 | J65: 0 | K65: 0 | L65: 0 | M65: 0 | N65: 0
B67: TB treatments performed | E67: Susc_0 | F67: Susc_1 | G67: Susc_2 | H67: LTBI1_1 | I67: LTBI1_2 | J67: LTBI2_1 | K67: LTBI2_2 | L67: Asymp_1 | M67: Asymp_2 | N67: PTB
B68: i | C68: MV | E68: =$J24 * CHOOSE($E24, 0, E$4*E$5, (E$6+(1-E$6)*E$8)*E$4*E$5, (E$7+(1-E$7)*E$8)*E$4*E$5, (E$7*E$6+(1-E$7*E$6)*E$8)*E$4*E$5) * (0.5+0.5*$N24) -> 0.000156 | F68: =$J24 * CHOOSE($E24, 0, F$4*F$5, (F$6+(1-F$6)*F$8)*F$4*F$5, (F$7+(1-F$7)*F$8)*F$4*F$5, (F$7*F$6+(1-F$7*F$6)*F$8)*F$4*F$5) * (0.5+0.5*$N24) -> 0.000156 | G68: 0.000975 | H68: 0.000156 | I68: 0.000975 | J68: 0.000156 | K68: 0.000975 | L68: 0.195 | M68: 0.39 | N68: 0.7605
B69: ii | C69: PM, PJ | E69: =$J25 * CHOOSE($E25, 0, E$4*E$5, (E$6+(1-E$6)*E$8)*E$4*E$5, (E$7+(1-E$7)*E$8)*E$4*E$5, (E$7*E$6+(1-E$7*E$6)*E$8)*E$4*E$5) * (0.5+0.5*$N25) -> 0.00018 | F69: =$J25 * CHOOSE($E25, 0, F$4*F$5, (F$6+(1-F$6)*F$8)*F$4*F$5, (F$7+(1-F$7)*F$8)*F$4*F$5, (F$7*F$6+(1-F$7*F$6)*F$8)*F$4*F$5) * (0.5+0.5*$N25) -> 0.00018 | G69: 0.001125 | H69: 0.00018 | I69: 0.001125 | J69: 0.00018 | K69: 0.001125 | L69: 0.225 | M69: 0.45 | N69: 0.8775
B70: iii | C70: PL, PV, PH | E70: =$J26 * CHOOSE($E26, 0, E$4*E$5, (E$6+(1-E$6)*E$8)*E$4*E$5, (E$7+(1-E$7)*E$8)*E$4*E$5, (E$7*E$6+(1-E$7*E$6)*E$8)*E$4*E$5) * (0.5+0.5*$N26) -> 0.000162 | F70: =$J26 * CHOOSE($E26, 0, F$4*F$5, (F$6+(1-F$6)*F$8)*F$4*F$5, (F$7+(1-F$7)*F$8)*F$4*F$5, (F$7*F$6+(1-F$7*F$6)*F$8)*F$4*F$5) * (0.5+0.5*$N26) -> 0.000162 | G70: 0.0010125 | H70: 0.000162 | I70: 0.0010125 | J70: 0.000162 | K70: 0.0010125 | L70: 0.2025 | M70: 0.405 | N70: 0.78975
B71: iv | C71: HR, JH | E71: =$J27 * CHOOSE($E27, 0, E$4*E$5, (E$6+(1-E$6)*E$9)*E$4*E$5, (E$7+(1-E$7)*E$9)*E$4*E$5, (E$7*E$6+(1-E$7*E$6)*E$9)*E$4*E$5) * (0.5+0.5*$N27) -> 0 | F71: =$J27 * CHOOSE($E27, 0, F$4*F$5, (F$6+(1-F$6)*F$9)*F$4*F$5, (F$7+(1-F$7)*F$9)*F$4*F$5, (F$7*F$6+(1-F$7*F$6)*F$9)*F$4*F$5) * (0.5+0.5*$N27) -> 0 | G71: 0 | H71: 0 | I71: 0 | J71: 0 | K71: 0 | L71: 0 | M71: 0 | N71: 0
B73: LTBI treatments performed | E73: Susc_0 | F73: Susc_1 | G73: Susc_2 | H73: LTBI1_1 | I73: LTBI1_2 | J73: LTBI2_1 | K73: LTBI2_2 | L73: Asymp_1 | M73: Asymp_2 | N73: PTB
B74: i | C74: MV | E74: =$J24 * CHOOSE($E24, 0, 0, E$6*(1-E$4*E$5), E$7*(1-E$4*E$5), E$7*E$6*(1-E$4*E$5)) * (0.5+0.5*$L24) -> 0 | F74: 0 | G74: 0 | H74: 0 | I74: 0 | J74: 0 | K74: 0 | L74: 0 | M74: 0 | N74: 0
B75: ii | C75: PM, PJ | E75: =$J25 * CHOOSE($E25, 0, 0, E$6*(1-E$4*E$5), E$7*(1-E$4*E$5), E$7*E$6*(1-E$4*E$5)) * (0.5+0.5*$L25) -> 0 | F75: 0 | G75: 0 | H75: 0 | I75: 0 | J75: 0 | K75: 0 | L75: 0 | M75: 0 | N75: 0
B76: iii | C76: PL, PV, PH | E76: =$J26 * CHOOSE($E26, 0, 0, E$6*(1-E$4*E$5), E$7*(1-E$4*E$5), E$7*E$6*(1-E$4*E$5)) * (0.5+0.5*$L26) -> 0 | F76: 0 | G76: 0 | H76: 0 | I76: 0 | J76: 0 | K76: 0 | L76: 0 | M76: 0 | N76: 0
B77: iv | C77: HR, JH | E77: =$J27 * CHOOSE($E27, 0, 0, E$6*(1-E$4*E$5), E$7*(1-E$4*E$5), E$7*E$6*(1-E$4*E$5)) * (0.5+0.5*$L27) -> 0 | F77: 0 | G77: 0 | H77: 0 | I77: 0 | J77: 0 | K77: 0 | L77: 0 | M77: 0 | N77: 0
B79: Affected by TB treatment | H79: LTBI1_1 | I79: LTBI1_2 | J79: LTBI2_1 | K79: LTBI2_2 | L79: Asymp_1 | M79: Asymp_2 | N79: PTB
B80: i | C80: MV | H80: =$J24 * CHOOSE($E24, 0, H$4*H$5, (H$6+(1-H$6)*H$8)*H$4*H$5, (H$7+(1-H$7)*H$8)*H$4*H$5, (H$7*H$6+(1-H$7*H$6)*H$8)*H$4*H$5) * $N24 * H$11 -> 0.000152 | I80: =$J24 * CHOOSE($E24, 0, I$4*I$5, (I$6+(1-I$6)*I$8)*I$4*I$5, (I$7+(1-I$7)*I$8)*I$4*I$5, (I$7*I$6+(1-I$7*I$6)*I$8)*I$4*I$5) * $N24 * I$11 -> 0.00095 | J80: 0.000152 | K80: 0.00095 | L80: 0.19 | M80: 0.38 | N80: 0.741
B81: ii | C81: PM, PJ | H81: =$J25 * CHOOSE($E25, 0, H$4*H$5, (H$6+(1-H$6)*H$8)*H$4*H$5, (H$7+(1-H$7)*H$8)*H$4*H$5, (H$7*H$6+(1-H$7*H$6)*H$8)*H$4*H$5) * $N25 * H$11 -> 0.00016 | I81: =$J25 * CHOOSE($E25, 0, I$4*I$5, (I$6+(1-I$6)*I$8)*I$4*I$5, (I$7+(1-I$7)*I$8)*I$4*I$5, (I$7*I$6+(1-I$7*I$6)*I$8)*I$4*I$5) * $N25 * I$11 -> 0.001 | J81: 0.00016 | K81: 0.001 | L81: 0.2 | M81: 0.4 | N81: 0.78
B82: iii | C82: PL, PV, PH | H82: =$J26 * CHOOSE($E26, 0, H$4*H$5, (H$6+(1-H$6)*H$8)*H$4*H$5, (H$7+(1-H$7)*H$8)*H$4*H$5, (H$7*H$6+(1-H$7*H$6)*H$8)*H$4*H$5) * $N26 * H$11 -> 0.000144 | I82: =$J26 * CHOOSE($E26, 0, I$4*I$5, (I$6+(1-I$6)*I$8)*I$4*I$5, (I$7+(1-I$7)*I$8)*I$4*I$5, (I$7*I$6+(1-I$7*I$6)*I$8)*I$4*I$5) * $N26 * I$11 -> 0.0009 | J82: 0.000144 | K82: 0.0009 | L82: 0.18 | M82: 0.36 | N82: 0.702
B83: iv | C83: HR, JH | H83: =$J27 * CHOOSE($E27, 0, H$4*H$5, (H$6+(1-H$6)*H$9)*H$4*H$5, (H$7+(1-H$7)*H$9)*H$4*H$5, (H$7*H$6+(1-H$7*H$6)*H$9)*H$4*H$5) * $N27 * H$11 -> 0 | I83: =$J27 * CHOOSE($E27, 0, I$4*I$5, (I$6+(1-I$6)*I$9)*I$4*I$5, (I$7+(1-I$7)*I$9)*I$4*I$5, (I$7*I$6+(1-I$7*I$6)*I$9)*I$4*I$5) * $N27 * I$11 -> 0 | J83: 0 | K83: 0 | L83: 0 | M83: 0 | N83: 0
B85: Affected by LTBI treatment | H85: LTBI1_1 | I85: LTBI1_2 | J85: LTBI2_1 | K85: LTBI2_2 | L85: Asymp_1 | M85: Asymp_2 | N85: PTB
B86: i | C86: MV | H86: =$J24 * CHOOSE($E24, 0, 0, H$6*(1-H$4*H$5), H$7*(1-H$4*H$5), H$7*H$6*(1-H$4*H$5)) * $L24 * H$12 -> 0 | I86: 0 | J86: 0 | K86: 0 | L86: 0 | M86: 0 | N86: 0
B87: ii | C87: PM, PJ | H87: 0 | I87: 0 | J87: 0 | K87: 0 | L87: 0 | M87: 0 | N87: 0
B88: iii | C88: PL, PV, PH | H88: 0 | I88: 0 | J88: 0 | K88: 0 | L88: 0 | M88: 0 | N88: 0
B89: iv | C89: HR, JH | H89: 0 | I89: 0 | J89: 0 | K89: 0 | L89: 0 | M89: 0 | N89: 0
B91: Affected by TB or LTBI treatment | H91: LTBI1_1 | I91: LTBI1_2 | J91: LTBI2_1 | K91: LTBI2_2 | L91: Asymp_1 | M91: Asymp_2 | N91: PTB
B92: i | C92: MV | H92: =H80+H86 -> 0.000152 | I92: 0.00095 | J92: 0.000152 | K92: 0.00095 | L92: 0.19 | M92: 0.38 | N92: 0.741
B93: ii | C93: PM, PJ | H93: 0.00016 | I93: 0.001 | J93: 0.00016 | K93: 0.001 | L93: 0.2 | M93: 0.4 | N93: 0.78
B94: iii | C94: PL, PV, PH | H94: 0.000144 | I94: 0.0009 | J94: 0.000144 | K94: 0.0009 | L94: 0.18 | M94: 0.36 | N94: 0.702
B95: iv | C95: HR, JH | H95: 0 | I95: 0 | J95: 0 | K95: 0 | L95: 0 | M95: 0 | N95: 0

Sheet A4 (hidden)
D2: Start situation (input) | O2: End situation (output)
D4: Susc_0 | E4: Susc_1 | F4: Susc_2 | G4: LTBI1_1 | H4: LTBI1_2 | I4: LTBI2_1 | J4: LTBI2_2 | K4: Asymp_1 | L4: Asymp_2 | M4: PTB | O4: Susc_0 | P4: Susc_1 | Q4: Susc_2 | R4: LTBI1_1 | S4: LTBI1_2 | T4: LTBI2_1 | U4: LTBI2_2 | V4: Asymp_1 | W4: Asymp_2 | X4: PTB
B6: GL0 | D6: =CHOOSE('O4'!$O$21, D38,D66,D94,D122) -> 0.996939615 | E6: =CHOOSE('O4'!$O$21, E38,E66,E94,E122) -> 0.001086988635 | F6: =CHOOSE('O4'!$O$21, F38,F66,F94,F122) -> 6.287663966e-05 | G6: =CHOOSE('O4'!$O$21, G38,G66,G94,G122) -> 0.0001306007415 | H6: =CHOOSE('O4'!$O$21, H38,H66,H94,H122) -> 8.235836977e-09 | I6: =CHOOSE('O4'!$O$21, I38,I66,I94,I122) -> 0.001768723621 | J6: =CHOOSE('O4'!$O$21, J38,J66,J94,J122) -> 2.180108659e-06 | K6: =CHOOSE('O4'!$O$21, K38,K66,K94,K122) -> 7.401845471e-06 | L6: =CHOOSE('O4'!$O$21, L38,L66,L94,L122) -> 2.013223633e-07 | M6: =CHOOSE('O4'!$O$21, M38,M66,M94,M122) -> 1.403802839e-06 | O6: =GL0!E$486/GL0!$P$486 -> 0.9970104355 | P6: =GL0!F$486/GL0!$P$486 -> 0.001075775049 | Q6: =GL0!G$486/GL0!$P$486 -> 6.174372906e-05 | R6: =GL0!H$486/GL0!$P$486 -> 0.0001240929561 | S6: =GL0!I$486/GL0!$P$486 -> 7.692017352e-09 | T6: =GL0!J$486/GL0!$P$486 -> 0.001717210186 | U6: =GL0!K$486/GL0!$P$486 -> 2.12767243e-06 | V6: =GL0!L$486/GL0!$P$486 -> 7.072018482e-06 | W6: =GL0!M$486/GL0!$P$486 -> 1.928201598e-07 | X6: =GL0!N$486/GL0!$P$486 -> 1.342404017e-06
B7: GL1 | D7: =CHOOSE('O4'!$O$21, D39,D67,D95,D123) -> 0.990487646 | E7: =CHOOSE('O4'!$O$21, E39,E67,E95,E123) -> 0.005374691275 | F7: =CHOOSE('O4'!$O$21, F39,F67,F95,F123) -> 0.0006693266635 | G7: =CHOOSE('O4'!$O$21, G39,G67,G95,G123) -> 0.0001177466677 | H7: =CHOOSE('O4'!$O$21, H39,H67,H95,H123) -> 7.808874901e-08 | I7: =CHOOSE('O4'!$O$21, I39,I67,I95,I123) -> 0.003294242754 | J7: =CHOOSE('O4'!$O$21, J39,J67,J95,J123) -> 1.638708804e-05 | K7: =CHOOSE('O4'!$O$21, K39,K67,K95,K123) -> 3.261932041e-05 | L7: =CHOOSE('O4'!$O$21, L39,L67,L95,L123) -> 9.794397348e-07 | M7: =CHOOSE('O4'!$O$21, M39,M67,M95,M123) -> 6.282716922e-06 | O7: ='GL1'!E$486/'GL1'!$P$486 -> 0.9905793752 | P7: ='GL1'!F$486/'GL1'!$P$486 -> 0.005364253052 | Q7: ='GL1'!G$486/'GL1'!$P$486 -> 0.0006641709414 | R7: ='GL1'!H$486/'GL1'!$P$486 -> 0.0001118677374 | S7: ='GL1'!I$486/'GL1'!$P$486 -> 7.364339604e-08 | T7: ='GL1'!J$486/'GL1'!$P$486 -> 0.003225816467 | U7: ='GL1'!K$486/'GL1'!$P$486 -> 1.611500724e-05 | V7: ='GL1'!L$486/'GL1'!$P$486 -> 3.13422695e-05 | W7: ='GL1'!M$486/'GL1'!$P$486 -> 9.43975292e-07 | X7: ='GL1'!N$486/'GL1'!$P$486 -> 6.041674604e-06
B8: GL2 | D8: =CHOOSE('O4'!$O$21, D40,D68,D96,D124) -> 0.9834621871 | E8: =CHOOSE('O4'!$O$21, E40,E68,E96,E124) -> 0.01108817584 | F8: =CHOOSE('O4'!$O$21, F40,F68,F96,F124) -> 0.001246559719 | G8: =CHOOSE('O4'!$O$21, G40,G68,G96,G124) -> 0.0001226658269 | H8: =CHOOSE('O4'!$O$21, H40,H68,H96,H124) -> 1.530138368e-07 | I8: =CHOOSE('O4'!$O$21, I40,I68,I96,I124) -> 0.004024264409 | J8: =CHOOSE('O4'!$O$21, J40,J68,J96,J124) -> 2.242010654e-05 | K8: =CHOOSE('O4'!$O$21, K40,K68,K96,K124) -> 2.737824087e-05 | L8: =CHOOSE('O4'!$O$21, L40,L68,L96,L124) -> 8.642245484e-07 | M8: =CHOOSE('O4'!$O$21, M40,M68,M96,M124) -> 5.331502899e-06 | O8: ='GL2'!E$486/'GL2'!$P$486 -> 0.9835283602 | P8: ='GL2'!F$486/'GL2'!$P$486 -> 0.01110533465 | Q8: ='GL2'!G$486/'GL2'!$P$486 -> 0.001242257149 | R8: ='GL2'!H$486/'GL2'!$P$486 -> 0.0001165454838 | S8: ='GL2'!I$486/'GL2'!$P$486 -> 1.44896652e-07 | T8: ='GL2'!J$486/'GL2'!$P$486 -> 0.003952897655 | U8: ='GL2'!K$486/'GL2'!$P$486 -> 2.212378472e-05 | V8: ='GL2'!L$486/'GL2'!$P$486 -> 2.636346223e-05 | W8: ='GL2'!M$486/'GL2'!$P$486 -> 8.347812811e-07 | X8: ='GL2'!N$486/'GL2'!$P$486 -> 5.137902041e-06
B9: GV1 | D9: =CHOOSE('O4'!$O$21, D41,D69,D97,D125) -> 0.9882535979 | E9: =CHOOSE('O4'!$O$21, E41,E69,E97,E125) -> 0.006588057357 | F9: =CHOOSE('O4'!$O$21, F41,F69,F97,F125) -> 0.0009691985011 | G9: =CHOOSE('O4'!$O$21, G41,G69,G97,G125) -> 0.0001208792955 | H9: =CHOOSE('O4'!$O$21, H41,H69,H97,H125) -> 1.273449052e-07 | I9: =CHOOSE('O4'!$O$21, I41,I69,I97,I125) -> 0.003994123725 | J9: =CHOOSE('O4'!$O$21, J41,J69,J97,J125) -> 2.872700601e-05 | K9: =CHOOSE('O4'!$O$21, K41,K69,K97,K125) -> 3.674711578e-05 | L9: =CHOOSE('O4'!$O$21, L41,L69,L97,L125) -> 1.237281921e-06 | M9: =CHOOSE('O4'!$O$21, M41,M69,M97,M125) -> 7.30449763e-06 | O9: ='GV1'!E$486/'GV1'!$P$486 -> 0.9883563677 | P9: ='GV1'!F$486/'GV1'!$P$486 -> 0.006569254418 | Q9: ='GV1'!G$486/'GV1'!$P$486 -> 0.0009623458881 | R9: ='GV1'!H$486/'GV1'!$P$486 -> 0.000114999313 | S9: ='GV1'!I$486/'GV1'!$P$486 -> 1.208718409e-07 | T9: ='GV1'!J$486/'GV1'!$P$486 -> 0.003924784175 | U9: ='GV1'!K$486/'GV1'!$P$486 -> 2.840133025e-05 | V9: ='GV1'!L$486/'GV1'!$P$486 -> 3.54638962e-05 | W9: ='GV1'!M$486/'GV1'!$P$486 -> 1.20085021e-06 | X9: ='GV1'!N$486/'GV1'!$P$486 -> 7.061599965e-06
B10: GV2 | D10: =CHOOSE('O4'!$O$21, D42,D70,D98,D126) -> 0.9793987927 | E10: =CHOOSE('O4'!$O$21, E42,E70,E98,E126) -> 0.01374024862 | F10: =CHOOSE('O4'!$O$21, F42,F70,F98,F126) -> 0.00181631507 | G10: =CHOOSE('O4'!$O$21, G42,G70,G98,G126) -> 0.0001248054715 | H10: =CHOOSE('O4'!$O$21, H42,H70,H98,H126) -> 2.362569778e-07 | I10: =CHOOSE('O4'!$O$21, I42,I70,I98,I126) -> 0.004842063568 | J10: =CHOOSE('O4'!$O$21, J42,J70,J98,J126) -> 3.971238912e-05 | K10: =CHOOSE('O4'!$O$21, K42,K70,K98,K126) -> 3.059960419e-05 | L10: =CHOOSE('O4'!$O$21, L42,L70,L98,L126) -> 1.089007432e-06 | M10: =CHOOSE('O4'!$O$21, M42,M70,M98,M126) -> 6.13728917e-06 | O10: ='GV2'!E$486/'GV2'!$P$486 -> 0.9794896845 | P10: ='GV2'!F$486/'GV2'!$P$486 -> 0.0137387276 | Q10: ='GV2'!G$486/'GV2'!$P$486 -> 0.001808057766 | R10: ='GV2'!H$486/'GV2'!$P$486 -> 0.0001186890127 | S10: ='GV2'!I$486/'GV2'!$P$486 -> 2.240984058e-07 | T10: ='GV2'!J$486/'GV2'!$P$486 -> 0.004768738338 | U10: ='GV2'!K$486/'GV2'!$P$486 -> 3.930048564e-05 | V10: ='GV2'!L$486/'GV2'!$P$486 -> 2.957814138e-05 | W10: ='GV2'!M$486/'GV2'!$P$486 -> 1.05829683e-06 | X10: ='GV2'!N$486/'GV2'!$P$486 -> 5.94175594e-06
B11: HR1 | D11: =CHOOSE('O4'!$O$21, D43,D71,D99,D127) -> 0.949788051 | E11: =CHOOSE('O4'!$O$21, E43,E71,E99,E127) -> 0.0121952985 | F11: =CHOOSE('O4'!$O$21, F43,F71,F99,F127) -> 0.004119860509 | G11: =CHOOSE('O4'!$O$21, G43,G71,G99,G127) -> 0.00367884816 | H11: =CHOOSE('O4'!$O$21, H43,H71,H99,H127) -> 1.571810023e-05 | I11: =CHOOSE('O4'!$O$21, I43,I71,I99,I127) -> 0.02806587497 | J11: =CHOOSE('O4'!$O$21, J43,J71,J99,J127) -> 0.0003464872864 | K11: =CHOOSE('O4'!$O$21, K43,K71,K99,K127) -> 0.001339815857 | L11: =CHOOSE('O4'!$O$21, L43,L71,L99,L127) -> 5.79805614e-05 | M11: =CHOOSE('O4'!$O$21, M43,M71,M99,M127) -> 0.0003920650248 | O11: ='HR1'!E$486/'HR1'!$P$486 -> 0.9499482754 | P11: ='HR1'!F$486/'HR1'!$P$486 -> 0.01217178808 | Q11: ='HR1'!G$486/'HR1'!$P$486 -> 0.004107924313 | R11: ='HR1'!H$486/'HR1'!$P$486 -> 0.003665520261 | S11: ='HR1'!I$486/'HR1'!$P$486 -> 1.56166268e-05 | T11: ='HR1'!J$486/'HR1'!$P$486 -> 0.02796209609 | U11: ='HR1'!K$486/'HR1'!$P$486 -> 0.0003452758241 | V11: ='HR1'!L$486/'HR1'!$P$486 -> 0.001335033462 | W11: ='HR1'!M$486/'HR1'!$P$486 -> 5.77702131e-05 | X11: ='HR1'!N$486/'HR1'!$P$486 -> 0.0003906997355
B12: HR2 | D12: =CHOOSE('O4'!$O$21, D44,D72,D100,D128) -> 0.936915898 | E12: =CHOOSE('O4'!$O$21, E44,E72,E100,E128) -> 0.01881183872 | F12: =CHOOSE('O4'!$O$21, F44,F72,F100,F128) -> 0.005380803472 | G12: =CHOOSE('O4'!$O$21, G44,G72,G100,G128) -> 0.003823409032 | H12: =CHOOSE('O4'!$O$21, H44,H72,H100,H128) -> 2.142734014e-05 | I12: =CHOOSE('O4'!$O$21, I44,I72,I100,I128) -> 0.03254236337 | J12: =CHOOSE('O4'!$O$21, J44,J72,J100,J128) -> 0.0004916420561 | K12: =CHOOSE('O4'!$O$21, K44,K72,K100,K128) -> 0.001466846067 | L12: =CHOOSE('O4'!$O$21, L44,L72,L100,L128) -> 7.580272412e-05 | M12: =CHOOSE('O4'!$O$21, M44,M72,M100,M128) -> 0.0004699692593 | O12: ='HR2'!E$486/'HR2'!$P$486 -> 0.9370716638 | P12: ='HR2'!F$486/'HR2'!$P$486 -> 0.01880383484 | Q12: ='HR2'!G$486/'HR2'!$P$486 -> 0.005367067089 | R12: ='HR2'!H$486/'HR2'!$P$486 -> 0.00380967684 | S12: ='HR2'!I$486/'HR2'!$P$486 -> 2.12959201e-05 | T12: ='HR2'!J$486/'HR2'!$P$486 -> 0.03243076894 | U12: ='HR2'!K$486/'HR2'!$P$486 -> 0.0004900145419 | V12: ='HR2'!L$486/'HR2'!$P$486 -> 0.001461747162 | W12: ='HR2'!M$486/'HR2'!$P$486 -> 7.55388521e-05 | X12: ='HR2'!N$486/'HR2'!$P$486 -> 0.000468392023
B13: MV1a | D13: =CHOOSE('O4'!$O$21, D45,D73,D101,D129) -> 0.6027523345 | E13: =CHOOSE('O4'!$O$21, E45,E73,E101,E129) -> 0.179933871 | F13: =CHOOSE('O4'!$O$21, F45,F73,F101,F129) -> 0.01936360312 | G13: =CHOOSE('O4'!$O$21, G45,G73,G101,G129) -> 0.001473814046 | H13: =CHOOSE('O4'!$O$21, H45,H73,H101,H129) -> 3.204386452e-05 | I13: =CHOOSE('O4'!$O$21, I45,I73,I101,I129) -> 0.1922016177 | J13: =CHOOSE('O4'!$O$21, J45,J73,J101,J129) -> 0.003000351938 | K13: =CHOOSE('O4'!$O$21, K45,K73,K101,K129) -> 0.00100008883 | L13: =CHOOSE('O4'!$O$21, L45,L73,L101,L129) -> 4.744163082e-05 | M13: =CHOOSE('O4'!$O$21, M45,M73,M101,M129) -> 0.0001948333469 | O13: =MV1a!E$486/MV1a!$P$486 -> 0.6030106997 | P13: =MV1a!F$486/MV1a!$P$486 -> 0.1799765906 | Q13: =MV1a!G$486/MV1a!$P$486 -> 0.01935404641 | R13: =MV1a!H$486/MV1a!$P$486 -> 0.001428338681 | S13: =MV1a!I$486/MV1a!$P$486 -> 3.092881891e-05 | T13: =MV1a!J$486/MV1a!$P$486 -> 0.1919732257 | U13: =MV1a!K$486/MV1a!$P$486 -> 0.002993902906 | V13: =MV1a!L$486/MV1a!$P$486 -> 0.0009918946893 | W13: =MV1a!M$486/MV1a!$P$486 -> 4.704401846e-05 | X13: =MV1a!N$486/MV1a!$P$486 -> 0.0001933284974
B14: MV1b | D14: =CHOOSE('O4'!$O$21, D46,D74,D102,D130) -> 0.5765875336 | E14: =CHOOSE('O4'!$O$21, E46,E74,E102,E130) -> 0.2777057697 | F14: =CHOOSE('O4'!$O$21, F46,F74,F102,F130) -> 0.02860805579 | G14: =CHOOSE('O4'!$O$21, G46,G74,G102,G130) -> 0.0009373948963 | H14: =CHOOSE('O4'!$O$21, H46,H74,H102,H130) -> 2.928338775e-05 | I14: =CHOOSE('O4'!$O$21, I46,I74,I102,I130) -> 0.1131523004 | J14: =CHOOSE('O4'!$O$21, J46,J74,J102,J130) -> 0.002265364975 | K14: =CHOOSE('O4'!$O$21, K46,K74,K102,K130) -> 0.0005699716354 | L14: =CHOOSE('O4'!$O$21, L46,L74,L102,L130) -> 3.053912064e-05 | M14: =CHOOSE('O4'!$O$21, M46,M74,M102,M130) -> 0.0001137864826 | O14: =MV1b!E$486/MV1b!$P$486 -> 0.5769590981 | P14: =MV1b!F$486/MV1b!$P$486 -> 0.2779842761 | Q14: =MV1b!G$486/MV1b!$P$486 -> 0.02858197098 | R14: =MV1b!H$486/MV1b!$P$486 -> 0.0008854710187 | S14: =MV1b!I$486/MV1b!$P$486 -> 2.752619909e-05 | T14: =MV1b!J$486/MV1b!$P$486 -> 0.1126161509 | U14: =MV1b!K$486/MV1b!$P$486 -> 0.002245086203 | V14: =MV1b!L$486/MV1b!$P$486 -> 0.0005589303704 | W14: =MV1b!M$486/MV1b!$P$486 -> 2.985690223e-05 | X14: =MV1b!N$486/MV1b!$P$486 -> 0.0001116332322
B15: MV2 | D15: =CHOOSE('O4'!$O$21, D47,D75,D103,D131) -> 0.5420749851 | E15: =CHOOSE('O4'!$O$21, E47,E75,E103,E131) -> 0.3254166202 | F15: =CHOOSE('O4'!$O$21, F47,F75,F103,F131) -> 0.03315229649 | G15: =CHOOSE('O4'!$O$21, G47,G75,G103,G131) -> 0.0008919119324 | H15: =CHOOSE('O4'!$O$21, H47,H75,H103,H131) -> 3.401492072e-05 | I15: =CHOOSE('O4'!$O$21, I47,I75,I103,I131) -> 0.09541903153 | J15: =CHOOSE('O4'!$O$21, J47,J75,J103,J131) -> 0.00253996371 | K15: =CHOOSE('O4'!$O$21, K47,K75,K103,K131) -> 0.0003726245079 | L15: =CHOOSE('O4'!$O$21, L47,L75,L103,L131) -> 2.286949028e-05 | M15: =CHOOSE('O4'!$O$21, M47,M75,M103,M131) -> 7.568217837e-05 | O15: ='MV2'!E$486/'MV2'!$P$486 -> 0.5423720582 | P15: ='MV2'!F$486/'MV2'!$P$486 -> 0.3258400778 | Q15: ='MV2'!G$486/'MV2'!$P$486 -> 0.03313459619 | R15: ='MV2'!H$486/'MV2'!$P$486 -> 0.000836566426 | S15: ='MV2'!I$486/'MV2'!$P$486 -> 3.18844565e-05 | T15: ='MV2'!J$486/'MV2'!$P$486 -> 0.09480997866 | U15: ='MV2'!K$486/'MV2'!$P$486 -> 0.002515161077 | V15: ='MV2'!L$486/'MV2'!$P$486 -> 0.0003635325377 | W15: ='MV2'!M$486/'MV2'!$P$486 -> 2.226126417e-05 | X15: ='MV2'!N$486/'MV2'!$P$486 -> 7.388335344e-05
B16: JH1 | D16: =CHOOSE('O4'!$O$21, D48,D76,D104,D132) -> 0.5607766916 | E16: =CHOOSE('O4'!$O$21, E48,E76,E104,E132) -> 0.2693457505 | F16: =CHOOSE('O4'!$O$21, F48,F76,F104,F132) -> 0.03053680527 | G16: =CHOOSE('O4'!$O$21, G48,G76,G104,G132) -> 0.003297455756 | H16: =CHOOSE('O4'!$O$21, H48,H76,H104,H132) -> 0.0001189770297 | I16: =CHOOSE('O4'!$O$21, I48,I76,I104,I132) -> 0.130274221 | J16: =CHOOSE('O4'!$O$21, J48,J76,J104,J132) -> 0.003091870942 | K16: =CHOOSE('O4'!$O$21, K48,K76,K104,K132) -> 0.001868190193 | L16: =CHOOSE('O4'!$O$21, L48,L76,L104,L132) -> 0.0001291082566 | M16: =CHOOSE('O4'!$O$21, M48,M76,M104,M132) -> 0.0005609294655 | O16: ='JH1'!E$486/'JH1'!$P$486 -> 0.5609919199 | P16: ='JH1'!F$486/'JH1'!$P$486 -> 0.2695348257 | Q16: ='JH1'!G$486/'JH1'!$P$486 -> 0.03051282053 | R16: ='JH1'!H$486/'JH1'!$P$486 -> 0.003283253255 | S16: ='JH1'!I$486/'JH1'!$P$486 -> 0.0001183403137 | T16: ='JH1'!J$486/'JH1'!$P$486 -> 0.1299328529 | U16: ='JH1'!K$486/'JH1'!$P$486 -> 0.003078090418 | V16: ='JH1'!L$486/'JH1'!$P$486 -> 0.001860792305 | W16: ='JH1'!M$486/'JH1'!$P$486 -> 0.0001284960219 | X16: ='JH1'!N$486/'JH1'!$P$486 -> 0.00055860864
B17: JH2 | D17: =CHOOSE('O4'!$O$21, D49,D77,D105,D133) -> 0.5273343147 | E17: =CHOOSE('O4'!$O$21, E49,E77,E105,E133) -> 0.3171856183 | F17: =CHOOSE('O4'!$O$21, F49,F77,F105,F133) -> 0.03599958257 | G17: =CHOOSE('O4'!$O$21, G49,G77,G105,G133) -> 0.003500312326 | H17: =CHOOSE('O4'!$O$21, H49,H77,H105,H133) -> 0.0001472429296 | I17: =CHOOSE('O4'!$O$21, I49,I77,I105,I133) -> 0.1096503 | J17: =CHOOSE('O4'!$O$21, J49,J77,J105,J133) -> 0.003533003234 | K17: =CHOOSE('O4'!$O$21, K49,K77,K105,K133) -> 0.001865887594 | L17: =CHOOSE('O4'!$O$21, L49,L77,L105,L133) -> 0.0001591771649 | M17: =CHOOSE('O4'!$O$21, M49,M77,M105,M133) -> 0.000624561174 | O17: ='JH2'!E$486/'JH2'!$P$486 -> 0.5274550748 | P17: ='JH2'!F$486/'JH2'!$P$486 -> 0.3175190943 | Q17: ='JH2'!G$486/'JH2'!$P$486 -> 0.03597855335 | R17: ='JH2'!H$486/'JH2'!$P$486 -> 0.00348604245 | S17: ='JH2'!I$486/'JH2'!$P$486 -> 0.0001465023453 | T17: ='JH2'!J$486/'JH2'!$P$486 -> 0.1092606973 | U17: ='JH2'!K$486/'JH2'!$P$486 -> 0.003515480385 | V17: ='JH2'!L$486/'JH2'!$P$486 -> 0.001858183086 | W17: ='JH2'!M$486/'JH2'!$P$486 -> 0.0001584366158 | X17: ='JH2'!N$486/'JH2'!$P$486 -> 0.0006219353477
B19: PL1 | D19: =CHOOSE('O4'!$O$21, D51,D79,D107,D135) -> 0.9903879933 | E19: =CHOOSE('O4'!$O$21, E51,E79,E107,E135) -> 0.005422743276 | F19: =CHOOSE('O4'!$O$21, F51,F79,F107,F135) -> 0.0006791565344 | G19: =CHOOSE('O4'!$O$21, G51,G79,G107,G135) -> 0.0001445465816 | H19: =CHOOSE('O4'!$O$21, H51,H79,H107,H135) -> 9.730089657e-08 | I19: =CHOOSE('O4'!$O$21, I51,I79,I107,I135) -> 0.003315539152 | J19: =CHOOSE('O4'!$O$21, J51,J79,J107,J135) -> 1.636355609e-05 | K19: =CHOOSE('O4'!$O$21, K51,K79,K107,K135) -> 3.060757309e-05 | L19: =CHOOSE('O4'!$O$21, L51,L79,L107,L135) -> 5.079211548e-07 | M19: =CHOOSE('O4'!$O$21, M51,M79,M107,M135) -> 2.444807033e-06 | O19: ='PL1'!E$486/'PL1'!$P$486 -> 0.9904773156 | P19: ='PL1'!F$486/'PL1'!$P$486 -> 0.005412071323 | Q19: ='PL1'!G$486/'PL1'!$P$486 -> 0.0006738240652 | R19: ='PL1'!H$486/'PL1'!$P$486 -> 0.0001405675473 | S19: ='PL1'!I$486/'PL1'!$P$486 -> 9.394616553e-08 | T19: ='PL1'!J$486/'PL1'!$P$486 -> 0.003247621027 | U19: ='PL1'!K$486/'PL1'!$P$486 -> 1.609550955e-05 | V19: ='PL1'!L$486/'PL1'!$P$486 -> 2.956279011e-05 | W19: ='PL1'!M$486/'PL1'!$P$486 -> 4.901702131e-07 | X19: ='PL1'!N$486/'PL1'!$P$486 -> 2.358023734e-06
B20: PL2 | D20: =CHOOSE('O4'!$O$21, D52,D80,D108,D136) -> 0.9835423519 | E20: =CHOOSE('O4'!$O$21, E52,E80,E108,E136) -> 0.01099711004 | F20: =CHOOSE('O4'!$O$21, F52,F80,F108,F136) -> 0.001240198049 | G20: =CHOOSE('O4'!$O$21, G52,G80,G108,G136) -> 0.0001502434892 | H20: =CHOOSE('O4'!$O$21, H52,H80,H108,H136) -> 1.861518674e-07 | I20: =CHOOSE('O4'!$O$21, I52,I80,I108,I136) -> 0.004019668166 | J20: =CHOOSE('O4'!$O$21, J52,J80,J108,J136) -> 2.217520304e-05 | K20: =CHOOSE('O4'!$O$21, K52,K80,K108,K136) -> 2.555948113e-05 | L20: =CHOOSE('O4'!$O$21, L52,L80,L108,L136) -> 4.504708831e-07 | M20: =CHOOSE('O4'!$O$21, M52,M80,M108,M136) -> 2.05708402e-06 | O20: ='PL2'!E$486/'PL2'!$P$486 -> 0.9836063229 | P20: ='PL2'!F$486/'PL2'!$P$486 -> 0.01101358112 | Q20: ='PL2'!G$486/'PL2'!$P$486 -> 0.001235766946 | R20: ='PL2'!H$486/'PL2'!$P$486 -> 0.0001460744925 | S20: ='PL2'!I$486/'PL2'!$P$486 -> 1.803698708e-07 | T20: ='PL2'!J$486/'PL2'!$P$486 -> 0.003949034941 | U20: ='PL2'!K$486/'PL2'!$P$486 -> 2.188495109e-05 | V20: ='PL2'!L$486/'PL2'!$P$486 -> 2.473068206e-05 | W20: ='PL2'!M$486/'PL2'!$P$486 -> 4.35729505e-07 | X20: ='PL2'!N$486/'PL2'!$P$486 -> 1.987846151e-06
B21: PV1 | D21: =CHOOSE('O4'!$O$21, D53,D81,D109,D137) -> 0.9881539512 | E21: =CHOOSE('O4'!$O$21, E53,E81,E109,E137) -> 0.006645885455 | F21: =CHOOSE('O4'!$O$21, F53,F81,F109,F137) -> 0.0009806355129 | G21: =CHOOSE('O4'!$O$21, G53,G81,G109,G137) -> 0.0001463987296 | H21: =CHOOSE('O4'!$O$21, H53,H81,H109,H137) -> 1.495186623e-07 | I21: =CHOOSE('O4'!$O$21, I53,I81,I109,I137) -> 0.004007302369 | J21: =CHOOSE('O4'!$O$21, J53,J81,J109,J137) -> 2.858645381e-05 | K21: =CHOOSE('O4'!$O$21, K53,K81,K109,K137) -> 3.372047231e-05 | L21: =CHOOSE('O4'!$O$21, L53,L81,L109,L137) -> 6.405109223e-07 | M21: =CHOOSE('O4'!$O$21, M53,M81,M109,M137) -> 2.729742602e-06 | O21: ='PV1'!E$486/'PV1'!$P$486 -> 0.9882543983 | P21: ='PV1'!F$486/'PV1'!$P$486 -> 0.00662676482 | Q21: ='PV1'!G$486/'PV1'!$P$486 -> 0.0009735902844 | R21: ='PV1'!H$486/'PV1'!$P$486 -> 0.0001424196795 | S21: ='PV1'!I$486/'PV1'!$P$486 -> 1.446812467e-07 | T21: ='PV1'!J$486/'PV1'!$P$486 -> 0.003938480936 | U21: ='PV1'!K$486/'PV1'!$P$486 -> 2.82651192e-05 | V21: ='PV1'!L$486/'PV1'!$P$486 -> 3.267147222e-05 | W21: ='PV1'!M$486/'PV1'!$P$486 -> 6.22180035e-07 | X21: ='PV1'!N$486/'PV1'!$P$486 -> 2.642517684e-06
B22: PV2 | D22: =CHOOSE('O4'!$O$21, D54,D82,D110,D138) -> 0.9795258037 | E22: =CHOOSE('O4'!$O$21, E54,E82,E110,E138) -> 0.01362366046 | F22: =CHOOSE('O4'!$O$21, F54,F82,F110,F138) -> 0.001804434725 | G22: =CHOOSE('O4'!$O$21, G54,G82,G110,G138) -> 0.0001514825115 | H22: =CHOOSE('O4'!$O$21, H54,H82,H110,H138) -> 2.793882256e-07 | I22: =CHOOSE('O4'!$O$21, I54,I82,I110,I138) -> 0.004824287813 | J22: =CHOOSE('O4'!$O$21, J54,J82,J110,J138) -> 3.916596637e-05 | K22: =CHOOSE('O4'!$O$21, K54,K82,K110,K138) -> 2.803260934e-05 | L22: =CHOOSE('O4'!$O$21, L54,L82,L110,L138) -> 5.692680477e-07 | M22: =CHOOSE('O4'!$O$21, M54,M82,M110,M138) -> 2.283576068e-06 | O22: ='PV2'!E$486/'PV2'!$P$486 -> 0.9796142487 | P22: ='PV2'!F$486/'PV2'!$P$486 -> 0.01362162057 | Q22: ='PV2'!G$486/'PV2'!$P$486 -> 0.001796086469 | R22: ='PV2'!H$486/'PV2'!$P$486 -> 0.0001473167928 | S22: ='PV2'!I$486/'PV2'!$P$486 -> 2.706157377e-07 | T22: ='PV2'!J$486/'PV2'!$P$486 -> 0.004751728284 | U22: ='PV2'!K$486/'PV2'!$P$486 -> 3.876220122e-05 | V22: ='PV2'!L$486/'PV2'!$P$486 -> 2.719883236e-05 | W22: ='PV2'!M$486/'PV2'!$P$486 -> 5.537295123e-07 | X22: ='PV2'!N$486/'PV2'!$P$486 -> 2.213829052e-06
B23: PH1 | D23: =CHOOSE('O4'!$O$21, D55,D83,D111,D139) -> 0.9496916743 | E23: =CHOOSE('O4'!$O$21, E55,E83,E111,E139) -> 0.0128086857 | F23: =CHOOSE('O4'!$O$21, F55,F83,F111,F139) -> 0.004645781721 | G23: =CHOOSE('O4'!$O$21, G55,G83,G111,G139) -> 0.002148051263 | H23: =CHOOSE('O4'!$O$21, H55,H83,H111,H139) -> 9.206998744e-06 | I23: =CHOOSE('O4'!$O$21, I55,I83,I111,I139) -> 0.02909222304 | J23: =CHOOSE('O4'!$O$21, J55,J83,J111,J139) -> 0.0003562999945 | K23: =CHOOSE('O4'!$O$21, K55,K83,K111,K139) -> 0.001118808425 | L23: =CHOOSE('O4'!$O$21, L55,L83,L111,L139) -> 2.96380016e-05 | M23: =CHOOSE('O4'!$O$21, M55,M83,M111,M139) -> 9.963055959e-05 | O23: ='PH1'!E$486/'PH1'!$P$486 -> 0.949847536 | P23: ='PH1'!F$486/'PH1'!$P$486 -> 0.01278394066 | Q23: ='PH1'!G$486/'PH1'!$P$486 -> 0.004632384909 | R23: ='PH1'!H$486/'PH1'!$P$486 -> 0.002140264921 | S23: ='PH1'!I$486/'PH1'!$P$486 -> 9.147900829e-06 | T23: ='PH1'!J$486/'PH1'!$P$486 -> 0.02898796733 | U23: ='PH1'!K$486/'PH1'!$P$486 -> 0.0003550735639 | V23: ='PH1'!L$486/'PH1'!$P$486 -> 0.00111487264 | W23: ='PH1'!M$486/'PH1'!$P$486 -> 2.952905493e-05 | X23: ='PH1'!N$486/'PH1'!$P$486 -> 9.928303971e-05
B24: PH2 | D24: =CHOOSE('O4'!$O$21, D56,D84,D112,D140) -> 0.937333292 | E24: =CHOOSE('O4'!$O$21, E56,E84,E112,E140) -> 0.01925088766 | F24: =CHOOSE('O4'!$O$21, F56,F84,F112,F140) -> 0.005954036213 | G24: =CHOOSE('O4'!$O$21, G56,G84,G112,G140) -> 0.002193284832 | H24: =CHOOSE('O4'!$O$21, H56,H84,H112,H140) -> 1.22594056e-05 | I24: =CHOOSE('O4'!$O$21, I56,I84,I112,I140) -> 0.03341136341 | J24: =CHOOSE('O4'!$O$21, J56,J84,J112,J140) -> 0.000498232739 | K24: =CHOOSE('O4'!$O$21, K56,K84,K112,K140) -> 0.001199414081 | L24: =CHOOSE('O4'!$O$21, L56,L84,L112,L140) -> 3.761935726e-05 | M24: =CHOOSE('O4'!$O$21, M56,M84,M112,M140) -> 0.0001096103452 | O24: ='PH2'!E$486/'PH2'!$P$486 -> 0.937484259 | P24: ='PH2'!F$486/'PH2'!$P$486 -> 0.01924104237 | Q24: ='PH2'!G$486/'PH2'!$P$486 -> 0.005938675757 | R24: ='PH2'!H$486/'PH2'!$P$486 -> 0.002185403125 | S24: ='PH2'!I$486/'PH2'!$P$486 -> 1.218451062e-05 | T24: ='PH2'!J$486/'PH2'!$P$486 -> 0.03329981151 | U24: ='PH2'!K$486/'PH2'!$P$486 -> 0.000496605425 | V24: ='PH2'!L$486/'PH2'!$P$486 -> 0.001195293948 | W24: ='PH2'!M$486/'PH2'!$P$486 -> 3.748616308e-05 | X24: ='PH2'!N$486/'PH2'!$P$486 -> 0.0001092381661
B25: PM1 | D25: =CHOOSE('O4'!$O$21, D57,D85,D113,D141) -> 0.5834140644 | E25: =CHOOSE('O4'!$O$21, E57,E85,E113,E141) -> 0.2538195182 | F25: =CHOOSE('O4'!$O$21, F57,F85,F113,F141) -> 0.0264160894 | G25: =CHOOSE('O4'!$O$21, G57,G85,G113,G141) -> 0.0007223509972 | H25: =CHOOSE('O4'!$O$21, H57,H85,H113,H141) -> 2.029054997e-05 | I25: =CHOOSE('O4'!$O$21, I57,I85,I113,I141) -> 0.1325412264 | J25: =CHOOSE('O4'!$O$21, J57,J85,J113,J141) -> 0.002437625548 | K25: =CHOOSE('O4'!$O$21, K57,K85,K113,K141) -> 0.0005632848213 | L25: =CHOOSE('O4'!$O$21, L57,L85,L113,L141) -> 1.939271463e-05 | M25: =CHOOSE('O4'!$O$21, M57,M85,M113,M141) -> 4.615694455e-05 | O25: ='PM1'!E$486/'PM1'!$P$486 -> 0.5837436137 | P25: ='PM1'!F$486/'PM1'!$P$486 -> 0.2540284775 | Q25: ='PM1'!G$486/'PM1'!$P$486 -> 0.02639187942 | R25: ='PM1'!H$486/'PM1'!$P$486 -> 0.0006916030457 | S25: ='PM1'!I$486/'PM1'!$P$486 -> 1.931654193e-05 | T25: ='PM1'!J$486/'PM1'!$P$486 -> 0.1320844786 | U25: ='PM1'!K$486/'PM1'!$P$486 -> 0.002421013411 | V25: ='PM1'!L$486/'PM1'!$P$486 -> 0.0005550964011 | W25: ='PM1'!M$486/'PM1'!$P$486 -> 1.904259389e-05 | X25: ='PM1'!N$486/'PM1'!$P$486 -> 4.547873079e-05
B26: PM2 | D26: =CHOOSE('O4'!$O$21, D58,D86,D114,D142) -> 0.5436871753 | E26: =CHOOSE('O4'!$O$21, E58,E86,E114,E142) -> 0.3238207924 | F26: =CHOOSE('O4'!$O$21, F58,F86,F114,F142) -> 0.03303007011 | G26: =CHOOSE('O4'!$O$21, G58,G86,G114,G142) -> 0.000617400991 | H26: =CHOOSE('O4'!$O$21, H58,H86,H114,H142) -> 2.332420861e-05 | I26: =CHOOSE('O4'!$O$21, I58,I86,I114,I142) -> 0.09594875681 | J26: =CHOOSE('O4'!$O$21, J58,J86,J114,J142) -> 0.002513970758 | K26: =CHOOSE('O4'!$O$21, K58,K86,K114,K142) -> 0.0003186931896 | L26: =CHOOSE('O4'!$O$21, L58,L86,L114,L142) -> 1.33960697e-05 | M26: =CHOOSE('O4'!$O$21, M58,M86,M114,M142) -> 2.642012648e-05 | O26: ='PM2'!E$486/'PM2'!$P$486 -> 0.5439681647 | P26: ='PM2'!F$486/'PM2'!$P$486 -> 0.3242271534 | Q26: ='PM2'!G$486/'PM2'!$P$486 -> 0.03300994234 | R26: ='PM2'!H$486/'PM2'!$P$486 -> 0.0005834938253 | S26: ='PM2'!I$486/'PM2'!$P$486 -> 2.202251555e-05 | T26: ='PM2'!J$486/'PM2'!$P$486 -> 0.09534914035 | U26: ='PM2'!K$486/'PM2'!$P$486 -> 0.00248968052 | V26: ='PM2'!L$486/'PM2'!$P$486 -> 0.0003115372213 | W26: ='PM2'!M$486/'PM2'!$P$486 -> 1.304678628e-05 | X26: ='PM2'!N$486/'PM2'!$P$486 -> 2.581832378e-05
B27: PJ1 | D27: =CHOOSE('O4'!$O$21, D59,D87,D115,D143) -> 0.5607227186 | E27: =CHOOSE('O4'!$O$21, E59,E87,E115,E143) -> 0.2713734494 | F27: =CHOOSE('O4'!$O$21, F59,F87,F115,F143) -> 0.03135052458 | G27: =CHOOSE('O4'!$O$21, G59,G87,G115,G143) -> 0.001924692766 | H27: =CHOOSE('O4'!$O$21, H59,H87,H115,H143) -> 6.945303454e-05 | I27: =CHOOSE('O4'!$O$21, I59,I87,I115,I143) -> 0.1296722142 | J27: =CHOOSE('O4'!$O$21, J59,J87,J115,J143) -> 0.003100107458 | K27: =CHOOSE('O4'!$O$21, K59,K87,K115,K143) -> 0.001578269919 | L27: =CHOOSE('O4'!$O$21, L59,L87,L115,L143) -> 7.293587142e-05 | M27: =CHOOSE('O4'!$O$21, M59,M87,M115,M143) -> 0.0001356341203 | O27: ='PJ1'!E$486/'PJ1'!$P$486 -> 0.5609260867 | P27: ='PJ1'!F$486/'PJ1'!$P$486 -> 0.2715578314 | Q27: ='PJ1'!G$486/'PJ1'!$P$486 -> 0.03132420976 | R27: ='PJ1'!H$486/'PJ1'!$P$486 -> 0.001916462331 | S27: ='PJ1'!I$486/'PJ1'!$P$486 -> 6.908482058e-05 | T27: ='PJ1'!J$486/'PJ1'!$P$486 -> 0.1293394894 | U27: ='PJ1'!K$486/'PJ1'!$P$486 -> 0.003086650832 | V27: ='PJ1'!L$486/'PJ1'!$P$486 -> 0.001572469298 | W27: ='PJ1'!M$486/'PJ1'!$P$486 -> 7.259713477e-05 | X27: ='PJ1'!N$486/'PJ1'!$P$486 -> 0.0001351183238
B28: PJ2 | D28: =CHOOSE('O4'!$O$21, D60,D88,D116,D144) -> 0.5291323099 | E28: =CHOOSE('O4'!$O$21, E60,E88,E116,E144) -> 0.3163980367 | F28: =CHOOSE('O4'!$O$21, F60,F88,F116,F144) -> 0.03660236992 | G28: =CHOOSE('O4'!$O$21, G60,G88,G116,G144) -> 0.001992445896 | H28: =CHOOSE('O4'!$O$21, H60,H88,H116,H144) -> 8.343672503e-05 | I28: =CHOOSE('O4'!$O$21, I60,I88,I116,I144) -> 0.1105019492 | J28: =CHOOSE('O4'!$O$21, J60,J88,J116,J144) -> 0.003522578077 | K28: =CHOOSE('O4'!$O$21, K60,K88,K116,K144) -> 0.00154302537 | L28: =CHOOSE('O4'!$O$21, L60,L88,L116,L144) -> 8.692868844e-05 | M28: =CHOOSE('O4'!$O$21, M60,M88,M116,M144) -> 0.000136919589 | O28: ='PJ2'!E$486/'PJ2'!$P$486 -> 0.5292431128 | P28: ='PJ2'!F$486/'PJ2'!$P$486 -> 0.316718672 | Q28: ='PJ2'!G$486/'PJ2'!$P$486 -> 0.03657847079 | R28: ='PJ2'!H$486/'PJ2'!$P$486 -> 0.001984357481 | S28: ='PJ2'!I$486/'PJ2'!$P$486 -> 8.302009921e-05 | T28: ='PJ2'!J$486/'PJ2'!$P$486 -> 0.1101267108 | U28: ='PJ2'!K$486/'PJ2'!$P$486 -> 0.003505740162 | V28: ='PJ2'!L$486/'PJ2'!$P$486 -> 0.001537011672 | W28: ='PJ2'!M$486/'PJ2'!$P$486 -> 8.652918105e-05 | X28: ='PJ2'!N$486/'PJ2'!$P$486 -> 0.0001363749502
B30: MV1 at entry | D30: =CHOOSE('O4'!$O$21, D62,D90,D118,D146) -> 0.6078105184 | E30: =CHOOSE('O4'!$O$21, E62,E90,E118,E146) -> 0.1396806253 | F30: =CHOOSE('O4'!$O$21, F62,F90,F118,F146) -> 0.01566001327 | G30: =CHOOSE('O4'!$O$21, G62,G90,G118,G146) -> 0.008993212422 | H30: =CHOOSE('O4'!$O$21, H62,H90,H118,H146) -> 0.0001753323397 | I30: =CHOOSE('O4'!$O$21, I62,I90,I118,I146) -> 0.2219196794 | J30: =CHOOSE('O4'!$O$21, J62,J90,J118,J146) -> 0.003208019205 | K30: =CHOOSE('O4'!$O$21, K62,K90,K118,K146) -> 0.002129521397 | L30: =CHOOSE('O4'!$O$21, L62,L90,L118,L146) -> 0.0001226810015 | M30: =CHOOSE('O4'!$O$21, M62,M90,M118,M146) -> 0.0003003972882 | O30: ='A2'!$E30 ->  | P30: ='A2'!$E30 ->  | Q30: ='A2'!$E30 ->  | R30: ='A2'!$E30 ->  | S30: ='A2'!$E30 ->  | T30: ='A2'!$E30 ->  | U30: ='A2'!$E30 ->  | V30: ='A2'!$E30 ->  | W30: ='A2'!$E30 ->  | X30: ='A2'!$E30 -> 
B31: MV2 at entry | D31: =CHOOSE('O4'!$O$21, D63,D91,D119,D147) -> 0.3642421672 | E31: =CHOOSE('O4'!$O$21, E63,E91,E119,E147) -> 0.3042740166 | F31: =CHOOSE('O4'!$O$21, F63,F91,F119,F147) -> 0.03888471341 | G31: =CHOOSE('O4'!$O$21, G63,G91,G119,G147) -> 0.008374017394 | H31: =CHOOSE('O4'!$O$21, H63,H91,H119,H147) -> 0.0004691958407 | I31: =CHOOSE('O4'!$O$21, I63,I91,I119,I147) -> 0.2706901923 | J31: =CHOOSE('O4'!$O$21, J63,J91,J119,J147) -> 0.01073247929 | K31: =CHOOSE('O4'!$O$21, K63,K91,K119,K147) -> 0.001882474087 | L31: =CHOOSE('O4'!$O$21, L63,L91,L119,L147) -> 0.0001710769897 | M31: =CHOOSE('O4'!$O$21, M63,M91,M119,M147) -> 0.0002796668746 | O31: ='A2'!D30 -> Demography in equilibrium
B38: Netherlands | D38: 0.996939615 | E38: 0.001086988635 | F38: 6.287663966e-05 | G38: 0.0001306007415 | H38: 8.235836977e-09 | I38: 0.001768723621 | J38: 2.180108659e-06 | K38: 7.401845471e-06 | L38: 2.013223633e-07 | M38: 1.403802839e-06
D39: 0.990487646 | E39: 0.005374691275 | F39: 0.0006693266635 | G39: 0.0001177466677 | H39: 7.808874901e-08 | I39: 0.003294242754 | J39: 1.638708804e-05 | K39: 3.261932041e-05 | L39: 9.794397348e-07 | M39: 6.282716922e-06
D40: 0.9834621871 | E40: 0.01108817584 | F40: 0.001246559719 | G40: 0.0001226658269 | H40: 1.530138368e-07 | I40: 0.004024264409 | J40: 2.242010654e-05 | K40: 2.737824087e-05 | L40: 8.642245484e-07 | M40: 5.331502899e-06
D41: 0.9882535979 | E41: 0.006588057357 | F41: 0.0009691985011 | G41: 0.0001208792955 | H41: 1.273449052e-07 | I41: 0.003994123725 | J41: 2.872700601e-05 | K41: 3.674711578e-05 | L41: 1.237281921e-06 | M41: 7.30449763e-06
D42: 0.9793987927 | E42: 0.01374024862 | F42: 0.00181631507 | G42: 0.0001248054715 | H42: 2.362569778e-07 | I42: 0.004842063568 | J42: 3.971238912e-05 | K42: 3.059960419e-05 | L42: 1.089007432e-06 | M42: 6.13728917e-06
D43: 0.949788051 | E43: 0.0121952985 | F43: 0.004119860509 | G43: 0.00367884816 | H43: 1.571810023e-05 | I43: 0.02806587497 | J43: 0.0003464872864 | K43: 0.001339815857 | L43: 5.79805614e-05 | M43: 0.0003920650248
D44: 0.936915898 | E44: 0.01881183872 | F44: 0.005380803472 | G44: 0.003823409032 | H44: 2.142734014e-05 | I44: 0.03254236337 | J44: 0.0004916420561 | K44: 0.001466846067 | L44: 7.580272412e-05 | M44: 0.0004699692593
D45: 0.6027523345 | E45: 0.179933871 | F45: 0.01936360312 | G45: 0.001473814046 | H45: 3.204386452e-05 | I45: 0.1922016177 | J45: 0.003000351938 | K45: 0.00100008883 | L45: 4.744163082e-05 | M45: 0.0001948333469
D46: 0.5765875336 | E46: 0.2777057697 | F46: 0.02860805579 | G46: 0.0009373948963 | H46: 2.928338775e-05 | I46: 0.1131523004 | J46: 0.002265364975 | K46: 0.0005699716354 | L46: 3.053912064e-05 | M46: 0.0001137864826
D47: 0.5420749851 | E47: 0.3254166202 | F47: 0.03315229649 | G47: 0.0008919119324 | H47: 3.401492072e-05 | I47: 0.09541903153 | J47: 0.00253996371 | K47: 0.0003726245079 | L47: 2.286949028e-05 | M47: 7.568217837e-05
D48: 0.5607766916 | E48: 0.2693457505 | F48: 0.03053680527 | G48: 0.003297455756 | H48: 0.0001189770297 | I48: 0.130274221 | J48: 0.003091870942 | K48: 0.001868190193 | L48: 0.0001291082566 | M48: 0.0005609294655
D49: 0.5273343147 | E49: 0.3171856183 | F49: 0.03599958257 | G49: 0.003500312326 | H49: 0.0001472429296 | I49: 0.1096503 | J49: 0.003533003234 | K49: 0.001865887594 | L49: 0.0001591771649 | M49: 0.000624561174
D51: 0.9903879933 | E51: 0.005422743276 | F51: 0.0006791565344 | G51: 0.0001445465816 | H51: 9.730089657e-08 | I51: 0.003315539152 | J51: 1.636355609e-05 | K51: 3.060757309e-05 | L51: 5.079211548e-07 | M51: 2.444807033e-06
D52: 0.9835423519 | E52: 0.01099711004 | F52: 0.001240198049 | G52: 0.0001502434892 | H52: 1.861518674e-07 | I52: 0.004019668166 | J52: 2.217520304e-05 | K52: 2.555948113e-05 | L52: 4.504708831e-07 | M52: 2.05708402e-06
D53: 0.9881539512 | E53: 0.006645885455 | F53: 0.0009806355129 | G53: 0.0001463987296 | H53: 1.495186623e-07 | I53: 0.004007302369 | J53: 2.858645381e-05 | K53: 3.372047231e-05 | L53: 6.405109223e-07 | M53: 2.729742602e-06
D54: 0.9795258037 | E54: 0.01362366046 | F54: 0.001804434725 | G54: 0.0001514825115 | H54: 2.793882256e-07 | I54: 0.004824287813 | J54: 3.916596637e-05 | K54: 2.803260934e-05 | L54: 5.692680477e-07 | M54: 2.283576068e-06
D55: 0.9496916743 | E55: 0.0128086857 | F55: 0.004645781721 | G55: 0.002148051263 | H55: 9.206998744e-06 | I55: 0.02909222304 | J55: 0.0003562999945 | K55: 0.001118808425 | L55: 2.96380016e-05 | M55: 9.963055959e-05
D56: 0.937333292 | E56: 0.01925088766 | F56: 0.005954036213 | G56: 0.002193284832 | H56: 1.22594056e-05 | I56: 0.03341136341 | J56: 0.000498232739 | K56: 0.001199414081 | L56: 3.761935726e-05 | M56: 0.0001096103452
D57: 0.5834140644 | E57: 0.2538195182 | F57: 0.0264160894 | G57: 0.0007223509972 | H57: 2.029054997e-05 | I57: 0.1325412264 | J57: 0.002437625548 | K57: 0.0005632848213 | L57: 1.939271463e-05 | M57: 4.615694455e-05
D58: 0.5436871753 | E58: 0.3238207924 | F58: 0.03303007011 | G58: 0.000617400991 | H58: 2.332420861e-05 | I58: 0.09594875681 | J58: 0.002513970758 | K58: 0.0003186931896 | L58: 1.33960697e-05 | M58: 2.642012648e-05
D59: 0.5607227186 | E59: 0.2713734494 | F59: 0.03135052458 | G59: 0.001924692766 | H59: 6.945303454e-05 | I59: 0.1296722142 | J59: 0.003100107458 | K59: 0.001578269919 | L59: 7.293587142e-05 | M59: 0.0001356341203
D60: 0.5291323099 | E60: 0.3163980367 | F60: 0.03660236992 | G60: 0.001992445896 | H60: 8.343672503e-05 | I60: 0.1105019492 | J60: 0.003522578077 | K60: 0.00154302537 | L60: 8.692868844e-05 | M60: 0.000136919589
D62: 0.6078105184 | E62: 0.1396806253 | F62: 0.01566001327 | G62: 0.008993212422 | H62: 0.0001753323397 | I62: 0.2219196794 | J62: 0.003208019205 | K62: 0.002129521397 | L62: 0.0001226810015 | M62: 0.0003003972882
D63: 0.3642421672 | E63: 0.3042740166 | F63: 0.03888471341 | G63: 0.008374017394 | H63: 0.0004691958407 | I63: 0.2706901923 | J63: 0.01073247929 | K63: 0.001882474087 | L63: 0.0001710769897 | M63: 0.0002796668746
B66: Czech Republic | D66: 0.9938663607 | E66: 0.001751361313 | F66: 0.0001141597829 | G66: 0.0003510113177 | H66: 4.033952354e-08 | I66: 0.003886750865 | J66: 6.108849425e-06 | K66: 1.895829877e-05 | L66: 6.732323037e-07 | M66: 4.575325345e-06
D67: 0.9765500641 | E67: 0.01270602289 | F67: 0.001703722572 | G67: 0.0003194382966 | H67: 5.43447973e-07 | I67: 0.00854419667 | J67: 6.356620326e-05 | K67: 8.718790786e-05 | L67: 3.576238378e-06 | M67: 2.168170898e-05
D68: 0.9597305365 | E68: 0.02602677461 | F68: 0.003066341788 | G68: 0.0003321868504 | H68: 1.028808258e-06 | I68: 0.01065589351 | J68: 9.188313721e-05 | K68: 7.355155895e-05 | L68: 3.225069834e-06 | M68: 1.857821129e-05
D69: 0.9694872055 | E69: 0.01650155063 | F69: 0.002655192945 | G69: 0.0003288187705 | H69: 9.402461983e-07 | I69: 0.0107774525 | J69: 0.0001181337706 | K69: 0.0001001426948 | L69: 4.660746914e-06 | M69: 2.590220213e-05
D70: 0.9476271489 | E70: 0.03366343685 | F70: 0.004777798711 | G70: 0.0003385538168 | H70: 1.69434526e-06 | I70: 0.01330650746 | J70: 0.0001744241781 | K70: 8.402283049e-05 | L70: 4.272032865e-06 | M70: 2.214087724e-05
D71: 0.9043732868 | E71: 0.0273152988 | F71: 0.008075192793 | G71: 0.005999564943 | H71: 5.192242744e-05 | I71: 0.05051231301 | J71: 0.0007931514249 | K71: 0.002141852642 | L71: 9.790303567e-05 | M71: 0.0006395141109
D72: 0.8788341416 | E72: 0.04076924145 | F72: 0.01040675112 | G72: 0.006423054554 | H72: 7.237781469e-05 | I72: 0.0588214652 | J72: 0.001195696415 | K72: 0.002460924842 | L72: 0.0001496091328 | M72: 0.0008667378478
D73: 0.7859733919 | E73: 0.09923976721 | F73: 0.01041280978 | G73: 0.001054023399 | H73: 1.135085102e-05 | I73: 0.1015214045 | J73: 0.00104429518 | K73: 0.0005748489622 | L73: 2.747670219e-05 | M73: 0.0001406314896
D74: 0.7506884775 | E74: 0.1631911145 | F74: 0.01731913286 | G74: 0.0007834606857 | H74: 1.426125235e-05 | I74: 0.06645305048 | J74: 0.001052248086 | K74: 0.0003792703092 | L74: 2.148325309e-05 | M74: 9.750101528e-05
D75: 0.725474948 | E75: 0.1917441266 | F75: 0.0198340252 | G75: 0.0007753096964 | H75: 1.674836007e-05 | I75: 0.06062326058 | J75: 0.001175947848 | K75: 0.000268458646 | L75: 1.663127681e-05 | M75: 7.054378638e-05
D76: 0.7080878102 | E76: 0.1613454925 | F76: 0.02136959083 | G76: 0.00558131376 | H76: 0.0001358592091 | I76: 0.09829352695 | J76: 0.002108976367 | K76: 0.002283572158 | L76: 0.0001297650443 | M76: 0.0006640930452
D77: 0.6743259358 | E77: 0.1882935129 | F77: 0.02526019089 | G77: 0.006107719176 | H77: 0.0001771037763 | I77: 0.09922224533 | J77: 0.002856957427 | K77: 0.002623308691 | L77: 0.0002014937901 | M77: 0.0009315322543
D79: 0.9763395044 | E79: 0.01282936905 | F79: 0.001731874855 | G79: 0.0003503545342 | H79: 6.045273046e-07 | I79: 0.008593609009 | J79: 6.355941676e-05 | K79: 7.968172784e-05 | L79: 1.979339093e-06 | M79: 9.463139414e-06
D80: 0.9599947997 | E80: 0.02579600992 | F80: 0.003052334627 | G80: 0.0003640166766 | H80: 1.119721789e-06 | I80: 0.01062408064 | J80: 9.0842822e-05 | K80: 6.694662936e-05 | L80: 1.797692775e-06 | M80: 8.051588829e-06
D81: 0.9692787347 | E81: 0.01665466561 | F81: 0.002688903455 | G81: 0.0003556550624 | H81: 9.983412799e-07 | I81: 0.01080048574 | J81: 0.0001176724659 | K81: 8.946049059e-05 | L81: 2.573087373e-06 | M81: 1.085103649e-05
D82: 0.9480362866 | E82: 0.03335916272 | F82: 0.004747371806 | G82: 0.0003673579049 | H82: 1.800804281e-06 | I82: 0.01322963452 | J82: 0.0001718631644 | K82: 7.493570754e-05 | L82: 2.380538911e-06 | M82: 9.206275099e-06
D83: 0.9041797041 | E83: 0.02836297681 | F83: 0.008857135898 | G83: 0.003534162376 | H83: 3.067937896e-05 | I83: 0.05211074489 | J83: 0.0008156030002 | K83: 0.001818014462 | L83: 5.740684755e-05 | M83: 0.0002335722818
D84: 0.8797332541 | E84: 0.04142054188 | F84: 0.01134085821 | G84: 0.003707290143 | H84: 4.166673857e-05 | I84: 0.06016318103 | J84: 0.001210077238 | K84: 0.002023787862 | L84: 8.222454121e-05 | M84: 0.000277118233
D85: 0.759187916 | E85: 0.1485059765 | F85: 0.01577517569 | G85: 0.0006640728413 | H85: 1.077523034e-05 | I85: 0.07440201174 | J85: 0.001043541165 | K85: 0.0003563014704 | L85: 1.253559066e-05 | M85: 4.169372919e-05
D86: 0.7268558835 | E86: 0.1905679227 | F86: 0.01975101439 | G86: 0.0006277327823 | H86: 1.343309577e-05 | I86: 0.06075510173 | J86: 0.001161887177 | K86: 0.0002301809947 | L86: 9.364773755e-06 | M86: 2.747887817e-05
D87: 0.7079303682 | E87: 0.1630533973 | F87: 0.02223512239 | G87: 0.003289811417 | H87: 8.015068155e-05 | I87: 0.09902273997 | J87: 0.002140556103 | K87: 0.001938194451 | L87: 7.78906427e-05 | M87: 0.0002317688567
D88: 0.6761695392 | E88: 0.1885441852 | F88: 0.02620503808 | G88: 0.003496538198 | H88: 0.0001009504016 | I88: 0.1001049678 | J88: 0.002856610973 | K88: 0.002137615009 | L88: 0.000110600866 | M88: 0.0002739541561
D90: 0.7912625876 | E90: 0.07864555941 | F90: 0.00857984248 | G90: 0.004654648158 | H90: 4.346679718e-05 | I90: 0.1144468472 | J90: 0.001052399541 | K90: 0.001107100862 | L90: 5.289969965e-05 | M90: 0.0001546481912
D91: 0.6279522666 | E91: 0.1925604431 | F91: 0.0226867159 | G91: 0.004528225827 | H91: 0.0001227453013 | I91: 0.1476104972 | J91: 0.00330410167 | K91: 0.001020194323 | L91: 6.681948438e-05 | M91: 0.0001479906916
B94: Portugal | D94: 0.9742146148 | E94: 0.007884231132 | F94: 0.0004921190199 | G94: 0.001338050211 | H94: 6.723763199e-07 | I94: 0.01594440724 | J94: 3.187632452e-05 | K94: 7.353527875e-05 | L94: 2.666950735e-06 | M94: 1.782661288e-05
D95: 0.9119892056 | E95: 0.04729279247 | F95: 0.006360614488 | G95: 0.001193237931 | H95: 7.806639185e-06 | I95: 0.03236623189 | J95: 0.0003663036389 | K95: 0.0003271172639 | L95: 1.496003527e-05 | M95: 8.173002846e-05
D96: 0.8432994057 | E96: 0.1020031551 | F96: 0.01233921433 | G96: 0.001229386368 | H96: 1.596548891e-05 | I96: 0.04008131067 | J96: 0.0006734915551 | K96: 0.0002737044833 | L96: 1.461628045e-05 | M96: 6.974998638e-05
D97: 0.8833742919 | E97: 0.06076082283 | F97: 0.01057896209 | G97: 0.001230417848 | H97: 1.439496628e-05 | I97: 0.04258636812 | J97: 0.0009379430645 | K97: 0.0003890959101 | L97: 2.329926301e-05 | M97: 0.0001044039649
D98: 0.793820539 | E98: 0.1307685911 | F98: 0.02060541064 | G98: 0.001241127232 | H98: 2.810251822e-05 | I98: 0.0515202735 | J98: 0.001588464351 | K98: 0.0003182251472 | L98: 2.265423801e-05 | M98: 8.661228877e-05
D99: 0.7525909235 | E99: 0.07285187857 | F99: 0.01996218156 | G99: 0.01451385529 | H99: 0.0003498918841 | I99: 0.1275033251 | J99: 0.004197418528 | K99: 0.005542645085 | L99: 0.00043078919 | M99: 0.002057091228
D100: 0.6719205531 | E100: 0.1253743099 | F100: 0.02901288746 | G100: 0.01437280566 | H100: 0.0005185852158 | I100: 0.1440694613 | J100: 0.00625842011 | K100: 0.005712818978 | L100: 0.0005344612798 | M100: 0.002225697028
D101: 0.5936838364 | E101: 0.1723730818 | F101: 0.01917912608 | G101: 0.003076176972 | H101: 7.073512753e-05 | I101: 0.2064350323 | J101: 0.003378450648 | K101: 0.001369148112 | L101: 8.316850382e-05 | M101: 0.0003512441015
D102: 0.4978454062 | E102: 0.2978271594 | F102: 0.03937428112 | G102: 0.002575873458 | H102: 0.0001231418605 | I102: 0.1554181837 | J102: 0.00543014304 | K102: 0.001038415875 | L102: 8.743371884e-05 | M102: 0.0002799616155
D103: 0.4778473195 | E103: 0.3099331261 | F103: 0.03963474527 | G103: 0.002624337851 | H103: 0.0001305016239 | I103: 0.1627045653 | J103: 0.006010579256 | K103: 0.0008175428511 | L103: 7.226889344e-05 | M103: 0.0002250133218
D104: 0.4481687837 | E104: 0.259313482 | F104: 0.04117243544 | G104: 0.01287796596 | H104: 0.0007312204013 | I104: 0.2195847099 | J104: 0.009816293672 | K104: 0.00560695147 | L104: 0.0005992250669 | M104: 0.002128932334
D105: 0.3964746724 | E105: 0.2824806807 | F105: 0.04855734801 | G105: 0.01295918115 | H105: 0.0009008255981 | I105: 0.235872527 | J105: 0.013542186 | K105: 0.005979922153 | L105: 0.0007606520936 | M105: 0.002472004903
D107: 0.9116867915 | E107: 0.04775575234 | F107: 0.00646739151 | G107: 0.0009612035893 | H107: 6.335412065e-06 | I107: 0.03243240951 | J107: 0.0003666393365 | K107: 0.0002805902916 | L107: 8.486491716e-06 | M107: 3.439998347e-05
D108: 0.8446532836 | E108: 0.1012381503 | F108: 0.01229186976 | G108: 0.000994301494 | H108: 1.282039345e-05 | I108: 0.0398721464 | J108: 0.0006651594939 | K108: 0.0002345862029 | L108: 8.51821348e-06 | M108: 2.91642191e-05
D109: 0.8830812653 | E109: 0.06136181346 | F109: 0.01072008819 | G109: 0.0009808404956 | H109: 1.140768677e-05 | I109: 0.04253006255 | J109: 0.0009335748155 | K109: 0.0003263274529 | L109: 1.324129026e-05 | M109: 4.137880206e-05
D110: 0.7956748915 | E110: 0.1297977281 | F110: 0.02049467556 | G110: 0.0009973698904 | H110: 2.231600394e-05 | I110: 0.05113263625 | J110: 0.001564506337 | K110: 0.0002680972048 | L110: 1.335520514e-05 | M110: 3.442392291e-05
D111: 0.7523413147 | E111: 0.07551280637 | F111: 0.02244020952 | G111: 0.008404531902 | H111: 0.0002030303093 | I111: 0.1313113556 | J111: 0.004318469442 | K111: 0.004577527801 | L111: 0.0002484709663 | M111: 0.0006422833259
D112: 0.6747064375 | E112: 0.1263469213 | F112: 0.03140529954 | G112: 0.008196756666 | H112: 0.0002939746857 | I112: 0.1470628348 | J112: 0.006340899242 | K112: 0.004664348909 | L112: 0.0003098085841 | M112: 0.0006727187444
D113: 0.5259219692 | E113: 0.2631858671 | F113: 0.03387457632 | G113: 0.001862642378 | H113: 7.413936387e-05 | I113: 0.1691902981 | J113: 0.004804108485 | K113: 0.0009255401069 | L113: 4.909662736e-05 | M113: 0.0001117623252
D114: 0.4817739803 | E114: 0.3081137095 | F114: 0.03949965478 | G114: 0.00179594376 | H114: 8.820200765e-05 | I114: 0.1620448269 | J114: 0.005877109813 | K114: 0.0006798581973 | L114: 4.191646159e-05 | M114: 8.479827108e-05
D115: 0.4480203801 | E115: 0.2632135867 | F115: 0.04393677744 | G115: 0.007456761033 | H115: 0.0004236938721 | I115: 0.221400072 | J115: 0.009986681656 | K115: 0.004605540374 | L115: 0.0003490978764 | M115: 0.0006074089523
D116: 0.4008802777 | E116: 0.2848321596 | F116: 0.05117157653 | G116: 0.007226833226 | H116: 0.0004978539385 | I116: 0.2361217718 | J116: 0.01340757879 | K116: 0.004775748724 | L116: 0.0004273486763 | M116: 0.0006588509607
D118: 0.6064870228 | E118: 0.1400848238 | F118: 0.01570906363 | G118: 0.009025790682 | H118: 0.0001767098198 | I118: 0.2227254649 | J118: 0.003229191564 | K118: 0.00213714501 | L118: 0.0001232912078 | M118: 0.0003014965308
D119: 0.3625703742 | E119: 0.3048655179 | F119: 0.03898732235 | G119: 0.008401752559 | H119: 0.0004726861787 | I119: 0.2715561874 | J119: 0.01080485747 | K119: 0.001888643377 | L119: 0.0001720222327 | M119: 0.0002806363395
B122: Spain | D122: 0.9879087149 | E122: 0.00366407811 | F122: 0.0002299997405 | G122: 0.0006391477853 | H122: 1.486546454e-07 | I122: 0.007500284504 | J122: 1.290225248e-05 | K122: 3.499403014e-05 | L122: 1.256617295e-06 | M122: 8.473376956e-06
D123: 0.9569014401 | E123: 0.02420923901 | F123: 0.003067916499 | G123: 0.0005765354225 | H123: 1.780031854e-06 | I123: 0.01491605356 | J123: 0.0001261215935 | K123: 0.0001555908817 | L123: 6.581573207e-06 | M123: 3.874134137e-05
D124: 0.9257464147 | E124: 0.04888204226 | F124: 0.005626563404 | G124: 0.0005984135205 | H124: 3.438713303e-06 | I124: 0.01877020792 | J124: 0.0002021610873 | K124: 0.0001314002291 | L124: 6.091494249e-06 | M124: 3.326663594e-05
D125: 0.953839335 | E125: 0.02650066491 | F125: 0.0034005087 | G125: 0.0005808796586 | H125: 2.055327135e-06 | I125: 0.0153257387 | J125: 0.0001444638036 | K125: 0.0001593042567 | L125: 6.983204663e-06 | M125: 4.006645694e-05
D126: 0.9204483241 | E126: 0.05282411178 | F126: 0.006271914415 | G126: 0.0006011531816 | H126: 3.917241075e-06 | I126: 0.01943537776 | J126: 0.0002394894575 | K126: 0.000134683187 | L126: 6.537581994e-06 | M126: 3.449131213e-05
D127: 0.7812218226 | E127: 0.1240871555 | F127: 0.01533260596 | G127: 0.017212273 | H127: 0.0002891836751 | I127: 0.05358798123 | J127: 0.001224310555 | K127: 0.00519537329 | L127: 0.0002805152161 | M127: 0.001568778987
D128: 0.7360713775 | E128: 0.114519282 | F128: 0.01989099842 | G128: 0.0182576706 | H128: 0.0004227834144 | I128: 0.09855110941 | J128: 0.003106406833 | K128: 0.00642027764 | L128: 0.0004678810991 | M128: 0.002292213076
D129: 0.8051044923 | E129: 0.08783602672 | F129: 0.009808882158 | G129: 0.002382356575 | H129: 2.512685889e-05 | I129: 0.09290088138 | J129: 0.00096530988 | K129: 0.000757518891 | L129: 3.524691056e-05 | M129: 0.0001841582859
D130: 0.7219113111 | E130: 0.1737686127 | F130: 0.02017676533 | G130: 0.002286991843 | H130: 5.065772128e-05 | I130: 0.07922964212 | J130: 0.00166682766 | K130: 0.0006918176141 | L130: 4.163450469e-05 | M130: 0.0001757394494
D131: 0.7185451396 | E131: 0.1708781567 | F131: 0.0195806643 | G131: 0.002370959338 | H131: 5.169050493e-05 | I131: 0.08607887618 | J131: 0.001753445967 | K131: 0.0005609235804 | L131: 3.452447362e-05 | M131: 0.0001456194071
D132: 0.610422707 | E132: 0.2813647496 | F132: 0.02883494067 | G132: 0.01580052667 | H132: 0.0005062437321 | I132: 0.05544185861 | J132: 0.001649794838 | K132: 0.004474019879 | L132: 0.0002775131424 | M132: 0.001227645809
D133: 0.5425250653 | E133: 0.2849176225 | F133: 0.03657548828 | G133: 0.01772263808 | H133: 0.000769550646 | I133: 0.1037971157 | J133: 0.004623066919 | K133: 0.00627392702 | L133: 0.000568505167 | M133: 0.002227020348
D135: 0.9565880582 | E135: 0.03425767434 | F135: 0.003195221278 | G135: 0.0003614779704 | H135: 1.148576958e-06 | I135: 0.005448008862 | J135: 4.612363193e-05 | K135: 8.703951082e-05 | L135: 2.860311037e-06 | M135: 1.238733782e-05
D136: 0.9262882268 | E136: 0.06067051299 | F136: 0.005725861959 | G136: 0.0003734891469 | H136: 2.144081761e-06 | I136: 0.006781148998 | J136: 7.266116048e-05 | K136: 7.279764685e-05 | L136: 2.645897101e-06 | M136: 1.051127936e-05
D137: 0.9535267859 | E137: 0.03681708501 | F137: 0.003541291856 | G137: 0.0003623205071 | H137: 1.29127203e-06 | I137: 0.005594109245 | J137: 5.273380743e-05 | K137: 8.865890627e-05 | L137: 3.023023539e-06 | M137: 1.270049673e-05
D138: 0.9210521007 | E138: 0.06499471505 | F138: 0.006388113083 | G138: 0.0003738924125 | H138: 2.410188616e-06 | I138: 0.007015027929 | J138: 8.58697483e-05 | K138: 7.424581465e-05 | L138: 2.827801386e-06 | M138: 1.079726489e-05
D139: 0.7809656585 | E139: 0.1717605232 | F139: 0.01809018496 | G139: 0.003713642745 | H139: 6.283166077e-05 | I139: 0.02176146395 | J139: 0.000509271415 | K139: 0.002590870185 | L139: 0.0001238962945 | M139: 0.0004216570884
D140: 0.7377157924 | E140: 0.1915116108 | F140: 0.02448067097 | G140: 0.003858084803 | H140: 8.942025899e-05 | I140: 0.03734245061 | J140: 0.001188965626 | K140: 0.003073002944 | L140: 0.0001942661628 | M140: 0.0005457354035
D141: 0.7457094362 | E141: 0.2028291288 | F141: 0.01833908695 | G141: 0.0007596491548 | H141: 1.433873061e-05 | I141: 0.03137378978 | J141: 0.0005561213172 | K141: 0.0003527273117 | L141: 1.609520225e-05 | M141: 4.962651335e-05
D142: 0.7213642155 | E142: 0.2239264636 | F142: 0.02060612249 | G142: 0.0007763326667 | H142: 1.675955942e-05 | I142: 0.03232554707 | J142: 0.0006525417603 | K142: 0.0002779905401 | L142: 1.38276621e-05 | M142: 4.019916512e-05
D143: 0.6102226548 | E143: 0.3277829201 | F143: 0.03166691781 | G143: 0.003582469254 | H143: 0.0001150881542 | I143: 0.02319394193 | J143: 0.0007128344104 | K143: 0.002277155859 | L143: 0.0001204038437 | M143: 0.0003256137871
D144: 0.5487594592 | E144: 0.3602500597 | F144: 0.04158913114 | G144: 0.003824690185 | H144: 0.0001643021785 | I144: 0.04001479406 | J144: 0.001780462729 | K144: 0.002927989796 | L144: 0.0002176511272 | M144: 0.0004714599099
D146: 0.8271364692 | E146: 0.06572624455 | F146: 0.007139611122 | G146: 0.003838110689 | H146: 2.913910989e-05 | I146: 0.09426569309 | J146: 0.0007817902437 | K146: 0.0009134483751 | L146: 4.211223094e-05 | M146: 0.0001273814131
D147: 0.6866459161 | E147: 0.1641857486 | F147: 0.01909144996 | G147: 0.003766393507 | H147: 8.30921055e-05 | I147: 0.1228189396 | J147: 0.002385526752 | K147: 0.0008485217083 | L147: 5.184090224e-05 | M147: 0.000122570762

Sheet Fit (hidden)
B2: Annual number of new PTB cases | F2: Data | G2: Model | H2: Error | J2: Beta parameters | M2: Multiplier | N2: Value used
B3: Last 10 years
C4: Population | F4: =CHOOSE('O4'!$O$21, P43,Q43,R43,S43) -> 16632349 | G4: N/A | J4: Beta-any | N4: =CHOOSE('O4'!$O$21, P35,Q35,R35,S35) -> 1.086758936
C5: Migrants as source for natives | F5: 0.3333333333 | G5: =$N$4*(FOI!$F485 + 'JH1'!$N485 + 'JH2'!$N485)/($N$4*FOI!$I485 + $N$5*FOI!$E485*FOI!$O485/FOI!$K485) -> 0.3204171923 | J5: Beta-own (natives) | N5: =CHOOSE('O4'!$O$21, P36,Q36,R36,S36) -> 0.9325240013 | V5: Fixed
C6: Downward trend | F6: 0.0415 | G6: ='O1'!AI26 -> 0.001426254533 | J6: Beta-own (migrants) | M6: 1 | N6: =$M6*$N$5 -> 0.9325240013 | V6: Relative
J7: Beta-own (high-risk) | M7: =CHOOSE('O4'!$O$21, P38,Q38,R38,S38) -> 1.881075426 | N7: =$M7*$N$5 -> 1.754147983
B8: General population (natives) | F8: =SUM(F9:F11) -> 292.69571 | G8: =SUM(G9:G11) -> 286.2608823 | H8: =((F8-G8)^2)/F8 -> 0.1414677641 | J8: Beta-own (prisoners) | M8: 1 | N8: =$M8*$N$5 -> 0.9325240013
C9: 0-14 | F9: 11.3 | G9: =0.1*SUM('O1'!E247:'O1'!E486)*$F$4/10000 -> 12.32460053
C10: 15-44 | F10: 126.65419 | G10: =0.1*SUM('O1'!F247:'O1'!F486)*$F$4/10000 -> 145.372954 | J10: External force-of-infection | N10: Fixed
C11: 45+ | F11: 154.74152 | G11: =0.1*SUM('O1'!G247:'O1'!G486)*$F$4/10000 -> 128.5633277
J12: Relative external FOI for natives | N12: 0.1
B13: First generation migrants | F13: =SUM(F14:F15) -> 274.40429 | G13: =SUM(G14:G15) -> 271.6139128 | H13: =((F13-G13)^2)/F13 -> 0.02837493892 | J13: Relative external FOI for migrants | N13: 0.2
C14: 15-44 | F14: 201.74581 | G14: =0.1*SUM('O1'!I247:'O1'!I486)*$F$4/10000 -> 202.0525184
C15: 45+ | F15: 72.65848 | G15: =0.1*SUM('O1'!J247:'O1'!J486)*$F$4/10000 -> 69.56139436 | J15: Resulting external FOI for natives (x1000) | N15: =IF(Fit!$N$10="Relative", 1000*$N$12*FOI!$Q485, Fit!$N$18*((1-Fit!$O$18)^20)) -> 0.001338103636
C16: Detected through screening | G16: =AVERAGE('O1'!X247:X486) -> 0.1191735118 | J16: Resulting ext. FOI for migrants (x1000) | N16: =IF(Fit!$N$10="Relative", 1000*$N$13*FOI!$R485, Fit!$N$19*((1-Fit!$O$19)^20)) -> 0.02115591679
O17: Ann. decline
B18: Total TB new cases | F18: =F8+F13 -> 567.1 | G18: =G8+G13 -> 557.8747951 | J18: Fixed external FOI for natives (x1000) | N18: =CHOOSE('O4'!$O$21, P40,Q40,R40,S40) -> 0.001810360815 | O18: 0.015
J19: Fixed external FOI for migrants (x1000) | N19: =CHOOSE('O4'!$O$21, P41,Q41,R41,S41) -> 0.02862247866 | O19: 0.015
B20: Behavior-related high risk | F20: =SUM(F21:F22) -> 24.2 | G20: =SUM(G21:G22) -> 25.66927752 | H20: =((F20-G20)^2)/F20 -> 0.08920563812
C21: 15-44 | F21: 12 | G21: =0.1*SUM('O1'!L247:'O1'!L486)*$F$4/10000 -> 14.42011831 | J21: Other outcomes (last 10 years) | M21: Total | N21: Per 100K
C22: 45+ | F22: 12.2 | G22: =0.1*SUM('O1'!M247:'O1'!M486)*$F$4/10000 -> 11.24915921 | N22: =0.1*AVERAGE('O1'!AG15:AG24) -> 3.354155177
C23: Detected through screening | G23: =AVERAGE('O1'!Y247:Y486) -> 0 | J23: PTB cases per year | M23: =0.1*SUM('O1'!E247:G486,'O1'!I247:J486)*$F$4/10000 -> 557.8747951 | N23: =SUM('O1'!E247:G486,'O1'!I247:J486) -> 3.354155177
J24: EPTB cases per year | M24: =0.1*('A1'!$H$20*SUM('O1'!E247:E486)+'A1'!$I$20*SUM('O1'!F247:F486)+'A1'!$J$20*SUM('O1'!G247:G486)+'A1'!$K$20*SUM('O1'!I247:I486)+'A1'!$L$20*SUM('O1'!J247:J486))*$F$4/10000 -> 427.8074266 | N24: ='A1'!$H$20*SUM('O1'!E247:E486)+'A1'!$I$20*SUM('O1'!F247:F486)+'A1'!$J$20*SUM('O1'!G247:G486)+'A1'!$K$20*SUM('O1'!I247:I486)+'A1'!$L$20*SUM('O1'!J247:J486) -> 2.572140752
B25: Prisoners | F25: =SUM(F26:F27) -> 21.2 | G25: =SUM(G26:G27) -> 17.30448028 | H25: =((F25-G25)^2)/F25 -> 0.7158053734 | J25: TB cases per year | M25: =SUM(M23:M24) -> 985.6822217 | N25: =SUM(N23:N24) -> 5.926295929
C26: 15-44 | F26: 17.9 | G26: =0.1*SUM('O1'!O247:'O1'!O486)*$F$4/10000 -> 14.08127411
C27: 45+ | F27: 3.3 | G27: =0.1*SUM('O1'!P247:'O1'!P486)*$F$4/10000 -> 3.223206164 | J27: Deaths per year | M27: =0.1*SUM('O2'!U247:U486)*$F$4/10000 -> 26.14853689 | N27: =SUM('O2'!U247:U486) -> 0.1572149364 | O27: 0.16
C28: Detected through screening | G28: =AVERAGE('O1'!Z247:Z486) -> 0.8565529099 | J28: Hospitalizations per year | M28: =0.1*SUM('O2'!S247:S486)*$F$4/10000 -> 195.7539472 | N28: =SUM('O2'!S247:S486) -> 1.176947088 | O28: 1.2
G30: Fit | H30: =SUM(H6:H27) -> 0.9748537146
P33: NL | Q33: CZ | R33: PT | S33: SP
P35: 1.086758936 | Q35: 1.336827888 | R35: 1.119813759 | S35: 0.7316778419
P36: 0.9325240013 | Q36: 0.6775588619 | R36: 0.9031225158 | S36: 1.61188359
P38: 1.881075426 | Q38: 2.821868846 | R38: 1.708489017 | S38: 1.533671473
P40: 0.001810360815 | Q40: 0.004932534622 | R40: 0.0189383018 | S40: 0.008986637265
P41: 0.02862247866 | Q41: 0.02379691197 | R41: 0.09060106208 | S41: 0.07640958936
P43: 16632349 | Q43: 10524783 | R43: 10562178 | S43: 46449564.79

Sheet O1 (hidden)
E2: PTB cases natives (inclusive) | I2: PTB cases migrants | L2: PTB cases high-risk | O2: PTB cases prisoners | R2: Annual PTB incidence per 100.000 | X2: PTB cases through screening | AC2: Annual PTB incidence per 100.000 | AI2: Trend
B4: Time | E4: 0-14 | F4: 15-44 | G4: 45+ | I4: 15-44 | J4: 45+ | L4: 15-44 | M4: 45+ | O4: 15-44 | P4: 45+ | R4: Natives (x10) | S4: Migrants | T4: High-risk | U4: Prisoners | V4: Total (x10) | X4: Migrants | Y4: High-risk | Z4: Prisoners | AC4: Natives (x10) | AD4: Migrants | AE4: High-risk | AF4: Prisoners | AG4: Total (x10) | AI4: Total (x10)
B5: Years | C5: Months | AB5: 0.5 | AC5: =R30 -> 18.36425147 | AD5: =S30 -> 39.79886279 | AE5: =T30 -> 67.40879307 | AF5: =U30 -> 158.5670861 | AG5: =V30 -> 34.11089445
B6: =$C6/12 -> 0 | C6: 0 | AB6: 1.5 | AC6: =R54 -> 18.35869074 | AD6: =S54 -> 39.78970684 | AE6: =T54 -> 67.41041182 | AF6: =U54 -> 158.5656235 | AG6: =V54 -> 34.10176654 | AI6: =1-AG6/AG5 -> 0.0002675952494
B7: =$C7/12 -> 0.04166666667 | C7: =$C6+0.5 -> 0.5 | E7: ='A1'!$AD$13*GL0!N7 -> 0.0006369832888 | F7: ='A1'!$AD$13*('GL1'!N7+'GV1'!N7) + 'A1'!$AF$13*'HR1'!N7 + 'A1'!$AH$13*('PL1'!N7+'PV1'!N7+'PH1'!N7) + 'HR1'!Z6 + 'PL1'!Z6 + 'PV1'!Z6 + 'PH1'!Z6 -> 0.007446381154 | G7: ='A1'!$AD$13*('GL2'!N7+'GV2'!N7) + 'A1'!$AF$13*'HR2'!N7 + 'A1'!$AH$13*('PL2'!N7+'PV2'!N7+'PH2'!N7) + 'HR2'!Z6 + 'PL2'!Z6 + 'PV2'!Z6 + 'PH2'!Z6 -> 0.006585691443 | I7: ='A1'!$AD$13*(MV1a!N7+MV1b!N7) + 'A1'!$AF$13*'JH1'!N7 + 'A1'!$AH$13*('PM1'!N7+'PJ1'!N7) + MV1a!Z6 + MV1b!Z6 + 'JH1'!Z6 + 'PM1'!Z6 + 'PJ1'!Z6 -> 0.01021455441 | J7: ='A1'!$AD$13*'MV2'!N7 + 'A1'!$AF$13*'JH2'!N7 + 'A1'!$AH$13*('PM2'!N7+'PJ2'!N7) + 'MV2'!Z6 + 'JH2'!Z6 + 'PM2'!Z6 + 'PJ2'!Z6 -> 0.00354263988 | L7: ='A1'!$AF$13*('HR1'!N7+'JH1'!N7) + 'HR1'!Z6 + 'JH1'!Z6 -> 0.0007239578244 | M7: ='A1'!$AF$13*('HR2'!N7+'JH2'!N7) + 'HR2'!Z6 + 'JH2'!Z6 -> 0.0005646896434 | O7: ='A1'!$AH$13*('PL1'!N7+'PV1'!N7+'PH1'!N7+'PM1'!N7+'PJ1'!N7) + 'PL1'!Z6 + 'PV1'!Z6 + 'PH1'!Z6 + 'PM1'!Z6 + 'PJ1'!Z6 -> 0.0007071449755 | P7: ='A1'!$AH$13*('PL2'!N7+'PV2'!N7+'PH2'!N7+'PM2'!N7+'PJ2'!N7) + 'PL2'!Z6 + 'PV2'!Z6 + 'PH2'!Z6 + 'PM2'!Z6 + 'PJ2'!Z6 -> 0.0001618327058 | AB7: 2.5 | AC7: =R78 -> 18.34443014 | AD7: =S78 -> 39.76863215 | AE7: =T78 -> 67.41156288 | AF7: =U78 -> 158.5582972 | AG7: =V78 -> 34.07935577 | AI7: 0.0006571731681
B8: =$C8/12 -> 0.08333333333 | C8: =$C7+0.5 -> 1 | AB8: 3.5 | AC8: =R102 -> 18.32393075 | AD8: =S102 -> 39.74149109 | AE8: =T102 -> 67.41091351 | AF8: =U102 -> 158.5461562 | AG8: =V102 -> 34.0484487 | AI8: 0.0009069147835
B9: 0.125 | C9: 1.5 | E9: ='A1'!$AD$13*GL0!N9 -> 0.0006369829155 | F9: ='A1'!$AD$13*('GL1'!N9+'GV1'!N9) + 'A1'!$AF$13*'HR1'!N9 + 'A1'!$AH$13*('PL1'!N9+'PV1'!N9+'PH1'!N9) + 'HR1'!Z8 + 'PL1'!Z8 + 'PV1'!Z8 + 'PH1'!Z8 -> 0.007446374492 | G9: ='A1'!$AD$13*('GL2'!N9+'GV2'!N9) + 'A1'!$AF$13*'HR2'!N9 + 'A1'!$AH$13*('PL2'!N9+'PV2'!N9+'PH2'!N9) + 'HR2'!Z8 + 'PL2'!Z8 + 'PV2'!Z8 + 'PH2'!Z8 -> 0.006585686489 | I9: ='A1'!$AD$13*(MV1a!N9+MV1b!N9) + 'A1'!$AF$13*'JH1'!N9 + 'A1'!$AH$13*('PM1'!N9+'PJ1'!N9) + MV1a!Z8 + MV1b!Z8 + 'JH1'!Z8 + 'PM1'!Z8 + 'PJ1'!Z8 -> 0.01021455404 | J9: ='A1'!$AD$13*'MV2'!N9 + 'A1'!$AF$13*'JH2'!N9 + 'A1'!$AH$13*('PM2'!N9+'PJ2'!N9) + 'MV2'!Z8 + 'JH2'!Z8 + 'PM2'!Z8 + 'PJ2'!Z8 -> 0.003542640074 | L9: ='A1'!$AF$13*('HR1'!N9+'JH1'!N9) + 'HR1'!Z8 + 'JH1'!Z8 -> 0.0007239554795 | M9: ='A1'!$AF$13*('HR2'!N9+'JH2'!N9) + 'HR2'!Z8 + 'JH2'!Z8 -> 0.0005646877076 | O9: ='A1'!$AH$13*('PL1'!N9+'PV1'!N9+'PH1'!N9+'PM1'!N9+'PJ1'!N9) + 'PL1'!Z8 + 'PV1'!Z8 + 'PH1'!Z8 + 'PM1'!Z8 + 'PJ1'!Z8 -> 0.0007071437645 | P9: ='A1'!$AH$13*('PL2'!N9+'PV2'!N9+'PH2'!N9+'PM2'!N9+'PJ2'!N9) + 'PL2'!Z8 + 'PV2'!Z8 + 'PH2'!Z8 + 'PM2'!Z8 + 'PJ2'!Z8 -> 0.0001618324382 | AB9: 4.5 | AC9: =R126 -> 18.29937346 | AD9: =S126 -> 39.711672 | AE9: =T126 -> 67.40840715 | AF9: =U126 -> 158.5302809 | AG9: =V126 -> 34.01254121 | AI9: 0.001054599721
B10: 0.1666666667 | C10: 2 | AB10: 5.5 | AC10: =R150 -> 18.27212419 | AD10: =S150 -> 39.6805641 | AE10: =T150 -> 67.40406792 | AF10: =U150 -> 158.5112787 | AG10: =V150 -> 33.97351882 | AI10: 0.001147294331
B11: 0.2083333333 | C11: 2.5 | E11: ='A1'!$AD$13*GL0!N11 -> 0.0006369825431 | F11: ='A1'!$AD$13*('GL1'!N11+'GV1'!N11) + 'A1'!$AF$13*'HR1'!N11 + 'A1'!$AH$13*('PL1'!N11+'PV1'!N11+'PH1'!N11) + 'HR1'!Z10 + 'PL1'!Z10 + 'PV1'!Z10 + 'PH1'!Z10 -> 0.007446368235 | G11: ='A1'!$AD$13*('GL2'!N11+'GV2'!N11) + 'A1'!$AF$13*'HR2'!N11 + 'A1'!$AH$13*('PL2'!N11+'PV2'!N11+'PH2'!N11) + 'HR2'!Z10 + 'PL2'!Z10 + 'PV2'!Z10 + 'PH2'!Z10 -> 0.006585681627 | I11: ='A1'!$AD$13*(MV1a!N11+MV1b!N11) + 'A1'!$AF$13*'JH1'!N11 + 'A1'!$AH$13*('PM1'!N11+'PJ1'!N11) + MV1a!Z10 + MV1b!Z10 + 'JH1'!Z10 + 'PM1'!Z10 + 'PJ1'!Z10 -> 0.01021455377 | J11: ='A1'!$AD$13*'MV2'!N11 + 'A1'!$AF$13*'JH2'!N11 + 'A1'!$AH$13*('PM2'!N11+'PJ2'!N11) + 'MV2'!Z10 + 'JH2'!Z10 + 'PM2'!Z10 + 'PJ2'!Z10 -> 0.003542640279 | L11: ='A1'!$AF$13*('HR1'!N11+'JH1'!N11) + 'HR1'!Z10 + 'JH1'!Z10 -> 0.0007239531485 | M11: ='A1'!$AF$13*('HR2'!N11+'JH2'!N11) + 'HR2'!Z10 + 'JH2'!Z10 -> 0.0005646857833 | O11: ='A1'!$AH$13*('PL1'!N11+'PV1'!N11+'PH1'!N11+'PM1'!N11+'PJ1'!N11) + 'PL1'!Z10 + 'PV1'!Z10 + 'PH1'!Z10 + 'PM1'!Z10 + 'PJ1'!Z10 -> 0.0007071430428 | P11: ='A1'!$AH$13*('PL2'!N11+'PV2'!N11+'PH2'!N11+'PM2'!N11+'PJ2'!N11) + 'PL2'!Z10 + 'PV2'!Z10 + 'PH2'!Z10 + 'PM2'!Z10 + 'PJ2'!Z10 -> 0.0001618322643 | AB11: 6.5 | AC11: =R174 -> 18.24300643 | AD11: =S174 -> 39.64875211 | AE11: =T174 -> 67.39795164 | AF11: =U174 -> 158.4895177 | AG11: =V174 -> 33.93241339 | AI11: 0.001209925568
B12: 0.25 | C12: 3 | AB12: 7.5 | AC12: =R198 -> 18.21250955 | AD12: =S198 -> 39.61650477 | AE12: =T198 -> 67.39012019 | AF12: =U198 -> 158.4652359 | AG12: =V198 -> 33.88980545 | AI12: 0.001255670708
B13: 0.2916666667 | C13: 3.5 | E13: ='A1'!$AD$13*GL0!N13 -> 0.0006369820611 | F13: ='A1'!$AD$13*('GL1'!N13+'GV1'!N13) + 'A1'!$AF$13*'HR1'!N13 + 'A1'!$AH$13*('PL1'!N13+'PV1'!N13+'PH1'!N13) + 'HR1'!Z12 + 'PL1'!Z12 + 'PV1'!Z12 + 'PH1'!Z12 -> 0.007446361888 | G13: ='A1'!$AD$13*('GL2'!N13+'GV2'!N13) + 'A1'!$AF$13*'HR2'!N13 + 'A1'!$AH$13*('PL2'!N13+'PV2'!N13+'PH2'!N13) + 'HR2'!Z12 + 'PL2'!Z12 + 'PV2'!Z12 + 'PH2'!Z12 -> 0.0065856764 | I13: ='A1'!$AD$13*(MV1a!N13+MV1b!N13) + 'A1'!$AF$13*'JH1'!N13 + 'A1'!$AH$13*('PM1'!N13+'PJ1'!N13) + MV1a!Z12 + MV1b!Z12 + 'JH1'!Z12 + 'PM1'!Z12 + 'PJ1'!Z12 -> 0.01021455158 | J13: ='A1'!$AD$13*'MV2'!N13 + 'A1'!$AF$13*'JH2'!N13 + 'A1'!$AH$13*('PM2'!N13+'PJ2'!N13) + 'MV2'!Z12 + 'JH2'!Z12 + 'PM2'!Z12 + 'PJ2'!Z12 -> 0.003542639387 | L13: ='A1'!$AF$13*('HR1'!N13+'JH1'!N13) + 'HR1'!Z12 + 'JH1'!Z12 -> 0.0007239513309 | M13: ='A1'!$AF$13*('HR2'!N13+'JH2'!N13) + 'HR2'!Z12 + 'JH2'!Z12 -> 0.0005646842199 | O13: ='A1'!$AH$13*('PL1'!N13+'PV1'!N13+'PH1'!N13+'PM1'!N13+'PJ1'!N13) + 'PL1'!Z12 + 'PV1'!Z12 + 'PH1'!Z12 + 'PM1'!Z12 + 'PJ1'!Z12 -> 0.0007071427693 | P13: ='A1'!$AH$13*('PL2'!N13+'PV2'!N13+'PH2'!N13+'PM2'!N13+'PJ2'!N13) + 'PL2'!Z12 + 'PV2'!Z12 + 'PH2'!Z12 + 'PM2'!Z12 + 'PJ2'!Z12 -> 0.0001618321794 | AB13: 8.5 | AC13: =R222 -> 18.18092754 | AD13: =S222 -> 39.58396321 | AE13: =T222 -> 67.38063249 | AF13: =U222 -> 158.4385992 | AG13: =V222 -> 33.84603537 | AI13: 0.001291541356
B14: 0.3333333333 | C14: 4 | AB14: 9.5 | AC14: =R246 -> 18.14844361 | AD14: =S246 -> 39.55121443 | AE14: =T246 -> 67.36954245 | AF14: =U246 -> 158.4097326 | AG14: =V246 -> 33.80131481 | AI14: 0.001321293695
B15: 0.375 | C15: 4.5 | E15: ='A1'!$AD$13*GL0!N15 -> 0.0006369810234 | F15: ='A1'!$AD$13*('GL1'!N15+'GV1'!N15) + 'A1'!$AF$13*'HR1'!N15 + 'A1'!$AH$13*('PL1'!N15+'PV1'!N15+'PH1'!N15) + 'HR1'!Z14 + 'PL1'!Z14 + 'PV1'!Z14 + 'PH1'!Z14 -> 0.007446351853 | G15: ='A1'!$AD$13*('GL2'!N15+'GV2'!N15) + 'A1'!$AF$13*'HR2'!N15 + 'A1'!$AH$13*('PL2'!N15+'PV2'!N15+'PH2'!N15) + 'HR2'!Z14 + 'PL2'!Z14 + 'PV2'!Z14 + 'PH2'!Z14 -> 0.006585667803 | I15: ='A1'!$AD$13*(MV1a!N15+MV1b!N15) + 'A1'!$AF$13*'JH1'!N15 + 'A1'!$AH$13*('PM1'!N15+'PJ1'!N15) + MV1a!Z14 + MV1b!Z14 + 'JH1'!Z14 + 'PM1'!Z14 + 'PJ1'!Z14 -> 0.01021454359 | J15: ='A1'!$AD$13*'MV2'!N15 + 'A1'!$AF$13*'JH2'!N15 + 'A1'!$AH$13*('PM2'!N15+'PJ2'!N15) + 'MV2'!Z14 + 'JH2'!Z14 + 'PM2'!Z14 + 'PJ2'!Z14 -> 0.003542635229 | L15: ='A1'!$AF$13*('HR1'!N15+'JH1'!N15) + 'HR1'!Z14 + 'JH1'!Z14 -> 0.0007239502393 | M15: ='A1'!$AF$13*('HR2'!N15+'JH2'!N15) + 'HR2'!Z14 + 'JH2'!Z14 -> 0.0005646831788 | O15: ='A1'!$AH$13*('PL1'!N15+'PV1'!N15+'PH1'!N15+'PM1'!N15+'PJ1'!N15) + 'PL1'!Z14 + 'PV1'!Z14 + 'PH1'!Z14 + 'PM1'!Z14 + 'PJ1'!Z14 -> 0.0007071428597 | P15: ='A1'!$AH$13*('PL2'!N15+'PV2'!N15+'PH2'!N15+'PM2'!N15+'PJ2'!N15) + 'PL2'!Z14 + 'PV2'!Z14 + 'PH2'!Z14 + 'PM2'!Z14 + 'PJ2'!Z14 -> 0.0001618321699 | AB15: 10.5 | AC15: =R270 -> 18.11517899 | AD15: =S270 -> 39.51832063 | AE15: =T270 -> 67.35689961 | AF15: =U270 -> 158.3787374 | AG15: =V270 -> 33.75578579 | AI15: =1-AG15/AG14 -> 0.001346960087
B16: 0.4166666667 | C16: 5 | AB16: 11.5 | AC16: =R294 -> 18.08122033 | AD16: =S294 -> 39.48533135 | AE16: =T294 -> 67.34275045 | AF16: =U294 -> 158.3457019 | AG16: =V294 -> 33.70955193 | AI16: =1-AG16/AG15 -> 0.001369657457
B17: 0.4583333333 | C17: 5.5 | E17: ='A1'!$AD$13*GL0!N17 -> 0.0006369788564 | F17: ='A1'!$AD$13*('GL1'!N17+'GV1'!N17) + 'A1'!$AF$13*'HR1'!N17 + 'A1'!$AH$13*('PL1'!N17+'PV1'!N17+'PH1'!N17) + 'HR1'!Z16 + 'PL1'!Z16 + 'PV1'!Z16 + 'PH1'!Z16 -> 0.007446333306 | G17: ='A1'!$AD$13*('GL2'!N17+'GV2'!N17) + 'A1'!$AF$13*'HR2'!N17 + 'A1'!$AH$13*('PL2'!N17+'PV2'!N17+'PH2'!N17) + 'HR2'!Z16 + 'PL2'!Z16 + 'PV2'!Z16 + 'PH2'!Z16 -> 0.006585651798 | I17: ='A1'!$AD$13*(MV1a!N17+MV1b!N17) + 'A1'!$AF$13*'JH1'!N17 + 'A1'!$AH$13*('PM1'!N17+'PJ1'!N17) + MV1a!Z16 + MV1b!Z16 + 'JH1'!Z16 + 'PM1'!Z16 + 'PJ1'!Z16 -> 0.01021452542 | J17: ='A1'!$AD$13*'MV2'!N17 + 'A1'!$AF$13*'JH2'!N17 + 'A1'!$AH$13*('PM2'!N17+'PJ2'!N17) + 'MV2'!Z16 + 'JH2'!Z16 + 'PM2'!Z16 + 'PJ2'!Z16 -> 0.003542625313 | L17: ='A1'!$AF$13*('HR1'!N17+'JH1'!N17) + 'HR1'!Z16 + 'JH1'!Z16 -> 0.0007239499116 | M17: ='A1'!$AF$13*('HR2'!N17+'JH2'!N17) + 'HR2'!Z16 + 'JH2'!Z16 -> 0.0005646827008 | O17: ='A1'!$AH$13*('PL1'!N17+'PV1'!N17+'PH1'!N17+'PM1'!N17+'PJ1'!N17) + 'PL1'!Z16 + 'PV1'!Z16 + 'PH1'!Z16 + 'PM1'!Z16 + 'PJ1'!Z16 -> 0.0007071431973 | P17: ='A1'!$AH$13*('PL2'!N17+'PV2'!N17+'PH2'!N17+'PM2'!N17+'PJ2'!N17) + 'PL2'!Z16 + 'PV2'!Z16 + 'PH2'!Z16 + 'PM2'!Z16 + 'PJ2'!Z16 -> 0.0001618322144 | AB17: 12.5 | AC17: =R318 -> 18.04663492 | AD17: =S318 -> 39.45228865 | AE17: 67.32713974 | AF17: 158.3107068 | AG17: 33.66269515 | AI17: 0.001390014957
B18: 0.5 | C18: 6 | AB18: 13.5 | AC18: =R342 -> 18.01147887 | AD18: =S342 -> 39.41922953 | AE18: 67.31011152 | AF18: 158.2738285 | AG18: 33.61528458 | AI18: 0.001408400707
B19: 0.5416666667 | C19: 6.5 | E19: ='A1'!$AD$13*GL0!N19 -> 0.0006369749806 | F19: ='A1'!$AD$13*('GL1'!N19+'GV1'!N19) + 'A1'!$AF$13*'HR1'!N19 + 'A1'!$AH$13*('PL1'!N19+'PV1'!N19+'PH1'!N19) + 'HR1'!Z18 + 'PL1'!Z18 + 'PV1'!Z18 + 'PH1'!Z18 -> 0.007446301311 | G19: ='A1'!$AD$13*('GL2'!N19+'GV2'!N19) + 'A1'!$AF$13*'HR2'!N19 + 'A1'!$AH$13*('PL2'!N19+'PV2'!N19+'PH2'!N19) + 'HR2'!Z18 + 'PL2'!Z18 + 'PV2'!Z18 + 'PH2'!Z18 -> 0.006585624234 | I19: ='A1'!$AD$13*(MV1a!N19+MV1b!N19) + 'A1'!$AF$13*'JH1'!N19 + 'A1'!$AH$13*('PM1'!N19+'PJ1'!N19) + MV1a!Z18 + MV1b!Z18 + 'JH1'!Z18 + 'PM1'!Z18 + 'PJ1'!Z18 -> 0.01021449293 | J19: ='A1'!$AD$13*'MV2'!N19 + 'A1'!$AF$13*'JH2'!N19 + 'A1'!$AH$13*('PM2'!N19+'PJ2'!N19) + 'MV2'!Z18 + 'JH2'!Z18 + 'PM2'!Z18 + 'PJ2'!Z18 -> 0.003542607246 | L19: ='A1'!$AF$13*('HR1'!N19+'JH1'!N19) + 'HR1'!Z18 + 'JH1'!Z18 -> 0.0007239502865 | M19: ='A1'!$AF$13*('HR2'!N19+'JH2'!N19) + 'HR2'!Z18 + 'JH2'!Z18 -> 0.0005646827557 | O19: ='A1'!$AH$13*('PL1'!N19+'PV1'!N19+'PH1'!N19+'PM1'!N19+'PJ1'!N19) + 'PL1'!Z18 + 'PV1'!Z18 + 'PH1'!Z18 + 'PM1'!Z18 + 'PJ1'!Z18 -> 0.0007071436608 | P19: ='A1'!$AH$13*('PL2'!N19+'PV2'!N19+'PH2'!N19+'PM2'!N19+'PJ2'!N19) + 'PL2'!Z18 + 'PV2'!Z18 + 'PH2'!Z18 + 'PM2'!Z18 + 'PJ2'!Z18 -> 0.00016183229 | AB19: 14.5 | AC19: =R366 -> 17.97580161 | AD19: =S366 -> 39.38618716 | AE19: 67.29170986 | AF19: 158.2351415 | AG19: 33.56738138 | AI19: 0.001425042281
B20: 0.5833333333 | C20: 7 | AB20: 15.5 | AC20: =R390 -> 17.93964834 | AD20: =S390 -> 39.35319156 | AE20: 67.27197931 | AF20: 158.1947191 | AG20: 33.5190413 | AI20: 0.001440090894
B21: 0.625 | C21: 7.5 | E21: ='A1'!$AD$13*GL0!N21 -> 0.0006369688761 | F21: ='A1'!$AD$13*('GL1'!N21+'GV1'!N21) + 'A1'!$AF$13*'HR1'!N21 + 'A1'!$AH$13*('PL1'!N21+'PV1'!N21+'PH1'!N21) + 'HR1'!Z20 + 'PL1'!Z20 + 'PV1'!Z20 + 'PH1'!Z20 -> 0.007446251431 | G21: ='A1'!$AD$13*('GL2'!N21+'GV2'!N21) + 'A1'!$AF$13*'HR2'!N21 + 'A1'!$AH$13*('PL2'!N21+'PV2'!N21+'PH2'!N21) + 'HR2'!Z20 + 'PL2'!Z20 + 'PV2'!Z20 + 'PH2'!Z20 -> 0.00658558134 | I21: ='A1'!$AD$13*(MV1a!N21+MV1b!N21) + 'A1'!$AF$13*'JH1'!N21 + 'A1'!$AH$13*('PM1'!N21+'PJ1'!N21) + MV1a!Z20 + MV1b!Z20 + 'JH1'!Z20 + 'PM1'!Z20 + 'PJ1'!Z20 -> 0.01021444261 | J21: ='A1'!$AD$13*'MV2'!N21 + 'A1'!$AF$13*'JH2'!N21 + 'A1'!$AH$13*('PM2'!N21+'PJ2'!N21) + 'MV2'!Z20 + 'JH2'!Z20 + 'PM2'!Z20 + 'PJ2'!Z20 -> 0.003542578956 | L21: ='A1'!$AF$13*('HR1'!N21+'JH1'!N21) + 'HR1'!Z20 + 'JH1'!Z20 -> 0.000723951254 | M21: ='A1'!$AF$13*('HR2'!N21+'JH2'!N21) + 'HR2'!Z20 + 'JH2'!Z20 -> 0.0005646832753 | O21: ='A1'!$AH$13*('PL1'!N21+'PV1'!N21+'PH1'!N21+'PM1'!N21+'PJ1'!N21) + 'PL1'!Z20 + 'PV1'!Z20 + 'PH1'!Z20 + 'PM1'!Z20 + 'PJ1'!Z20 -> 0.0007071441425 | P21: ='A1'!$AH$13*('PL2'!N21+'PV2'!N21+'PH2'!N21+'PM2'!N21+'PJ2'!N21) + 'PL2'!Z20 + 'PV2'!Z20 + 'PH2'!Z20 + 'PM2'!Z20 + 'PJ2'!Z20 -> 0.0001618323756 | AB21: 16.5 | AC21: =R414 -> 17.90306128 | AD21: =S414 -> 39.32027001 | AE21: 67.25096506 | AF21: 158.1526343 | AG21: 33.47031615 | AI21: 0.0014536557
B22: 0.6666666667 | C22: 8 | AB22: 17.5 | AC22: =R438 -> 17.86608046 | AD22: =S438 -> 39.28744741 | AE22: 67.22871308 | AF22: 158.1089598 | AG22: 33.42125462 | AI22: 0.001465822193
B23: 0.7083333333 | C23: 8.5 | E23: ='A1'!$AD$13*GL0!N23 -> 0.0006369601127 | F23: ='A1'!$AD$13*('GL1'!N23+'GV1'!N23) + 'A1'!$AF$13*'HR1'!N23 + 'A1'!$AH$13*('PL1'!N23+'PV1'!N23+'PH1'!N23) + 'HR1'!Z22 + 'PL1'!Z22 + 'PV1'!Z22 + 'PH1'!Z22 -> 0.007446180001 | G23: ='A1'!$AD$13*('GL2'!N23+'GV2'!N23) + 'A1'!$AF$13*'HR2'!N23 + 'A1'!$AH$13*('PL2'!N23+'PV2'!N23+'PH2'!N23) + 'HR2'!Z22 + 'PL2'!Z22 + 'PV2'!Z22 + 'PH2'!Z22 -> 0.006585519966 | I23: ='A1'!$AD$13*(MV1a!N23+MV1b!N23) + 'A1'!$AF$13*'JH1'!N23 + 'A1'!$AH$13*('PM1'!N23+'PJ1'!N23) + MV1a!Z22 + MV1b!Z22 + 'JH1'!Z22 + 'PM1'!Z22 + 'PJ1'!Z22 -> 0.01021437176 | J23: ='A1'!$AD$13*'MV2'!N23 + 'A1'!$AF$13*'JH2'!N23 + 'A1'!$AH$13*('PM2'!N23+'PJ2'!N23) + 'MV2'!Z22 + 'JH2'!Z22 + 'PM2'!Z22 + 'PJ2'!Z22 -> 0.003542538789 | L23: ='A1'!$AF$13*('HR1'!N23+'JH1'!N23) + 'HR1'!Z22 + 'JH1'!Z22 -> 0.0007239526868 | M23: ='A1'!$AF$13*('HR2'!N23+'JH2'!N23) + 'HR2'!Z22 + 'JH2'!Z22 -> 0.0005646841759 | O23: ='A1'!$AH$13*('PL1'!N23+'PV1'!N23+'PH1'!N23+'PM1'!N23+'PJ1'!N23) + 'PL1'!Z22 + 'PV1'!Z22 + 'PH1'!Z22 + 'PM1'!Z22 + 'PJ1'!Z22 -> 0.0007071445557 | P23: ='A1'!$AH$13*('PL2'!N23+'PV2'!N23+'PH2'!N23+'PM2'!N23+'PJ2'!N23) + 'PL2'!Z22 + 'PV2'!Z22 + 'PH2'!Z22 + 'PM2'!Z22 + 'PJ2'!Z22 -> 0.0001618324538 | AB23: 18.5 | AC23: =R462 -> 17.82874406 | AD23: =S462 -> 39.25474649 | AE23: 67.20527003 | AF23: 158.0637683 | AG23: 33.37190272 | AI23: 0.001476662131
B24: 0.75 | C24: 9 | AB24: 19.5 | AC24: =R486 -> 17.79108862 | AD24: =S486 -> 39.22218799 | AE24: 67.18068319 | AF24: 158.0171319 | AG24: 33.3223041 | AI24: 0.001486238921
B25: 0.7916666667 | C25: 9.5 | E25: ='A1'!$AD$13*GL0!N25 -> 0.0006369483573 | F25: ='A1'!$AD$13*('GL1'!N25+'GV1'!N25) + 'A1'!$AF$13*'HR1'!N25 + 'A1'!$AH$13*('PL1'!N25+'PV1'!N25+'PH1'!N25) + 'HR1'!Z24 + 'PL1'!Z24 + 'PV1'!Z24 + 'PH1'!Z24 -> 0.007446084202 | G25: ='A1'!$AD$13*('GL2'!N25+'GV2'!N25) + 'A1'!$AF$13*'HR2'!N25 + 'A1'!$AH$13*('PL2'!N25+'PV2'!N25+'PH2'!N25) + 'HR2'!Z24 + 'PL2'!Z24 + 'PV2'!Z24 + 'PH2'!Z24 -> 0.006585437649 | I25: ='A1'!$AD$13*(MV1a!N25+MV1b!N25) + 'A1'!$AF$13*'JH1'!N25 + 'A1'!$AH$13*('PM1'!N25+'PJ1'!N25) + MV1a!Z24 + MV1b!Z24 + 'JH1'!Z24 + 'PM1'!Z24 + 'PJ1'!Z24 -> 0.01021427844 | J25: ='A1'!$AD$13*'MV2'!N25 + 'A1'!$AF$13*'JH2'!N25 + 'A1'!$AH$13*('PM2'!N25+'PJ2'!N25) + 'MV2'!Z24 + 'JH2'!Z24 + 'PM2'!Z24 + 'PJ2'!Z24 -> 0.003542485525 | L25: ='A1'!$AF$13*('HR1'!N25+'JH1'!N25) + 'HR1'!Z24 + 'JH1'!Z24 -> 0.00072395446 | M25: ='A1'!$AF$13*('HR2'!N25+'JH2'!N25) + 'HR2'!Z24 + 'JH2'!Z24 -> 0.0005646853724 | O25: ='A1'!$AH$13*('PL1'!N25+'PV1'!N25+'PH1'!N25+'PM1'!N25+'PJ1'!N25) + 'PL1'!Z24 + 'PV1'!Z24 + 'PH1'!Z24 + 'PM1'!Z24 + 'PJ1'!Z24 -> 0.0007071448353 | P25: ='A1'!$AH$13*('PL2'!N25+'PV2'!N25+'PH2'!N25+'PM2'!N25+'PJ2'!N25) + 'PL2'!Z24 + 'PV2'!Z24 + 'PH2'!Z24 + 'PM2'!Z24 + 'PJ2'!Z24 -> 0.0001618325111
B26: 0.8333333333 | C26: 10 | AH26: Average | AI26: =AVERAGE(AI15:AI24) -> 0.001426254533
B27: 0.875 | C27: 10.5 | E27: ='A1'!$AD$13*GL0!N27 -> 0.0006369333689 | F27: ='A1'!$AD$13*('GL1'!N27+'GV1'!N27) + 'A1'!$AF$13*'HR1'!N27 + 'A1'!$AH$13*('PL1'!N27+'PV1'!N27+'PH1'!N27) + 'HR1'!Z26 + 'PL1'!Z26 + 'PV1'!Z26 + 'PH1'!Z26 -> 0.007445962023 | G27: ='A1'!$AD$13*('GL2'!N27+'GV2'!N27) + 'A1'!$AF$13*'HR2'!N27 + 'A1'!$AH$13*('PL2'!N27+'PV2'!N27+'PH2'!N27) + 'HR2'!Z26 + 'PL2'!Z26 + 'PV2'!Z26 + 'PH2'!Z26 -> 0.006585332593 | I27: ='A1'!$AD$13*(MV1a!N27+MV1b!N27) + 'A1'!$AF$13*'JH1'!N27 + 'A1'!$AH$13*('PM1'!N27+'PJ1'!N27) + MV1a!Z26 + MV1b!Z26 + 'JH1'!Z26 + 'PM1'!Z26 + 'PJ1'!Z26 -> 0.01021416147 | J27: ='A1'!$AD$13*'MV2'!N27 + 'A1'!$AF$13*'JH2'!N27 + 'A1'!$AH$13*('PM2'!N27+'PJ2'!N27) + 'MV2'!Z26 + 'JH2'!Z26 + 'PM2'!Z26 + 'PJ2'!Z26 -> 0.003542418349 | L27: ='A1'!$AF$13*('HR1'!N27+'JH1'!N27) + 'HR1'!Z26 + 'JH1'!Z26 -> 0.0007239564611 | M27: ='A1'!$AF$13*('HR2'!N27+'JH2'!N27) + 'HR2'!Z26 + 'JH2'!Z26 -> 0.0005646867858 | O27: ='A1'!$AH$13*('PL1'!N27+'PV1'!N27+'PH1'!N27+'PM1'!N27+'PJ1'!N27) + 'PL1'!Z26 + 'PV1'!Z26 + 'PH1'!Z26 + 'PM1'!Z26 + 'PJ1'!Z26 -> 0.0007071449356 | P27: ='A1'!$AH$13*('PL2'!N27+'PV2'!N27+'PH2'!N27+'PM2'!N27+'PJ2'!N27) + 'PL2'!Z26 + 'PV2'!Z26 + 'PH2'!Z26 + 'PM2'!Z26 + 'PJ2'!Z26 -> 0.0001618325379
B28: 0.9166666667 | C28: 11
B29: 0.9583333333 | C29: 11.5 | E29: ='A1'!$AD$13*GL0!N29 -> 0.0006369149884 | F29: ='A1'!$AD$13*('GL1'!N29+'GV1'!N29) + 'A1'!$AF$13*'HR1'!N29 + 'A1'!$AH$13*('PL1'!N29+'PV1'!N29+'PH1'!N29) + 'HR1'!Z28 + 'PL1'!Z28 + 'PV1'!Z28 + 'PH1'!Z28 -> 0.007445812161 | G29: ='A1'!$AD$13*('GL2'!N29+'GV2'!N29) + 'A1'!$AF$13*'HR2'!N29 + 'A1'!$AH$13*('PL2'!N29+'PV2'!N29+'PH2'!N29) + 'HR2'!Z28 + 'PL2'!Z28 + 'PV2'!Z28 + 'PH2'!Z28 -> 0.006585203591 | I29: ='A1'!$AD$13*(MV1a!N29+MV1b!N29) + 'A1'!$AF$13*'JH1'!N29 + 'A1'!$AH$13*('PM1'!N29+'PJ1'!N29) + MV1a!Z28 + MV1b!Z28 + 'JH1'!Z28 + 'PM1'!Z28 + 'PJ1'!Z28 -> 0.01021402028 | J29: ='A1'!$AD$13*'MV2'!N29 + 'A1'!$AF$13*'JH2'!N29 + 'A1'!$AH$13*('PM2'!N29+'PJ2'!N29) + 'MV2'!Z28 + 'JH2'!Z28 + 'PM2'!Z28 + 'PJ2'!Z28 -> 0.003542336804 | L29: ='A1'!$AF$13*('HR1'!N29+'JH1'!N29) + 'HR1'!Z28 + 'JH1'!Z28 -> 0.000723958595 | M29: ='A1'!$AF$13*('HR2'!N29+'JH2'!N29) + 'HR2'!Z28 + 'JH2'!Z28 -> 0.0005646883472 | O29: ='A1'!$AH$13*('PL1'!N29+'PV1'!N29+'PH1'!N29+'PM1'!N29+'PJ1'!N29) + 'PL1'!Z28 + 'PV1'!Z28 + 'PH1'!Z28 + 'PM1'!Z28 + 'PJ1'!Z28 -> 0.0007071448266 | P29: ='A1'!$AH$13*('PL2'!N29+'PV2'!N29+'PH2'!N29+'PM2'!N29+'PJ2'!N29) + 'PL2'!Z28 + 'PV2'!Z28 + 'PH2'!Z28 + 'PM2'!Z28 + 'PJ2'!Z28 -> 0.0001618325276
B30: 1 | C30: 12 | R30: =120*100000*SUM(E6:G29)/SUM(Tot!U6:U29) -> 18.36425147 | S30: =12*100000*SUM(I6:J29)/SUM(Tot!V6:V29) -> 39.79886279 | T30: =12*100000*SUM(L6:M29)/SUM(FOI!M6:M29) -> 67.40879307 | U30: =12*100000*SUM(O6:P29)/SUM(FOI!N6:N29) -> 158.5670861 | V30: =120*100000*SUM(E6:J29)/SUM(Tot!P6:P29) -> 34.11089445 | X30: =(SUM(MV1a!Z6:Z29) + SUM(MV1b!Z6:Z29) + SUM('MV2'!Z6:Z29) + SUM('JH1'!Z6:Z29) + SUM('JH2'!Z6:Z29) + SUM('PM1'!Z6:Z29) + SUM('PM2'!Z6:Z29) + SUM('PJ1'!Z6:Z29) + SUM('PJ2'!Z6:Z29))/SUM(I6:J29) -> 0.1179312243 | Y30: =(SUM('HR1'!Z6:Z29) + SUM('HR2'!Z6:Z29) + SUM('JH1'!Z6:Z29) + SUM('JH2'!Z6:Z29))/SUM(L6:M29) -> 0 | Z30: =(SUM('PL1'!Z6:Z29) + SUM('PL2'!Z6:Z29) + SUM('PV1'!Z6:Z29) + SUM('PV2'!Z6:Z29) + SUM('PH1'!Z6:Z29) + SUM('PH2'!Z6:Z29) + SUM('PM1'!Z6:Z29) + SUM('PM2'!Z6:Z29) + SUM('PJ1'!Z6:Z29) + SUM('PJ2'!Z6:Z29))/SUM(O6:P29) -> 0.8563459904
B31: 1.041666667 | C31: 12.5 | E31: ='A1'!$AD$13*GL0!N31 -> 0.0006368931247 | F31: ='A1'!$AD$13*('GL1'!N31+'GV1'!N31) + 'A1'!$AF$13*'HR1'!N31 + 'A1'!$AH$13*('PL1'!N31+'PV1'!N31+'PH1'!N31) + 'HR1'!Z30 + 'PL1'!Z30 + 'PV1'!Z30 + 'PH1'!Z30 -> 0.007445633901 | G31: ='A1'!$AD$13*('GL2'!N31+'GV2'!N31) + 'A1'!$AF$13*'HR2'!N31 + 'A1'!$AH$13*('PL2'!N31+'PV2'!N31+'PH2'!N31) + 'HR2'!Z30 + 'PL2'!Z30 + 'PV2'!Z30 + 'PH2'!Z30 -> 0.006585049938 | I31: ='A1'!$AD$13*(MV1a!N31+MV1b!N31) + 'A1'!$AF$13*'JH1'!N31 + 'A1'!$AH$13*('PM1'!N31+'PJ1'!N31) + MV1a!Z30 + MV1b!Z30 + 'JH1'!Z30 + 'PM1'!Z30 + 'PJ1'!Z30 -> 0.0102138548 | J31: ='A1'!$AD$13*'MV2'!N31 + 'A1'!$AF$13*'JH2'!N31 + 'A1'!$AH$13*('PM2'!N31+'PJ2'!N31) + 'MV2'!Z30 + 'JH2'!Z30 + 'PM2'!Z30 + 'PJ2'!Z30 -> 0.003542240734 | L31: ='A1'!$AF$13*('HR1'!N31+'JH1'!N31) + 'HR1'!Z30 + 'JH1'!Z30 -> 0.0007239607846 | M31: ='A1'!$AF$13*('HR2'!N31+'JH2'!N31) + 'HR2'!Z30 + 'JH2'!Z30 -> 0.0005646899994 | O31: ='A1'!$AH$13*('PL1'!N31+'PV1'!N31+'PH1'!N31+'PM1'!N31+'PJ1'!N31) + 'PL1'!Z30 + 'PV1'!Z30 + 'PH1'!Z30 + 'PM1'!Z30 + 'PJ1'!Z30 -> 0.0007071444906 | P31: ='A1'!$AH$13*('PL2'!N31+'PV2'!N31+'PH2'!N31+'PM2'!N31+'PJ2'!N31) + 'PL2'!Z30 + 'PV2'!Z30 + 'PH2'!Z30 + 'PM2'!Z30 + 'PJ2'!Z30 -> 0.000161832476
B32: 1.083333333 | C32: 13
B33: 1.125 | C33: 13.5 | E33: ='A1'!$AD$13*GL0!N33 -> 0.0006368677412 | F33: ='A1'!$AD$13*('GL1'!N33+'GV1'!N33) + 'A1'!$AF$13*'HR1'!N33 + 'A1'!$AH$13*('PL1'!N33+'PV1'!N33+'PH1'!N33) + 'HR1'!Z32 + 'PL1'!Z32 + 'PV1'!Z32 + 'PH1'!Z32 -> 0.007445427 | G33: ='A1'!$AD$13*('GL2'!N33+'GV2'!N33) + 'A1'!$AF$13*'HR2'!N33 + 'A1'!$AH$13*('PL2'!N33+'PV2'!N33+'PH2'!N33) + 'HR2'!Z32 + 'PL2'!Z32 + 'PV2'!Z32 + 'PH2'!Z32 -> 0.006584871329 | I33: ='A1'!$AD$13*(MV1a!N33+MV1b!N33) + 'A1'!$AF$13*'JH1'!N33 + 'A1'!$AH$13*('PM1'!N33+'PJ1'!N33) + MV1a!Z32 + MV1b!Z32 + 'JH1'!Z32 + 'PM1'!Z32 + 'PJ1'!Z32 -> 0.01021366537 | J33: ='A1'!$AD$13*'MV2'!N33 + 'A1'!$AF$13*'JH2'!N33 + 'A1'!$AH$13*('PM2'!N33+'PJ2'!N33) + 'MV2'!Z32 + 'JH2'!Z32 + 'PM2'!Z32 + 'PJ2'!Z32 -> 0.003542130222 | L33: ='A1'!$AF$13*('HR1'!N33+'JH1'!N33) + 'HR1'!Z32 + 'JH1'!Z32 -> 0.0007239629698 | M33: ='A1'!$AF$13*('HR2'!N33+'JH2'!N33) + 'HR2'!Z32 + 'JH2'!Z32 -> 0.0005646916963 | O33: ='A1'!$AH$13*('PL1'!N33+'PV1'!N33+'PH1'!N33+'PM1'!N33+'PJ1'!N33) + 'PL1'!Z32 + 'PV1'!Z32 + 'PH1'!Z32 + 'PM1'!Z32 + 'PJ1'!Z32 -> 0.0007071439191 | P33: ='A1'!$AH$13*('PL2'!N33+'PV2'!N33+'PH2'!N33+'PM2'!N33+'PJ2'!N33) + 'PL2'!Z32 + 'PV2'!Z32 + 'PH2'!Z32 + 'PM2'!Z32 + 'PJ2'!Z32 -> 0.0001618323807
B34: 1.166666667 | C34: 14
B35: 1.208333333 | C35: 14.5 | E35: ='A1'!$AD$13*GL0!N35 -> 0.0006368388439 | F35: ='A1'!$AD$13*('GL1'!N35+'GV1'!N35) + 'A1'!$AF$13*'HR1'!N35 + 'A1'!$AH$13*('PL1'!N35+'PV1'!N35+'PH1'!N35) + 'HR1'!Z34 + 'PL1'!Z34 + 'PV1'!Z34 + 'PH1'!Z34 -> 0.007445191571 | G35: ='A1'!$AD$13*('GL2'!N35+'GV2'!N35) + 'A1'!$AF$13*'HR2'!N35 + 'A1'!$AH$13*('PL2'!N35+'PV2'!N35+'PH2'!N35) + 'HR2'!Z34 + 'PL2'!Z34 + 'PV2'!Z34 + 'PH2'!Z34 -> 0.006584667773 | I35: ='A1'!$AD$13*(MV1a!N35+MV1b!N35) + 'A1'!$AF$13*'JH1'!N35 + 'A1'!$AH$13*('PM1'!N35+'PJ1'!N35) + MV1a!Z34 + MV1b!Z34 + 'JH1'!Z34 + 'PM1'!Z34 + 'PJ1'!Z34 -> 0.01021345263 | J35: ='A1'!$AD$13*'MV2'!N35 + 'A1'!$AF$13*'JH2'!N35 + 'A1'!$AH$13*('PM2'!N35+'PJ2'!N35) + 'MV2'!Z34 + 'JH2'!Z34 + 'PM2'!Z34 + 'PJ2'!Z34 -> 0.003542005542 | L35: ='A1'!$AF$13*('HR1'!N35+'JH1'!N35) + 'HR1'!Z34 + 'JH1'!Z34 -> 0.0007239651055 | M35: ='A1'!$AF$13*('HR2'!N35+'JH2'!N35) + 'HR2'!Z34 + 'JH2'!Z34 -> 0.0005646934018 | O35: ='A1'!$AH$13*('PL1'!N35+'PV1'!N35+'PH1'!N35+'PM1'!N35+'PJ1'!N35) + 'PL1'!Z34 + 'PV1'!Z34 + 'PH1'!Z34 + 'PM1'!Z34 + 'PJ1'!Z34 -> 0.0007071431099 | P35: ='A1'!$AH$13*('PL2'!N35+'PV2'!N35+'PH2'!N35+'PM2'!N35+'PJ2'!N35) + 'PL2'!Z34 + 'PV2'!Z34 + 'PH2'!Z34 + 'PM2'!Z34 + 'PJ2'!Z34 -> 0.0001618322408
B36: 1.25 | C36: 15
B37: 1.291666667 | C37: 15.5 | E37: ='A1'!$AD$13*GL0!N37 -> 0.0006368064708 | F37: ='A1'!$AD$13*('GL1'!N37+'GV1'!N37) + 'A1'!$AF$13*'HR1'!N37 + 'A1'!$AH$13*('PL1'!N37+'PV1'!N37+'PH1'!N37) + 'HR1'!Z36 + 'PL1'!Z36 + 'PV1'!Z36 + 'PH1'!Z36 -> 0.007444927995 | G37: ='A1'!$AD$13*('GL2'!N37+'GV2'!N37) + 'A1'!$AF$13*'HR2'!N37 + 'A1'!$AH$13*('PL2'!N37+'PV2'!N37+'PH2'!N37) + 'HR2'!Z36 + 'PL2'!Z36 + 'PV2'!Z36 + 'PH2'!Z36 -> 0.006584439518 | I37: ='A1'!$AD$13*(MV1a!N37+MV1b!N37) + 'A1'!$AF$13*'JH1'!N37 + 'A1'!$AH$13*('PM1'!N37+'PJ1'!N37) + MV1a!Z36 + MV1b!Z36 + 'JH1'!Z36 + 'PM1'!Z36 + 'PJ1'!Z36 -> 0.01021321743 | J37: ='A1'!$AD$13*'MV2'!N37 + 'A1'!$AF$13*'JH2'!N37 + 'A1'!$AH$13*('PM2'!N37+'PJ2'!N37) + 'MV2'!Z36 + 'JH2'!Z36 + 'PM2'!Z36 + 'PJ2'!Z36 -> 0.003541867107 | L37: ='A1'!$AF$13*('HR1'!N37+'JH1'!N37) + 'HR1'!Z36 + 'JH1'!Z36 -> 0.0007239671587 | M37: ='A1'!$AF$13*('HR2'!N37+'JH2'!N37) + 'HR2'!Z36 + 'JH2'!Z36 -> 0.0005646950885 | O37: ='A1'!$AH$13*('PL1'!N37+'PV1'!N37+'PH1'!N37+'PM1'!N37+'PJ1'!N37) + 'PL1'!Z36 + 'PV1'!Z36 + 'PH1'!Z36 + 'PM1'!Z36 + 'PJ1'!Z36 -> 0.0007071420649 | P37: ='A1'!$AH$13*('PL2'!N37+'PV2'!N37+'PH2'!N37+'PM2'!N37+'PJ2'!N37) + 'PL2'!Z36 + 'PV2'!Z36 + 'PH2'!Z36 + 'PM2'!Z36 + 'PJ2'!Z36 -> 0.0001618320561
B38: 1.333333333 | C38: 16
B39: 1.375 | C39: 16.5 | E39: ='A1'!$AD$13*GL0!N39 -> 0.0006367706827 | F39: ='A1'!$AD$13*('GL1'!N39+'GV1'!N39) + 'A1'!$AF$13*'HR1'!N39 + 'A1'!$AH$13*('PL1'!N39+'PV1'!N39+'PH1'!N39) + 'HR1'!Z38 + 'PL1'!Z38 + 'PV1'!Z38 + 'PH1'!Z38 -> 0.00744463684 | G39: ='A1'!$AD$13*('GL2'!N39+'GV2'!N39) + 'A1'!$AF$13*'HR2'!N39 + 'A1'!$AH$13*('PL2'!N39+'PV2'!N39+'PH2'!N39) + 'HR2'!Z38 + 'PL2'!Z38 + 'PV2'!Z38 + 'PH2'!Z38 -> 0.00658418698 | I39: ='A1'!$AD$13*(MV1a!N39+MV1b!N39) + 'A1'!$AF$13*'JH1'!N39 + 'A1'!$AH$13*('PM1'!N39+'PJ1'!N39) + MV1a!Z38 + MV1b!Z38 + 'JH1'!Z38 + 'PM1'!Z38 + 'PJ1'!Z38 -> 0.01021296078 | J39: ='A1'!$AD$13*'MV2'!N39 + 'A1'!$AF$13*'JH2'!N39 + 'A1'!$AH$13*('PM2'!N39+'PJ2'!N39) + 'MV2'!Z38 + 'JH2'!Z38 + 'PM2'!Z38 + 'PJ2'!Z38 -> 0.003541715429 | L39: ='A1'!$AF$13*('HR1'!N39+'JH1'!N39) + 'HR1'!Z38 + 'JH1'!Z38 -> 0.0007239691063 | M39: ='A1'!$AF$13*('HR2'!N39+'JH2'!N39) + 'HR2'!Z38 + 'JH2'!Z38 -> 0.0005646967359 | O39: ='A1'!$AH$13*('PL1'!N39+'PV1'!N39+'PH1'!N39+'PM1'!N39+'PJ1'!N39) + 'PL1'!Z38 + 'PV1'!Z38 + 'PH1'!Z38 + 'PM1'!Z38 + 'PJ1'!Z38 -> 0.0007071407891 | P39: ='A1'!$AH$13*('PL2'!N39+'PV2'!N39+'PH2'!N39+'PM2'!N39+'PJ2'!N39) + 'PL2'!Z38 + 'PV2'!Z38 + 'PH2'!Z38 + 'PM2'!Z38 + 'PJ2'!Z38 -> 0.000161831827
B40: 1.416666667 | C40: 17
B41: 1.458333333 | C41: 17.5 | E41: ='A1'!$AD$13*GL0!N41 -> 0.0006367315566 | F41: ='A1'!$AD$13*('GL1'!N41+'GV1'!N41) + 'A1'!$AF$13*'HR1'!N41 + 'A1'!$AH$13*('PL1'!N41+'PV1'!N41+'PH1'!N41) + 'HR1'!Z40 + 'PL1'!Z40 + 'PV1'!Z40 + 'PH1'!Z40 -> 0.007444318798 | G41: ='A1'!$AD$13*('GL2'!N41+'GV2'!N41) + 'A1'!$AF$13*'HR2'!N41 + 'A1'!$AH$13*('PL2'!N41+'PV2'!N41+'PH2'!N41) + 'HR2'!Z40 + 'PL2'!Z40 + 'PV2'!Z40 + 'PH2'!Z40 -> 0.006583910698 | I41: ='A1'!$AD$13*(MV1a!N41+MV1b!N41) + 'A1'!$AF$13*'JH1'!N41 + 'A1'!$AH$13*('PM1'!N41+'PJ1'!N41) + MV1a!Z40 + MV1b!Z40 + 'JH1'!Z40 + 'PM1'!Z40 + 'PJ1'!Z40 -> 0.01021268376 | J41: ='A1'!$AD$13*'MV2'!N41 + 'A1'!$AF$13*'JH2'!N41 + 'A1'!$AH$13*('PM2'!N41+'PJ2'!N41) + 'MV2'!Z40 + 'JH2'!Z40 + 'PM2'!Z40 + 'PJ2'!Z40 -> 0.003541551089 | L41: ='A1'!$AF$13*('HR1'!N41+'JH1'!N41) + 'HR1'!Z40 + 'JH1'!Z40 -> 0.0007239709325 | M41: ='A1'!$AF$13*('HR2'!N41+'JH2'!N41) + 'HR2'!Z40 + 'JH2'!Z40 -> 0.0005646983289 | O41: ='A1'!$AH$13*('PL1'!N41+'PV1'!N41+'PH1'!N41+'PM1'!N41+'PJ1'!N41) + 'PL1'!Z40 + 'PV1'!Z40 + 'PH1'!Z40 + 'PM1'!Z40 + 'PJ1'!Z40 -> 0.0007071392887 | P41: ='A1'!$AH$13*('PL2'!N41+'PV2'!N41+'PH2'!N41+'PM2'!N41+'PJ2'!N41) + 'PL2'!Z40 + 'PV2'!Z40 + 'PH2'!Z40 + 'PM2'!Z40 + 'PJ2'!Z40 -> 0.0001618315544
B42: 1.5 | C42: 18
B43: 1.541666667 | C43: 18.5 | E43: ='A1'!$AD$13*GL0!N43 -> 0.0006366891802 | F43: ='A1'!$AD$13*('GL1'!N43+'GV1'!N43) + 'A1'!$AF$13*'HR1'!N43 + 'A1'!$AH$13*('PL1'!N43+'PV1'!N43+'PH1'!N43) + 'HR1'!Z42 + 'PL1'!Z42 + 'PV1'!Z42 + 'PH1'!Z42 -> 0.007443974645 | G43: ='A1'!$AD$13*('GL2'!N43+'GV2'!N43) + 'A1'!$AF$13*'HR2'!N43 + 'A1'!$AH$13*('PL2'!N43+'PV2'!N43+'PH2'!N43) + 'HR2'!Z42 + 'PL2'!Z42 + 'PV2'!Z42 + 'PH2'!Z42 -> 0.00658361129 | I43: ='A1'!$AD$13*(MV1a!N43+MV1b!N43) + 'A1'!$AF$13*'JH1'!N43 + 'A1'!$AH$13*('PM1'!N43+'PJ1'!N43) + MV1a!Z42 + MV1b!Z42 + 'JH1'!Z42 + 'PM1'!Z42 + 'PJ1'!Z42 -> 0.01021238751 | J43: ='A1'!$AD$13*'MV2'!N43 + 'A1'!$AF$13*'JH2'!N43 + 'A1'!$AH$13*('PM2'!N43+'PJ2'!N43) + 'MV2'!Z42 + 'JH2'!Z42 + 'PM2'!Z42 + 'PJ2'!Z42 -> 0.003541374709 | L43: ='A1'!$AF$13*('HR1'!N43+'JH1'!N43) + 'HR1'!Z42 + 'JH1'!Z42 -> 0.0007239726272 | M43: ='A1'!$AF$13*('HR2'!N43+'JH2'!N43) + 'HR2'!Z42 + 'JH2'!Z42 -> 0.0005646998565 | O43: ='A1'!$AH$13*('PL1'!N43+'PV1'!N43+'PH1'!N43+'PM1'!N43+'PJ1'!N43) + 'PL1'!Z42 + 'PV1'!Z42 + 'PH1'!Z42 + 'PM1'!Z42 + 'PJ1'!Z42 -> 0.0007071375709 | P43: ='A1'!$AH$13*('PL2'!N43+'PV2'!N43+'PH2'!N43+'PM2'!N43+'PJ2'!N43) + 'PL2'!Z42 + 'PV2'!Z42 + 'PH2'!Z42 + 'PM2'!Z42 + 'PJ2'!Z42 -> 0.0001618312393
B44: 1.583333333 | C44: 19
B45: 1.625 | C45: 19.5 | E45: ='A1'!$AD$13*GL0!N45 -> 0.0006366436479 | F45: ='A1'!$AD$13*('GL1'!N45+'GV1'!N45) + 'A1'!$AF$13*'HR1'!N45 + 'A1'!$AH$13*('PL1'!N45+'PV1'!N45+'PH1'!N45) + 'HR1'!Z44 + 'PL1'!Z44 + 'PV1'!Z44 + 'PH1'!Z44 -> 0.007443605198 | G45: ='A1'!$AD$13*('GL2'!N45+'GV2'!N45) + 'A1'!$AF$13*'HR2'!N45 + 'A1'!$AH$13*('PL2'!N45+'PV2'!N45+'PH2'!N45) + 'HR2'!Z44 + 'PL2'!Z44 + 'PV2'!Z44 + 'PH2'!Z44 -> 0.006583289422 | I45: ='A1'!$AD$13*(MV1a!N45+MV1b!N45) + 'A1'!$AF$13*'JH1'!N45 + 'A1'!$AH$13*('PM1'!N45+'PJ1'!N45) + MV1a!Z44 + MV1b!Z44 + 'JH1'!Z44 + 'PM1'!Z44 + 'PJ1'!Z44 -> 0.01021207316 | J45: ='A1'!$AD$13*'MV2'!N45 + 'A1'!$AF$13*'JH2'!N45 + 'A1'!$AH$13*('PM2'!N45+'PJ2'!N45) + 'MV2'!Z44 + 'JH2'!Z44 + 'PM2'!Z44 + 'PJ2'!Z44 -> 0.00354118693 | L45: ='A1'!$AF$13*('HR1'!N45+'JH1'!N45) + 'HR1'!Z44 + 'JH1'!Z44 -> 0.0007239741841 | M45: ='A1'!$AF$13*('HR2'!N45+'JH2'!N45) + 'HR2'!Z44 + 'JH2'!Z44 -> 0.0005647013109 | O45: ='A1'!$AH$13*('PL1'!N45+'PV1'!N45+'PH1'!N45+'PM1'!N45+'PJ1'!N45) + 'PL1'!Z44 + 'PV1'!Z44 + 'PH1'!Z44 + 'PM1'!Z44 + 'PJ1'!Z44 -> 0.0007071356432 | P45: ='A1'!$AH$13*('PL2'!N45+'PV2'!N45+'PH2'!N45+'PM2'!N45+'PJ2'!N45) + 'PL2'!Z44 + 'PV2'!Z44 + 'PH2'!Z44 + 'PM2'!Z44 + 'PJ2'!Z44 -> 0.0001618308829
B46: 1.666666667 | C46: 20
B47: 1.708333333 | C47: 20.5 | E47: ='A1'!$AD$13*GL0!N47 -> 0.0006365950574 | F47: ='A1'!$AD$13*('GL1'!N47+'GV1'!N47) + 'A1'!$AF$13*'HR1'!N47 + 'A1'!$AH$13*('PL1'!N47+'PV1'!N47+'PH1'!N47) + 'HR1'!Z46 + 'PL1'!Z46 + 'PV1'!Z46 + 'PH1'!Z46 -> 0.007443211295 | G47: ='A1'!$AD$13*('GL2'!N47+'GV2'!N47) + 'A1'!$AF$13*'HR2'!N47 + 'A1'!$AH$13*('PL2'!N47+'PV2'!N47+'PH2'!N47) + 'HR2'!Z46 + 'PL2'!Z46 + 'PV2'!Z46 + 'PH2'!Z46 -> 0.006582945788 | I47: ='A1'!$AD$13*(MV1a!N47+MV1b!N47) + 'A1'!$AF$13*'JH1'!N47 + 'A1'!$AH$13*('PM1'!N47+'PJ1'!N47) + MV1a!Z46 + MV1b!Z46 + 'JH1'!Z46 + 'PM1'!Z46 + 'PJ1'!Z46 -> 0.01021174185 | J47: ='A1'!$AD$13*'MV2'!N47 + 'A1'!$AF$13*'JH2'!N47 + 'A1'!$AH$13*('PM2'!N47+'PJ2'!N47) + 'MV2'!Z46 + 'JH2'!Z46 + 'PM2'!Z46 + 'PJ2'!Z46 -> 0.003540988397 | L47: ='A1'!$AF$13*('HR1'!N47+'JH1'!N47) + 'HR1'!Z46 + 'JH1'!Z46 -> 0.0007239755994 | M47: ='A1'!$AF$13*('HR2'!N47+'JH2'!N47) + 'HR2'!Z46 + 'JH2'!Z46 -> 0.0005647026864 | O47: ='A1'!$AH$13*('PL1'!N47+'PV1'!N47+'PH1'!N47+'PM1'!N47+'PJ1'!N47) + 'PL1'!Z46 + 'PV1'!Z46 + 'PH1'!Z46 + 'PM1'!Z46 + 'PJ1'!Z46 -> 0.0007071335128 | P47: ='A1'!$AH$13*('PL2'!N47+'PV2'!N47+'PH2'!N47+'PM2'!N47+'PJ2'!N47) + 'PL2'!Z46 + 'PV2'!Z46 + 'PH2'!Z46 + 'PM2'!Z46 + 'PJ2'!Z46 -> 0.0001618304863
B48: 1.75 | C48: 21
B49: 1.791666667 | C49: 21.5 | E49: ='A1'!$AD$13*GL0!N49 -> 0.0006365435082 | F49: ='A1'!$AD$13*('GL1'!N49+'GV1'!N49) + 'A1'!$AF$13*'HR1'!N49 + 'A1'!$AH$13*('PL1'!N49+'PV1'!N49+'PH1'!N49) + 'HR1'!Z48 + 'PL1'!Z48 + 'PV1'!Z48 + 'PH1'!Z48 -> 0.007442793775 | G49: ='A1'!$AD$13*('GL2'!N49+'GV2'!N49) + 'A1'!$AF$13*'HR2'!N49 + 'A1'!$AH$13*('PL2'!N49+'PV2'!N49+'PH2'!N49) + 'HR2'!Z48 + 'PL2'!Z48 + 'PV2'!Z48 + 'PH2'!Z48 -> 0.006582581093 | I49: ='A1'!$AD$13*(MV1a!N49+MV1b!N49) + 'A1'!$AF$13*'JH1'!N49 + 'A1'!$AH$13*('PM1'!N49+'PJ1'!N49) + MV1a!Z48 + MV1b!Z48 + 'JH1'!Z48 + 'PM1'!Z48 + 'PJ1'!Z48 -> 0.01021139468 | J49: ='A1'!$AD$13*'MV2'!N49 + 'A1'!$AF$13*'JH2'!N49 + 'A1'!$AH$13*('PM2'!N49+'PJ2'!N49) + 'MV2'!Z48 + 'JH2'!Z48 + 'PM2'!Z48 + 'PJ2'!Z48 -> 0.003540779748 | L49: ='A1'!$AF$13*('HR1'!N49+'JH1'!N49) + 'HR1'!Z48 + 'JH1'!Z48 -> 0.0007239768714 | M49: ='A1'!$AF$13*('HR2'!N49+'JH2'!N49) + 'HR2'!Z48 + 'JH2'!Z48 -> 0.0005647039788 | O49: ='A1'!$AH$13*('PL1'!N49+'PV1'!N49+'PH1'!N49+'PM1'!N49+'PJ1'!N49) + 'PL1'!Z48 + 'PV1'!Z48 + 'PH1'!Z48 + 'PM1'!Z48 + 'PJ1'!Z48 -> 0.0007071311868 | P49: ='A1'!$AH$13*('PL2'!N49+'PV2'!N49+'PH2'!N49+'PM2'!N49+'PJ2'!N49) + 'PL2'!Z48 + 'PV2'!Z48 + 'PH2'!Z48 + 'PM2'!Z48 + 'PJ2'!Z48 -> 0.0001618300505
B50: 1.833333333 | C50: 22
B51: 1.875 | C51: 22.5 | E51: ='A1'!$AD$13*GL0!N51 -> 0.0006364890994 | F51: ='A1'!$AD$13*('GL1'!N51+'GV1'!N51) + 'A1'!$AF$13*'HR1'!N51 + 'A1'!$AH$13*('PL1'!N51+'PV1'!N51+'PH1'!N51) + 'HR1'!Z50 + 'PL1'!Z50 + 'PV1'!Z50 + 'PH1'!Z50 -> 0.007442353469 | G51: ='A1'!$AD$13*('GL2'!N51+'GV2'!N51) + 'A1'!$AF$13*'HR2'!N51 + 'A1'!$AH$13*('PL2'!N51+'PV2'!N51+'PH2'!N51) + 'HR2'!Z50 + 'PL2'!Z50 + 'PV2'!Z50 + 'PH2'!Z50 -> 0.006582196038 | I51: ='A1'!$AD$13*(MV1a!N51+MV1b!N51) + 'A1'!$AF$13*'JH1'!N51 + 'A1'!$AH$13*('PM1'!N51+'PJ1'!N51) + MV1a!Z50 + MV1b!Z50 + 'JH1'!Z50 + 'PM1'!Z50 + 'PJ1'!Z50 -> 0.0102110327 | J51: ='A1'!$AD$13*'MV2'!N51 + 'A1'!$AF$13*'JH2'!N51 + 'A1'!$AH$13*('PM2'!N51+'PJ2'!N51) + 'MV2'!Z50 + 'JH2'!Z50 + 'PM2'!Z50 + 'PJ2'!Z50 -> 0.003540561604 | L51: ='A1'!$AF$13*('HR1'!N51+'JH1'!N51) + 'HR1'!Z50 + 'JH1'!Z50 -> 0.0007239779993 | M51: ='A1'!$AF$13*('HR2'!N51+'JH2'!N51) + 'HR2'!Z50 + 'JH2'!Z50 -> 0.0005647051852 | O51: ='A1'!$AH$13*('PL1'!N51+'PV1'!N51+'PH1'!N51+'PM1'!N51+'PJ1'!N51) + 'PL1'!Z50 + 'PV1'!Z50 + 'PH1'!Z50 + 'PM1'!Z50 + 'PJ1'!Z50 -> 0.0007071286718 | P51: ='A1'!$AH$13*('PL2'!N51+'PV2'!N51+'PH2'!N51+'PM2'!N51+'PJ2'!N51) + 'PL2'!Z50 + 'PV2'!Z50 + 'PH2'!Z50 + 'PM2'!Z50 + 'PJ2'!Z50 -> 0.0001618295767
B52: 1.916666667 | C52: 23
B53: 1.958333333 | C53: 23.5 | E53: ='A1'!$AD$13*GL0!N53 -> 0.000636431929 | F53: ='A1'!$AD$13*('GL1'!N53+'GV1'!N53) + 'A1'!$AF$13*'HR1'!N53 + 'A1'!$AH$13*('PL1'!N53+'PV1'!N53+'PH1'!N53) + 'HR1'!Z52 + 'PL1'!Z52 + 'PV1'!Z52 + 'PH1'!Z52 -> 0.007441891185 | G53: ='A1'!$AD$13*('GL2'!N53+'GV2'!N53) + 'A1'!$AF$13*'HR2'!N53 + 'A1'!$AH$13*('PL2'!N53+'PV2'!N53+'PH2'!N53) + 'HR2'!Z52 + 'PL2'!Z52 + 'PV2'!Z52 + 'PH2'!Z52 -> 0.006581791318 | I53: ='A1'!$AD$13*(MV1a!N53+MV1b!N53) + 'A1'!$AF$13*'JH1'!N53 + 'A1'!$AH$13*('PM1'!N53+'PJ1'!N53) + MV1a!Z52 + MV1b!Z52 + 'JH1'!Z52 + 'PM1'!Z52 + 'PJ1'!Z52 -> 0.01021065692 | J53: ='A1'!$AD$13*'MV2'!N53 + 'A1'!$AF$13*'JH2'!N53 + 'A1'!$AH$13*('PM2'!N53+'PJ2'!N53) + 'MV2'!Z52 + 'JH2'!Z52 + 'PM2'!Z52 + 'PJ2'!Z52 -> 0.003540334563 | L53: ='A1'!$AF$13*('HR1'!N53+'JH1'!N53) + 'HR1'!Z52 + 'JH1'!Z52 -> 0.0007239789829 | M53: ='A1'!$AF$13*('HR2'!N53+'JH2'!N53) + 'HR2'!Z52 + 'JH2'!Z52 -> 0.0005647063032 | O53: ='A1'!$AH$13*('PL1'!N53+'PV1'!N53+'PH1'!N53+'PM1'!N53+'PJ1'!N53) + 'PL1'!Z52 + 'PV1'!Z52 + 'PH1'!Z52 + 'PM1'!Z52 + 'PJ1'!Z52 -> 0.0007071259741 | P53: ='A1'!$AH$13*('PL2'!N53+'PV2'!N53+'PH2'!N53+'PM2'!N53+'PJ2'!N53) + 'PL2'!Z52 + 'PV2'!Z52 + 'PH2'!Z52 + 'PM2'!Z52 + 'PJ2'!Z52 -> 0.000161829066
B54: 2 | C54: 24 | R54: =120*100000*SUM(E30:G53)/SUM(Tot!U30:U53) -> 18.35869074 | S54: =12*100000*SUM(I30:J53)/SUM(Tot!V30:V53) -> 39.78970684 | T54: =12*100000*SUM(L30:M53)/SUM(FOI!M30:M53) -> 67.41041182 | U54: =12*100000*SUM(O30:P53)/SUM(FOI!N30:N53) -> 158.5656235 | V54: =120*100000*SUM(E30:J53)/SUM(Tot!P30:P53) -> 34.10176654 | X54: =(SUM(MV1a!Z30:Z53) + SUM(MV1b!Z30:Z53) + SUM('MV2'!Z30:Z53) + SUM('JH1'!Z30:Z53) + SUM('JH2'!Z30:Z53) + SUM('PM1'!Z30:Z53) + SUM('PM2'!Z30:Z53) + SUM('PJ1'!Z30:Z53) + SUM('PJ2'!Z30:Z53))/SUM(I30:J53) -> 0.117957772 | Y54: =(SUM('HR1'!Z30:Z53) + SUM('HR2'!Z30:Z53) + SUM('JH1'!Z30:Z53) + SUM('JH2'!Z30:Z53))/SUM(L30:M53) -> 0 | Z54: =(SUM('PL1'!Z30:Z53) + SUM('PL2'!Z30:Z53) + SUM('PV1'!Z30:Z53) + SUM('PV2'!Z30:Z53) + SUM('PH1'!Z30:Z53) + SUM('PH2'!Z30:Z53) + SUM('PM1'!Z30:Z53) + SUM('PM2'!Z30:Z53) + SUM('PJ1'!Z30:Z53) + SUM('PJ2'!Z30:Z53))/SUM(O30:P53) -> 0.856345933
B55: 2.041666667 | C55: 24.5 | E55: ='A1'!$AD$13*GL0!N55 -> 0.0006363720931 | F55: ='A1'!$AD$13*('GL1'!N55+'GV1'!N55) + 'A1'!$AF$13*'HR1'!N55 + 'A1'!$AH$13*('PL1'!N55+'PV1'!N55+'PH1'!N55) + 'HR1'!Z54 + 'PL1'!Z54 + 'PV1'!Z54 + 'PH1'!Z54 -> 0.007441407712 | G55: ='A1'!$AD$13*('GL2'!N55+'GV2'!N55) + 'A1'!$AF$13*'HR2'!N55 + 'A1'!$AH$13*('PL2'!N55+'PV2'!N55+'PH2'!N55) + 'HR2'!Z54 + 'PL2'!Z54 + 'PV2'!Z54 + 'PH2'!Z54 -> 0.006581367612 | I55: ='A1'!$AD$13*(MV1a!N55+MV1b!N55) + 'A1'!$AF$13*'JH1'!N55 + 'A1'!$AH$13*('PM1'!N55+'PJ1'!N55) + MV1a!Z54 + MV1b!Z54 + 'JH1'!Z54 + 'PM1'!Z54 + 'PJ1'!Z54 -> 0.0102102683 | J55: ='A1'!$AD$13*'MV2'!N55 + 'A1'!$AF$13*'JH2'!N55 + 'A1'!$AH$13*('PM2'!N55+'PJ2'!N55) + 'MV2'!Z54 + 'JH2'!Z54 + 'PM2'!Z54 + 'PJ2'!Z54 -> 0.003540099199 | L55: ='A1'!$AF$13*('HR1'!N55+'JH1'!N55) + 'HR1'!Z54 + 'JH1'!Z54 -> 0.0007239798224 | M55: ='A1'!$AF$13*('HR2'!N55+'JH2'!N55) + 'HR2'!Z54 + 'JH2'!Z54 -> 0.0005647073308 | O55: ='A1'!$AH$13*('PL1'!N55+'PV1'!N55+'PH1'!N55+'PM1'!N55+'PJ1'!N55) + 'PL1'!Z54 + 'PV1'!Z54 + 'PH1'!Z54 + 'PM1'!Z54 + 'PJ1'!Z54 -> 0.0007071230995 | P55: ='A1'!$AH$13*('PL2'!N55+'PV2'!N55+'PH2'!N55+'PM2'!N55+'PJ2'!N55) + 'PL2'!Z54 + 'PV2'!Z54 + 'PH2'!Z54 + 'PM2'!Z54 + 'PJ2'!Z54 -> 0.0001618285192
B56: 2.083333333 | C56: 25
B57: 2.125 | C57: 25.5 | E57: ='A1'!$AD$13*GL0!N57 -> 0.0006363096858 | F57: ='A1'!$AD$13*('GL1'!N57+'GV1'!N57) + 'A1'!$AF$13*'HR1'!N57 + 'A1'!$AH$13*('PL1'!N57+'PV1'!N57+'PH1'!N57) + 'HR1'!Z56 + 'PL1'!Z56 + 'PV1'!Z56 + 'PH1'!Z56 -> 0.007440903813 | G57: ='A1'!$AD$13*('GL2'!N57+'GV2'!N57) + 'A1'!$AF$13*'HR2'!N57 + 'A1'!$AH$13*('PL2'!N57+'PV2'!N57+'PH2'!N57) + 'HR2'!Z56 + 'PL2'!Z56 + 'PV2'!Z56 + 'PH2'!Z56 -> 0.006580925582 | I57: ='A1'!$AD$13*(MV1a!N57+MV1b!N57) + 'A1'!$AF$13*'JH1'!N57 + 'A1'!$AH$13*('PM1'!N57+'PJ1'!N57) + MV1a!Z56 + MV1b!Z56 + 'JH1'!Z56 + 'PM1'!Z56 + 'PJ1'!Z56 -> 0.01020986771 | J57: ='A1'!$AD$13*'MV2'!N57 + 'A1'!$AF$13*'JH2'!N57 + 'A1'!$AH$13*('PM2'!N57+'PJ2'!N57) + 'MV2'!Z56 + 'JH2'!Z56 + 'PM2'!Z56 + 'PJ2'!Z56 -> 0.003539856054 | L57: ='A1'!$AF$13*('HR1'!N57+'JH1'!N57) + 'HR1'!Z56 + 'JH1'!Z56 -> 0.0007239805182 | M57: ='A1'!$AF$13*('HR2'!N57+'JH2'!N57) + 'HR2'!Z56 + 'JH2'!Z56 -> 0.0005647082663 | O57: ='A1'!$AH$13*('PL1'!N57+'PV1'!N57+'PH1'!N57+'PM1'!N57+'PJ1'!N57) + 'PL1'!Z56 + 'PV1'!Z56 + 'PH1'!Z56 + 'PM1'!Z56 + 'PJ1'!Z56 -> 0.0007071200534 | P57: ='A1'!$AH$13*('PL2'!N57+'PV2'!N57+'PH2'!N57+'PM2'!N57+'PJ2'!N57) + 'PL2'!Z56 + 'PV2'!Z56 + 'PH2'!Z56 + 'PM2'!Z56 + 'PJ2'!Z56 -> 0.0001618279374
B58: 2.166666667 | C58: 26
B59: 2.208333333 | C59: 26.5 | E59: ='A1'!$AD$13*GL0!N59 -> 0.0006362447983 | F59: ='A1'!$AD$13*('GL1'!N59+'GV1'!N59) + 'A1'!$AF$13*'HR1'!N59 + 'A1'!$AH$13*('PL1'!N59+'PV1'!N59+'PH1'!N59) + 'HR1'!Z58 + 'PL1'!Z58 + 'PV1'!Z58 + 'PH1'!Z58 -> 0.007440380223 | G59: ='A1'!$AD$13*('GL2'!N59+'GV2'!N59) + 'A1'!$AF$13*'HR2'!N59 + 'A1'!$AH$13*('PL2'!N59+'PV2'!N59+'PH2'!N59) + 'HR2'!Z58 + 'PL2'!Z58 + 'PV2'!Z58 + 'PH2'!Z58 -> 0.006580465871 | I59: ='A1'!$AD$13*(MV1a!N59+MV1b!N59) + 'A1'!$AF$13*'JH1'!N59 + 'A1'!$AH$13*('PM1'!N59+'PJ1'!N59) + MV1a!Z58 + MV1b!Z58 + 'JH1'!Z58 + 'PM1'!Z58 + 'PJ1'!Z58 -> 0.01020945601 | J59: ='A1'!$AD$13*'MV2'!N59 + 'A1'!$AF$13*'JH2'!N59 + 'A1'!$AH$13*('PM2'!N59+'PJ2'!N59) + 'MV2'!Z58 + 'JH2'!Z58 + 'PM2'!Z58 + 'PJ2'!Z58 -> 0.003539605643 | L59: ='A1'!$AF$13*('HR1'!N59+'JH1'!N59) + 'HR1'!Z58 + 'JH1'!Z58 -> 0.0007239810704 | M59: ='A1'!$AF$13*('HR2'!N59+'JH2'!N59) + 'HR2'!Z58 + 'JH2'!Z58 -> 0.0005647091085 | O59: ='A1'!$AH$13*('PL1'!N59+'PV1'!N59+'PH1'!N59+'PM1'!N59+'PJ1'!N59) + 'PL1'!Z58 + 'PV1'!Z58 + 'PH1'!Z58 + 'PM1'!Z58 + 'PJ1'!Z58 -> 0.0007071168408 | P59: ='A1'!$AH$13*('PL2'!N59+'PV2'!N59+'PH2'!N59+'PM2'!N59+'PJ2'!N59) + 'PL2'!Z58 + 'PV2'!Z58 + 'PH2'!Z58 + 'PM2'!Z58 + 'PJ2'!Z58 -> 0.0001618273212
B60: 2.25 | C60: 27
B61: 2.291666667 | C61: 27.5 | E61: ='A1'!$AD$13*GL0!N61 -> 0.0006361775195 | F61: ='A1'!$AD$13*('GL1'!N61+'GV1'!N61) + 'A1'!$AF$13*'HR1'!N61 + 'A1'!$AH$13*('PL1'!N61+'PV1'!N61+'PH1'!N61) + 'HR1'!Z60 + 'PL1'!Z60 + 'PV1'!Z60 + 'PH1'!Z60 -> 0.007439837652 | G61: ='A1'!$AD$13*('GL2'!N61+'GV2'!N61) + 'A1'!$AF$13*'HR2'!N61 + 'A1'!$AH$13*('PL2'!N61+'PV2'!N61+'PH2'!N61) + 'HR2'!Z60 + 'PL2'!Z60 + 'PV2'!Z60 + 'PH2'!Z60 -> 0.006579989103 | I61: ='A1'!$AD$13*(MV1a!N61+MV1b!N61) + 'A1'!$AF$13*'JH1'!N61 + 'A1'!$AH$13*('PM1'!N61+'PJ1'!N61) + MV1a!Z60 + MV1b!Z60 + 'JH1'!Z60 + 'PM1'!Z60 + 'PJ1'!Z60 -> 0.01020903397 | J61: ='A1'!$AD$13*'MV2'!N61 + 'A1'!$AF$13*'JH2'!N61 + 'A1'!$AH$13*('PM2'!N61+'PJ2'!N61) + 'MV2'!Z60 + 'JH2'!Z60 + 'PM2'!Z60 + 'PJ2'!Z60 -> 0.003539348448 | L61: ='A1'!$AF$13*('HR1'!N61+'JH1'!N61) + 'HR1'!Z60 + 'JH1'!Z60 -> 0.0007239814795 | M61: ='A1'!$AF$13*('HR2'!N61+'JH2'!N61) + 'HR2'!Z60 + 'JH2'!Z60 -> 0.0005647098558 | O61: ='A1'!$AH$13*('PL1'!N61+'PV1'!N61+'PH1'!N61+'PM1'!N61+'PJ1'!N61) + 'PL1'!Z60 + 'PV1'!Z60 + 'PH1'!Z60 + 'PM1'!Z60 + 'PJ1'!Z60 -> 0.0007071134664 | P61: ='A1'!$AH$13*('PL2'!N61+'PV2'!N61+'PH2'!N61+'PM2'!N61+'PJ2'!N61) + 'PL2'!Z60 + 'PV2'!Z60 + 'PH2'!Z60 + 'PM2'!Z60 + 'PJ2'!Z60 -> 0.0001618266716
B62: 2.333333333 | C62: 28
B63: 2.375 | C63: 28.5 | E63: ='A1'!$AD$13*GL0!N63 -> 0.0006361079351 | F63: ='A1'!$AD$13*('GL1'!N63+'GV1'!N63) + 'A1'!$AF$13*'HR1'!N63 + 'A1'!$AH$13*('PL1'!N63+'PV1'!N63+'PH1'!N63) + 'HR1'!Z62 + 'PL1'!Z62 + 'PV1'!Z62 + 'PH1'!Z62 -> 0.007439276783 | G63: ='A1'!$AD$13*('GL2'!N63+'GV2'!N63) + 'A1'!$AF$13*'HR2'!N63 + 'A1'!$AH$13*('PL2'!N63+'PV2'!N63+'PH2'!N63) + 'HR2'!Z62 + 'PL2'!Z62 + 'PV2'!Z62 + 'PH2'!Z62 -> 0.006579495881 | I63: ='A1'!$AD$13*(MV1a!N63+MV1b!N63) + 'A1'!$AF$13*'JH1'!N63 + 'A1'!$AH$13*('PM1'!N63+'PJ1'!N63) + MV1a!Z62 + MV1b!Z62 + 'JH1'!Z62 + 'PM1'!Z62 + 'PJ1'!Z62 -> 0.01020860231 | J63: ='A1'!$AD$13*'MV2'!N63 + 'A1'!$AF$13*'JH2'!N63 + 'A1'!$AH$13*('PM2'!N63+'PJ2'!N63) + 'MV2'!Z62 + 'JH2'!Z62 + 'PM2'!Z62 + 'PJ2'!Z62 -> 0.003539084923 | L63: ='A1'!$AF$13*('HR1'!N63+'JH1'!N63) + 'HR1'!Z62 + 'JH1'!Z62 -> 0.0007239817457 | M63: ='A1'!$AF$13*('HR2'!N63+'JH2'!N63) + 'HR2'!Z62 + 'JH2'!Z62 -> 0.0005647105071 | O63: ='A1'!$AH$13*('PL1'!N63+'PV1'!N63+'PH1'!N63+'PM1'!N63+'PJ1'!N63) + 'PL1'!Z62 + 'PV1'!Z62 + 'PH1'!Z62 + 'PM1'!Z62 + 'PJ1'!Z62 -> 0.0007071099345 | P63: ='A1'!$AH$13*('PL2'!N63+'PV2'!N63+'PH2'!N63+'PM2'!N63+'PJ2'!N63) + 'PL2'!Z62 + 'PV2'!Z62 + 'PH2'!Z62 + 'PM2'!Z62 + 'PJ2'!Z62 -> 0.0001618259894
B64: 2.416666667 | C64: 29
B65: 2.458333333 | C65: 29.5 | E65: ='A1'!$AD$13*GL0!N65 -> 0.0006360361287 | F65: ='A1'!$AD$13*('GL1'!N65+'GV1'!N65) + 'A1'!$AF$13*'HR1'!N65 + 'A1'!$AH$13*('PL1'!N65+'PV1'!N65+'PH1'!N65) + 'HR1'!Z64 + 'PL1'!Z64 + 'PV1'!Z64 + 'PH1'!Z64 -> 0.007438698272 | G65: ='A1'!$AD$13*('GL2'!N65+'GV2'!N65) + 'A1'!$AF$13*'HR2'!N65 + 'A1'!$AH$13*('PL2'!N65+'PV2'!N65+'PH2'!N65) + 'HR2'!Z64 + 'PL2'!Z64 + 'PV2'!Z64 + 'PH2'!Z64 -> 0.006578986787 | I65: ='A1'!$AD$13*(MV1a!N65+MV1b!N65) + 'A1'!$AF$13*'JH1'!N65 + 'A1'!$AH$13*('PM1'!N65+'PJ1'!N65) + MV1a!Z64 + MV1b!Z64 + 'JH1'!Z64 + 'PM1'!Z64 + 'PJ1'!Z64 -> 0.01020816172 | J65: ='A1'!$AD$13*'MV2'!N65 + 'A1'!$AF$13*'JH2'!N65 + 'A1'!$AH$13*('PM2'!N65+'PJ2'!N65) + 'MV2'!Z64 + 'JH2'!Z64 + 'PM2'!Z64 + 'PJ2'!Z64 -> 0.003538815492 | L65: ='A1'!$AF$13*('HR1'!N65+'JH1'!N65) + 'HR1'!Z64 + 'JH1'!Z64 -> 0.000723981869 | M65: ='A1'!$AF$13*('HR2'!N65+'JH2'!N65) + 'HR2'!Z64 + 'JH2'!Z64 -> 0.0005647110612 | O65: ='A1'!$AH$13*('PL1'!N65+'PV1'!N65+'PH1'!N65+'PM1'!N65+'PJ1'!N65) + 'PL1'!Z64 + 'PV1'!Z64 + 'PH1'!Z64 + 'PM1'!Z64 + 'PJ1'!Z64 -> 0.0007071062492 | P65: ='A1'!$AH$13*('PL2'!N65+'PV2'!N65+'PH2'!N65+'PM2'!N65+'PJ2'!N65) + 'PL2'!Z64 + 'PV2'!Z64 + 'PH2'!Z64 + 'PM2'!Z64 + 'PJ2'!Z64 -> 0.0001618252752
B66: 2.5 | C66: 30
B67: 2.541666667 | C67: 30.5 | E67: ='A1'!$AD$13*GL0!N67 -> 0.0006359621807 | F67: ='A1'!$AD$13*('GL1'!N67+'GV1'!N67) + 'A1'!$AF$13*'HR1'!N67 + 'A1'!$AH$13*('PL1'!N67+'PV1'!N67+'PH1'!N67) + 'HR1'!Z66 + 'PL1'!Z66 + 'PV1'!Z66 + 'PH1'!Z66 -> 0.007438102753 | G67: ='A1'!$AD$13*('GL2'!N67+'GV2'!N67) + 'A1'!$AF$13*'HR2'!N67 + 'A1'!$AH$13*('PL2'!N67+'PV2'!N67+'PH2'!N67) + 'HR2'!Z66 + 'PL2'!Z66 + 'PV2'!Z66 + 'PH2'!Z66 -> 0.006578462383 | I67: ='A1'!$AD$13*(MV1a!N67+MV1b!N67) + 'A1'!$AF$13*'JH1'!N67 + 'A1'!$AH$13*('PM1'!N67+'PJ1'!N67) + MV1a!Z66 + MV1b!Z66 + 'JH1'!Z66 + 'PM1'!Z66 + 'PJ1'!Z66 -> 0.0102077128 | J67: ='A1'!$AD$13*'MV2'!N67 + 'A1'!$AF$13*'JH2'!N67 + 'A1'!$AH$13*('PM2'!N67+'PJ2'!N67) + 'MV2'!Z66 + 'JH2'!Z66 + 'PM2'!Z66 + 'PJ2'!Z66 -> 0.003538540551 | L67: ='A1'!$AF$13*('HR1'!N67+'JH1'!N67) + 'HR1'!Z66 + 'JH1'!Z66 -> 0.0007239818496 | M67: ='A1'!$AF$13*('HR2'!N67+'JH2'!N67) + 'HR2'!Z66 + 'JH2'!Z66 -> 0.000564711517 | O67: ='A1'!$AH$13*('PL1'!N67+'PV1'!N67+'PH1'!N67+'PM1'!N67+'PJ1'!N67) + 'PL1'!Z66 + 'PV1'!Z66 + 'PH1'!Z66 + 'PM1'!Z66 + 'PJ1'!Z66 -> 0.0007071024145 | P67: ='A1'!$AH$13*('PL2'!N67+'PV2'!N67+'PH2'!N67+'PM2'!N67+'PJ2'!N67) + 'PL2'!Z66 + 'PV2'!Z66 + 'PH2'!Z66 + 'PM2'!Z66 + 'PJ2'!Z66 -> 0.0001618245297
B68: 2.583333333 | C68: 31
B69: 2.625 | C69: 31.5 | E69: ='A1'!$AD$13*GL0!N69 -> 0.000635886169 | F69: ='A1'!$AD$13*('GL1'!N69+'GV1'!N69) + 'A1'!$AF$13*'HR1'!N69 + 'A1'!$AH$13*('PL1'!N69+'PV1'!N69+'PH1'!N69) + 'HR1'!Z68 + 'PL1'!Z68 + 'PV1'!Z68 + 'PH1'!Z68 -> 0.007437490834 | G69: ='A1'!$AD$13*('GL2'!N69+'GV2'!N69) + 'A1'!$AF$13*'HR2'!N69 + 'A1'!$AH$13*('PL2'!N69+'PV2'!N69+'PH2'!N69) + 'HR2'!Z68 + 'PL2'!Z68 + 'PV2'!Z68 + 'PH2'!Z68 -> 0.006577923214 | I69: ='A1'!$AD$13*(MV1a!N69+MV1b!N69) + 'A1'!$AF$13*'JH1'!N69 + 'A1'!$AH$13*('PM1'!N69+'PJ1'!N69) + MV1a!Z68 + MV1b!Z68 + 'JH1'!Z68 + 'PM1'!Z68 + 'PJ1'!Z68 -> 0.01020725615 | J69: ='A1'!$AD$13*'MV2'!N69 + 'A1'!$AF$13*'JH2'!N69 + 'A1'!$AH$13*('PM2'!N69+'PJ2'!N69) + 'MV2'!Z68 + 'JH2'!Z68 + 'PM2'!Z68 + 'PJ2'!Z68 -> 0.003538260469 | L69: ='A1'!$AF$13*('HR1'!N69+'JH1'!N69) + 'HR1'!Z68 + 'JH1'!Z68 -> 0.0007239816875 | M69: ='A1'!$AF$13*('HR2'!N69+'JH2'!N69) + 'HR2'!Z68 + 'JH2'!Z68 -> 0.0005647118735 | O69: ='A1'!$AH$13*('PL1'!N69+'PV1'!N69+'PH1'!N69+'PM1'!N69+'PJ1'!N69) + 'PL1'!Z68 + 'PV1'!Z68 + 'PH1'!Z68 + 'PM1'!Z68 + 'PJ1'!Z68 -> 0.0007070984338 | P69: ='A1'!$AH$13*('PL2'!N69+'PV2'!N69+'PH2'!N69+'PM2'!N69+'PJ2'!N69) + 'PL2'!Z68 + 'PV2'!Z68 + 'PH2'!Z68 + 'PM2'!Z68 + 'PJ2'!Z68 -> 0.0001618237535
B70: 2.666666667 | C70: 32
B71: =$C71/12 -> 2.708333333 | C71: =$C70+0.5 -> 32.5 | E71: ='A1'!$AD$13*GL0!N71 -> 0.000635808169 | F71: ='A1'!$AD$13*('GL1'!N71+'GV1'!N71) + 'A1'!$AF$13*'HR1'!N71 + 'A1'!$AH$13*('PL1'!N71+'PV1'!N71+'PH1'!N71) + 'HR1'!Z70 + 'PL1'!Z70 + 'PV1'!Z70 + 'PH1'!Z70 -> 0.007436863101 | G71: ='A1'!$AD$13*('GL2'!N71+'GV2'!N71) + 'A1'!$AF$13*'HR2'!N71 + 'A1'!$AH$13*('PL2'!N71+'PV2'!N71+'PH2'!N71) + 'HR2'!Z70 + 'PL2'!Z70 + 'PV2'!Z70 + 'PH2'!Z70 -> 0.006577369803 | I71: ='A1'!$AD$13*(MV1a!N71+MV1b!N71) + 'A1'!$AF$13*'JH1'!N71 + 'A1'!$AH$13*('PM1'!N71+'PJ1'!N71) + MV1a!Z70 + MV1b!Z70 + 'JH1'!Z70 + 'PM1'!Z70 + 'PJ1'!Z70 -> 0.0102067923 | J71: ='A1'!$AD$13*'MV2'!N71 + 'A1'!$AF$13*'JH2'!N71 + 'A1'!$AH$13*('PM2'!N71+'PJ2'!N71) + 'MV2'!Z70 + 'JH2'!Z70 + 'PM2'!Z70 + 'PJ2'!Z70 -> 0.003537975589 | L71: ='A1'!$AF$13*('HR1'!N71+'JH1'!N71) + 'HR1'!Z70 + 'JH1'!Z70 -> 0.0007239813828 | M71: ='A1'!$AF$13*('HR2'!N71+'JH2'!N71) + 'HR2'!Z70 + 'JH2'!Z70 -> 0.0005647121296 | O71: ='A1'!$AH$13*('PL1'!N71+'PV1'!N71+'PH1'!N71+'PM1'!N71+'PJ1'!N71) + 'PL1'!Z70 + 'PV1'!Z70 + 'PH1'!Z70 + 'PM1'!Z70 + 'PJ1'!Z70 -> 0.0007070943107 | P71: ='A1'!$AH$13*('PL2'!N71+'PV2'!N71+'PH2'!N71+'PM2'!N71+'PJ2'!N71) + 'PL2'!Z70 + 'PV2'!Z70 + 'PH2'!Z70 + 'PM2'!Z70 + 'PJ2'!Z70 -> 0.0001618229474
B72: 2.75 | C72: 33
B73: 2.791666667 | C73: 33.5 | E73: ='A1'!$AD$13*GL0!N73 -> 0.0006357282534 | F73: ='A1'!$AD$13*('GL1'!N73+'GV1'!N73) + 'A1'!$AF$13*'HR1'!N73 + 'A1'!$AH$13*('PL1'!N73+'PV1'!N73+'PH1'!N73) + 'HR1'!Z72 + 'PL1'!Z72 + 'PV1'!Z72 + 'PH1'!Z72 -> 0.007436220118 | G73: ='A1'!$AD$13*('GL2'!N73+'GV2'!N73) + 'A1'!$AF$13*'HR2'!N73 + 'A1'!$AH$13*('PL2'!N73+'PV2'!N73+'PH2'!N73) + 'HR2'!Z72 + 'PL2'!Z72 + 'PV2'!Z72 + 'PH2'!Z72 -> 0.006576802656 | I73: ='A1'!$AD$13*(MV1a!N73+MV1b!N73) + 'A1'!$AF$13*'JH1'!N73 + 'A1'!$AH$13*('PM1'!N73+'PJ1'!N73) + MV1a!Z72 + MV1b!Z72 + 'JH1'!Z72 + 'PM1'!Z72 + 'PJ1'!Z72 -> 0.01020632175 | J73: ='A1'!$AD$13*'MV2'!N73 + 'A1'!$AF$13*'JH2'!N73 + 'A1'!$AH$13*('PM2'!N73+'PJ2'!N73) + 'MV2'!Z72 + 'JH2'!Z72 + 'PM2'!Z72 + 'PJ2'!Z72 -> 0.003537686231 | L73: ='A1'!$AF$13*('HR1'!N73+'JH1'!N73) + 'HR1'!Z72 + 'JH1'!Z72 -> 0.0007239809355 | M73: ='A1'!$AF$13*('HR2'!N73+'JH2'!N73) + 'HR2'!Z72 + 'JH2'!Z72 -> 0.0005647122844 | O73: ='A1'!$AH$13*('PL1'!N73+'PV1'!N73+'PH1'!N73+'PM1'!N73+'PJ1'!N73) + 'PL1'!Z72 + 'PV1'!Z72 + 'PH1'!Z72 + 'PM1'!Z72 + 'PJ1'!Z72 -> 0.0007070900483 | P73: ='A1'!$AH$13*('PL2'!N73+'PV2'!N73+'PH2'!N73+'PM2'!N73+'PJ2'!N73) + 'PL2'!Z72 + 'PV2'!Z72 + 'PH2'!Z72 + 'PM2'!Z72 + 'PJ2'!Z72 -> 0.0001618221119
B74: 2.833333333 | C74: 34
B75: 2.875 | C75: 34.5 | E75: ='A1'!$AD$13*GL0!N75 -> 0.0006356464926 | F75: ='A1'!$AD$13*('GL1'!N75+'GV1'!N75) + 'A1'!$AF$13*'HR1'!N75 + 'A1'!$AH$13*('PL1'!N75+'PV1'!N75+'PH1'!N75) + 'HR1'!Z74 + 'PL1'!Z74 + 'PV1'!Z74 + 'PH1'!Z74 -> 0.007435562427 | G75: ='A1'!$AD$13*('GL2'!N75+'GV2'!N75) + 'A1'!$AF$13*'HR2'!N75 + 'A1'!$AH$13*('PL2'!N75+'PV2'!N75+'PH2'!N75) + 'HR2'!Z74 + 'PL2'!Z74 + 'PV2'!Z74 + 'PH2'!Z74 -> 0.00657622226 | I75: ='A1'!$AD$13*(MV1a!N75+MV1b!N75) + 'A1'!$AF$13*'JH1'!N75 + 'A1'!$AH$13*('PM1'!N75+'PJ1'!N75) + MV1a!Z74 + MV1b!Z74 + 'JH1'!Z74 + 'PM1'!Z74 + 'PJ1'!Z74 -> 0.01020584495 | J75: ='A1'!$AD$13*'MV2'!N75 + 'A1'!$AF$13*'JH2'!N75 + 'A1'!$AH$13*('PM2'!N75+'PJ2'!N75) + 'MV2'!Z74 + 'JH2'!Z74 + 'PM2'!Z74 + 'PJ2'!Z74 -> 0.003537392692 | L75: ='A1'!$AF$13*('HR1'!N75+'JH1'!N75) + 'HR1'!Z74 + 'JH1'!Z74 -> 0.0007239803455 | M75: ='A1'!$AF$13*('HR2'!N75+'JH2'!N75) + 'HR2'!Z74 + 'JH2'!Z74 -> 0.0005647123372 | O75: ='A1'!$AH$13*('PL1'!N75+'PV1'!N75+'PH1'!N75+'PM1'!N75+'PJ1'!N75) + 'PL1'!Z74 + 'PV1'!Z74 + 'PH1'!Z74 + 'PM1'!Z74 + 'PJ1'!Z74 -> 0.0007070856498 | P75: ='A1'!$AH$13*('PL2'!N75+'PV2'!N75+'PH2'!N75+'PM2'!N75+'PJ2'!N75) + 'PL2'!Z74 + 'PV2'!Z74 + 'PH2'!Z74 + 'PM2'!Z74 + 'PJ2'!Z74 -> 0.0001618212475
B76: 2.916666667 | C76: 35
B77: 2.958333333 | C77: 35.5 | E77: ='A1'!$AD$13*GL0!N77 -> 0.0006355629544 | F77: ='A1'!$AD$13*('GL1'!N77+'GV1'!N77) + 'A1'!$AF$13*'HR1'!N77 + 'A1'!$AH$13*('PL1'!N77+'PV1'!N77+'PH1'!N77) + 'HR1'!Z76 + 'PL1'!Z76 + 'PV1'!Z76 + 'PH1'!Z76 -> 0.007434890552 | G77: ='A1'!$AD$13*('GL2'!N77+'GV2'!N77) + 'A1'!$AF$13*'HR2'!N77 + 'A1'!$AH$13*('PL2'!N77+'PV2'!N77+'PH2'!N77) + 'HR2'!Z76 + 'PL2'!Z76 + 'PV2'!Z76 + 'PH2'!Z76 -> 0.006575629086 | I77: ='A1'!$AD$13*(MV1a!N77+MV1b!N77) + 'A1'!$AF$13*'JH1'!N77 + 'A1'!$AH$13*('PM1'!N77+'PJ1'!N77) + MV1a!Z76 + MV1b!Z76 + 'JH1'!Z76 + 'PM1'!Z76 + 'PJ1'!Z76 -> 0.01020536232 | J77: ='A1'!$AD$13*'MV2'!N77 + 'A1'!$AF$13*'JH2'!N77 + 'A1'!$AH$13*('PM2'!N77+'PJ2'!N77) + 'MV2'!Z76 + 'JH2'!Z76 + 'PM2'!Z76 + 'PJ2'!Z76 -> 0.003537095246 | L77: ='A1'!$AF$13*('HR1'!N77+'JH1'!N77) + 'HR1'!Z76 + 'JH1'!Z76 -> 0.000723979613 | M77: ='A1'!$AF$13*('HR2'!N77+'JH2'!N77) + 'HR2'!Z76 + 'JH2'!Z76 -> 0.0005647122872 | O77: ='A1'!$AH$13*('PL1'!N77+'PV1'!N77+'PH1'!N77+'PM1'!N77+'PJ1'!N77) + 'PL1'!Z76 + 'PV1'!Z76 + 'PH1'!Z76 + 'PM1'!Z76 + 'PJ1'!Z76 -> 0.0007070811181 | P77: ='A1'!$AH$13*('PL2'!N77+'PV2'!N77+'PH2'!N77+'PM2'!N77+'PJ2'!N77) + 'PL2'!Z76 + 'PV2'!Z76 + 'PH2'!Z76 + 'PM2'!Z76 + 'PJ2'!Z76 -> 0.0001618203549
B78: 3 | C78: 36 | R78: =120*100000*SUM(E54:G77)/SUM(Tot!U54:U77) -> 18.34443014 | S78: =12*100000*SUM(I54:J77)/SUM(Tot!V54:V77) -> 39.76863215 | T78: =12*100000*SUM(L54:M77)/SUM(FOI!M54:M77) -> 67.41156288 | U78: =12*100000*SUM(O54:P77)/SUM(FOI!N54:N77) -> 158.5582972 | V78: =120*100000*SUM(E54:J77)/SUM(Tot!P54:P77) -> 34.07935577 | X78: =(SUM(MV1a!Z54:Z77) + SUM(MV1b!Z54:Z77) + SUM('MV2'!Z54:Z77) + SUM('JH1'!Z54:Z77) + SUM('JH2'!Z54:Z77) + SUM('PM1'!Z54:Z77) + SUM('PM2'!Z54:Z77) + SUM('PJ1'!Z54:Z77) + SUM('PJ2'!Z54:Z77))/SUM(I54:J77) -> 0.1180187959 | Y78: =(SUM('HR1'!Z54:Z77) + SUM('HR2'!Z54:Z77) + SUM('JH1'!Z54:Z77) + SUM('JH2'!Z54:Z77))/SUM(L54:M77) -> 0 | Z78: =(SUM('PL1'!Z54:Z77) + SUM('PL2'!Z54:Z77) + SUM('PV1'!Z54:Z77) + SUM('PV2'!Z54:Z77) + SUM('PH1'!Z54:Z77) + SUM('PH2'!Z54:Z77) + SUM('PM1'!Z54:Z77) + SUM('PM2'!Z54:Z77) + SUM('PJ1'!Z54:Z77) + SUM('PJ2'!Z54:Z77))/SUM(O54:P77) -> 0.8563493424
B79: 3.041666667 | C79: 36.5 | E79: ='A1'!$AD$13*GL0!N79 -> 0.0006354777044 | F79: ='A1'!$AD$13*('GL1'!N79+'GV1'!N79) + 'A1'!$AF$13*'HR1'!N79 + 'A1'!$AH$13*('PL1'!N79+'PV1'!N79+'PH1'!N79) + 'HR1'!Z78 + 'PL1'!Z78 + 'PV1'!Z78 + 'PH1'!Z78 -> 0.007434204995 | G79: ='A1'!$AD$13*('GL2'!N79+'GV2'!N79) + 'A1'!$AF$13*'HR2'!N79 + 'A1'!$AH$13*('PL2'!N79+'PV2'!N79+'PH2'!N79) + 'HR2'!Z78 + 'PL2'!Z78 + 'PV2'!Z78 + 'PH2'!Z78 -> 0.006575023586 | I79: ='A1'!$AD$13*(MV1a!N79+MV1b!N79) + 'A1'!$AF$13*'JH1'!N79 + 'A1'!$AH$13*('PM1'!N79+'PJ1'!N79) + MV1a!Z78 + MV1b!Z78 + 'JH1'!Z78 + 'PM1'!Z78 + 'PJ1'!Z78 -> 0.01020487427 | J79: ='A1'!$AD$13*'MV2'!N79 + 'A1'!$AF$13*'JH2'!N79 + 'A1'!$AH$13*('PM2'!N79+'PJ2'!N79) + 'MV2'!Z78 + 'JH2'!Z78 + 'PM2'!Z78 + 'PJ2'!Z78 -> 0.00353679415 | L79: ='A1'!$AF$13*('HR1'!N79+'JH1'!N79) + 'HR1'!Z78 + 'JH1'!Z78 -> 0.0007239787379 | M79: ='A1'!$AF$13*('HR2'!N79+'JH2'!N79) + 'HR2'!Z78 + 'JH2'!Z78 -> 0.0005647121336 | O79: ='A1'!$AH$13*('PL1'!N79+'PV1'!N79+'PH1'!N79+'PM1'!N79+'PJ1'!N79) + 'PL1'!Z78 + 'PV1'!Z78 + 'PH1'!Z78 + 'PM1'!Z78 + 'PJ1'!Z78 -> 0.0007070764559 | P79: ='A1'!$AH$13*('PL2'!N79+'PV2'!N79+'PH2'!N79+'PM2'!N79+'PJ2'!N79) + 'PL2'!Z78 + 'PV2'!Z78 + 'PH2'!Z78 + 'PM2'!Z78 + 'PJ2'!Z78 -> 0.0001618194345
B80: 3.083333333 | C80: 37
B81: 3.125 | C81: 37.5 | E81: ='A1'!$AD$13*GL0!N81 -> 0.0006353908056 | F81: ='A1'!$AD$13*('GL1'!N81+'GV1'!N81) + 'A1'!$AF$13*'HR1'!N81 + 'A1'!$AH$13*('PL1'!N81+'PV1'!N81+'PH1'!N81) + 'HR1'!Z80 + 'PL1'!Z80 + 'PV1'!Z80 + 'PH1'!Z80 -> 0.00743350624 | G81: ='A1'!$AD$13*('GL2'!N81+'GV2'!N81) + 'A1'!$AF$13*'HR2'!N81 + 'A1'!$AH$13*('PL2'!N81+'PV2'!N81+'PH2'!N81) + 'HR2'!Z80 + 'PL2'!Z80 + 'PV2'!Z80 + 'PH2'!Z80 -> 0.006574406198 | I81: ='A1'!$AD$13*(MV1a!N81+MV1b!N81) + 'A1'!$AF$13*'JH1'!N81 + 'A1'!$AH$13*('PM1'!N81+'PJ1'!N81) + MV1a!Z80 + MV1b!Z80 + 'JH1'!Z80 + 'PM1'!Z80 + 'PJ1'!Z80 -> 0.01020438114 | J81: ='A1'!$AD$13*'MV2'!N81 + 'A1'!$AF$13*'JH2'!N81 + 'A1'!$AH$13*('PM2'!N81+'PJ2'!N81) + 'MV2'!Z80 + 'JH2'!Z80 + 'PM2'!Z80 + 'PJ2'!Z80 -> 0.003536489642 | L81: ='A1'!$AF$13*('HR1'!N81+'JH1'!N81) + 'HR1'!Z80 + 'JH1'!Z80 -> 0.0007239777204 | M81: ='A1'!$AF$13*('HR2'!N81+'JH2'!N81) + 'HR2'!Z80 + 'JH2'!Z80 -> 0.0005647118758 | O81: ='A1'!$AH$13*('PL1'!N81+'PV1'!N81+'PH1'!N81+'PM1'!N81+'PJ1'!N81) + 'PL1'!Z80 + 'PV1'!Z80 + 'PH1'!Z80 + 'PM1'!Z80 + 'PJ1'!Z80 -> 0.0007070716659 | P81: ='A1'!$AH$13*('PL2'!N81+'PV2'!N81+'PH2'!N81+'PM2'!N81+'PJ2'!N81) + 'PL2'!Z80 + 'PV2'!Z80 + 'PH2'!Z80 + 'PM2'!Z80 + 'PJ2'!Z80 -> 0.0001618184869
B82: 3.166666667 | C82: 38
B83: 3.208333333 | C83: 38.5 | E83: ='A1'!$AD$13*GL0!N83 -> 0.0006353023191 | F83: ='A1'!$AD$13*('GL1'!N83+'GV1'!N83) + 'A1'!$AF$13*'HR1'!N83 + 'A1'!$AH$13*('PL1'!N83+'PV1'!N83+'PH1'!N83) + 'HR1'!Z82 + 'PL1'!Z82 + 'PV1'!Z82 + 'PH1'!Z82 -> 0.007432794753 | G83: ='A1'!$AD$13*('GL2'!N83+'GV2'!N83) + 'A1'!$AF$13*'HR2'!N83 + 'A1'!$AH$13*('PL2'!N83+'PV2'!N83+'PH2'!N83) + 'HR2'!Z82 + 'PL2'!Z82 + 'PV2'!Z82 + 'PH2'!Z82 -> 0.006573777342 | I83: ='A1'!$AD$13*(MV1a!N83+MV1b!N83) + 'A1'!$AF$13*'JH1'!N83 + 'A1'!$AH$13*('PM1'!N83+'PJ1'!N83) + MV1a!Z82 + MV1b!Z82 + 'JH1'!Z82 + 'PM1'!Z82 + 'PJ1'!Z82 -> 0.01020388329 | J83: ='A1'!$AD$13*'MV2'!N83 + 'A1'!$AF$13*'JH2'!N83 + 'A1'!$AH$13*('PM2'!N83+'PJ2'!N83) + 'MV2'!Z82 + 'JH2'!Z82 + 'PM2'!Z82 + 'PJ2'!Z82 -> 0.003536181941 | L83: ='A1'!$AF$13*('HR1'!N83+'JH1'!N83) + 'HR1'!Z82 + 'JH1'!Z82 -> 0.0007239765605 | M83: ='A1'!$AF$13*('HR2'!N83+'JH2'!N83) + 'HR2'!Z82 + 'JH2'!Z82 -> 0.0005647115134 | O83: ='A1'!$AH$13*('PL1'!N83+'PV1'!N83+'PH1'!N83+'PM1'!N83+'PJ1'!N83) + 'PL1'!Z82 + 'PV1'!Z82 + 'PH1'!Z82 + 'PM1'!Z82 + 'PJ1'!Z82 -> 0.0007070667507 | P83: ='A1'!$AH$13*('PL2'!N83+'PV2'!N83+'PH2'!N83+'PM2'!N83+'PJ2'!N83) + 'PL2'!Z82 + 'PV2'!Z82 + 'PH2'!Z82 + 'PM2'!Z82 + 'PJ2'!Z82 -> 0.0001618175125
B84: 3.25 | C84: 39
B85: 3.291666667 | C85: 39.5 | E85: ='A1'!$AD$13*GL0!N85 -> 0.0006352123035 | F85: ='A1'!$AD$13*('GL1'!N85+'GV1'!N85) + 'A1'!$AF$13*'HR1'!N85 + 'A1'!$AH$13*('PL1'!N85+'PV1'!N85+'PH1'!N85) + 'HR1'!Z84 + 'PL1'!Z84 + 'PV1'!Z84 + 'PH1'!Z84 -> 0.007432070981 | G85: ='A1'!$AD$13*('GL2'!N85+'GV2'!N85) + 'A1'!$AF$13*'HR2'!N85 + 'A1'!$AH$13*('PL2'!N85+'PV2'!N85+'PH2'!N85) + 'HR2'!Z84 + 'PL2'!Z84 + 'PV2'!Z84 + 'PH2'!Z84 -> 0.006573137423 | I85: ='A1'!$AD$13*(MV1a!N85+MV1b!N85) + 'A1'!$AF$13*'JH1'!N85 + 'A1'!$AH$13*('PM1'!N85+'PJ1'!N85) + MV1a!Z84 + MV1b!Z84 + 'JH1'!Z84 + 'PM1'!Z84 + 'PJ1'!Z84 -> 0.01020338101 | J85: ='A1'!$AD$13*'MV2'!N85 + 'A1'!$AF$13*'JH2'!N85 + 'A1'!$AH$13*('PM2'!N85+'PJ2'!N85) + 'MV2'!Z84 + 'JH2'!Z84 + 'PM2'!Z84 + 'PJ2'!Z84 -> 0.003535871251 | L85: ='A1'!$AF$13*('HR1'!N85+'JH1'!N85) + 'HR1'!Z84 + 'JH1'!Z84 -> 0.0007239752585 | M85: ='A1'!$AF$13*('HR2'!N85+'JH2'!N85) + 'HR2'!Z84 + 'JH2'!Z84 -> 0.0005647110458 | O85: ='A1'!$AH$13*('PL1'!N85+'PV1'!N85+'PH1'!N85+'PM1'!N85+'PJ1'!N85) + 'PL1'!Z84 + 'PV1'!Z84 + 'PH1'!Z84 + 'PM1'!Z84 + 'PJ1'!Z84 -> 0.0007070617125 | P85: ='A1'!$AH$13*('PL2'!N85+'PV2'!N85+'PH2'!N85+'PM2'!N85+'PJ2'!N85) + 'PL2'!Z84 + 'PV2'!Z84 + 'PH2'!Z84 + 'PM2'!Z84 + 'PJ2'!Z84 -> 0.0001618165118
B86: 3.333333333 | C86: 40
B87: 3.375 | C87: 40.5 | E87: ='A1'!$AD$13*GL0!N87 -> 0.0006351208154 | F87: ='A1'!$AD$13*('GL1'!N87+'GV1'!N87) + 'A1'!$AF$13*'HR1'!N87 + 'A1'!$AH$13*('PL1'!N87+'PV1'!N87+'PH1'!N87) + 'HR1'!Z86 + 'PL1'!Z86 + 'PV1'!Z86 + 'PH1'!Z86 -> 0.007431335355 | G87: ='A1'!$AD$13*('GL2'!N87+'GV2'!N87) + 'A1'!$AF$13*'HR2'!N87 + 'A1'!$AH$13*('PL2'!N87+'PV2'!N87+'PH2'!N87) + 'HR2'!Z86 + 'PL2'!Z86 + 'PV2'!Z86 + 'PH2'!Z86 -> 0.00657248683 | I87: ='A1'!$AD$13*(MV1a!N87+MV1b!N87) + 'A1'!$AF$13*'JH1'!N87 + 'A1'!$AH$13*('PM1'!N87+'PJ1'!N87) + MV1a!Z86 + MV1b!Z86 + 'JH1'!Z86 + 'PM1'!Z86 + 'PJ1'!Z86 -> 0.0102028746 | J87: ='A1'!$AD$13*'MV2'!N87 + 'A1'!$AF$13*'JH2'!N87 + 'A1'!$AH$13*('PM2'!N87+'PJ2'!N87) + 'MV2'!Z86 + 'JH2'!Z86 + 'PM2'!Z86 + 'PJ2'!Z86 -> 0.003535557762 | L87: ='A1'!$AF$13*('HR1'!N87+'JH1'!N87) + 'HR1'!Z86 + 'JH1'!Z86 -> 0.0007239738144 | M87: ='A1'!$AF$13*('HR2'!N87+'JH2'!N87) + 'HR2'!Z86 + 'JH2'!Z86 -> 0.0005647104725 | O87: ='A1'!$AH$13*('PL1'!N87+'PV1'!N87+'PH1'!N87+'PM1'!N87+'PJ1'!N87) + 'PL1'!Z86 + 'PV1'!Z86 + 'PH1'!Z86 + 'PM1'!Z86 + 'PJ1'!Z86 -> 0.0007070565538 | P87: ='A1'!$AH$13*('PL2'!N87+'PV2'!N87+'PH2'!N87+'PM2'!N87+'PJ2'!N87) + 'PL2'!Z86 + 'PV2'!Z86 + 'PH2'!Z86 + 'PM2'!Z86 + 'PJ2'!Z86 -> 0.0001618154852
B88: 3.416666667 | C88: 41
B89: 3.458333333 | C89: 41.5 | E89: ='A1'!$AD$13*GL0!N89 -> 0.0006350279094 | F89: ='A1'!$AD$13*('GL1'!N89+'GV1'!N89) + 'A1'!$AF$13*'HR1'!N89 + 'A1'!$AH$13*('PL1'!N89+'PV1'!N89+'PH1'!N89) + 'HR1'!Z88 + 'PL1'!Z88 + 'PV1'!Z88 + 'PH1'!Z88 -> 0.00743058829 | G89: ='A1'!$AD$13*('GL2'!N89+'GV2'!N89) + 'A1'!$AF$13*'HR2'!N89 + 'A1'!$AH$13*('PL2'!N89+'PV2'!N89+'PH2'!N89) + 'HR2'!Z88 + 'PL2'!Z88 + 'PV2'!Z88 + 'PH2'!Z88 -> 0.006571825938 | I89: ='A1'!$AD$13*(MV1a!N89+MV1b!N89) + 'A1'!$AF$13*'JH1'!N89 + 'A1'!$AH$13*('PM1'!N89+'PJ1'!N89) + MV1a!Z88 + MV1b!Z88 + 'JH1'!Z88 + 'PM1'!Z88 + 'PJ1'!Z88 -> 0.01020236432 | J89: ='A1'!$AD$13*'MV2'!N89 + 'A1'!$AF$13*'JH2'!N89 + 'A1'!$AH$13*('PM2'!N89+'PJ2'!N89) + 'MV2'!Z88 + 'JH2'!Z88 + 'PM2'!Z88 + 'PJ2'!Z88 -> 0.00353524165 | L89: ='A1'!$AF$13*('HR1'!N89+'JH1'!N89) + 'HR1'!Z88 + 'JH1'!Z88 -> 0.0007239722285 | M89: ='A1'!$AF$13*('HR2'!N89+'JH2'!N89) + 'HR2'!Z88 + 'JH2'!Z88 -> 0.0005647097934 | O89: ='A1'!$AH$13*('PL1'!N89+'PV1'!N89+'PH1'!N89+'PM1'!N89+'PJ1'!N89) + 'PL1'!Z88 + 'PV1'!Z88 + 'PH1'!Z88 + 'PM1'!Z88 + 'PJ1'!Z88 -> 0.0007070512767 | P89: ='A1'!$AH$13*('PL2'!N89+'PV2'!N89+'PH2'!N89+'PM2'!N89+'PJ2'!N89) + 'PL2'!Z88 + 'PV2'!Z88 + 'PH2'!Z88 + 'PM2'!Z88 + 'PJ2'!Z88 -> 0.0001618144333
B90: 3.5 | C90: 42
B91: 3.541666667 | C91: 42.5 | E91: ='A1'!$AD$13*GL0!N91 -> 0.0006349336379 | F91: ='A1'!$AD$13*('GL1'!N91+'GV1'!N91) + 'A1'!$AF$13*'HR1'!N91 + 'A1'!$AH$13*('PL1'!N91+'PV1'!N91+'PH1'!N91) + 'HR1'!Z90 + 'PL1'!Z90 + 'PV1'!Z90 + 'PH1'!Z90 -> 0.007429830183 | G91: ='A1'!$AD$13*('GL2'!N91+'GV2'!N91) + 'A1'!$AF$13*'HR2'!N91 + 'A1'!$AH$13*('PL2'!N91+'PV2'!N91+'PH2'!N91) + 'HR2'!Z90 + 'PL2'!Z90 + 'PV2'!Z90 + 'PH2'!Z90 -> 0.006571155109 | I91: ='A1'!$AD$13*(MV1a!N91+MV1b!N91) + 'A1'!$AF$13*'JH1'!N91 + 'A1'!$AH$13*('PM1'!N91+'PJ1'!N91) + MV1a!Z90 + MV1b!Z90 + 'JH1'!Z90 + 'PM1'!Z90 + 'PJ1'!Z90 -> 0.01020185041 | J91: ='A1'!$AD$13*'MV2'!N91 + 'A1'!$AF$13*'JH2'!N91 + 'A1'!$AH$13*('PM2'!N91+'PJ2'!N91) + 'MV2'!Z90 + 'JH2'!Z90 + 'PM2'!Z90 + 'PJ2'!Z90 -> 0.003534923077 | L91: ='A1'!$AF$13*('HR1'!N91+'JH1'!N91) + 'HR1'!Z90 + 'JH1'!Z90 -> 0.000723970501 | M91: ='A1'!$AF$13*('HR2'!N91+'JH2'!N91) + 'HR2'!Z90 + 'JH2'!Z90 -> 0.000564709008 | O91: ='A1'!$AH$13*('PL1'!N91+'PV1'!N91+'PH1'!N91+'PM1'!N91+'PJ1'!N91) + 'PL1'!Z90 + 'PV1'!Z90 + 'PH1'!Z90 + 'PM1'!Z90 + 'PJ1'!Z90 -> 0.0007070458832 | P91: ='A1'!$AH$13*('PL2'!N91+'PV2'!N91+'PH2'!N91+'PM2'!N91+'PJ2'!N91) + 'PL2'!Z90 + 'PV2'!Z90 + 'PH2'!Z90 + 'PM2'!Z90 + 'PJ2'!Z90 -> 0.0001618133563
B92: 3.583333333 | C92: 43
B93: 3.625 | C93: 43.5 | E93: ='A1'!$AD$13*GL0!N93 -> 0.0006348380514 | F93: ='A1'!$AD$13*('GL1'!N93+'GV1'!N93) + 'A1'!$AF$13*'HR1'!N93 + 'A1'!$AH$13*('PL1'!N93+'PV1'!N93+'PH1'!N93) + 'HR1'!Z92 + 'PL1'!Z92 + 'PV1'!Z92 + 'PH1'!Z92 -> 0.007429061416 | G93: ='A1'!$AD$13*('GL2'!N93+'GV2'!N93) + 'A1'!$AF$13*'HR2'!N93 + 'A1'!$AH$13*('PL2'!N93+'PV2'!N93+'PH2'!N93) + 'HR2'!Z92 + 'PL2'!Z92 + 'PV2'!Z92 + 'PH2'!Z92 -> 0.006570474688 | I93: ='A1'!$AD$13*(MV1a!N93+MV1b!N93) + 'A1'!$AF$13*'JH1'!N93 + 'A1'!$AH$13*('PM1'!N93+'PJ1'!N93) + MV1a!Z92 + MV1b!Z92 + 'JH1'!Z92 + 'PM1'!Z92 + 'PJ1'!Z92 -> 0.01020133311 | J93: ='A1'!$AD$13*'MV2'!N93 + 'A1'!$AF$13*'JH2'!N93 + 'A1'!$AH$13*('PM2'!N93+'PJ2'!N93) + 'MV2'!Z92 + 'JH2'!Z92 + 'PM2'!Z92 + 'PJ2'!Z92 -> 0.003534602194 | L93: ='A1'!$AF$13*('HR1'!N93+'JH1'!N93) + 'HR1'!Z92 + 'JH1'!Z92 -> 0.0007239686321 | M93: ='A1'!$AF$13*('HR2'!N93+'JH2'!N93) + 'HR2'!Z92 + 'JH2'!Z92 -> 0.0005647081161 | O93: ='A1'!$AH$13*('PL1'!N93+'PV1'!N93+'PH1'!N93+'PM1'!N93+'PJ1'!N93) + 'PL1'!Z92 + 'PV1'!Z92 + 'PH1'!Z92 + 'PM1'!Z92 + 'PJ1'!Z92 -> 0.0007070403754 | P93: ='A1'!$AH$13*('PL2'!N93+'PV2'!N93+'PH2'!N93+'PM2'!N93+'PJ2'!N93) + 'PL2'!Z92 + 'PV2'!Z92 + 'PH2'!Z92 + 'PM2'!Z92 + 'PJ2'!Z92 -> 0.0001618122547
B94: 3.666666667 | C94: 44
B95: 3.708333333 | C95: 44.5 | E95: ='A1'!$AD$13*GL0!N95 -> 0.0006347411983 | F95: ='A1'!$AD$13*('GL1'!N95+'GV1'!N95) + 'A1'!$AF$13*'HR1'!N95 + 'A1'!$AH$13*('PL1'!N95+'PV1'!N95+'PH1'!N95) + 'HR1'!Z94 + 'PL1'!Z94 + 'PV1'!Z94 + 'PH1'!Z94 -> 0.007428282357 | G95: ='A1'!$AD$13*('GL2'!N95+'GV2'!N95) + 'A1'!$AF$13*'HR2'!N95 + 'A1'!$AH$13*('PL2'!N95+'PV2'!N95+'PH2'!N95) + 'HR2'!Z94 + 'PL2'!Z94 + 'PV2'!Z94 + 'PH2'!Z94 -> 0.006569785009 | I95: ='A1'!$AD$13*(MV1a!N95+MV1b!N95) + 'A1'!$AF$13*'JH1'!N95 + 'A1'!$AH$13*('PM1'!N95+'PJ1'!N95) + MV1a!Z94 + MV1b!Z94 + 'JH1'!Z94 + 'PM1'!Z94 + 'PJ1'!Z94 -> 0.01020081263 | J95: ='A1'!$AD$13*'MV2'!N95 + 'A1'!$AF$13*'JH2'!N95 + 'A1'!$AH$13*('PM2'!N95+'PJ2'!N95) + 'MV2'!Z94 + 'JH2'!Z94 + 'PM2'!Z94 + 'PJ2'!Z94 -> 0.003534279143 | L95: ='A1'!$AF$13*('HR1'!N95+'JH1'!N95) + 'HR1'!Z94 + 'JH1'!Z94 -> 0.0007239666222 | M95: ='A1'!$AF$13*('HR2'!N95+'JH2'!N95) + 'HR2'!Z94 + 'JH2'!Z94 -> 0.0005647071176 | O95: ='A1'!$AH$13*('PL1'!N95+'PV1'!N95+'PH1'!N95+'PM1'!N95+'PJ1'!N95) + 'PL1'!Z94 + 'PV1'!Z94 + 'PH1'!Z94 + 'PM1'!Z94 + 'PJ1'!Z94 -> 0.0007070347552 | P95: ='A1'!$AH$13*('PL2'!N95+'PV2'!N95+'PH2'!N95+'PM2'!N95+'PJ2'!N95) + 'PL2'!Z94 + 'PV2'!Z94 + 'PH2'!Z94 + 'PM2'!Z94 + 'PJ2'!Z94 -> 0.0001618111289
B96: 3.75 | C96: 45
B97: 3.791666667 | C97: 45.5 | E97: ='A1'!$AD$13*GL0!N97 -> 0.0006346431255 | F97: ='A1'!$AD$13*('GL1'!N97+'GV1'!N97) + 'A1'!$AF$13*'HR1'!N97 + 'A1'!$AH$13*('PL1'!N97+'PV1'!N97+'PH1'!N97) + 'HR1'!Z96 + 'PL1'!Z96 + 'PV1'!Z96 + 'PH1'!Z96 -> 0.007427493358 | G97: ='A1'!$AD$13*('GL2'!N97+'GV2'!N97) + 'A1'!$AF$13*'HR2'!N97 + 'A1'!$AH$13*('PL2'!N97+'PV2'!N97+'PH2'!N97) + 'HR2'!Z96 + 'PL2'!Z96 + 'PV2'!Z96 + 'PH2'!Z96 -> 0.006569086391 | I97: ='A1'!$AD$13*(MV1a!N97+MV1b!N97) + 'A1'!$AF$13*'JH1'!N97 + 'A1'!$AH$13*('PM1'!N97+'PJ1'!N97) + MV1a!Z96 + MV1b!Z96 + 'JH1'!Z96 + 'PM1'!Z96 + 'PJ1'!Z96 -> 0.01020028917 | J97: ='A1'!$AD$13*'MV2'!N97 + 'A1'!$AF$13*'JH2'!N97 + 'A1'!$AH$13*('PM2'!N97+'PJ2'!N97) + 'MV2'!Z96 + 'JH2'!Z96 + 'PM2'!Z96 + 'PJ2'!Z96 -> 0.003533954052 | L97: ='A1'!$AF$13*('HR1'!N97+'JH1'!N97) + 'HR1'!Z96 + 'JH1'!Z96 -> 0.0007239644715 | M97: ='A1'!$AF$13*('HR2'!N97+'JH2'!N97) + 'HR2'!Z96 + 'JH2'!Z96 -> 0.0005647060122 | O97: ='A1'!$AH$13*('PL1'!N97+'PV1'!N97+'PH1'!N97+'PM1'!N97+'PJ1'!N97) + 'PL1'!Z96 + 'PV1'!Z96 + 'PH1'!Z96 + 'PM1'!Z96 + 'PJ1'!Z96 -> 0.0007070290244 | P97: ='A1'!$AH$13*('PL2'!N97+'PV2'!N97+'PH2'!N97+'PM2'!N97+'PJ2'!N97) + 'PL2'!Z96 + 'PV2'!Z96 + 'PH2'!Z96 + 'PM2'!Z96 + 'PJ2'!Z96 -> 0.0001618099793
B98: 3.833333333 | C98: 46
B99: 3.875 | C99: 46.5 | E99: ='A1'!$AD$13*GL0!N99 -> 0.0006345438777 | F99: ='A1'!$AD$13*('GL1'!N99+'GV1'!N99) + 'A1'!$AF$13*'HR1'!N99 + 'A1'!$AH$13*('PL1'!N99+'PV1'!N99+'PH1'!N99) + 'HR1'!Z98 + 'PL1'!Z98 + 'PV1'!Z98 + 'PH1'!Z98 -> 0.007426694758 | G99: ='A1'!$AD$13*('GL2'!N99+'GV2'!N99) + 'A1'!$AF$13*'HR2'!N99 + 'A1'!$AH$13*('PL2'!N99+'PV2'!N99+'PH2'!N99) + 'HR2'!Z98 + 'PL2'!Z98 + 'PV2'!Z98 + 'PH2'!Z98 -> 0.006568379142 | I99: ='A1'!$AD$13*(MV1a!N99+MV1b!N99) + 'A1'!$AF$13*'JH1'!N99 + 'A1'!$AH$13*('PM1'!N99+'PJ1'!N99) + MV1a!Z98 + MV1b!Z98 + 'JH1'!Z98 + 'PM1'!Z98 + 'PJ1'!Z98 -> 0.01019976289 | J99: ='A1'!$AD$13*'MV2'!N99 + 'A1'!$AF$13*'JH2'!N99 + 'A1'!$AH$13*('PM2'!N99+'PJ2'!N99) + 'MV2'!Z98 + 'JH2'!Z98 + 'PM2'!Z98 + 'PJ2'!Z98 -> 0.003533627042 | L99: ='A1'!$AF$13*('HR1'!N99+'JH1'!N99) + 'HR1'!Z98 + 'JH1'!Z98 -> 0.0007239621804 | M99: ='A1'!$AF$13*('HR2'!N99+'JH2'!N99) + 'HR2'!Z98 + 'JH2'!Z98 -> 0.0005647047999 | O99: ='A1'!$AH$13*('PL1'!N99+'PV1'!N99+'PH1'!N99+'PM1'!N99+'PJ1'!N99) + 'PL1'!Z98 + 'PV1'!Z98 + 'PH1'!Z98 + 'PM1'!Z98 + 'PJ1'!Z98 -> 0.0007070231846 | P99: ='A1'!$AH$13*('PL2'!N99+'PV2'!N99+'PH2'!N99+'PM2'!N99+'PJ2'!N99) + 'PL2'!Z98 + 'PV2'!Z98 + 'PH2'!Z98 + 'PM2'!Z98 + 'PJ2'!Z98 -> 0.0001618088061
B100: 3.916666667 | C100: 47
B101: 3.958333333 | C101: 47.5 | E101: ='A1'!$AD$13*GL0!N101 -> 0.000634443498 | F101: ='A1'!$AD$13*('GL1'!N101+'GV1'!N101) + 'A1'!$AF$13*'HR1'!N101 + 'A1'!$AH$13*('PL1'!N101+'PV1'!N101+'PH1'!N101) + 'HR1'!Z100 + 'PL1'!Z100 + 'PV1'!Z100 + 'PH1'!Z100 -> 0.007425886882 | G101: ='A1'!$AD$13*('GL2'!N101+'GV2'!N101) + 'A1'!$AF$13*'HR2'!N101 + 'A1'!$AH$13*('PL2'!N101+'PV2'!N101+'PH2'!N101) + 'HR2'!Z100 + 'PL2'!Z100 + 'PV2'!Z100 + 'PH2'!Z100 -> 0.006567663557 | I101: ='A1'!$AD$13*(MV1a!N101+MV1b!N101) + 'A1'!$AF$13*'JH1'!N101 + 'A1'!$AH$13*('PM1'!N101+'PJ1'!N101) + MV1a!Z100 + MV1b!Z100 + 'JH1'!Z100 + 'PM1'!Z100 + 'PJ1'!Z100 -> 0.01019923398 | J101: ='A1'!$AD$13*'MV2'!N101 + 'A1'!$AF$13*'JH2'!N101 + 'A1'!$AH$13*('PM2'!N101+'PJ2'!N101) + 'MV2'!Z100 + 'JH2'!Z100 + 'PM2'!Z100 + 'PJ2'!Z100 -> 0.003533298226 | L101: ='A1'!$AF$13*('HR1'!N101+'JH1'!N101) + 'HR1'!Z100 + 'JH1'!Z100 -> 0.0007239597491 | M101: ='A1'!$AF$13*('HR2'!N101+'JH2'!N101) + 'HR2'!Z100 + 'JH2'!Z100 -> 0.0005647034806 | O101: ='A1'!$AH$13*('PL1'!N101+'PV1'!N101+'PH1'!N101+'PM1'!N101+'PJ1'!N101) + 'PL1'!Z100 + 'PV1'!Z100 + 'PH1'!Z100 + 'PM1'!Z100 + 'PJ1'!Z100 -> 0.0007070172376 | P101: ='A1'!$AH$13*('PL2'!N101+'PV2'!N101+'PH2'!N101+'PM2'!N101+'PJ2'!N101) + 'PL2'!Z100 + 'PV2'!Z100 + 'PH2'!Z100 + 'PM2'!Z100 + 'PJ2'!Z100 -> 0.0001618076097
B102: 4 | C102: 48 | R102: =120*100000*SUM(E78:G101)/SUM(Tot!U78:U101) -> 18.32393075 | S102: =12*100000*SUM(I78:J101)/SUM(Tot!V78:V101) -> 39.74149109 | T102: =12*100000*SUM(L78:M101)/SUM(FOI!M78:M101) -> 67.41091351 | U102: =12*100000*SUM(O78:P101)/SUM(FOI!N78:N101) -> 158.5461562 | V102: =120*100000*SUM(E78:J101)/SUM(Tot!P78:P101) -> 34.0484487 | X102: =(SUM(MV1a!Z78:Z101) + SUM(MV1b!Z78:Z101) + SUM('MV2'!Z78:Z101) + SUM('JH1'!Z78:Z101) + SUM('JH2'!Z78:Z101) + SUM('PM1'!Z78:Z101) + SUM('PM2'!Z78:Z101) + SUM('PJ1'!Z78:Z101) + SUM('PJ2'!Z78:Z101))/SUM(I78:J101) -> 0.1180973508 | Y102: =(SUM('HR1'!Z78:Z101) + SUM('HR2'!Z78:Z101) + SUM('JH1'!Z78:Z101) + SUM('JH2'!Z78:Z101))/SUM(L78:M101) -> 0 | Z102: =(SUM('PL1'!Z78:Z101) + SUM('PL2'!Z78:Z101) + SUM('PV1'!Z78:Z101) + SUM('PV2'!Z78:Z101) + SUM('PH1'!Z78:Z101) + SUM('PH2'!Z78:Z101) + SUM('PM1'!Z78:Z101) + SUM('PM2'!Z78:Z101) + SUM('PJ1'!Z78:Z101) + SUM('PJ2'!Z78:Z101))/SUM(O78:P101) -> 0.8563557086
B103: 4.041666667 | C103: 48.5 | E103: ='A1'!$AD$13*GL0!N103 -> 0.000634342028 | F103: ='A1'!$AD$13*('GL1'!N103+'GV1'!N103) + 'A1'!$AF$13*'HR1'!N103 + 'A1'!$AH$13*('PL1'!N103+'PV1'!N103+'PH1'!N103) + 'HR1'!Z102 + 'PL1'!Z102 + 'PV1'!Z102 + 'PH1'!Z102 -> 0.007425070041 | G103: ='A1'!$AD$13*('GL2'!N103+'GV2'!N103) + 'A1'!$AF$13*'HR2'!N103 + 'A1'!$AH$13*('PL2'!N103+'PV2'!N103+'PH2'!N103) + 'HR2'!Z102 + 'PL2'!Z102 + 'PV2'!Z102 + 'PH2'!Z102 -> 0.006566939918 | I103: ='A1'!$AD$13*(MV1a!N103+MV1b!N103) + 'A1'!$AF$13*'JH1'!N103 + 'A1'!$AH$13*('PM1'!N103+'PJ1'!N103) + MV1a!Z102 + MV1b!Z102 + 'JH1'!Z102 + 'PM1'!Z102 + 'PJ1'!Z102 -> 0.01019870259 | J103: ='A1'!$AD$13*'MV2'!N103 + 'A1'!$AF$13*'JH2'!N103 + 'A1'!$AH$13*('PM2'!N103+'PJ2'!N103) + 'MV2'!Z102 + 'JH2'!Z102 + 'PM2'!Z102 + 'PJ2'!Z102 -> 0.003532967706 | L103: ='A1'!$AF$13*('HR1'!N103+'JH1'!N103) + 'HR1'!Z102 + 'JH1'!Z102 -> 0.0007239571781 | M103: ='A1'!$AF$13*('HR2'!N103+'JH2'!N103) + 'HR2'!Z102 + 'JH2'!Z102 -> 0.0005647020543 | O103: ='A1'!$AH$13*('PL1'!N103+'PV1'!N103+'PH1'!N103+'PM1'!N103+'PJ1'!N103) + 'PL1'!Z102 + 'PV1'!Z102 + 'PH1'!Z102 + 'PM1'!Z102 + 'PJ1'!Z102 -> 0.0007070111849 | P103: ='A1'!$AH$13*('PL2'!N103+'PV2'!N103+'PH2'!N103+'PM2'!N103+'PJ2'!N103) + 'PL2'!Z102 + 'PV2'!Z102 + 'PH2'!Z102 + 'PM2'!Z102 + 'PJ2'!Z102 -> 0.0001618063905
B104: 4.083333333 | C104: 49
B105: 4.125 | C105: 49.5 | E105: ='A1'!$AD$13*GL0!N105 -> 0.0006342395072 | F105: ='A1'!$AD$13*('GL1'!N105+'GV1'!N105) + 'A1'!$AF$13*'HR1'!N105 + 'A1'!$AH$13*('PL1'!N105+'PV1'!N105+'PH1'!N105) + 'HR1'!Z104 + 'PL1'!Z104 + 'PV1'!Z104 + 'PH1'!Z104 -> 0.007424244534 | G105: ='A1'!$AD$13*('GL2'!N105+'GV2'!N105) + 'A1'!$AF$13*'HR2'!N105 + 'A1'!$AH$13*('PL2'!N105+'PV2'!N105+'PH2'!N105) + 'HR2'!Z104 + 'PL2'!Z104 + 'PV2'!Z104 + 'PH2'!Z104 -> 0.006566208497 | I105: ='A1'!$AD$13*(MV1a!N105+MV1b!N105) + 'A1'!$AF$13*'JH1'!N105 + 'A1'!$AH$13*('PM1'!N105+'PJ1'!N105) + MV1a!Z104 + MV1b!Z104 + 'JH1'!Z104 + 'PM1'!Z104 + 'PJ1'!Z104 -> 0.01019816887 | J105: ='A1'!$AD$13*'MV2'!N105 + 'A1'!$AF$13*'JH2'!N105 + 'A1'!$AH$13*('PM2'!N105+'PJ2'!N105) + 'MV2'!Z104 + 'JH2'!Z104 + 'PM2'!Z104 + 'PJ2'!Z104 -> 0.003532635581 | L105: ='A1'!$AF$13*('HR1'!N105+'JH1'!N105) + 'HR1'!Z104 + 'JH1'!Z104 -> 0.0007239544676 | M105: ='A1'!$AF$13*('HR2'!N105+'JH2'!N105) + 'HR2'!Z104 + 'JH2'!Z104 -> 0.0005647005209 | O105: ='A1'!$AH$13*('PL1'!N105+'PV1'!N105+'PH1'!N105+'PM1'!N105+'PJ1'!N105) + 'PL1'!Z104 + 'PV1'!Z104 + 'PH1'!Z104 + 'PM1'!Z104 + 'PJ1'!Z104 -> 0.0007070050281 | P105: ='A1'!$AH$13*('PL2'!N105+'PV2'!N105+'PH2'!N105+'PM2'!N105+'PJ2'!N105) + 'PL2'!Z104 + 'PV2'!Z104 + 'PH2'!Z104 + 'PM2'!Z104 + 'PJ2'!Z104 -> 0.0001618051488
B106: 4.166666667 | C106: 50
B107: 4.208333333 | C107: 50.5 | E107: ='A1'!$AD$13*GL0!N107 -> 0.000634135974 | F107: ='A1'!$AD$13*('GL1'!N107+'GV1'!N107) + 'A1'!$AF$13*'HR1'!N107 + 'A1'!$AH$13*('PL1'!N107+'PV1'!N107+'PH1'!N107) + 'HR1'!Z106 + 'PL1'!Z106 + 'PV1'!Z106 + 'PH1'!Z106 -> 0.007423410648 | G107: ='A1'!$AD$13*('GL2'!N107+'GV2'!N107) + 'A1'!$AF$13*'HR2'!N107 + 'A1'!$AH$13*('PL2'!N107+'PV2'!N107+'PH2'!N107) + 'HR2'!Z106 + 'PL2'!Z106 + 'PV2'!Z106 + 'PH2'!Z106 -> 0.006565469555 | I107: ='A1'!$AD$13*(MV1a!N107+MV1b!N107) + 'A1'!$AF$13*'JH1'!N107 + 'A1'!$AH$13*('PM1'!N107+'PJ1'!N107) + MV1a!Z106 + MV1b!Z106 + 'JH1'!Z106 + 'PM1'!Z106 + 'PJ1'!Z106 -> 0.01019763295 | J107: ='A1'!$AD$13*'MV2'!N107 + 'A1'!$AF$13*'JH2'!N107 + 'A1'!$AH$13*('PM2'!N107+'PJ2'!N107) + 'MV2'!Z106 + 'JH2'!Z106 + 'PM2'!Z106 + 'PJ2'!Z106 -> 0.003532301939 | L107: ='A1'!$AF$13*('HR1'!N107+'JH1'!N107) + 'HR1'!Z106 + 'JH1'!Z106 -> 0.0007239516182 | M107: ='A1'!$AF$13*('HR2'!N107+'JH2'!N107) + 'HR2'!Z106 + 'JH2'!Z106 -> 0.0005646988806 | O107: ='A1'!$AH$13*('PL1'!N107+'PV1'!N107+'PH1'!N107+'PM1'!N107+'PJ1'!N107) + 'PL1'!Z106 + 'PV1'!Z106 + 'PH1'!Z106 + 'PM1'!Z106 + 'PJ1'!Z106 -> 0.0007069987686 | P107: ='A1'!$AH$13*('PL2'!N107+'PV2'!N107+'PH2'!N107+'PM2'!N107+'PJ2'!N107) + 'PL2'!Z106 + 'PV2'!Z106 + 'PH2'!Z106 + 'PM2'!Z106 + 'PJ2'!Z106 -> 0.0001618038848
B108: 4.25 | C108: 51
B109: 4.291666667 | C109: 51.5 | E109: ='A1'!$AD$13*GL0!N109 -> 0.0006340314648 | F109: ='A1'!$AD$13*('GL1'!N109+'GV1'!N109) + 'A1'!$AF$13*'HR1'!N109 + 'A1'!$AH$13*('PL1'!N109+'PV1'!N109+'PH1'!N109) + 'HR1'!Z108 + 'PL1'!Z108 + 'PV1'!Z108 + 'PH1'!Z108 -> 0.007422568657 | G109: ='A1'!$AD$13*('GL2'!N109+'GV2'!N109) + 'A1'!$AF$13*'HR2'!N109 + 'A1'!$AH$13*('PL2'!N109+'PV2'!N109+'PH2'!N109) + 'HR2'!Z108 + 'PL2'!Z108 + 'PV2'!Z108 + 'PH2'!Z108 -> 0.006564723341 | I109: ='A1'!$AD$13*(MV1a!N109+MV1b!N109) + 'A1'!$AF$13*'JH1'!N109 + 'A1'!$AH$13*('PM1'!N109+'PJ1'!N109) + MV1a!Z108 + MV1b!Z108 + 'JH1'!Z108 + 'PM1'!Z108 + 'PJ1'!Z108 -> 0.01019709495 | J109: ='A1'!$AD$13*'MV2'!N109 + 'A1'!$AF$13*'JH2'!N109 + 'A1'!$AH$13*('PM2'!N109+'PJ2'!N109) + 'MV2'!Z108 + 'JH2'!Z108 + 'PM2'!Z108 + 'PJ2'!Z108 -> 0.003531966864 | L109: ='A1'!$AF$13*('HR1'!N109+'JH1'!N109) + 'HR1'!Z108 + 'JH1'!Z108 -> 0.0007239486301 | M109: ='A1'!$AF$13*('HR2'!N109+'JH2'!N109) + 'HR2'!Z108 + 'JH2'!Z108 -> 0.0005646971333 | O109: ='A1'!$AH$13*('PL1'!N109+'PV1'!N109+'PH1'!N109+'PM1'!N109+'PJ1'!N109) + 'PL1'!Z108 + 'PV1'!Z108 + 'PH1'!Z108 + 'PM1'!Z108 + 'PJ1'!Z108 -> 0.0007069924078 | P109: ='A1'!$AH$13*('PL2'!N109+'PV2'!N109+'PH2'!N109+'PM2'!N109+'PJ2'!N109) + 'PL2'!Z108 + 'PV2'!Z108 + 'PH2'!Z108 + 'PM2'!Z108 + 'PJ2'!Z108 -> 0.0001618025989
B110: 4.333333333 | C110: 52
B111: 4.375 | C111: 52.5 | E111: ='A1'!$AD$13*GL0!N111 -> 0.000633926015 | F111: ='A1'!$AD$13*('GL1'!N111+'GV1'!N111) + 'A1'!$AF$13*'HR1'!N111 + 'A1'!$AH$13*('PL1'!N111+'PV1'!N111+'PH1'!N111) + 'HR1'!Z110 + 'PL1'!Z110 + 'PV1'!Z110 + 'PH1'!Z110 -> 0.007421718825 | G111: ='A1'!$AD$13*('GL2'!N111+'GV2'!N111) + 'A1'!$AF$13*'HR2'!N111 + 'A1'!$AH$13*('PL2'!N111+'PV2'!N111+'PH2'!N111) + 'HR2'!Z110 + 'PL2'!Z110 + 'PV2'!Z110 + 'PH2'!Z110 -> 0.006563970094 | I111: ='A1'!$AD$13*(MV1a!N111+MV1b!N111) + 'A1'!$AF$13*'JH1'!N111 + 'A1'!$AH$13*('PM1'!N111+'PJ1'!N111) + MV1a!Z110 + MV1b!Z110 + 'JH1'!Z110 + 'PM1'!Z110 + 'PJ1'!Z110 -> 0.010196555 | J111: ='A1'!$AD$13*'MV2'!N111 + 'A1'!$AF$13*'JH2'!N111 + 'A1'!$AH$13*('PM2'!N111+'PJ2'!N111) + 'MV2'!Z110 + 'JH2'!Z110 + 'PM2'!Z110 + 'PJ2'!Z110 -> 0.003531630433 | L111: ='A1'!$AF$13*('HR1'!N111+'JH1'!N111) + 'HR1'!Z110 + 'JH1'!Z110 -> 0.0007239455038 | M111: ='A1'!$AF$13*('HR2'!N111+'JH2'!N111) + 'HR2'!Z110 + 'JH2'!Z110 -> 0.0005646952792 | O111: ='A1'!$AH$13*('PL1'!N111+'PV1'!N111+'PH1'!N111+'PM1'!N111+'PJ1'!N111) + 'PL1'!Z110 + 'PV1'!Z110 + 'PH1'!Z110 + 'PM1'!Z110 + 'PJ1'!Z110 -> 0.000706985947 | P111: ='A1'!$AH$13*('PL2'!N111+'PV2'!N111+'PH2'!N111+'PM2'!N111+'PJ2'!N111) + 'PL2'!Z110 + 'PV2'!Z110 + 'PH2'!Z110 + 'PM2'!Z110 + 'PJ2'!Z110 -> 0.0001618012913
B112: 4.416666667 | C112: 53
B113: 4.458333333 | C113: 53.5 | E113: ='A1'!$AD$13*GL0!N113 -> 0.0006338196581 | F113: ='A1'!$AD$13*('GL1'!N113+'GV1'!N113) + 'A1'!$AF$13*'HR1'!N113 + 'A1'!$AH$13*('PL1'!N113+'PV1'!N113+'PH1'!N113) + 'HR1'!Z112 + 'PL1'!Z112 + 'PV1'!Z112 + 'PH1'!Z112 -> 0.007420861404 | G113: ='A1'!$AD$13*('GL2'!N113+'GV2'!N113) + 'A1'!$AF$13*'HR2'!N113 + 'A1'!$AH$13*('PL2'!N113+'PV2'!N113+'PH2'!N113) + 'HR2'!Z112 + 'PL2'!Z112 + 'PV2'!Z112 + 'PH2'!Z112 -> 0.006563210044 | I113: ='A1'!$AD$13*(MV1a!N113+MV1b!N113) + 'A1'!$AF$13*'JH1'!N113 + 'A1'!$AH$13*('PM1'!N113+'PJ1'!N113) + MV1a!Z112 + MV1b!Z112 + 'JH1'!Z112 + 'PM1'!Z112 + 'PJ1'!Z112 -> 0.01019601319 | J113: ='A1'!$AD$13*'MV2'!N113 + 'A1'!$AF$13*'JH2'!N113 + 'A1'!$AH$13*('PM2'!N113+'PJ2'!N113) + 'MV2'!Z112 + 'JH2'!Z112 + 'PM2'!Z112 + 'PJ2'!Z112 -> 0.003531292718 | L113: ='A1'!$AF$13*('HR1'!N113+'JH1'!N113) + 'HR1'!Z112 + 'JH1'!Z112 -> 0.0007239422396 | M113: ='A1'!$AF$13*('HR2'!N113+'JH2'!N113) + 'HR2'!Z112 + 'JH2'!Z112 -> 0.0005646933183 | O113: ='A1'!$AH$13*('PL1'!N113+'PV1'!N113+'PH1'!N113+'PM1'!N113+'PJ1'!N113) + 'PL1'!Z112 + 'PV1'!Z112 + 'PH1'!Z112 + 'PM1'!Z112 + 'PJ1'!Z112 -> 0.0007069793875 | P113: ='A1'!$AH$13*('PL2'!N113+'PV2'!N113+'PH2'!N113+'PM2'!N113+'PJ2'!N113) + 'PL2'!Z112 + 'PV2'!Z112 + 'PH2'!Z112 + 'PM2'!Z112 + 'PJ2'!Z112 -> 0.0001617999623
B114: 4.5 | C114: 54
B115: 4.541666667 | C115: 54.5 | E115: ='A1'!$AD$13*GL0!N115 -> 0.0006337124264 | F115: ='A1'!$AD$13*('GL1'!N115+'GV1'!N115) + 'A1'!$AF$13*'HR1'!N115 + 'A1'!$AH$13*('PL1'!N115+'PV1'!N115+'PH1'!N115) + 'HR1'!Z114 + 'PL1'!Z114 + 'PV1'!Z114 + 'PH1'!Z114 -> 0.007419996637 | G115: ='A1'!$AD$13*('GL2'!N115+'GV2'!N115) + 'A1'!$AF$13*'HR2'!N115 + 'A1'!$AH$13*('PL2'!N115+'PV2'!N115+'PH2'!N115) + 'HR2'!Z114 + 'PL2'!Z114 + 'PV2'!Z114 + 'PH2'!Z114 -> 0.00656244341 | I115: ='A1'!$AD$13*(MV1a!N115+MV1b!N115) + 'A1'!$AF$13*'JH1'!N115 + 'A1'!$AH$13*('PM1'!N115+'PJ1'!N115) + MV1a!Z114 + MV1b!Z114 + 'JH1'!Z114 + 'PM1'!Z114 + 'PJ1'!Z114 -> 0.01019546964 | J115: ='A1'!$AD$13*'MV2'!N115 + 'A1'!$AF$13*'JH2'!N115 + 'A1'!$AH$13*('PM2'!N115+'PJ2'!N115) + 'MV2'!Z114 + 'JH2'!Z114 + 'PM2'!Z114 + 'PJ2'!Z114 -> 0.003530953787 | L115: ='A1'!$AF$13*('HR1'!N115+'JH1'!N115) + 'HR1'!Z114 + 'JH1'!Z114 -> 0.0007239388381 | M115: ='A1'!$AF$13*('HR2'!N115+'JH2'!N115) + 'HR2'!Z114 + 'JH2'!Z114 -> 0.0005646912507 | O115: ='A1'!$AH$13*('PL1'!N115+'PV1'!N115+'PH1'!N115+'PM1'!N115+'PJ1'!N115) + 'PL1'!Z114 + 'PV1'!Z114 + 'PH1'!Z114 + 'PM1'!Z114 + 'PJ1'!Z114 -> 0.0007069727305 | P115: ='A1'!$AH$13*('PL2'!N115+'PV2'!N115+'PH2'!N115+'PM2'!N115+'PJ2'!N115) + 'PL2'!Z114 + 'PV2'!Z114 + 'PH2'!Z114 + 'PM2'!Z114 + 'PJ2'!Z114 -> 0.0001617986121
B116: 4.583333333 | C116: 55
B117: 4.625 | C117: 55.5 | E117: ='A1'!$AD$13*GL0!N117 -> 0.0006336043511 | F117: ='A1'!$AD$13*('GL1'!N117+'GV1'!N117) + 'A1'!$AF$13*'HR1'!N117 + 'A1'!$AH$13*('PL1'!N117+'PV1'!N117+'PH1'!N117) + 'HR1'!Z116 + 'PL1'!Z116 + 'PV1'!Z116 + 'PH1'!Z116 -> 0.007419124754 | G117: ='A1'!$AD$13*('GL2'!N117+'GV2'!N117) + 'A1'!$AF$13*'HR2'!N117 + 'A1'!$AH$13*('PL2'!N117+'PV2'!N117+'PH2'!N117) + 'HR2'!Z116 + 'PL2'!Z116 + 'PV2'!Z116 + 'PH2'!Z116 -> 0.006561670404 | I117: ='A1'!$AD$13*(MV1a!N117+MV1b!N117) + 'A1'!$AF$13*'JH1'!N117 + 'A1'!$AH$13*('PM1'!N117+'PJ1'!N117) + MV1a!Z116 + MV1b!Z116 + 'JH1'!Z116 + 'PM1'!Z116 + 'PJ1'!Z116 -> 0.01019492444 | J117: ='A1'!$AD$13*'MV2'!N117 + 'A1'!$AF$13*'JH2'!N117 + 'A1'!$AH$13*('PM2'!N117+'PJ2'!N117) + 'MV2'!Z116 + 'JH2'!Z116 + 'PM2'!Z116 + 'PJ2'!Z116 -> 0.0035306137 | L117: ='A1'!$AF$13*('HR1'!N117+'JH1'!N117) + 'HR1'!Z116 + 'JH1'!Z116 -> 0.0007239352995 | M117: ='A1'!$AF$13*('HR2'!N117+'JH2'!N117) + 'HR2'!Z116 + 'JH2'!Z116 -> 0.0005646890767 | O117: ='A1'!$AH$13*('PL1'!N117+'PV1'!N117+'PH1'!N117+'PM1'!N117+'PJ1'!N117) + 'PL1'!Z116 + 'PV1'!Z116 + 'PH1'!Z116 + 'PM1'!Z116 + 'PJ1'!Z116 -> 0.0007069659772 | P117: ='A1'!$AH$13*('PL2'!N117+'PV2'!N117+'PH2'!N117+'PM2'!N117+'PJ2'!N117) + 'PL2'!Z116 + 'PV2'!Z116 + 'PH2'!Z116 + 'PM2'!Z116 + 'PJ2'!Z116 -> 0.000161797241
B118: 4.666666667 | C118: 56
B119: 4.708333333 | C119: 56.5 | E119: ='A1'!$AD$13*GL0!N119 -> 0.0006334954618 | F119: ='A1'!$AD$13*('GL1'!N119+'GV1'!N119) + 'A1'!$AF$13*'HR1'!N119 + 'A1'!$AH$13*('PL1'!N119+'PV1'!N119+'PH1'!N119) + 'HR1'!Z118 + 'PL1'!Z118 + 'PV1'!Z118 + 'PH1'!Z118 -> 0.007418245977 | G119: ='A1'!$AD$13*('GL2'!N119+'GV2'!N119) + 'A1'!$AF$13*'HR2'!N119 + 'A1'!$AH$13*('PL2'!N119+'PV2'!N119+'PH2'!N119) + 'HR2'!Z118 + 'PL2'!Z118 + 'PV2'!Z118 + 'PH2'!Z118 -> 0.006560891225 | I119: ='A1'!$AD$13*(MV1a!N119+MV1b!N119) + 'A1'!$AF$13*'JH1'!N119 + 'A1'!$AH$13*('PM1'!N119+'PJ1'!N119) + MV1a!Z118 + MV1b!Z118 + 'JH1'!Z118 + 'PM1'!Z118 + 'PJ1'!Z118 -> 0.01019437767 | J119: ='A1'!$AD$13*'MV2'!N119 + 'A1'!$AF$13*'JH2'!N119 + 'A1'!$AH$13*('PM2'!N119+'PJ2'!N119) + 'MV2'!Z118 + 'JH2'!Z118 + 'PM2'!Z118 + 'PJ2'!Z118 -> 0.003530272517 | L119: ='A1'!$AF$13*('HR1'!N119+'JH1'!N119) + 'HR1'!Z118 + 'JH1'!Z118 -> 0.0007239316244 | M119: ='A1'!$AF$13*('HR2'!N119+'JH2'!N119) + 'HR2'!Z118 + 'JH2'!Z118 -> 0.0005646867964 | O119: ='A1'!$AH$13*('PL1'!N119+'PV1'!N119+'PH1'!N119+'PM1'!N119+'PJ1'!N119) + 'PL1'!Z118 + 'PV1'!Z118 + 'PH1'!Z118 + 'PM1'!Z118 + 'PJ1'!Z118 -> 0.0007069591286 | P119: ='A1'!$AH$13*('PL2'!N119+'PV2'!N119+'PH2'!N119+'PM2'!N119+'PJ2'!N119) + 'PL2'!Z118 + 'PV2'!Z118 + 'PH2'!Z118 + 'PM2'!Z118 + 'PJ2'!Z118 -> 0.0001617958492
B120: 4.75 | C120: 57
B121: 4.791666667 | C121: 57.5 | E121: ='A1'!$AD$13*GL0!N121 -> 0.0006333857869 | F121: ='A1'!$AD$13*('GL1'!N121+'GV1'!N121) + 'A1'!$AF$13*'HR1'!N121 + 'A1'!$AH$13*('PL1'!N121+'PV1'!N121+'PH1'!N121) + 'HR1'!Z120 + 'PL1'!Z120 + 'PV1'!Z120 + 'PH1'!Z120 -> 0.007417360519 | G121: ='A1'!$AD$13*('GL2'!N121+'GV2'!N121) + 'A1'!$AF$13*'HR2'!N121 + 'A1'!$AH$13*('PL2'!N121+'PV2'!N121+'PH2'!N121) + 'HR2'!Z120 + 'PL2'!Z120 + 'PV2'!Z120 + 'PH2'!Z120 -> 0.006560106068 | I121: ='A1'!$AD$13*(MV1a!N121+MV1b!N121) + 'A1'!$AF$13*'JH1'!N121 + 'A1'!$AH$13*('PM1'!N121+'PJ1'!N121) + MV1a!Z120 + MV1b!Z120 + 'JH1'!Z120 + 'PM1'!Z120 + 'PJ1'!Z120 -> 0.01019382942 | J121: ='A1'!$AD$13*'MV2'!N121 + 'A1'!$AF$13*'JH2'!N121 + 'A1'!$AH$13*('PM2'!N121+'PJ2'!N121) + 'MV2'!Z120 + 'JH2'!Z120 + 'PM2'!Z120 + 'PJ2'!Z120 -> 0.003529930292 | L121: ='A1'!$AF$13*('HR1'!N121+'JH1'!N121) + 'HR1'!Z120 + 'JH1'!Z120 -> 0.0007239278132 | M121: ='A1'!$AF$13*('HR2'!N121+'JH2'!N121) + 'HR2'!Z120 + 'JH2'!Z120 -> 0.0005646844099 | O121: ='A1'!$AH$13*('PL1'!N121+'PV1'!N121+'PH1'!N121+'PM1'!N121+'PJ1'!N121) + 'PL1'!Z120 + 'PV1'!Z120 + 'PH1'!Z120 + 'PM1'!Z120 + 'PJ1'!Z120 -> 0.000706952186 | P121: ='A1'!$AH$13*('PL2'!N121+'PV2'!N121+'PH2'!N121+'PM2'!N121+'PJ2'!N121) + 'PL2'!Z120 + 'PV2'!Z120 + 'PH2'!Z120 + 'PM2'!Z120 + 'PJ2'!Z120 -> 0.000161794437
B122: 4.833333333 | C122: 58
B123: 4.875 | C123: 58.5 | E123: ='A1'!$AD$13*GL0!N123 -> 0.0006332753539 | F123: ='A1'!$AD$13*('GL1'!N123+'GV1'!N123) + 'A1'!$AF$13*'HR1'!N123 + 'A1'!$AH$13*('PL1'!N123+'PV1'!N123+'PH1'!N123) + 'HR1'!Z122 + 'PL1'!Z122 + 'PV1'!Z122 + 'PH1'!Z122 -> 0.007416468584 | G123: ='A1'!$AD$13*('GL2'!N123+'GV2'!N123) + 'A1'!$AF$13*'HR2'!N123 + 'A1'!$AH$13*('PL2'!N123+'PV2'!N123+'PH2'!N123) + 'HR2'!Z122 + 'PL2'!Z122 + 'PV2'!Z122 + 'PH2'!Z122 -> 0.006559315118 | I123: ='A1'!$AD$13*(MV1a!N123+MV1b!N123) + 'A1'!$AF$13*'JH1'!N123 + 'A1'!$AH$13*('PM1'!N123+'PJ1'!N123) + MV1a!Z122 + MV1b!Z122 + 'JH1'!Z122 + 'PM1'!Z122 + 'PJ1'!Z122 -> 0.01019327976 | J123: ='A1'!$AD$13*'MV2'!N123 + 'A1'!$AF$13*'JH2'!N123 + 'A1'!$AH$13*('PM2'!N123+'PJ2'!N123) + 'MV2'!Z122 + 'JH2'!Z122 + 'PM2'!Z122 + 'PJ2'!Z122 -> 0.003529587074 | L123: ='A1'!$AF$13*('HR1'!N123+'JH1'!N123) + 'HR1'!Z122 + 'JH1'!Z122 -> 0.0007239238663 | M123: ='A1'!$AF$13*('HR2'!N123+'JH2'!N123) + 'HR2'!Z122 + 'JH2'!Z122 -> 0.0005646819174 | O123: ='A1'!$AH$13*('PL1'!N123+'PV1'!N123+'PH1'!N123+'PM1'!N123+'PJ1'!N123) + 'PL1'!Z122 + 'PV1'!Z122 + 'PH1'!Z122 + 'PM1'!Z122 + 'PJ1'!Z122 -> 0.0007069451503 | P123: ='A1'!$AH$13*('PL2'!N123+'PV2'!N123+'PH2'!N123+'PM2'!N123+'PJ2'!N123) + 'PL2'!Z122 + 'PV2'!Z122 + 'PH2'!Z122 + 'PM2'!Z122 + 'PJ2'!Z122 -> 0.0001617930045
B124: 4.916666667 | C124: 59
B125: 4.958333333 | C125: 59.5 | E125: ='A1'!$AD$13*GL0!N125 -> 0.0006331641888 | F125: ='A1'!$AD$13*('GL1'!N125+'GV1'!N125) + 'A1'!$AF$13*'HR1'!N125 + 'A1'!$AH$13*('PL1'!N125+'PV1'!N125+'PH1'!N125) + 'HR1'!Z124 + 'PL1'!Z124 + 'PV1'!Z124 + 'PH1'!Z124 -> 0.007415570365 | G125: ='A1'!$AD$13*('GL2'!N125+'GV2'!N125) + 'A1'!$AF$13*'HR2'!N125 + 'A1'!$AH$13*('PL2'!N125+'PV2'!N125+'PH2'!N125) + 'HR2'!Z124 + 'PL2'!Z124 + 'PV2'!Z124 + 'PH2'!Z124 -> 0.00655851855 | I125: ='A1'!$AD$13*(MV1a!N125+MV1b!N125) + 'A1'!$AF$13*'JH1'!N125 + 'A1'!$AH$13*('PM1'!N125+'PJ1'!N125) + MV1a!Z124 + MV1b!Z124 + 'JH1'!Z124 + 'PM1'!Z124 + 'PJ1'!Z124 -> 0.01019272876 | J125: ='A1'!$AD$13*'MV2'!N125 + 'A1'!$AF$13*'JH2'!N125 + 'A1'!$AH$13*('PM2'!N125+'PJ2'!N125) + 'MV2'!Z124 + 'JH2'!Z124 + 'PM2'!Z124 + 'PJ2'!Z124 -> 0.003529242911 | L125: ='A1'!$AF$13*('HR1'!N125+'JH1'!N125) + 'HR1'!Z124 + 'JH1'!Z124 -> 0.0007239197841 | M125: ='A1'!$AF$13*('HR2'!N125+'JH2'!N125) + 'HR2'!Z124 + 'JH2'!Z124 -> 0.0005646793191 | O125: ='A1'!$AH$13*('PL1'!N125+'PV1'!N125+'PH1'!N125+'PM1'!N125+'PJ1'!N125) + 'PL1'!Z124 + 'PV1'!Z124 + 'PH1'!Z124 + 'PM1'!Z124 + 'PJ1'!Z124 -> 0.0007069380224 | P125: ='A1'!$AH$13*('PL2'!N125+'PV2'!N125+'PH2'!N125+'PM2'!N125+'PJ2'!N125) + 'PL2'!Z124 + 'PV2'!Z124 + 'PH2'!Z124 + 'PM2'!Z124 + 'PJ2'!Z124 -> 0.000161791552
... 156 more rows

Sheet O2 (hidden)
E2: Screening tests performed | J2: Treatments performed | O2: Severe pathology (PTB+EPTB) | S2: Hospital. | U2: Deaths | X2: PTB, incl. during treatment and with severe path. | AD2: Product. loss (years) | AG2: Screening tests performed (not prisoners) | AL2: Outreach | AN2: Screening tests for BRHR
Y3: Natives | AA3: Migrants
B4: Time | E4: CXR | F4: Culture | G4: IGRA | H4: TST | J4: PTB-scrn | K4: LTBI | L4: PTB-self | M4: EPTB-self | O4: 0-14 | P4: 15-44 | Q4: 45+ | S4: Total | U4: Total | V4: YLL | X4: 0-14 | Y4: 15-44 | Z4: 45+ | AA4: 15-44 | AB4: 45+ | AD4: Disease | AE4: Death | AG4: CXR | AH4: Culture | AI4: IGRA | AJ4: TST | AL4: Total | AN4: CXR | AO4: Culture | AP4: IGRA | AQ4: TST
B5: Years | C5: Months
B6: =$C6/12 -> 0 | C6: 0 | E6: ='HR1'!R6+'HR2'!R6+MV1a!R6+MV1b!R6+'MV2'!R6+'JH1'!R6+'JH2'!R6+'PL1'!R6+'PL2'!R6+'PV1'!R6+'PV2'!R6+'PH1'!R6+'PH2'!R6+'PM1'!R6+'PM2'!R6+'PJ1'!R6+'PJ2'!R6 -> 3.007722962 | F6: ='HR1'!S6+'HR2'!S6+MV1a!S6+MV1b!S6+'MV2'!S6+'JH1'!S6+'JH2'!S6+'PL1'!S6+'PL2'!S6+'PV1'!S6+'PV2'!S6+'PH1'!S6+'PH2'!S6+'PM1'!S6+'PM2'!S6+'PJ1'!S6+'PJ2'!S6 -> 0.1291967041 | G6: ='HR1'!T6+'HR2'!T6+MV1a!T6+MV1b!T6+'MV2'!T6+'JH1'!T6+'JH2'!T6+'PL1'!T6+'PL2'!T6+'PV1'!T6+'PV2'!T6+'PH1'!T6+'PH2'!T6+'PM1'!T6+'PM2'!T6+'PJ1'!T6+'PJ2'!T6 -> 0 | H6: ='HR1'!U6+'HR2'!U6+MV1a!U6+MV1b!U6+'MV2'!U6+'JH1'!U6+'JH2'!U6+'PL1'!U6+'PL2'!U6+'PV1'!U6+'PV2'!U6+'PH1'!U6+'PH2'!U6+'PM1'!U6+'PM2'!U6+'PJ1'!U6+'PJ2'!U6 -> 0 | J6: ='HR1'!W6+'HR2'!W6+MV1a!W6+MV1b!W6+'MV2'!W6+'JH1'!W6+'JH2'!W6+'PL1'!W6+'PL2'!W6+'PV1'!W6+'PV2'!W6+'PH1'!W6+'PH2'!W6+'PM1'!W6+'PM2'!W6+'PJ1'!W6+'PJ2'!W6 -> 0.002081001785 | K6: ='HR1'!X6+'HR2'!X6+IF('A3'!$L$24=0,0,MV1a!X6+MV1b!X6+'MV2'!X6)+'JH1'!X6+'JH2'!X6+'PL1'!X6+'PL2'!X6+'PV1'!X6+'PV2'!X6+'PH1'!X6+'PH2'!X6+'PM1'!X6+'PM2'!X6+'PJ1'!X6+'PJ2'!X6 -> 0 | AG6: ='HR1'!R6+'HR2'!R6+MV1a!R6+MV1b!R6+'MV2'!R6+'JH1'!R6+'JH2'!R6 -> 1.310110328 | AH6: ='HR1'!S6+'HR2'!S6+MV1a!S6+MV1b!S6+'MV2'!S6+'JH1'!S6+'JH2'!S6 -> 0.05909529401 | AI6: ='HR1'!T6+'HR2'!T6+MV1a!T6+MV1b!T6+'MV2'!T6+'JH1'!T6+'JH2'!T6 -> 0 | AJ6: ='HR1'!U6+'HR2'!U6+MV1a!U6+MV1b!U6+'MV2'!U6+'JH1'!U6+'JH2'!U6 -> 0 | AL6: =MAX(AN6:AQ6) -> 0 | AN6: ='HR1'!R6+'HR2'!R6+'JH1'!R6+'JH2'!R6 -> 0 | AO6: ='HR1'!S6+'HR2'!S6+'JH1'!S6+'JH2'!S6 -> 0 | AP6: ='HR1'!T6+'HR2'!T6+'JH1'!T6+'JH2'!T6 -> 0 | AQ6: ='HR1'!U6+'HR2'!U6+'JH1'!U6+'JH2'!U6 -> 0
B7: =$C7/12 -> 0.04166666667 | C7: =$C6+0.5 -> 0.5 | L7: =GL0!AA7+'GL1'!AA7+'GL2'!AA7+'GV1'!AA7+'GV2'!AA7+'HR1'!AA7+'HR2'!AA7+MV1a!AA7+MV1b!AA7+'MV2'!AA7+'JH1'!AA7+'JH2'!AA7+'PL1'!AA7+'PL2'!AA7+'PV1'!AA7+'PV2'!AA7+'PH1'!AA7+'PH2'!AA7+'PM1'!AA7+'PM2'!AA7+'PJ1'!AA7+'PJ2'!AA7 -> 0.02623464743 | M7: ='A1'!$H$20*GL0!AA7 + 'A1'!$I$20*('GL1'!AA7+'GV1'!AA7+'HR1'!AA7+'PL1'!AA7+'PV1'!AA7+'PH1'!AA7) + 'A1'!$J$20*('GL2'!AA7+'GV2'!AA7+'HR2'!AA7+'PL2'!AA7+'PV2'!AA7+'PH2'!AA7) + 'A1'!$K$20*(MV1a!AA7+MV1b!AA7+'JH1'!AA7+'PM1'!AA7+'PJ1'!AA7) + 'A1'!$L$20*('MV2'!AA7+'JH2'!AA7+'PM2'!AA7+'PJ2'!AA7) -> 0.01991880147 | O7: =(1+'A1'!$H$20)*'A1'!$I$9*'A1'!$AD$5*GL0!N7 -> 0.0001718251654 | P7: =(1+'A1'!$I$20)*('A1'!$I$9*'A1'!$AD$5*('GL1'!N7+'GV1'!N7) + 'A1'!$I$9*'A1'!$AF$5*'HR1'!N7 + 'A1'!$I$9*'A1'!$AH$5*('PL1'!N7+'PV1'!N7+'PH1'!N7)) + (1+'A1'!$K$20)*('A1'!$I$9*'A1'!$AD$5*(MV1a!N7+MV1b!N7) + 'A1'!$I$9*'A1'!$AF$5*'JH1'!N7 + 'A1'!$I$9*'A1'!$AH$5*('PM1'!N7+'PJ1'!N7)) -> 0.002705928473 | Q7: =(1+'A1'!$J$20)*('A1'!$I$9*'A1'!$AD$5*('GL2'!N7+'GV2'!N7) + 'A1'!$I$9*'A1'!$AF$5*'HR2'!N7 + 'A1'!$I$9*'A1'!$AH$5*('PL2'!N7+'PV2'!N7+'PH2'!N7)) + (1+'A1'!$L$20)*('A1'!$I$9*'A1'!$AD$5*'MV2'!N7 + 'A1'!$I$9*'A1'!$AF$5*'JH2'!N7 + 'A1'!$I$9*'A1'!$AH$5*('PM2'!N7+'PJ2'!N7)) -> 0.001697260216 | S7: ='A1'!$F$23*SUM(O7:Q7) + 'A1'!$F$24*(L7+M7-SUM(O7:Q7)) + 'A1'!$F$25*J6 -> 0.00998021041 | U7: ='A1'!$F$28*O7 + 'A1'!$F$29*P7 + 'A1'!$F$30*Q7 -> 0.001334017641 | V7: ='A1'!$L$28*'A1'!$F$28*O7 + 'A1'!$L$29*'A1'!$F$29*P7 + 'A1'!$L$30*'A1'!$F$30*Q7 -> 0.02707084033 | X7: =(1+'A1'!$AD$23)*GL0!N7 -> 0.002790599802 | Y7: =(1+'A1'!$AD$23)*('GL1'!N7+'GV1'!N7) + (1+'A1'!$AF$23)*'HR1'!N7 + (1+'A1'!$AH$23)*('PL1'!N7+'PV1'!N7+'PH1'!N7) -> 0.03267243989 | Z7: =(1+'A1'!$AD$23)*('GL2'!N7+'GV2'!N7) + (1+'A1'!$AF$23)*'HR2'!N7 + (1+'A1'!$AH$23)*('PL2'!N7+'PV2'!N7+'PH2'!N7) -> 0.03015767376 | AA7: =(1+'A1'!$AD$23)*(MV1a!N7+MV1b!N7) + (1+'A1'!$AF$23)*'JH1'!N7 + (1+'A1'!$AH$23)*('PM1'!N7+'PJ1'!N7) -> 0.03866840315 | AB7: =(1+'A1'!$AD$23)*'MV2'!N7 + (1+'A1'!$AF$23)*'JH2'!N7 + (1+'A1'!$AH$23)*('PM2'!N7+'PJ2'!N7) -> 0.0154850558 | AD7: ='A1'!$T$29*(L7+M7) -> 0.007692241483 | AE7: ='A1'!$M$28*'A1'!$F$28*O7 + 'A1'!$M$29*'A1'!$F$29*P7 + 'A1'!$M$30*'A1'!$F$30*Q7 -> 0.01974029475
B8: =$C8/12 -> 0.08333333333 | C8: =$C7+0.5 -> 1 | E8: ='HR1'!R8+'HR2'!R8+MV1a!R8+MV1b!R8+'MV2'!R8+'JH1'!R8+'JH2'!R8+'PL1'!R8+'PL2'!R8+'PV1'!R8+'PV2'!R8+'PH1'!R8+'PH2'!R8+'PM1'!R8+'PM2'!R8+'PJ1'!R8+'PJ2'!R8 -> 3.007722962 | F8: ='HR1'!S8+'HR2'!S8+MV1a!S8+MV1b!S8+'MV2'!S8+'JH1'!S8+'JH2'!S8+'PL1'!S8+'PL2'!S8+'PV1'!S8+'PV2'!S8+'PH1'!S8+'PH2'!S8+'PM1'!S8+'PM2'!S8+'PJ1'!S8+'PJ2'!S8 -> 0.1291967013 | G8: ='HR1'!T8+'HR2'!T8+MV1a!T8+MV1b!T8+'MV2'!T8+'JH1'!T8+'JH2'!T8+'PL1'!T8+'PL2'!T8+'PV1'!T8+'PV2'!T8+'PH1'!T8+'PH2'!T8+'PM1'!T8+'PM2'!T8+'PJ1'!T8+'PJ2'!T8 -> 0 | H8: ='HR1'!U8+'HR2'!U8+MV1a!U8+MV1b!U8+'MV2'!U8+'JH1'!U8+'JH2'!U8+'PL1'!U8+'PL2'!U8+'PV1'!U8+'PV2'!U8+'PH1'!U8+'PH2'!U8+'PM1'!U8+'PM2'!U8+'PJ1'!U8+'PJ2'!U8 -> 0 | J8: ='HR1'!W8+'HR2'!W8+MV1a!W8+MV1b!W8+'MV2'!W8+'JH1'!W8+'JH2'!W8+'PL1'!W8+'PL2'!W8+'PV1'!W8+'PV2'!W8+'PH1'!W8+'PH2'!W8+'PM1'!W8+'PM2'!W8+'PJ1'!W8+'PJ2'!W8 -> 0.002081000778 | K8: ='HR1'!X8+'HR2'!X8+IF('A3'!$L$24=0,0,MV1a!X8+MV1b!X8+'MV2'!X8)+'JH1'!X8+'JH2'!X8+'PL1'!X8+'PL2'!X8+'PV1'!X8+'PV2'!X8+'PH1'!X8+'PH2'!X8+'PM1'!X8+'PM2'!X8+'PJ1'!X8+'PJ2'!X8 -> 0 | AG8: ='HR1'!R8+'HR2'!R8+MV1a!R8+MV1b!R8+'MV2'!R8+'JH1'!R8+'JH2'!R8 -> 1.310110329 | AH8: ='HR1'!S8+'HR2'!S8+MV1a!S8+MV1b!S8+'MV2'!S8+'JH1'!S8+'JH2'!S8 -> 0.05909529403 | AI8: ='HR1'!T8+'HR2'!T8+MV1a!T8+MV1b!T8+'MV2'!T8+'JH1'!T8+'JH2'!T8 -> 0 | AJ8: ='HR1'!U8+'HR2'!U8+MV1a!U8+MV1b!U8+'MV2'!U8+'JH1'!U8+'JH2'!U8 -> 0 | AL8: =MAX(AN8:AQ8) -> 0 | AN8: ='HR1'!R8+'HR2'!R8+'JH1'!R8+'JH2'!R8 -> 0 | AO8: ='HR1'!S8+'HR2'!S8+'JH1'!S8+'JH2'!S8 -> 0 | AP8: ='HR1'!T8+'HR2'!T8+'JH1'!T8+'JH2'!T8 -> 0 | AQ8: ='HR1'!U8+'HR2'!U8+'JH1'!U8+'JH2'!U8 -> 0
B9: 0.125 | C9: 1.5 | L9: =GL0!AA9+'GL1'!AA9+'GL2'!AA9+'GV1'!AA9+'GV2'!AA9+'HR1'!AA9+'HR2'!AA9+MV1a!AA9+MV1b!AA9+'MV2'!AA9+'JH1'!AA9+'JH2'!AA9+'PL1'!AA9+'PL2'!AA9+'PV1'!AA9+'PV2'!AA9+'PH1'!AA9+'PH2'!AA9+'PM1'!AA9+'PM2'!AA9+'PJ1'!AA9+'PJ2'!AA9 -> 0.02623463638 | M9: ='A1'!$H$20*GL0!AA9 + 'A1'!$I$20*('GL1'!AA9+'GV1'!AA9+'HR1'!AA9+'PL1'!AA9+'PV1'!AA9+'PH1'!AA9) + 'A1'!$J$20*('GL2'!AA9+'GV2'!AA9+'HR2'!AA9+'PL2'!AA9+'PV2'!AA9+'PH2'!AA9) + 'A1'!$K$20*(MV1a!AA9+MV1b!AA9+'JH1'!AA9+'PM1'!AA9+'PJ1'!AA9) + 'A1'!$L$20*('MV2'!AA9+'JH2'!AA9+'PM2'!AA9+'PJ2'!AA9) -> 0.01991879538 | O9: =(1+'A1'!$H$20)*'A1'!$I$9*'A1'!$AD$5*GL0!N9 -> 0.0001718250647 | P9: =(1+'A1'!$I$20)*('A1'!$I$9*'A1'!$AD$5*('GL1'!N9+'GV1'!N9) + 'A1'!$I$9*'A1'!$AF$5*'HR1'!N9 + 'A1'!$I$9*'A1'!$AH$5*('PL1'!N9+'PV1'!N9+'PH1'!N9)) + (1+'A1'!$K$20)*('A1'!$I$9*'A1'!$AD$5*(MV1a!N9+MV1b!N9) + 'A1'!$I$9*'A1'!$AF$5*'JH1'!N9 + 'A1'!$I$9*'A1'!$AH$5*('PM1'!N9+'PJ1'!N9)) -> 0.002705927235 | Q9: =(1+'A1'!$J$20)*('A1'!$I$9*'A1'!$AD$5*('GL2'!N9+'GV2'!N9) + 'A1'!$I$9*'A1'!$AF$5*'HR2'!N9 + 'A1'!$I$9*'A1'!$AH$5*('PL2'!N9+'PV2'!N9+'PH2'!N9)) + (1+'A1'!$L$20)*('A1'!$I$9*'A1'!$AD$5*'MV2'!N9 + 'A1'!$I$9*'A1'!$AF$5*'JH2'!N9 + 'A1'!$I$9*'A1'!$AH$5*('PM2'!N9+'PJ2'!N9)) -> 0.001697259216 | S9: ='A1'!$F$23*SUM(O9:Q9) + 'A1'!$F$24*(L9+M9-SUM(O9:Q9)) + 'A1'!$F$25*J8 -> 0.009980206147 | U9: ='A1'!$F$28*O9 + 'A1'!$F$29*P9 + 'A1'!$F$30*Q9 -> 0.001334016905 | V9: ='A1'!$L$28*'A1'!$F$28*O9 + 'A1'!$L$29*'A1'!$F$29*P9 + 'A1'!$L$30*'A1'!$F$30*Q9 -> 0.02707082694 | X9: =(1+'A1'!$AD$23)*GL0!N9 -> 0.002790598167 | Y9: =(1+'A1'!$AD$23)*('GL1'!N9+'GV1'!N9) + (1+'A1'!$AF$23)*'HR1'!N9 + (1+'A1'!$AH$23)*('PL1'!N9+'PV1'!N9+'PH1'!N9) -> 0.03267240659 | Z9: =(1+'A1'!$AD$23)*('GL2'!N9+'GV2'!N9) + (1+'A1'!$AF$23)*'HR2'!N9 + (1+'A1'!$AH$23)*('PL2'!N9+'PV2'!N9+'PH2'!N9) -> 0.03015764618 | AA9: =(1+'A1'!$AD$23)*(MV1a!N9+MV1b!N9) + (1+'A1'!$AF$23)*'JH1'!N9 + (1+'A1'!$AH$23)*('PM1'!N9+'PJ1'!N9) -> 0.038668401 | AB9: =(1+'A1'!$AD$23)*'MV2'!N9 + (1+'A1'!$AF$23)*'JH2'!N9 + (1+'A1'!$AH$23)*('PM2'!N9+'PJ2'!N9) -> 0.01548505586 | AD9: ='A1'!$T$29*(L9+M9) -> 0.007692238627 | AE9: ='A1'!$M$28*'A1'!$F$28*O9 + 'A1'!$M$29*'A1'!$F$29*P9 + 'A1'!$M$30*'A1'!$F$30*Q9 -> 0.01974028496
B10: 0.1666666667 | C10: 2 | E10: ='HR1'!R10+'HR2'!R10+MV1a!R10+MV1b!R10+'MV2'!R10+'JH1'!R10+'JH2'!R10+'PL1'!R10+'PL2'!R10+'PV1'!R10+'PV2'!R10+'PH1'!R10+'PH2'!R10+'PM1'!R10+'PM2'!R10+'PJ1'!R10+'PJ2'!R10 -> 3.007722963 | F10: ='HR1'!S10+'HR2'!S10+MV1a!S10+MV1b!S10+'MV2'!S10+'JH1'!S10+'JH2'!S10+'PL1'!S10+'PL2'!S10+'PV1'!S10+'PV2'!S10+'PH1'!S10+'PH2'!S10+'PM1'!S10+'PM2'!S10+'PJ1'!S10+'PJ2'!S10 -> 0.1291966989 | G10: ='HR1'!T10+'HR2'!T10+MV1a!T10+MV1b!T10+'MV2'!T10+'JH1'!T10+'JH2'!T10+'PL1'!T10+'PL2'!T10+'PV1'!T10+'PV2'!T10+'PH1'!T10+'PH2'!T10+'PM1'!T10+'PM2'!T10+'PJ1'!T10+'PJ2'!T10 -> 0 | H10: ='HR1'!U10+'HR2'!U10+MV1a!U10+MV1b!U10+'MV2'!U10+'JH1'!U10+'JH2'!U10+'PL1'!U10+'PL2'!U10+'PV1'!U10+'PV2'!U10+'PH1'!U10+'PH2'!U10+'PM1'!U10+'PM2'!U10+'PJ1'!U10+'PJ2'!U10 -> 0 | J10: ='HR1'!W10+'HR2'!W10+MV1a!W10+MV1b!W10+'MV2'!W10+'JH1'!W10+'JH2'!W10+'PL1'!W10+'PL2'!W10+'PV1'!W10+'PV2'!W10+'PH1'!W10+'PH2'!W10+'PM1'!W10+'PM2'!W10+'PJ1'!W10+'PJ2'!W10 -> 0.002081000293 | K10: ='HR1'!X10+'HR2'!X10+IF('A3'!$L$24=0,0,MV1a!X10+MV1b!X10+'MV2'!X10)+'JH1'!X10+'JH2'!X10+'PL1'!X10+'PL2'!X10+'PV1'!X10+'PV2'!X10+'PH1'!X10+'PH2'!X10+'PM1'!X10+'PM2'!X10+'PJ1'!X10+'PJ2'!X10 -> 0 | AG10: ='HR1'!R10+'HR2'!R10+MV1a!R10+MV1b!R10+'MV2'!R10+'JH1'!R10+'JH2'!R10 -> 1.310110329 | AH10: ='HR1'!S10+'HR2'!S10+MV1a!S10+MV1b!S10+'MV2'!S10+'JH1'!S10+'JH2'!S10 -> 0.05909529405 | AI10: ='HR1'!T10+'HR2'!T10+MV1a!T10+MV1b!T10+'MV2'!T10+'JH1'!T10+'JH2'!T10 -> 0 | AJ10: ='HR1'!U10+'HR2'!U10+MV1a!U10+MV1b!U10+'MV2'!U10+'JH1'!U10+'JH2'!U10 -> 0 | AL10: =MAX(AN10:AQ10) -> 0 | AN10: ='HR1'!R10+'HR2'!R10+'JH1'!R10+'JH2'!R10 -> 0 | AO10: ='HR1'!S10+'HR2'!S10+'JH1'!S10+'JH2'!S10 -> 0 | AP10: ='HR1'!T10+'HR2'!T10+'JH1'!T10+'JH2'!T10 -> 0 | AQ10: ='HR1'!U10+'HR2'!U10+'JH1'!U10+'JH2'!U10 -> 0
B11: 0.2083333333 | C11: 2.5 | L11: =GL0!AA11+'GL1'!AA11+'GL2'!AA11+'GV1'!AA11+'GV2'!AA11+'HR1'!AA11+'HR2'!AA11+MV1a!AA11+MV1b!AA11+'MV2'!AA11+'JH1'!AA11+'JH2'!AA11+'PL1'!AA11+'PL2'!AA11+'PV1'!AA11+'PV2'!AA11+'PH1'!AA11+'PH2'!AA11+'PM1'!AA11+'PM2'!AA11+'PJ1'!AA11+'PJ2'!AA11 -> 0.02623462536 | M11: ='A1'!$H$20*GL0!AA11 + 'A1'!$I$20*('GL1'!AA11+'GV1'!AA11+'HR1'!AA11+'PL1'!AA11+'PV1'!AA11+'PH1'!AA11) + 'A1'!$J$20*('GL2'!AA11+'GV2'!AA11+'HR2'!AA11+'PL2'!AA11+'PV2'!AA11+'PH2'!AA11) + 'A1'!$K$20*(MV1a!AA11+MV1b!AA11+'JH1'!AA11+'PM1'!AA11+'PJ1'!AA11) + 'A1'!$L$20*('MV2'!AA11+'JH2'!AA11+'PM2'!AA11+'PJ2'!AA11) -> 0.0199187893 | O11: =(1+'A1'!$H$20)*'A1'!$I$9*'A1'!$AD$5*GL0!N11 -> 0.0001718249643 | P11: =(1+'A1'!$I$20)*('A1'!$I$9*'A1'!$AD$5*('GL1'!N11+'GV1'!N11) + 'A1'!$I$9*'A1'!$AF$5*'HR1'!N11 + 'A1'!$I$9*'A1'!$AH$5*('PL1'!N11+'PV1'!N11+'PH1'!N11)) + (1+'A1'!$K$20)*('A1'!$I$9*'A1'!$AD$5*(MV1a!N11+MV1b!N11) + 'A1'!$I$9*'A1'!$AF$5*'JH1'!N11 + 'A1'!$I$9*'A1'!$AH$5*('PM1'!N11+'PJ1'!N11)) -> 0.002705926001 | Q11: =(1+'A1'!$J$20)*('A1'!$I$9*'A1'!$AD$5*('GL2'!N11+'GV2'!N11) + 'A1'!$I$9*'A1'!$AF$5*'HR2'!N11 + 'A1'!$I$9*'A1'!$AH$5*('PL2'!N11+'PV2'!N11+'PH2'!N11)) + (1+'A1'!$L$20)*('A1'!$I$9*'A1'!$AD$5*'MV2'!N11 + 'A1'!$I$9*'A1'!$AF$5*'JH2'!N11 + 'A1'!$I$9*'A1'!$AH$5*('PM2'!N11+'PJ2'!N11)) -> 0.00169725822 | S11: ='A1'!$F$23*SUM(O11:Q11) + 'A1'!$F$24*(L11+M11-SUM(O11:Q11)) + 'A1'!$F$25*J10 -> 0.009980201897 | U11: ='A1'!$F$28*O11 + 'A1'!$F$29*P11 + 'A1'!$F$30*Q11 -> 0.001334016171 | V11: ='A1'!$L$28*'A1'!$F$28*O11 + 'A1'!$L$29*'A1'!$F$29*P11 + 'A1'!$L$30*'A1'!$F$30*Q11 -> 0.02707081359 | X11: =(1+'A1'!$AD$23)*GL0!N11 -> 0.002790596536 | Y11: =(1+'A1'!$AD$23)*('GL1'!N11+'GV1'!N11) + (1+'A1'!$AF$23)*'HR1'!N11 + (1+'A1'!$AH$23)*('PL1'!N11+'PV1'!N11+'PH1'!N11) -> 0.0326723734 | Z11: =(1+'A1'!$AD$23)*('GL2'!N11+'GV2'!N11) + (1+'A1'!$AF$23)*'HR2'!N11 + (1+'A1'!$AH$23)*('PL2'!N11+'PV2'!N11+'PH2'!N11) -> 0.03015761871 | AA11: =(1+'A1'!$AD$23)*(MV1a!N11+MV1b!N11) + (1+'A1'!$AF$23)*'JH1'!N11 + (1+'A1'!$AH$23)*('PM1'!N11+'PJ1'!N11) -> 0.03866839886 | AB11: =(1+'A1'!$AD$23)*'MV2'!N11 + (1+'A1'!$AF$23)*'JH2'!N11 + (1+'A1'!$AH$23)*('PM2'!N11+'PJ2'!N11) -> 0.01548505591 | AD11: ='A1'!$T$29*(L11+M11) -> 0.007692235777 | AE11: ='A1'!$M$28*'A1'!$F$28*O11 + 'A1'!$M$29*'A1'!$F$29*P11 + 'A1'!$M$30*'A1'!$F$30*Q11 -> 0.01974027519
B12: 0.25 | C12: 3 | E12: ='HR1'!R12+'HR2'!R12+MV1a!R12+MV1b!R12+'MV2'!R12+'JH1'!R12+'JH2'!R12+'PL1'!R12+'PL2'!R12+'PV1'!R12+'PV2'!R12+'PH1'!R12+'PH2'!R12+'PM1'!R12+'PM2'!R12+'PJ1'!R12+'PJ2'!R12 -> 3.007722963 | F12: ='HR1'!S12+'HR2'!S12+MV1a!S12+MV1b!S12+'MV2'!S12+'JH1'!S12+'JH2'!S12+'PL1'!S12+'PL2'!S12+'PV1'!S12+'PV2'!S12+'PH1'!S12+'PH2'!S12+'PM1'!S12+'PM2'!S12+'PJ1'!S12+'PJ2'!S12 -> 0.129196697 | G12: ='HR1'!T12+'HR2'!T12+MV1a!T12+MV1b!T12+'MV2'!T12+'JH1'!T12+'JH2'!T12+'PL1'!T12+'PL2'!T12+'PV1'!T12+'PV2'!T12+'PH1'!T12+'PH2'!T12+'PM1'!T12+'PM2'!T12+'PJ1'!T12+'PJ2'!T12 -> 0 | H12: ='HR1'!U12+'HR2'!U12+MV1a!U12+MV1b!U12+'MV2'!U12+'JH1'!U12+'JH2'!U12+'PL1'!U12+'PL2'!U12+'PV1'!U12+'PV2'!U12+'PH1'!U12+'PH2'!U12+'PM1'!U12+'PM2'!U12+'PJ1'!U12+'PJ2'!U12 -> 0 | J12: ='HR1'!W12+'HR2'!W12+MV1a!W12+MV1b!W12+'MV2'!W12+'JH1'!W12+'JH2'!W12+'PL1'!W12+'PL2'!W12+'PV1'!W12+'PV2'!W12+'PH1'!W12+'PH2'!W12+'PM1'!W12+'PM2'!W12+'PJ1'!W12+'PJ2'!W12 -> 0.002081000192 | K12: ='HR1'!X12+'HR2'!X12+IF('A3'!$L$24=0,0,MV1a!X12+MV1b!X12+'MV2'!X12)+'JH1'!X12+'JH2'!X12+'PL1'!X12+'PL2'!X12+'PV1'!X12+'PV2'!X12+'PH1'!X12+'PH2'!X12+'PM1'!X12+'PM2'!X12+'PJ1'!X12+'PJ2'!X12 -> 0 | AG12: ='HR1'!R12+'HR2'!R12+MV1a!R12+MV1b!R12+'MV2'!R12+'JH1'!R12+'JH2'!R12 -> 1.310110329 | AH12: ='HR1'!S12+'HR2'!S12+MV1a!S12+MV1b!S12+'MV2'!S12+'JH1'!S12+'JH2'!S12 -> 0.05909529407 | AI12: ='HR1'!T12+'HR2'!T12+MV1a!T12+MV1b!T12+'MV2'!T12+'JH1'!T12+'JH2'!T12 -> 0 | AJ12: ='HR1'!U12+'HR2'!U12+MV1a!U12+MV1b!U12+'MV2'!U12+'JH1'!U12+'JH2'!U12 -> 0 | AL12: =MAX(AN12:AQ12) -> 0 | AN12: ='HR1'!R12+'HR2'!R12+'JH1'!R12+'JH2'!R12 -> 0 | AO12: ='HR1'!S12+'HR2'!S12+'JH1'!S12+'JH2'!S12 -> 0 | AP12: ='HR1'!T12+'HR2'!T12+'JH1'!T12+'JH2'!T12 -> 0 | AQ12: ='HR1'!U12+'HR2'!U12+'JH1'!U12+'JH2'!U12 -> 0
B13: 0.2916666667 | C13: 3.5 | L13: =GL0!AA13+'GL1'!AA13+'GL2'!AA13+'GV1'!AA13+'GV2'!AA13+'HR1'!AA13+'HR2'!AA13+MV1a!AA13+MV1b!AA13+'MV2'!AA13+'JH1'!AA13+'JH2'!AA13+'PL1'!AA13+'PL2'!AA13+'PV1'!AA13+'PV2'!AA13+'PH1'!AA13+'PH2'!AA13+'PM1'!AA13+'PM2'!AA13+'PJ1'!AA13+'PJ2'!AA13 -> 0.02623461034 | M13: ='A1'!$H$20*GL0!AA13 + 'A1'!$I$20*('GL1'!AA13+'GV1'!AA13+'HR1'!AA13+'PL1'!AA13+'PV1'!AA13+'PH1'!AA13) + 'A1'!$J$20*('GL2'!AA13+'GV2'!AA13+'HR2'!AA13+'PL2'!AA13+'PV2'!AA13+'PH2'!AA13) + 'A1'!$K$20*(MV1a!AA13+MV1b!AA13+'JH1'!AA13+'PM1'!AA13+'PJ1'!AA13) + 'A1'!$L$20*('MV2'!AA13+'JH2'!AA13+'PM2'!AA13+'PJ2'!AA13) -> 0.01991877958 | O13: =(1+'A1'!$H$20)*'A1'!$I$9*'A1'!$AD$5*GL0!N13 -> 0.0001718248343 | P13: =(1+'A1'!$I$20)*('A1'!$I$9*'A1'!$AD$5*('GL1'!N13+'GV1'!N13) + 'A1'!$I$9*'A1'!$AF$5*'HR1'!N13 + 'A1'!$I$9*'A1'!$AH$5*('PL1'!N13+'PV1'!N13+'PH1'!N13)) + (1+'A1'!$K$20)*('A1'!$I$9*'A1'!$AD$5*(MV1a!N13+MV1b!N13) + 'A1'!$I$9*'A1'!$AF$5*'JH1'!N13 + 'A1'!$I$9*'A1'!$AH$5*('PM1'!N13+'PJ1'!N13)) -> 0.002705924426 | Q13: =(1+'A1'!$J$20)*('A1'!$I$9*'A1'!$AD$5*('GL2'!N13+'GV2'!N13) + 'A1'!$I$9*'A1'!$AF$5*'HR2'!N13 + 'A1'!$I$9*'A1'!$AH$5*('PL2'!N13+'PV2'!N13+'PH2'!N13)) + (1+'A1'!$L$20)*('A1'!$I$9*'A1'!$AD$5*'MV2'!N13 + 'A1'!$I$9*'A1'!$AF$5*'JH2'!N13 + 'A1'!$I$9*'A1'!$AH$5*('PM2'!N13+'PJ2'!N13)) -> 0.001697257016 | S13: ='A1'!$F$23*SUM(O13:Q13) + 'A1'!$F$24*(L13+M13-SUM(O13:Q13)) + 'A1'!$F$25*J12 -> 0.00998019615 | U13: ='A1'!$F$28*O13 + 'A1'!$F$29*P13 + 'A1'!$F$30*Q13 -> 0.001334015271 | V13: ='A1'!$L$28*'A1'!$F$28*O13 + 'A1'!$L$29*'A1'!$F$29*P13 + 'A1'!$L$30*'A1'!$F$30*Q13 -> 0.02707079678 | X13: =(1+'A1'!$AD$23)*GL0!N13 -> 0.002790594424 | Y13: =(1+'A1'!$AD$23)*('GL1'!N13+'GV1'!N13) + (1+'A1'!$AF$23)*'HR1'!N13 + (1+'A1'!$AH$23)*('PL1'!N13+'PV1'!N13+'PH1'!N13) -> 0.03267234004 | Z13: =(1+'A1'!$AD$23)*('GL2'!N13+'GV2'!N13) + (1+'A1'!$AF$23)*'HR2'!N13 + (1+'A1'!$AH$23)*('PL2'!N13+'PV2'!N13+'PH2'!N13) -> 0.03015759058 | AA13: =(1+'A1'!$AD$23)*(MV1a!N13+MV1b!N13) + (1+'A1'!$AF$23)*'JH1'!N13 + (1+'A1'!$AH$23)*('PM1'!N13+'PJ1'!N13) -> 0.03866838837 | AB13: =(1+'A1'!$AD$23)*'MV2'!N13 + (1+'A1'!$AF$23)*'JH2'!N13 + (1+'A1'!$AH$23)*('PM2'!N13+'PJ2'!N13) -> 0.01548505129 | AD13: ='A1'!$T$29*(L13+M13) -> 0.007692231653 | AE13: ='A1'!$M$28*'A1'!$F$28*O13 + 'A1'!$M$29*'A1'!$F$29*P13 + 'A1'!$M$30*'A1'!$F$30*Q13 -> 0.01974026291
B14: 0.3333333333 | C14: 4 | E14: ='HR1'!R14+'HR2'!R14+MV1a!R14+MV1b!R14+'MV2'!R14+'JH1'!R14+'JH2'!R14+'PL1'!R14+'PL2'!R14+'PV1'!R14+'PV2'!R14+'PH1'!R14+'PH2'!R14+'PM1'!R14+'PM2'!R14+'PJ1'!R14+'PJ2'!R14 -> 3.007722964 | F14: ='HR1'!S14+'HR2'!S14+MV1a!S14+MV1b!S14+'MV2'!S14+'JH1'!S14+'JH2'!S14+'PL1'!S14+'PL2'!S14+'PV1'!S14+'PV2'!S14+'PH1'!S14+'PH2'!S14+'PM1'!S14+'PM2'!S14+'PJ1'!S14+'PJ2'!S14 -> 0.1291966953 | G14: ='HR1'!T14+'HR2'!T14+MV1a!T14+MV1b!T14+'MV2'!T14+'JH1'!T14+'JH2'!T14+'PL1'!T14+'PL2'!T14+'PV1'!T14+'PV2'!T14+'PH1'!T14+'PH2'!T14+'PM1'!T14+'PM2'!T14+'PJ1'!T14+'PJ2'!T14 -> 0 | H14: ='HR1'!U14+'HR2'!U14+MV1a!U14+MV1b!U14+'MV2'!U14+'JH1'!U14+'JH2'!U14+'PL1'!U14+'PL2'!U14+'PV1'!U14+'PV2'!U14+'PH1'!U14+'PH2'!U14+'PM1'!U14+'PM2'!U14+'PJ1'!U14+'PJ2'!U14 -> 0 | J14: ='HR1'!W14+'HR2'!W14+MV1a!W14+MV1b!W14+'MV2'!W14+'JH1'!W14+'JH2'!W14+'PL1'!W14+'PL2'!W14+'PV1'!W14+'PV2'!W14+'PH1'!W14+'PH2'!W14+'PM1'!W14+'PM2'!W14+'PJ1'!W14+'PJ2'!W14 -> 0.002081000346 | K14: ='HR1'!X14+'HR2'!X14+IF('A3'!$L$24=0,0,MV1a!X14+MV1b!X14+'MV2'!X14)+'JH1'!X14+'JH2'!X14+'PL1'!X14+'PL2'!X14+'PV1'!X14+'PV2'!X14+'PH1'!X14+'PH2'!X14+'PM1'!X14+'PM2'!X14+'PJ1'!X14+'PJ2'!X14 -> 0 | AG14: ='HR1'!R14+'HR2'!R14+MV1a!R14+MV1b!R14+'MV2'!R14+'JH1'!R14+'JH2'!R14 -> 1.31011033 | AH14: ='HR1'!S14+'HR2'!S14+MV1a!S14+MV1b!S14+'MV2'!S14+'JH1'!S14+'JH2'!S14 -> 0.05909529409 | AI14: ='HR1'!T14+'HR2'!T14+MV1a!T14+MV1b!T14+'MV2'!T14+'JH1'!T14+'JH2'!T14 -> 0 | AJ14: ='HR1'!U14+'HR2'!U14+MV1a!U14+MV1b!U14+'MV2'!U14+'JH1'!U14+'JH2'!U14 -> 0 | AL14: =MAX(AN14:AQ14) -> 0 | AN14: ='HR1'!R14+'HR2'!R14+'JH1'!R14+'JH2'!R14 -> 0 | AO14: ='HR1'!S14+'HR2'!S14+'JH1'!S14+'JH2'!S14 -> 0 | AP14: ='HR1'!T14+'HR2'!T14+'JH1'!T14+'JH2'!T14 -> 0 | AQ14: ='HR1'!U14+'HR2'!U14+'JH1'!U14+'JH2'!U14 -> 0
B15: 0.375 | C15: 4.5 | L15: =GL0!AA15+'GL1'!AA15+'GL2'!AA15+'GV1'!AA15+'GV2'!AA15+'HR1'!AA15+'HR2'!AA15+MV1a!AA15+MV1b!AA15+'MV2'!AA15+'JH1'!AA15+'JH2'!AA15+'PL1'!AA15+'PL2'!AA15+'PV1'!AA15+'PV2'!AA15+'PH1'!AA15+'PH2'!AA15+'PM1'!AA15+'PM2'!AA15+'PJ1'!AA15+'PJ2'!AA15 -> 0.02623457836 | M15: ='A1'!$H$20*GL0!AA15 + 'A1'!$I$20*('GL1'!AA15+'GV1'!AA15+'HR1'!AA15+'PL1'!AA15+'PV1'!AA15+'PH1'!AA15) + 'A1'!$J$20*('GL2'!AA15+'GV2'!AA15+'HR2'!AA15+'PL2'!AA15+'PV2'!AA15+'PH2'!AA15) + 'A1'!$K$20*(MV1a!AA15+MV1b!AA15+'JH1'!AA15+'PM1'!AA15+'PJ1'!AA15) + 'A1'!$L$20*('MV2'!AA15+'JH2'!AA15+'PM2'!AA15+'PJ2'!AA15) -> 0.0199187562 | O15: =(1+'A1'!$H$20)*'A1'!$I$9*'A1'!$AD$5*GL0!N15 -> 0.0001718245543 | P15: =(1+'A1'!$I$20)*('A1'!$I$9*'A1'!$AD$5*('GL1'!N15+'GV1'!N15) + 'A1'!$I$9*'A1'!$AF$5*'HR1'!N15 + 'A1'!$I$9*'A1'!$AH$5*('PL1'!N15+'PV1'!N15+'PH1'!N15)) + (1+'A1'!$K$20)*('A1'!$I$9*'A1'!$AD$5*(MV1a!N15+MV1b!N15) + 'A1'!$I$9*'A1'!$AF$5*'JH1'!N15 + 'A1'!$I$9*'A1'!$AH$5*('PM1'!N15+'PJ1'!N15)) -> 0.002705921342 | Q15: =(1+'A1'!$J$20)*('A1'!$I$9*'A1'!$AD$5*('GL2'!N15+'GV2'!N15) + 'A1'!$I$9*'A1'!$AF$5*'HR2'!N15 + 'A1'!$I$9*'A1'!$AH$5*('PL2'!N15+'PV2'!N15+'PH2'!N15)) + (1+'A1'!$L$20)*('A1'!$I$9*'A1'!$AD$5*'MV2'!N15 + 'A1'!$I$9*'A1'!$AF$5*'JH2'!N15 + 'A1'!$I$9*'A1'!$AH$5*('PM2'!N15+'PJ2'!N15)) -> 0.001697254788 | S15: ='A1'!$F$23*SUM(O15:Q15) + 'A1'!$F$24*(L15+M15-SUM(O15:Q15)) + 'A1'!$F$25*J14 -> 0.009980184088 | U15: ='A1'!$F$28*O15 + 'A1'!$F$29*P15 + 'A1'!$F$30*Q15 -> 0.001334013576 | V15: ='A1'!$L$28*'A1'!$F$28*O15 + 'A1'!$L$29*'A1'!$F$29*P15 + 'A1'!$L$30*'A1'!$F$30*Q15 -> 0.02707076404 | X15: =(1+'A1'!$AD$23)*GL0!N15 -> 0.002790589878 | Y15: =(1+'A1'!$AD$23)*('GL1'!N15+'GV1'!N15) + (1+'A1'!$AF$23)*'HR1'!N15 + (1+'A1'!$AH$23)*('PL1'!N15+'PV1'!N15+'PH1'!N15) -> 0.03267229175 | Z15: =(1+'A1'!$AD$23)*('GL2'!N15+'GV2'!N15) + (1+'A1'!$AF$23)*'HR2'!N15 + (1+'A1'!$AH$23)*('PL2'!N15+'PV2'!N15+'PH2'!N15) -> 0.03015754924 | AA15: =(1+'A1'!$AD$23)*(MV1a!N15+MV1b!N15) + (1+'A1'!$AF$23)*'JH1'!N15 + (1+'A1'!$AH$23)*('PM1'!N15+'PJ1'!N15) -> 0.03866835284 | AB15: =(1+'A1'!$AD$23)*'MV2'!N15 + (1+'A1'!$AF$23)*'JH2'!N15 + (1+'A1'!$AH$23)*('PM2'!N15+'PJ2'!N15) -> 0.0154850326 | AD15: ='A1'!$T$29*(L15+M15) -> 0.007692222427 | AE15: ='A1'!$M$28*'A1'!$F$28*O15 + 'A1'!$M$29*'A1'!$F$29*P15 + 'A1'!$M$30*'A1'!$F$30*Q15 -> 0.01974023905
B16: 0.4166666667 | C16: 5 | E16: ='HR1'!R16+'HR2'!R16+MV1a!R16+MV1b!R16+'MV2'!R16+'JH1'!R16+'JH2'!R16+'PL1'!R16+'PL2'!R16+'PV1'!R16+'PV2'!R16+'PH1'!R16+'PH2'!R16+'PM1'!R16+'PM2'!R16+'PJ1'!R16+'PJ2'!R16 -> 3.007722965 | F16: ='HR1'!S16+'HR2'!S16+MV1a!S16+MV1b!S16+'MV2'!S16+'JH1'!S16+'JH2'!S16+'PL1'!S16+'PL2'!S16+'PV1'!S16+'PV2'!S16+'PH1'!S16+'PH2'!S16+'PM1'!S16+'PM2'!S16+'PJ1'!S16+'PJ2'!S16 -> 0.1291966937 | G16: ='HR1'!T16+'HR2'!T16+MV1a!T16+MV1b!T16+'MV2'!T16+'JH1'!T16+'JH2'!T16+'PL1'!T16+'PL2'!T16+'PV1'!T16+'PV2'!T16+'PH1'!T16+'PH2'!T16+'PM1'!T16+'PM2'!T16+'PJ1'!T16+'PJ2'!T16 -> 0 | H16: ='HR1'!U16+'HR2'!U16+MV1a!U16+MV1b!U16+'MV2'!U16+'JH1'!U16+'JH2'!U16+'PL1'!U16+'PL2'!U16+'PV1'!U16+'PV2'!U16+'PH1'!U16+'PH2'!U16+'PM1'!U16+'PM2'!U16+'PJ1'!U16+'PJ2'!U16 -> 0 | J16: ='HR1'!W16+'HR2'!W16+MV1a!W16+MV1b!W16+'MV2'!W16+'JH1'!W16+'JH2'!W16+'PL1'!W16+'PL2'!W16+'PV1'!W16+'PV2'!W16+'PH1'!W16+'PH2'!W16+'PM1'!W16+'PM2'!W16+'PJ1'!W16+'PJ2'!W16 -> 0.002081000646 | K16: ='HR1'!X16+'HR2'!X16+IF('A3'!$L$24=0,0,MV1a!X16+MV1b!X16+'MV2'!X16)+'JH1'!X16+'JH2'!X16+'PL1'!X16+'PL2'!X16+'PV1'!X16+'PV2'!X16+'PH1'!X16+'PH2'!X16+'PM1'!X16+'PM2'!X16+'PJ1'!X16+'PJ2'!X16 -> 0 | AG16: ='HR1'!R16+'HR2'!R16+MV1a!R16+MV1b!R16+'MV2'!R16+'JH1'!R16+'JH2'!R16 -> 1.31011033 | AH16: ='HR1'!S16+'HR2'!S16+MV1a!S16+MV1b!S16+'MV2'!S16+'JH1'!S16+'JH2'!S16 -> 0.0590952941 | AI16: ='HR1'!T16+'HR2'!T16+MV1a!T16+MV1b!T16+'MV2'!T16+'JH1'!T16+'JH2'!T16 -> 0 | AJ16: ='HR1'!U16+'HR2'!U16+MV1a!U16+MV1b!U16+'MV2'!U16+'JH1'!U16+'JH2'!U16 -> 0 | AL16: =MAX(AN16:AQ16) -> 0 | AN16: ='HR1'!R16+'HR2'!R16+'JH1'!R16+'JH2'!R16 -> 0 | AO16: ='HR1'!S16+'HR2'!S16+'JH1'!S16+'JH2'!S16 -> 0 | AP16: ='HR1'!T16+'HR2'!T16+'JH1'!T16+'JH2'!T16 -> 0 | AQ16: ='HR1'!U16+'HR2'!U16+'JH1'!U16+'JH2'!U16 -> 0
B17: 0.4583333333 | C17: 5.5 | L17: =GL0!AA17+'GL1'!AA17+'GL2'!AA17+'GV1'!AA17+'GV2'!AA17+'HR1'!AA17+'HR2'!AA17+MV1a!AA17+MV1b!AA17+'MV2'!AA17+'JH1'!AA17+'JH2'!AA17+'PL1'!AA17+'PL2'!AA17+'PV1'!AA17+'PV2'!AA17+'PH1'!AA17+'PH2'!AA17+'PM1'!AA17+'PM2'!AA17+'PJ1'!AA17+'PJ2'!AA17 -> 0.02623451322 | M17: ='A1'!$H$20*GL0!AA17 + 'A1'!$I$20*('GL1'!AA17+'GV1'!AA17+'HR1'!AA17+'PL1'!AA17+'PV1'!AA17+'PH1'!AA17) + 'A1'!$J$20*('GL2'!AA17+'GV2'!AA17+'HR2'!AA17+'PL2'!AA17+'PV2'!AA17+'PH2'!AA17) + 'A1'!$K$20*(MV1a!AA17+MV1b!AA17+'JH1'!AA17+'PM1'!AA17+'PJ1'!AA17) + 'A1'!$L$20*('MV2'!AA17+'JH2'!AA17+'PM2'!AA17+'PJ2'!AA17) -> 0.01991870693 | O17: =(1+'A1'!$H$20)*'A1'!$I$9*'A1'!$AD$5*GL0!N17 -> 0.0001718239698 | P17: =(1+'A1'!$I$20)*('A1'!$I$9*'A1'!$AD$5*('GL1'!N17+'GV1'!N17) + 'A1'!$I$9*'A1'!$AF$5*'HR1'!N17 + 'A1'!$I$9*'A1'!$AH$5*('PL1'!N17+'PV1'!N17+'PH1'!N17)) + (1+'A1'!$K$20)*('A1'!$I$9*'A1'!$AD$5*(MV1a!N17+MV1b!N17) + 'A1'!$I$9*'A1'!$AF$5*'JH1'!N17 + 'A1'!$I$9*'A1'!$AH$5*('PM1'!N17+'PJ1'!N17)) -> 0.002705915284 | Q17: =(1+'A1'!$J$20)*('A1'!$I$9*'A1'!$AD$5*('GL2'!N17+'GV2'!N17) + 'A1'!$I$9*'A1'!$AF$5*'HR2'!N17 + 'A1'!$I$9*'A1'!$AH$5*('PL2'!N17+'PV2'!N17+'PH2'!N17)) + (1+'A1'!$L$20)*('A1'!$I$9*'A1'!$AD$5*'MV2'!N17 + 'A1'!$I$9*'A1'!$AF$5*'JH2'!N17 + 'A1'!$I$9*'A1'!$AH$5*('PM2'!N17+'PJ2'!N17)) -> 0.001697250485 | S17: ='A1'!$F$23*SUM(O17:Q17) + 'A1'!$F$24*(L17+M17-SUM(O17:Q17)) + 'A1'!$F$25*J16 -> 0.009980159692 | U17: ='A1'!$F$28*O17 + 'A1'!$F$29*P17 + 'A1'!$F$30*Q17 -> 0.001334010285 | V17: ='A1'!$L$28*'A1'!$F$28*O17 + 'A1'!$L$29*'A1'!$F$29*P17 + 'A1'!$L$30*'A1'!$F$30*Q17 -> 0.02707069963 | X17: =(1+'A1'!$AD$23)*GL0!N17 -> 0.002790580385 | Y17: =(1+'A1'!$AD$23)*('GL1'!N17+'GV1'!N17) + (1+'A1'!$AF$23)*'HR1'!N17 + (1+'A1'!$AH$23)*('PL1'!N17+'PV1'!N17+'PH1'!N17) -> 0.03267220787 | Z17: =(1+'A1'!$AD$23)*('GL2'!N17+'GV2'!N17) + (1+'A1'!$AF$23)*'HR2'!N17 + (1+'A1'!$AH$23)*('PL2'!N17+'PV2'!N17+'PH2'!N17) -> 0.03015747724 | AA17: =(1+'A1'!$AD$23)*(MV1a!N17+MV1b!N17) + (1+'A1'!$AF$23)*'JH1'!N17 + (1+'A1'!$AH$23)*('PM1'!N17+'PJ1'!N17) -> 0.03866827318 | AB17: =(1+'A1'!$AD$23)*'MV2'!N17 + (1+'A1'!$AF$23)*'JH2'!N17 + (1+'A1'!$AH$23)*('PM2'!N17+'PJ2'!N17) -> 0.01548498896 | AD17: ='A1'!$T$29*(L17+M17) -> 0.007692203358 | AE17: ='A1'!$M$28*'A1'!$F$28*O17 + 'A1'!$M$29*'A1'!$F$29*P17 + 'A1'!$M$30*'A1'!$F$30*Q17 -> 0.01974019216
B18: 0.5 | C18: 6 | E18: ='HR1'!R18+'HR2'!R18+MV1a!R18+MV1b!R18+'MV2'!R18+'JH1'!R18+'JH2'!R18+'PL1'!R18+'PL2'!R18+'PV1'!R18+'PV2'!R18+'PH1'!R18+'PH2'!R18+'PM1'!R18+'PM2'!R18+'PJ1'!R18+'PJ2'!R18 -> 3.007722965 | F18: ='HR1'!S18+'HR2'!S18+MV1a!S18+MV1b!S18+'MV2'!S18+'JH1'!S18+'JH2'!S18+'PL1'!S18+'PL2'!S18+'PV1'!S18+'PV2'!S18+'PH1'!S18+'PH2'!S18+'PM1'!S18+'PM2'!S18+'PJ1'!S18+'PJ2'!S18 -> 0.1291966923 | G18: ='HR1'!T18+'HR2'!T18+MV1a!T18+MV1b!T18+'MV2'!T18+'JH1'!T18+'JH2'!T18+'PL1'!T18+'PL2'!T18+'PV1'!T18+'PV2'!T18+'PH1'!T18+'PH2'!T18+'PM1'!T18+'PM2'!T18+'PJ1'!T18+'PJ2'!T18 -> 0 | H18: ='HR1'!U18+'HR2'!U18+MV1a!U18+MV1b!U18+'MV2'!U18+'JH1'!U18+'JH2'!U18+'PL1'!U18+'PL2'!U18+'PV1'!U18+'PV2'!U18+'PH1'!U18+'PH2'!U18+'PM1'!U18+'PM2'!U18+'PJ1'!U18+'PJ2'!U18 -> 0 | J18: ='HR1'!W18+'HR2'!W18+MV1a!W18+MV1b!W18+'MV2'!W18+'JH1'!W18+'JH2'!W18+'PL1'!W18+'PL2'!W18+'PV1'!W18+'PV2'!W18+'PH1'!W18+'PH2'!W18+'PM1'!W18+'PM2'!W18+'PJ1'!W18+'PJ2'!W18 -> 0.002081001 | K18: ='HR1'!X18+'HR2'!X18+IF('A3'!$L$24=0,0,MV1a!X18+MV1b!X18+'MV2'!X18)+'JH1'!X18+'JH2'!X18+'PL1'!X18+'PL2'!X18+'PV1'!X18+'PV2'!X18+'PH1'!X18+'PH2'!X18+'PM1'!X18+'PM2'!X18+'PJ1'!X18+'PJ2'!X18 -> 0 | AG18: ='HR1'!R18+'HR2'!R18+MV1a!R18+MV1b!R18+'MV2'!R18+'JH1'!R18+'JH2'!R18 -> 1.310110331 | AH18: ='HR1'!S18+'HR2'!S18+MV1a!S18+MV1b!S18+'MV2'!S18+'JH1'!S18+'JH2'!S18 -> 0.05909529412 | AI18: ='HR1'!T18+'HR2'!T18+MV1a!T18+MV1b!T18+'MV2'!T18+'JH1'!T18+'JH2'!T18 -> 0 | AJ18: ='HR1'!U18+'HR2'!U18+MV1a!U18+MV1b!U18+'MV2'!U18+'JH1'!U18+'JH2'!U18 -> 0 | AL18: =MAX(AN18:AQ18) -> 0 | AN18: ='HR1'!R18+'HR2'!R18+'JH1'!R18+'JH2'!R18 -> 0 | AO18: ='HR1'!S18+'HR2'!S18+'JH1'!S18+'JH2'!S18 -> 0 | AP18: ='HR1'!T18+'HR2'!T18+'JH1'!T18+'JH2'!T18 -> 0 | AQ18: ='HR1'!U18+'HR2'!U18+'JH1'!U18+'JH2'!U18 -> 0
B19: 0.5416666667 | C19: 6.5 | L19: =GL0!AA19+'GL1'!AA19+'GL2'!AA19+'GV1'!AA19+'GV2'!AA19+'HR1'!AA19+'HR2'!AA19+MV1a!AA19+MV1b!AA19+'MV2'!AA19+'JH1'!AA19+'JH2'!AA19+'PL1'!AA19+'PL2'!AA19+'PV1'!AA19+'PV2'!AA19+'PH1'!AA19+'PH2'!AA19+'PM1'!AA19+'PM2'!AA19+'PJ1'!AA19+'PJ2'!AA19 -> 0.02623439883 | M19: ='A1'!$H$20*GL0!AA19 + 'A1'!$I$20*('GL1'!AA19+'GV1'!AA19+'HR1'!AA19+'PL1'!AA19+'PV1'!AA19+'PH1'!AA19) + 'A1'!$J$20*('GL2'!AA19+'GV2'!AA19+'HR2'!AA19+'PL2'!AA19+'PV2'!AA19+'PH2'!AA19) + 'A1'!$K$20*(MV1a!AA19+MV1b!AA19+'JH1'!AA19+'PM1'!AA19+'PJ1'!AA19) + 'A1'!$L$20*('MV2'!AA19+'JH2'!AA19+'PM2'!AA19+'PJ2'!AA19) -> 0.01991861972 | O19: =(1+'A1'!$H$20)*'A1'!$I$9*'A1'!$AD$5*GL0!N19 -> 0.0001718229243 | P19: =(1+'A1'!$I$20)*('A1'!$I$9*'A1'!$AD$5*('GL1'!N19+'GV1'!N19) + 'A1'!$I$9*'A1'!$AF$5*'HR1'!N19 + 'A1'!$I$9*'A1'!$AH$5*('PL1'!N19+'PV1'!N19+'PH1'!N19)) + (1+'A1'!$K$20)*('A1'!$I$9*'A1'!$AD$5*(MV1a!N19+MV1b!N19) + 'A1'!$I$9*'A1'!$AF$5*'JH1'!N19 + 'A1'!$I$9*'A1'!$AH$5*('PM1'!N19+'PJ1'!N19)) -> 0.002705904804 | Q19: =(1+'A1'!$J$20)*('A1'!$I$9*'A1'!$AD$5*('GL2'!N19+'GV2'!N19) + 'A1'!$I$9*'A1'!$AF$5*'HR2'!N19 + 'A1'!$I$9*'A1'!$AH$5*('PL2'!N19+'PV2'!N19+'PH2'!N19)) + (1+'A1'!$L$20)*('A1'!$I$9*'A1'!$AD$5*'MV2'!N19 + 'A1'!$I$9*'A1'!$AF$5*'JH2'!N19 + 'A1'!$I$9*'A1'!$AH$5*('PM2'!N19+'PJ2'!N19)) -> 0.001697243047 | S19: ='A1'!$F$23*SUM(O19:Q19) + 'A1'!$F$24*(L19+M19-SUM(O19:Q19)) + 'A1'!$F$25*J18 -> 0.009980116985 | U19: ='A1'!$F$28*O19 + 'A1'!$F$29*P19 + 'A1'!$F$30*Q19 -> 0.001334004589 | V19: ='A1'!$L$28*'A1'!$F$28*O19 + 'A1'!$L$29*'A1'!$F$29*P19 + 'A1'!$L$30*'A1'!$F$30*Q19 -> 0.02707058786 | X19: =(1+'A1'!$AD$23)*GL0!N19 -> 0.002790563405 | Y19: =(1+'A1'!$AD$23)*('GL1'!N19+'GV1'!N19) + (1+'A1'!$AF$23)*'HR1'!N19 + (1+'A1'!$AH$23)*('PL1'!N19+'PV1'!N19+'PH1'!N19) -> 0.0326720669 | Z19: =(1+'A1'!$AD$23)*('GL2'!N19+'GV2'!N19) + (1+'A1'!$AF$23)*'HR2'!N19 + (1+'A1'!$AH$23)*('PL2'!N19+'PV2'!N19+'PH2'!N19) -> 0.03015735633 | AA19: =(1+'A1'!$AD$23)*(MV1a!N19+MV1b!N19) + (1+'A1'!$AF$23)*'JH1'!N19 + (1+'A1'!$AH$23)*('PM1'!N19+'PJ1'!N19) -> 0.03866813135 | AB19: =(1+'A1'!$AD$23)*'MV2'!N19 + (1+'A1'!$AF$23)*'JH2'!N19 + (1+'A1'!$AH$23)*('PM2'!N19+'PJ2'!N19) -> 0.01548490989 | AD19: ='A1'!$T$29*(L19+M19) -> 0.007692169758 | AE19: ='A1'!$M$28*'A1'!$F$28*O19 + 'A1'!$M$29*'A1'!$F$29*P19 + 'A1'!$M$30*'A1'!$F$30*Q19 -> 0.01974011083
B20: 0.5833333333 | C20: 7 | E20: ='HR1'!R20+'HR2'!R20+MV1a!R20+MV1b!R20+'MV2'!R20+'JH1'!R20+'JH2'!R20+'PL1'!R20+'PL2'!R20+'PV1'!R20+'PV2'!R20+'PH1'!R20+'PH2'!R20+'PM1'!R20+'PM2'!R20+'PJ1'!R20+'PJ2'!R20 -> 3.007722966 | F20: ='HR1'!S20+'HR2'!S20+MV1a!S20+MV1b!S20+'MV2'!S20+'JH1'!S20+'JH2'!S20+'PL1'!S20+'PL2'!S20+'PV1'!S20+'PV2'!S20+'PH1'!S20+'PH2'!S20+'PM1'!S20+'PM2'!S20+'PJ1'!S20+'PJ2'!S20 -> 0.1291966908 | G20: ='HR1'!T20+'HR2'!T20+MV1a!T20+MV1b!T20+'MV2'!T20+'JH1'!T20+'JH2'!T20+'PL1'!T20+'PL2'!T20+'PV1'!T20+'PV2'!T20+'PH1'!T20+'PH2'!T20+'PM1'!T20+'PM2'!T20+'PJ1'!T20+'PJ2'!T20 -> 0 | H20: ='HR1'!U20+'HR2'!U20+MV1a!U20+MV1b!U20+'MV2'!U20+'JH1'!U20+'JH2'!U20+'PL1'!U20+'PL2'!U20+'PV1'!U20+'PV2'!U20+'PH1'!U20+'PH2'!U20+'PM1'!U20+'PM2'!U20+'PJ1'!U20+'PJ2'!U20 -> 0 | J20: ='HR1'!W20+'HR2'!W20+MV1a!W20+MV1b!W20+'MV2'!W20+'JH1'!W20+'JH2'!W20+'PL1'!W20+'PL2'!W20+'PV1'!W20+'PV2'!W20+'PH1'!W20+'PH2'!W20+'PM1'!W20+'PM2'!W20+'PJ1'!W20+'PJ2'!W20 -> 0.002081001334 | K20: ='HR1'!X20+'HR2'!X20+IF('A3'!$L$24=0,0,MV1a!X20+MV1b!X20+'MV2'!X20)+'JH1'!X20+'JH2'!X20+'PL1'!X20+'PL2'!X20+'PV1'!X20+'PV2'!X20+'PH1'!X20+'PH2'!X20+'PM1'!X20+'PM2'!X20+'PJ1'!X20+'PJ2'!X20 -> 0 | AG20: ='HR1'!R20+'HR2'!R20+MV1a!R20+MV1b!R20+'MV2'!R20+'JH1'!R20+'JH2'!R20 -> 1.310110331 | AH20: ='HR1'!S20+'HR2'!S20+MV1a!S20+MV1b!S20+'MV2'!S20+'JH1'!S20+'JH2'!S20 -> 0.05909529414 | AI20: ='HR1'!T20+'HR2'!T20+MV1a!T20+MV1b!T20+'MV2'!T20+'JH1'!T20+'JH2'!T20 -> 0 | AJ20: ='HR1'!U20+'HR2'!U20+MV1a!U20+MV1b!U20+'MV2'!U20+'JH1'!U20+'JH2'!U20 -> 0 | AL20: =MAX(AN20:AQ20) -> 0 | AN20: ='HR1'!R20+'HR2'!R20+'JH1'!R20+'JH2'!R20 -> 0 | AO20: ='HR1'!S20+'HR2'!S20+'JH1'!S20+'JH2'!S20 -> 0 | AP20: ='HR1'!T20+'HR2'!T20+'JH1'!T20+'JH2'!T20 -> 0 | AQ20: ='HR1'!U20+'HR2'!U20+'JH1'!U20+'JH2'!U20 -> 0
B21: 0.625 | C21: 7.5 | L21: =GL0!AA21+'GL1'!AA21+'GL2'!AA21+'GV1'!AA21+'GV2'!AA21+'HR1'!AA21+'HR2'!AA21+MV1a!AA21+MV1b!AA21+'MV2'!AA21+'JH1'!AA21+'JH2'!AA21+'PL1'!AA21+'PL2'!AA21+'PV1'!AA21+'PV2'!AA21+'PH1'!AA21+'PH2'!AA21+'PM1'!AA21+'PM2'!AA21+'PJ1'!AA21+'PJ2'!AA21 -> 0.02623422097 | M21: ='A1'!$H$20*GL0!AA21 + 'A1'!$I$20*('GL1'!AA21+'GV1'!AA21+'HR1'!AA21+'PL1'!AA21+'PV1'!AA21+'PH1'!AA21) + 'A1'!$J$20*('GL2'!AA21+'GV2'!AA21+'HR2'!AA21+'PL2'!AA21+'PV2'!AA21+'PH2'!AA21) + 'A1'!$K$20*(MV1a!AA21+MV1b!AA21+'JH1'!AA21+'PM1'!AA21+'PJ1'!AA21) + 'A1'!$L$20*('MV2'!AA21+'JH2'!AA21+'PM2'!AA21+'PJ2'!AA21) -> 0.01991848402 | O21: =(1+'A1'!$H$20)*'A1'!$I$9*'A1'!$AD$5*GL0!N21 -> 0.0001718212776 | P21: =(1+'A1'!$I$20)*('A1'!$I$9*'A1'!$AD$5*('GL1'!N21+'GV1'!N21) + 'A1'!$I$9*'A1'!$AF$5*'HR1'!N21 + 'A1'!$I$9*'A1'!$AH$5*('PL1'!N21+'PV1'!N21+'PH1'!N21)) + (1+'A1'!$K$20)*('A1'!$I$9*'A1'!$AD$5*(MV1a!N21+MV1b!N21) + 'A1'!$I$9*'A1'!$AF$5*'JH1'!N21 + 'A1'!$I$9*'A1'!$AH$5*('PM1'!N21+'PJ1'!N21)) -> 0.002705888627 | Q21: =(1+'A1'!$J$20)*('A1'!$I$9*'A1'!$AD$5*('GL2'!N21+'GV2'!N21) + 'A1'!$I$9*'A1'!$AF$5*'HR2'!N21 + 'A1'!$I$9*'A1'!$AH$5*('PL2'!N21+'PV2'!N21+'PH2'!N21)) + (1+'A1'!$L$20)*('A1'!$I$9*'A1'!$AD$5*'MV2'!N21 + 'A1'!$I$9*'A1'!$AF$5*'JH2'!N21 + 'A1'!$I$9*'A1'!$AH$5*('PM2'!N21+'PJ2'!N21)) -> 0.001697231523 | S21: ='A1'!$F$23*SUM(O21:Q21) + 'A1'!$F$24*(L21+M21-SUM(O21:Q21)) + 'A1'!$F$25*J20 -> 0.009980050691 | U21: ='A1'!$F$28*O21 + 'A1'!$F$29*P21 + 'A1'!$F$30*Q21 -> 0.001333995768 | V21: ='A1'!$L$28*'A1'!$F$28*O21 + 'A1'!$L$29*'A1'!$F$29*P21 + 'A1'!$L$30*'A1'!$F$30*Q21 -> 0.02707041486 | X21: =(1+'A1'!$AD$23)*GL0!N21 -> 0.002790536661 | Y21: =(1+'A1'!$AD$23)*('GL1'!N21+'GV1'!N21) + (1+'A1'!$AF$23)*'HR1'!N21 + (1+'A1'!$AH$23)*('PL1'!N21+'PV1'!N21+'PH1'!N21) -> 0.03267184934 | Z21: =(1+'A1'!$AD$23)*('GL2'!N21+'GV2'!N21) + (1+'A1'!$AF$23)*'HR2'!N21 + (1+'A1'!$AH$23)*('PL2'!N21+'PV2'!N21+'PH2'!N21) -> 0.03015716983 | AA21: =(1+'A1'!$AD$23)*(MV1a!N21+MV1b!N21) + (1+'A1'!$AF$23)*'JH1'!N21 + (1+'A1'!$AH$23)*('PM1'!N21+'PJ1'!N21) -> 0.03866791203 | AB21: =(1+'A1'!$AD$23)*'MV2'!N21 + (1+'A1'!$AF$23)*'JH2'!N21 + (1+'A1'!$AH$23)*('PM2'!N21+'PJ2'!N21) -> 0.01548478629 | AD21: ='A1'!$T$29*(L21+M21) -> 0.007692117499 | AE21: ='A1'!$M$28*'A1'!$F$28*O21 + 'A1'!$M$29*'A1'!$F$29*P21 + 'A1'!$M$30*'A1'!$F$30*Q21 -> 0.01973998497
B22: 0.6666666667 | C22: 8 | E22: ='HR1'!R22+'HR2'!R22+MV1a!R22+MV1b!R22+'MV2'!R22+'JH1'!R22+'JH2'!R22+'PL1'!R22+'PL2'!R22+'PV1'!R22+'PV2'!R22+'PH1'!R22+'PH2'!R22+'PM1'!R22+'PM2'!R22+'PJ1'!R22+'PJ2'!R22 -> 3.007722966 | F22: ='HR1'!S22+'HR2'!S22+MV1a!S22+MV1b!S22+'MV2'!S22+'JH1'!S22+'JH2'!S22+'PL1'!S22+'PL2'!S22+'PV1'!S22+'PV2'!S22+'PH1'!S22+'PH2'!S22+'PM1'!S22+'PM2'!S22+'PJ1'!S22+'PJ2'!S22 -> 0.1291966894 | G22: ='HR1'!T22+'HR2'!T22+MV1a!T22+MV1b!T22+'MV2'!T22+'JH1'!T22+'JH2'!T22+'PL1'!T22+'PL2'!T22+'PV1'!T22+'PV2'!T22+'PH1'!T22+'PH2'!T22+'PM1'!T22+'PM2'!T22+'PJ1'!T22+'PJ2'!T22 -> 0 | H22: ='HR1'!U22+'HR2'!U22+MV1a!U22+MV1b!U22+'MV2'!U22+'JH1'!U22+'JH2'!U22+'PL1'!U22+'PL2'!U22+'PV1'!U22+'PV2'!U22+'PH1'!U22+'PH2'!U22+'PM1'!U22+'PM2'!U22+'PJ1'!U22+'PJ2'!U22 -> 0 | J22: ='HR1'!W22+'HR2'!W22+MV1a!W22+MV1b!W22+'MV2'!W22+'JH1'!W22+'JH2'!W22+'PL1'!W22+'PL2'!W22+'PV1'!W22+'PV2'!W22+'PH1'!W22+'PH2'!W22+'PM1'!W22+'PM2'!W22+'PJ1'!W22+'PJ2'!W22 -> 0.002081001592 | K22: ='HR1'!X22+'HR2'!X22+IF('A3'!$L$24=0,0,MV1a!X22+MV1b!X22+'MV2'!X22)+'JH1'!X22+'JH2'!X22+'PL1'!X22+'PL2'!X22+'PV1'!X22+'PV2'!X22+'PH1'!X22+'PH2'!X22+'PM1'!X22+'PM2'!X22+'PJ1'!X22+'PJ2'!X22 -> 0 | AG22: ='HR1'!R22+'HR2'!R22+MV1a!R22+MV1b!R22+'MV2'!R22+'JH1'!R22+'JH2'!R22 -> 1.310110331 | AH22: ='HR1'!S22+'HR2'!S22+MV1a!S22+MV1b!S22+'MV2'!S22+'JH1'!S22+'JH2'!S22 -> 0.05909529416 | AI22: ='HR1'!T22+'HR2'!T22+MV1a!T22+MV1b!T22+'MV2'!T22+'JH1'!T22+'JH2'!T22 -> 0 | AJ22: ='HR1'!U22+'HR2'!U22+MV1a!U22+MV1b!U22+'MV2'!U22+'JH1'!U22+'JH2'!U22 -> 0 | AL22: =MAX(AN22:AQ22) -> 0 | AN22: ='HR1'!R22+'HR2'!R22+'JH1'!R22+'JH2'!R22 -> 0 | AO22: ='HR1'!S22+'HR2'!S22+'JH1'!S22+'JH2'!S22 -> 0 | AP22: ='HR1'!T22+'HR2'!T22+'JH1'!T22+'JH2'!T22 -> 0 | AQ22: ='HR1'!U22+'HR2'!U22+'JH1'!U22+'JH2'!U22 -> 0
B23: 0.7083333333 | C23: 8.5 | L23: =GL0!AA23+'GL1'!AA23+'GL2'!AA23+'GV1'!AA23+'GV2'!AA23+'HR1'!AA23+'HR2'!AA23+MV1a!AA23+MV1b!AA23+'MV2'!AA23+'JH1'!AA23+'JH2'!AA23+'PL1'!AA23+'PL2'!AA23+'PV1'!AA23+'PV2'!AA23+'PH1'!AA23+'PH2'!AA23+'PM1'!AA23+'PM2'!AA23+'PJ1'!AA23+'PJ2'!AA23 -> 0.0262339681 | M23: ='A1'!$H$20*GL0!AA23 + 'A1'!$I$20*('GL1'!AA23+'GV1'!AA23+'HR1'!AA23+'PL1'!AA23+'PV1'!AA23+'PH1'!AA23) + 'A1'!$J$20*('GL2'!AA23+'GV2'!AA23+'HR2'!AA23+'PL2'!AA23+'PV2'!AA23+'PH2'!AA23) + 'A1'!$K$20*(MV1a!AA23+MV1b!AA23+'JH1'!AA23+'PM1'!AA23+'PJ1'!AA23) + 'A1'!$L$20*('MV2'!AA23+'JH2'!AA23+'PM2'!AA23+'PJ2'!AA23) -> 0.01991829132 | O23: =(1+'A1'!$H$20)*'A1'!$I$9*'A1'!$AD$5*GL0!N23 -> 0.0001718189137 | P23: =(1+'A1'!$I$20)*('A1'!$I$9*'A1'!$AD$5*('GL1'!N23+'GV1'!N23) + 'A1'!$I$9*'A1'!$AF$5*'HR1'!N23 + 'A1'!$I$9*'A1'!$AH$5*('PL1'!N23+'PV1'!N23+'PH1'!N23)) + (1+'A1'!$K$20)*('A1'!$I$9*'A1'!$AD$5*(MV1a!N23+MV1b!N23) + 'A1'!$I$9*'A1'!$AF$5*'JH1'!N23 + 'A1'!$I$9*'A1'!$AH$5*('PM1'!N23+'PJ1'!N23)) -> 0.00270586573 | Q23: =(1+'A1'!$J$20)*('A1'!$I$9*'A1'!$AD$5*('GL2'!N23+'GV2'!N23) + 'A1'!$I$9*'A1'!$AF$5*'HR2'!N23 + 'A1'!$I$9*'A1'!$AH$5*('PL2'!N23+'PV2'!N23+'PH2'!N23)) + (1+'A1'!$L$20)*('A1'!$I$9*'A1'!$AD$5*'MV2'!N23 + 'A1'!$I$9*'A1'!$AF$5*'JH2'!N23 + 'A1'!$I$9*'A1'!$AH$5*('PM2'!N23+'PJ2'!N23)) -> 0.001697215127 | S23: ='A1'!$F$23*SUM(O23:Q23) + 'A1'!$F$24*(L23+M23-SUM(O23:Q23)) + 'A1'!$F$25*J22 -> 0.009979956525 | U23: ='A1'!$F$28*O23 + 'A1'!$F$29*P23 + 'A1'!$F$30*Q23 -> 0.001333983231 | V23: ='A1'!$L$28*'A1'!$F$28*O23 + 'A1'!$L$29*'A1'!$F$29*P23 + 'A1'!$L$30*'A1'!$F$30*Q23 -> 0.02707016934 | X23: =(1+'A1'!$AD$23)*GL0!N23 -> 0.002790498269 | Y23: =(1+'A1'!$AD$23)*('GL1'!N23+'GV1'!N23) + (1+'A1'!$AF$23)*'HR1'!N23 + (1+'A1'!$AH$23)*('PL1'!N23+'PV1'!N23+'PH1'!N23) -> 0.03267153895 | Z23: =(1+'A1'!$AD$23)*('GL2'!N23+'GV2'!N23) + (1+'A1'!$AF$23)*'HR2'!N23 + (1+'A1'!$AH$23)*('PL2'!N23+'PV2'!N23+'PH2'!N23) -> 0.0301569037 | AA23: =(1+'A1'!$AD$23)*(MV1a!N23+MV1b!N23) + (1+'A1'!$AF$23)*'JH1'!N23 + (1+'A1'!$AH$23)*('PM1'!N23+'PJ1'!N23) -> 0.03866760333 | AB23: =(1+'A1'!$AD$23)*'MV2'!N23 + (1+'A1'!$AF$23)*'JH2'!N23 + (1+'A1'!$AH$23)*('PM2'!N23+'PJ2'!N23) -> 0.01548461088 | AD23: ='A1'!$T$29*(L23+M23) -> 0.007692043236 | AE23: ='A1'!$M$28*'A1'!$F$28*O23 + 'A1'!$M$29*'A1'!$F$29*P23 + 'A1'!$M$30*'A1'!$F$30*Q23 -> 0.01973980637
B24: 0.75 | C24: 9 | E24: ='HR1'!R24+'HR2'!R24+MV1a!R24+MV1b!R24+'MV2'!R24+'JH1'!R24+'JH2'!R24+'PL1'!R24+'PL2'!R24+'PV1'!R24+'PV2'!R24+'PH1'!R24+'PH2'!R24+'PM1'!R24+'PM2'!R24+'PJ1'!R24+'PJ2'!R24 -> 3.007722967 | F24: ='HR1'!S24+'HR2'!S24+MV1a!S24+MV1b!S24+'MV2'!S24+'JH1'!S24+'JH2'!S24+'PL1'!S24+'PL2'!S24+'PV1'!S24+'PV2'!S24+'PH1'!S24+'PH2'!S24+'PM1'!S24+'PM2'!S24+'PJ1'!S24+'PJ2'!S24 -> 0.1291966878 | G24: ='HR1'!T24+'HR2'!T24+MV1a!T24+MV1b!T24+'MV2'!T24+'JH1'!T24+'JH2'!T24+'PL1'!T24+'PL2'!T24+'PV1'!T24+'PV2'!T24+'PH1'!T24+'PH2'!T24+'PM1'!T24+'PM2'!T24+'PJ1'!T24+'PJ2'!T24 -> 0 | H24: ='HR1'!U24+'HR2'!U24+MV1a!U24+MV1b!U24+'MV2'!U24+'JH1'!U24+'JH2'!U24+'PL1'!U24+'PL2'!U24+'PV1'!U24+'PV2'!U24+'PH1'!U24+'PH2'!U24+'PM1'!U24+'PM2'!U24+'PJ1'!U24+'PJ2'!U24 -> 0 | J24: ='HR1'!W24+'HR2'!W24+MV1a!W24+MV1b!W24+'MV2'!W24+'JH1'!W24+'JH2'!W24+'PL1'!W24+'PL2'!W24+'PV1'!W24+'PV2'!W24+'PH1'!W24+'PH2'!W24+'PM1'!W24+'PM2'!W24+'PJ1'!W24+'PJ2'!W24 -> 0.002081001731 | K24: ='HR1'!X24+'HR2'!X24+IF('A3'!$L$24=0,0,MV1a!X24+MV1b!X24+'MV2'!X24)+'JH1'!X24+'JH2'!X24+'PL1'!X24+'PL2'!X24+'PV1'!X24+'PV2'!X24+'PH1'!X24+'PH2'!X24+'PM1'!X24+'PM2'!X24+'PJ1'!X24+'PJ2'!X24 -> 0 | AG24: ='HR1'!R24+'HR2'!R24+MV1a!R24+MV1b!R24+'MV2'!R24+'JH1'!R24+'JH2'!R24 -> 1.310110332 | AH24: ='HR1'!S24+'HR2'!S24+MV1a!S24+MV1b!S24+'MV2'!S24+'JH1'!S24+'JH2'!S24 -> 0.05909529418 | AI24: ='HR1'!T24+'HR2'!T24+MV1a!T24+MV1b!T24+'MV2'!T24+'JH1'!T24+'JH2'!T24 -> 0 | AJ24: ='HR1'!U24+'HR2'!U24+MV1a!U24+MV1b!U24+'MV2'!U24+'JH1'!U24+'JH2'!U24 -> 0 | AL24: =MAX(AN24:AQ24) -> 0 | AN24: ='HR1'!R24+'HR2'!R24+'JH1'!R24+'JH2'!R24 -> 0 | AO24: ='HR1'!S24+'HR2'!S24+'JH1'!S24+'JH2'!S24 -> 0 | AP24: ='HR1'!T24+'HR2'!T24+'JH1'!T24+'JH2'!T24 -> 0 | AQ24: ='HR1'!U24+'HR2'!U24+'JH1'!U24+'JH2'!U24 -> 0
B25: 0.7916666667 | C25: 9.5 | L25: =GL0!AA25+'GL1'!AA25+'GL2'!AA25+'GV1'!AA25+'GV2'!AA25+'HR1'!AA25+'HR2'!AA25+MV1a!AA25+MV1b!AA25+'MV2'!AA25+'JH1'!AA25+'JH2'!AA25+'PL1'!AA25+'PL2'!AA25+'PV1'!AA25+'PV2'!AA25+'PH1'!AA25+'PH2'!AA25+'PM1'!AA25+'PM2'!AA25+'PJ1'!AA25+'PJ2'!AA25 -> 0.02623363149 | M25: ='A1'!$H$20*GL0!AA25 + 'A1'!$I$20*('GL1'!AA25+'GV1'!AA25+'HR1'!AA25+'PL1'!AA25+'PV1'!AA25+'PH1'!AA25) + 'A1'!$J$20*('GL2'!AA25+'GV2'!AA25+'HR2'!AA25+'PL2'!AA25+'PV2'!AA25+'PH2'!AA25) + 'A1'!$K$20*(MV1a!AA25+MV1b!AA25+'JH1'!AA25+'PM1'!AA25+'PJ1'!AA25) + 'A1'!$L$20*('MV2'!AA25+'JH2'!AA25+'PM2'!AA25+'PJ2'!AA25) -> 0.01991803526 | O25: =(1+'A1'!$H$20)*'A1'!$I$9*'A1'!$AD$5*GL0!N25 -> 0.0001718157427 | P25: =(1+'A1'!$I$20)*('A1'!$I$9*'A1'!$AD$5*('GL1'!N25+'GV1'!N25) + 'A1'!$I$9*'A1'!$AF$5*'HR1'!N25 + 'A1'!$I$9*'A1'!$AH$5*('PL1'!N25+'PV1'!N25+'PH1'!N25)) + (1+'A1'!$K$20)*('A1'!$I$9*'A1'!$AD$5*(MV1a!N25+MV1b!N25) + 'A1'!$I$9*'A1'!$AF$5*'JH1'!N25 + 'A1'!$I$9*'A1'!$AH$5*('PM1'!N25+'PJ1'!N25)) -> 0.002705835349 | Q25: =(1+'A1'!$J$20)*('A1'!$I$9*'A1'!$AD$5*('GL2'!N25+'GV2'!N25) + 'A1'!$I$9*'A1'!$AF$5*'HR2'!N25 + 'A1'!$I$9*'A1'!$AH$5*('PL2'!N25+'PV2'!N25+'PH2'!N25)) + (1+'A1'!$L$20)*('A1'!$I$9*'A1'!$AD$5*'MV2'!N25 + 'A1'!$I$9*'A1'!$AF$5*'JH2'!N25 + 'A1'!$I$9*'A1'!$AH$5*('PM2'!N25+'PJ2'!N25)) -> 0.001697193255 | S25: ='A1'!$F$23*SUM(O25:Q25) + 'A1'!$F$24*(L25+M25-SUM(O25:Q25)) + 'A1'!$F$25*J24 -> 0.009979831259 | U25: ='A1'!$F$28*O25 + 'A1'!$F$29*P25 + 'A1'!$F$30*Q25 -> 0.001333966527 | V25: ='A1'!$L$28*'A1'!$F$28*O25 + 'A1'!$L$29*'A1'!$F$29*P25 + 'A1'!$L$30*'A1'!$F$30*Q25 -> 0.02706984282 | X25: =(1+'A1'!$AD$23)*GL0!N25 -> 0.002790446769 | Y25: =(1+'A1'!$AD$23)*('GL1'!N25+'GV1'!N25) + (1+'A1'!$AF$23)*'HR1'!N25 + (1+'A1'!$AH$23)*('PL1'!N25+'PV1'!N25+'PH1'!N25) -> 0.03267112316 | Z25: =(1+'A1'!$AD$23)*('GL2'!N25+'GV2'!N25) + (1+'A1'!$AF$23)*'HR2'!N25 + (1+'A1'!$AH$23)*('PL2'!N25+'PV2'!N25+'PH2'!N25) -> 0.03015654691 | AA25: =(1+'A1'!$AD$23)*(MV1a!N25+MV1b!N25) + (1+'A1'!$AF$23)*'JH1'!N25 + (1+'A1'!$AH$23)*('PM1'!N25+'PJ1'!N25) -> 0.03866719677 | AB25: =(1+'A1'!$AD$23)*'MV2'!N25 + (1+'A1'!$AF$23)*'JH2'!N25 + (1+'A1'!$AH$23)*('PM2'!N25+'PJ2'!N25) -> 0.01548437826 | AD25: ='A1'!$T$29*(L25+M25) -> 0.007691944459 | AE25: ='A1'!$M$28*'A1'!$F$28*O25 + 'A1'!$M$29*'A1'!$F$29*P25 + 'A1'!$M$30*'A1'!$F$30*Q25 -> 0.01973956885
B26: 0.8333333333 | C26: 10 | E26: ='HR1'!R26+'HR2'!R26+MV1a!R26+MV1b!R26+'MV2'!R26+'JH1'!R26+'JH2'!R26+'PL1'!R26+'PL2'!R26+'PV1'!R26+'PV2'!R26+'PH1'!R26+'PH2'!R26+'PM1'!R26+'PM2'!R26+'PJ1'!R26+'PJ2'!R26 -> 3.007722967 | F26: ='HR1'!S26+'HR2'!S26+MV1a!S26+MV1b!S26+'MV2'!S26+'JH1'!S26+'JH2'!S26+'PL1'!S26+'PL2'!S26+'PV1'!S26+'PV2'!S26+'PH1'!S26+'PH2'!S26+'PM1'!S26+'PM2'!S26+'PJ1'!S26+'PJ2'!S26 -> 0.1291966861 | G26: ='HR1'!T26+'HR2'!T26+MV1a!T26+MV1b!T26+'MV2'!T26+'JH1'!T26+'JH2'!T26+'PL1'!T26+'PL2'!T26+'PV1'!T26+'PV2'!T26+'PH1'!T26+'PH2'!T26+'PM1'!T26+'PM2'!T26+'PJ1'!T26+'PJ2'!T26 -> 0 | H26: ='HR1'!U26+'HR2'!U26+MV1a!U26+MV1b!U26+'MV2'!U26+'JH1'!U26+'JH2'!U26+'PL1'!U26+'PL2'!U26+'PV1'!U26+'PV2'!U26+'PH1'!U26+'PH2'!U26+'PM1'!U26+'PM2'!U26+'PJ1'!U26+'PJ2'!U26 -> 0 | J26: ='HR1'!W26+'HR2'!W26+MV1a!W26+MV1b!W26+'MV2'!W26+'JH1'!W26+'JH2'!W26+'PL1'!W26+'PL2'!W26+'PV1'!W26+'PV2'!W26+'PH1'!W26+'PH2'!W26+'PM1'!W26+'PM2'!W26+'PJ1'!W26+'PJ2'!W26 -> 0.002081001721 | K26: ='HR1'!X26+'HR2'!X26+IF('A3'!$L$24=0,0,MV1a!X26+MV1b!X26+'MV2'!X26)+'JH1'!X26+'JH2'!X26+'PL1'!X26+'PL2'!X26+'PV1'!X26+'PV2'!X26+'PH1'!X26+'PH2'!X26+'PM1'!X26+'PM2'!X26+'PJ1'!X26+'PJ2'!X26 -> 0 | AG26: ='HR1'!R26+'HR2'!R26+MV1a!R26+MV1b!R26+'MV2'!R26+'JH1'!R26+'JH2'!R26 -> 1.310110332 | AH26: ='HR1'!S26+'HR2'!S26+MV1a!S26+MV1b!S26+'MV2'!S26+'JH1'!S26+'JH2'!S26 -> 0.05909529419 | AI26: ='HR1'!T26+'HR2'!T26+MV1a!T26+MV1b!T26+'MV2'!T26+'JH1'!T26+'JH2'!T26 -> 0 | AJ26: ='HR1'!U26+'HR2'!U26+MV1a!U26+MV1b!U26+'MV2'!U26+'JH1'!U26+'JH2'!U26 -> 0 | AL26: =MAX(AN26:AQ26) -> 0 | AN26: ='HR1'!R26+'HR2'!R26+'JH1'!R26+'JH2'!R26 -> 0 | AO26: ='HR1'!S26+'HR2'!S26+'JH1'!S26+'JH2'!S26 -> 0 | AP26: ='HR1'!T26+'HR2'!T26+'JH1'!T26+'JH2'!T26 -> 0 | AQ26: ='HR1'!U26+'HR2'!U26+'JH1'!U26+'JH2'!U26 -> 0
B27: 0.875 | C27: 10.5 | L27: =GL0!AA27+'GL1'!AA27+'GL2'!AA27+'GV1'!AA27+'GV2'!AA27+'HR1'!AA27+'HR2'!AA27+MV1a!AA27+MV1b!AA27+'MV2'!AA27+'JH1'!AA27+'JH2'!AA27+'PL1'!AA27+'PL2'!AA27+'PV1'!AA27+'PV2'!AA27+'PH1'!AA27+'PH2'!AA27+'PM1'!AA27+'PM2'!AA27+'PJ1'!AA27+'PJ2'!AA27 -> 0.02623320513 | M27: ='A1'!$H$20*GL0!AA27 + 'A1'!$I$20*('GL1'!AA27+'GV1'!AA27+'HR1'!AA27+'PL1'!AA27+'PV1'!AA27+'PH1'!AA27) + 'A1'!$J$20*('GL2'!AA27+'GV2'!AA27+'HR2'!AA27+'PL2'!AA27+'PV2'!AA27+'PH2'!AA27) + 'A1'!$K$20*(MV1a!AA27+MV1b!AA27+'JH1'!AA27+'PM1'!AA27+'PJ1'!AA27) + 'A1'!$L$20*('MV2'!AA27+'JH2'!AA27+'PM2'!AA27+'PJ2'!AA27) -> 0.0199177115 | O27: =(1+'A1'!$H$20)*'A1'!$I$9*'A1'!$AD$5*GL0!N27 -> 0.0001718116996 | P27: =(1+'A1'!$I$20)*('A1'!$I$9*'A1'!$AD$5*('GL1'!N27+'GV1'!N27) + 'A1'!$I$9*'A1'!$AF$5*'HR1'!N27 + 'A1'!$I$9*'A1'!$AH$5*('PL1'!N27+'PV1'!N27+'PH1'!N27)) + (1+'A1'!$K$20)*('A1'!$I$9*'A1'!$AD$5*(MV1a!N27+MV1b!N27) + 'A1'!$I$9*'A1'!$AF$5*'JH1'!N27 + 'A1'!$I$9*'A1'!$AH$5*('PM1'!N27+'PJ1'!N27)) -> 0.002705796968 | Q27: =(1+'A1'!$J$20)*('A1'!$I$9*'A1'!$AD$5*('GL2'!N27+'GV2'!N27) + 'A1'!$I$9*'A1'!$AF$5*'HR2'!N27 + 'A1'!$I$9*'A1'!$AH$5*('PL2'!N27+'PV2'!N27+'PH2'!N27)) + (1+'A1'!$L$20)*('A1'!$I$9*'A1'!$AD$5*'MV2'!N27 + 'A1'!$I$9*'A1'!$AF$5*'JH2'!N27 + 'A1'!$I$9*'A1'!$AH$5*('PM2'!N27+'PJ2'!N27)) -> 0.001697165477 | S27: ='A1'!$F$23*SUM(O27:Q27) + 'A1'!$F$24*(L27+M27-SUM(O27:Q27)) + 'A1'!$F$25*J26 -> 0.009979672669 | U27: ='A1'!$F$28*O27 + 'A1'!$F$29*P27 + 'A1'!$F$30*Q27 -> 0.00133394534 | V27: ='A1'!$L$28*'A1'!$F$28*O27 + 'A1'!$L$29*'A1'!$F$29*P27 + 'A1'!$L$30*'A1'!$F$30*Q27 -> 0.02706942944 | X27: =(1+'A1'!$AD$23)*GL0!N27 -> 0.002790381105 | Y27: =(1+'A1'!$AD$23)*('GL1'!N27+'GV1'!N27) + (1+'A1'!$AF$23)*'HR1'!N27 + (1+'A1'!$AH$23)*('PL1'!N27+'PV1'!N27+'PH1'!N27) -> 0.0326705929 | Z27: =(1+'A1'!$AD$23)*('GL2'!N27+'GV2'!N27) + (1+'A1'!$AF$23)*'HR2'!N27 + (1+'A1'!$AH$23)*('PL2'!N27+'PV2'!N27+'PH2'!N27) -> 0.03015609134 | AA27: =(1+'A1'!$AD$23)*(MV1a!N27+MV1b!N27) + (1+'A1'!$AF$23)*'JH1'!N27 + (1+'A1'!$AH$23)*('PM1'!N27+'PJ1'!N27) -> 0.03866668708 | AB27: =(1+'A1'!$AD$23)*'MV2'!N27 + (1+'A1'!$AF$23)*'JH2'!N27 + (1+'A1'!$AH$23)*('PM2'!N27+'PJ2'!N27) -> 0.01548408484 | AD27: ='A1'!$T$29*(L27+M27) -> 0.007691819439 | AE27: ='A1'!$M$28*'A1'!$F$28*O27 + 'A1'!$M$29*'A1'!$F$29*P27 + 'A1'!$M$30*'A1'!$F$30*Q27 -> 0.01973926813
B28: 0.9166666667 | C28: 11 | E28: ='HR1'!R28+'HR2'!R28+MV1a!R28+MV1b!R28+'MV2'!R28+'JH1'!R28+'JH2'!R28+'PL1'!R28+'PL2'!R28+'PV1'!R28+'PV2'!R28+'PH1'!R28+'PH2'!R28+'PM1'!R28+'PM2'!R28+'PJ1'!R28+'PJ2'!R28 -> 3.007722968 | F28: ='HR1'!S28+'HR2'!S28+MV1a!S28+MV1b!S28+'MV2'!S28+'JH1'!S28+'JH2'!S28+'PL1'!S28+'PL2'!S28+'PV1'!S28+'PV2'!S28+'PH1'!S28+'PH2'!S28+'PM1'!S28+'PM2'!S28+'PJ1'!S28+'PJ2'!S28 -> 0.1291966843 | G28: ='HR1'!T28+'HR2'!T28+MV1a!T28+MV1b!T28+'MV2'!T28+'JH1'!T28+'JH2'!T28+'PL1'!T28+'PL2'!T28+'PV1'!T28+'PV2'!T28+'PH1'!T28+'PH2'!T28+'PM1'!T28+'PM2'!T28+'PJ1'!T28+'PJ2'!T28 -> 0 | H28: ='HR1'!U28+'HR2'!U28+MV1a!U28+MV1b!U28+'MV2'!U28+'JH1'!U28+'JH2'!U28+'PL1'!U28+'PL2'!U28+'PV1'!U28+'PV2'!U28+'PH1'!U28+'PH2'!U28+'PM1'!U28+'PM2'!U28+'PJ1'!U28+'PJ2'!U28 -> 0 | J28: ='HR1'!W28+'HR2'!W28+MV1a!W28+MV1b!W28+'MV2'!W28+'JH1'!W28+'JH2'!W28+'PL1'!W28+'PL2'!W28+'PV1'!W28+'PV2'!W28+'PH1'!W28+'PH2'!W28+'PM1'!W28+'PM2'!W28+'PJ1'!W28+'PJ2'!W28 -> 0.002081001544 | K28: ='HR1'!X28+'HR2'!X28+IF('A3'!$L$24=0,0,MV1a!X28+MV1b!X28+'MV2'!X28)+'JH1'!X28+'JH2'!X28+'PL1'!X28+'PL2'!X28+'PV1'!X28+'PV2'!X28+'PH1'!X28+'PH2'!X28+'PM1'!X28+'PM2'!X28+'PJ1'!X28+'PJ2'!X28 -> 0 | AG28: ='HR1'!R28+'HR2'!R28+MV1a!R28+MV1b!R28+'MV2'!R28+'JH1'!R28+'JH2'!R28 -> 1.310110332 | AH28: ='HR1'!S28+'HR2'!S28+MV1a!S28+MV1b!S28+'MV2'!S28+'JH1'!S28+'JH2'!S28 -> 0.05909529421 | AI28: ='HR1'!T28+'HR2'!T28+MV1a!T28+MV1b!T28+'MV2'!T28+'JH1'!T28+'JH2'!T28 -> 0 | AJ28: ='HR1'!U28+'HR2'!U28+MV1a!U28+MV1b!U28+'MV2'!U28+'JH1'!U28+'JH2'!U28 -> 0 | AL28: =MAX(AN28:AQ28) -> 0 | AN28: ='HR1'!R28+'HR2'!R28+'JH1'!R28+'JH2'!R28 -> 0 | AO28: ='HR1'!S28+'HR2'!S28+'JH1'!S28+'JH2'!S28 -> 0 | AP28: ='HR1'!T28+'HR2'!T28+'JH1'!T28+'JH2'!T28 -> 0 | AQ28: ='HR1'!U28+'HR2'!U28+'JH1'!U28+'JH2'!U28 -> 0
B29: 0.9583333333 | C29: 11.5 | L29: =GL0!AA29+'GL1'!AA29+'GL2'!AA29+'GV1'!AA29+'GV2'!AA29+'HR1'!AA29+'HR2'!AA29+MV1a!AA29+MV1b!AA29+'MV2'!AA29+'JH1'!AA29+'JH2'!AA29+'PL1'!AA29+'PL2'!AA29+'PV1'!AA29+'PV2'!AA29+'PH1'!AA29+'PH2'!AA29+'PM1'!AA29+'PM2'!AA29+'PJ1'!AA29+'PJ2'!AA29 -> 0.02623268535 | M29: ='A1'!$H$20*GL0!AA29 + 'A1'!$I$20*('GL1'!AA29+'GV1'!AA29+'HR1'!AA29+'PL1'!AA29+'PV1'!AA29+'PH1'!AA29) + 'A1'!$J$20*('GL2'!AA29+'GV2'!AA29+'HR2'!AA29+'PL2'!AA29+'PV2'!AA29+'PH2'!AA29) + 'A1'!$K$20*(MV1a!AA29+MV1b!AA29+'JH1'!AA29+'PM1'!AA29+'PJ1'!AA29) + 'A1'!$L$20*('MV2'!AA29+'JH2'!AA29+'PM2'!AA29+'PJ2'!AA29) -> 0.01991731746 | O29: =(1+'A1'!$H$20)*'A1'!$I$9*'A1'!$AD$5*GL0!N29 -> 0.0001718067415 | P29: =(1+'A1'!$I$20)*('A1'!$I$9*'A1'!$AD$5*('GL1'!N29+'GV1'!N29) + 'A1'!$I$9*'A1'!$AF$5*'HR1'!N29 + 'A1'!$I$9*'A1'!$AH$5*('PL1'!N29+'PV1'!N29+'PH1'!N29)) + (1+'A1'!$K$20)*('A1'!$I$9*'A1'!$AD$5*(MV1a!N29+MV1b!N29) + 'A1'!$I$9*'A1'!$AF$5*'JH1'!N29 + 'A1'!$I$9*'A1'!$AH$5*('PM1'!N29+'PJ1'!N29)) -> 0.002705750288 | Q29: =(1+'A1'!$J$20)*('A1'!$I$9*'A1'!$AD$5*('GL2'!N29+'GV2'!N29) + 'A1'!$I$9*'A1'!$AF$5*'HR2'!N29 + 'A1'!$I$9*'A1'!$AH$5*('PL2'!N29+'PV2'!N29+'PH2'!N29)) + (1+'A1'!$L$20)*('A1'!$I$9*'A1'!$AD$5*'MV2'!N29 + 'A1'!$I$9*'A1'!$AF$5*'JH2'!N29 + 'A1'!$I$9*'A1'!$AH$5*('PM2'!N29+'PJ2'!N29)) -> 0.00169713152 | S29: ='A1'!$F$23*SUM(O29:Q29) + 'A1'!$F$24*(L29+M29-SUM(O29:Q29)) + 'A1'!$F$25*J28 -> 0.009979479404 | U29: ='A1'!$F$28*O29 + 'A1'!$F$29*P29 + 'A1'!$F$30*Q29 -> 0.001333919469 | V29: ='A1'!$L$28*'A1'!$F$28*O29 + 'A1'!$L$29*'A1'!$F$29*P29 + 'A1'!$L$30*'A1'!$F$30*Q29 -> 0.02706892564 | X29: =(1+'A1'!$AD$23)*GL0!N29 -> 0.002790300581 | Y29: =(1+'A1'!$AD$23)*('GL1'!N29+'GV1'!N29) + (1+'A1'!$AF$23)*'HR1'!N29 + (1+'A1'!$AH$23)*('PL1'!N29+'PV1'!N29+'PH1'!N29) -> 0.03266994227 | Z29: =(1+'A1'!$AD$23)*('GL2'!N29+'GV2'!N29) + (1+'A1'!$AF$23)*'HR2'!N29 + (1+'A1'!$AH$23)*('PL2'!N29+'PV2'!N29+'PH2'!N29) -> 0.03015553149 | AA29: =(1+'A1'!$AD$23)*(MV1a!N29+MV1b!N29) + (1+'A1'!$AF$23)*'JH1'!N29 + (1+'A1'!$AH$23)*('PM1'!N29+'PJ1'!N29) -> 0.03866607171 | AB29: =(1+'A1'!$AD$23)*'MV2'!N29 + (1+'A1'!$AF$23)*'JH2'!N29 + (1+'A1'!$AH$23)*('PM2'!N29+'PJ2'!N29) -> 0.01548372857 | AD29: ='A1'!$T$29*(L29+M29) -> 0.007691667136 | AE29: ='A1'!$M$28*'A1'!$F$28*O29 + 'A1'!$M$29*'A1'!$F$29*P29 + 'A1'!$M$30*'A1'!$F$30*Q29 -> 0.01973890165
B30: 1 | C30: 12 | E30: ='HR1'!R30+'HR2'!R30+MV1a!R30+MV1b!R30+'MV2'!R30+'JH1'!R30+'JH2'!R30+'PL1'!R30+'PL2'!R30+'PV1'!R30+'PV2'!R30+'PH1'!R30+'PH2'!R30+'PM1'!R30+'PM2'!R30+'PJ1'!R30+'PJ2'!R30 -> 3.007722968 | F30: ='HR1'!S30+'HR2'!S30+MV1a!S30+MV1b!S30+'MV2'!S30+'JH1'!S30+'JH2'!S30+'PL1'!S30+'PL2'!S30+'PV1'!S30+'PV2'!S30+'PH1'!S30+'PH2'!S30+'PM1'!S30+'PM2'!S30+'PJ1'!S30+'PJ2'!S30 -> 0.1291966823 | G30: ='HR1'!T30+'HR2'!T30+MV1a!T30+MV1b!T30+'MV2'!T30+'JH1'!T30+'JH2'!T30+'PL1'!T30+'PL2'!T30+'PV1'!T30+'PV2'!T30+'PH1'!T30+'PH2'!T30+'PM1'!T30+'PM2'!T30+'PJ1'!T30+'PJ2'!T30 -> 0 | H30: ='HR1'!U30+'HR2'!U30+MV1a!U30+MV1b!U30+'MV2'!U30+'JH1'!U30+'JH2'!U30+'PL1'!U30+'PL2'!U30+'PV1'!U30+'PV2'!U30+'PH1'!U30+'PH2'!U30+'PM1'!U30+'PM2'!U30+'PJ1'!U30+'PJ2'!U30 -> 0 | J30: ='HR1'!W30+'HR2'!W30+MV1a!W30+MV1b!W30+'MV2'!W30+'JH1'!W30+'JH2'!W30+'PL1'!W30+'PL2'!W30+'PV1'!W30+'PV2'!W30+'PH1'!W30+'PH2'!W30+'PM1'!W30+'PM2'!W30+'PJ1'!W30+'PJ2'!W30 -> 0.002081001186 | K30: ='HR1'!X30+'HR2'!X30+IF('A3'!$L$24=0,0,MV1a!X30+MV1b!X30+'MV2'!X30)+'JH1'!X30+'JH2'!X30+'PL1'!X30+'PL2'!X30+'PV1'!X30+'PV2'!X30+'PH1'!X30+'PH2'!X30+'PM1'!X30+'PM2'!X30+'PJ1'!X30+'PJ2'!X30 -> 0 | AG30: ='HR1'!R30+'HR2'!R30+MV1a!R30+MV1b!R30+'MV2'!R30+'JH1'!R30+'JH2'!R30 -> 1.310110333 | AH30: ='HR1'!S30+'HR2'!S30+MV1a!S30+MV1b!S30+'MV2'!S30+'JH1'!S30+'JH2'!S30 -> 0.05909529423 | AI30: ='HR1'!T30+'HR2'!T30+MV1a!T30+MV1b!T30+'MV2'!T30+'JH1'!T30+'JH2'!T30 -> 0 | AJ30: ='HR1'!U30+'HR2'!U30+MV1a!U30+MV1b!U30+'MV2'!U30+'JH1'!U30+'JH2'!U30 -> 0 | AL30: =MAX(AN30:AQ30) -> 0 | AN30: ='HR1'!R30+'HR2'!R30+'JH1'!R30+'JH2'!R30 -> 0 | AO30: ='HR1'!S30+'HR2'!S30+'JH1'!S30+'JH2'!S30 -> 0 | AP30: ='HR1'!T30+'HR2'!T30+'JH1'!T30+'JH2'!T30 -> 0 | AQ30: ='HR1'!U30+'HR2'!U30+'JH1'!U30+'JH2'!U30 -> 0
B31: 1.041666667 | C31: 12.5 | L31: =GL0!AA31+'GL1'!AA31+'GL2'!AA31+'GV1'!AA31+'GV2'!AA31+'HR1'!AA31+'HR2'!AA31+MV1a!AA31+MV1b!AA31+'MV2'!AA31+'JH1'!AA31+'JH2'!AA31+'PL1'!AA31+'PL2'!AA31+'PV1'!AA31+'PV2'!AA31+'PH1'!AA31+'PH2'!AA31+'PM1'!AA31+'PM2'!AA31+'PJ1'!AA31+'PJ2'!AA31 -> 0.02623207042 | M31: ='A1'!$H$20*GL0!AA31 + 'A1'!$I$20*('GL1'!AA31+'GV1'!AA31+'HR1'!AA31+'PL1'!AA31+'PV1'!AA31+'PH1'!AA31) + 'A1'!$J$20*('GL2'!AA31+'GV2'!AA31+'HR2'!AA31+'PL2'!AA31+'PV2'!AA31+'PH2'!AA31) + 'A1'!$K$20*(MV1a!AA31+MV1b!AA31+'JH1'!AA31+'PM1'!AA31+'PJ1'!AA31) + 'A1'!$L$20*('MV2'!AA31+'JH2'!AA31+'PM2'!AA31+'PJ2'!AA31) -> 0.01991685205 | O31: =(1+'A1'!$H$20)*'A1'!$I$9*'A1'!$AD$5*GL0!N31 -> 0.0001718008438 | P31: =(1+'A1'!$I$20)*('A1'!$I$9*'A1'!$AD$5*('GL1'!N31+'GV1'!N31) + 'A1'!$I$9*'A1'!$AF$5*'HR1'!N31 + 'A1'!$I$9*'A1'!$AH$5*('PL1'!N31+'PV1'!N31+'PH1'!N31)) + (1+'A1'!$K$20)*('A1'!$I$9*'A1'!$AD$5*(MV1a!N31+MV1b!N31) + 'A1'!$I$9*'A1'!$AF$5*'JH1'!N31 + 'A1'!$I$9*'A1'!$AH$5*('PM1'!N31+'PJ1'!N31)) -> 0.002705695186 | Q31: =(1+'A1'!$J$20)*('A1'!$I$9*'A1'!$AD$5*('GL2'!N31+'GV2'!N31) + 'A1'!$I$9*'A1'!$AF$5*'HR2'!N31 + 'A1'!$I$9*'A1'!$AH$5*('PL2'!N31+'PV2'!N31+'PH2'!N31)) + (1+'A1'!$L$20)*('A1'!$I$9*'A1'!$AD$5*'MV2'!N31 + 'A1'!$I$9*'A1'!$AF$5*'JH2'!N31 + 'A1'!$I$9*'A1'!$AH$5*('PM2'!N31+'PJ2'!N31)) -> 0.001697091241 | S31: ='A1'!$F$23*SUM(O31:Q31) + 'A1'!$F$24*(L31+M31-SUM(O31:Q31)) + 'A1'!$F$25*J30 -> 0.009979250845 | U31: ='A1'!$F$28*O31 + 'A1'!$F$29*P31 + 'A1'!$F$30*Q31 -> 0.001333888817 | V31: ='A1'!$L$28*'A1'!$F$28*O31 + 'A1'!$L$29*'A1'!$F$29*P31 + 'A1'!$L$30*'A1'!$F$30*Q31 -> 0.02706832981 | X31: =(1+'A1'!$AD$23)*GL0!N31 -> 0.002790204797 | Y31: =(1+'A1'!$AD$23)*('GL1'!N31+'GV1'!N31) + (1+'A1'!$AF$23)*'HR1'!N31 + (1+'A1'!$AH$23)*('PL1'!N31+'PV1'!N31+'PH1'!N31) -> 0.03266916793 | Z31: =(1+'A1'!$AD$23)*('GL2'!N31+'GV2'!N31) + (1+'A1'!$AF$23)*'HR2'!N31 + (1+'A1'!$AH$23)*('PL2'!N31+'PV2'!N31+'PH2'!N31) -> 0.03015486409 | AA31: =(1+'A1'!$AD$23)*(MV1a!N31+MV1b!N31) + (1+'A1'!$AF$23)*'JH1'!N31 + (1+'A1'!$AH$23)*('PM1'!N31+'PJ1'!N31) -> 0.03866535033 | AB31: =(1+'A1'!$AD$23)*'MV2'!N31 + (1+'A1'!$AF$23)*'JH2'!N31 + (1+'A1'!$AH$23)*('PM2'!N31+'PJ2'!N31) -> 0.01548330874 | AD31: ='A1'!$T$29*(L31+M31) -> 0.007691487077 | AE31: ='A1'!$M$28*'A1'!$F$28*O31 + 'A1'!$M$29*'A1'!$F$29*P31 + 'A1'!$M$30*'A1'!$F$30*Q31 -> 0.0197384682
B32: 1.083333333 | C32: 13 | E32: ='HR1'!R32+'HR2'!R32+MV1a!R32+MV1b!R32+'MV2'!R32+'JH1'!R32+'JH2'!R32+'PL1'!R32+'PL2'!R32+'PV1'!R32+'PV2'!R32+'PH1'!R32+'PH2'!R32+'PM1'!R32+'PM2'!R32+'PJ1'!R32+'PJ2'!R32 -> 3.007722969 | F32: ='HR1'!S32+'HR2'!S32+MV1a!S32+MV1b!S32+'MV2'!S32+'JH1'!S32+'JH2'!S32+'PL1'!S32+'PL2'!S32+'PV1'!S32+'PV2'!S32+'PH1'!S32+'PH2'!S32+'PM1'!S32+'PM2'!S32+'PJ1'!S32+'PJ2'!S32 -> 0.1291966802 | G32: ='HR1'!T32+'HR2'!T32+MV1a!T32+MV1b!T32+'MV2'!T32+'JH1'!T32+'JH2'!T32+'PL1'!T32+'PL2'!T32+'PV1'!T32+'PV2'!T32+'PH1'!T32+'PH2'!T32+'PM1'!T32+'PM2'!T32+'PJ1'!T32+'PJ2'!T32 -> 0 | H32: ='HR1'!U32+'HR2'!U32+MV1a!U32+MV1b!U32+'MV2'!U32+'JH1'!U32+'JH2'!U32+'PL1'!U32+'PL2'!U32+'PV1'!U32+'PV2'!U32+'PH1'!U32+'PH2'!U32+'PM1'!U32+'PM2'!U32+'PJ1'!U32+'PJ2'!U32 -> 0 | J32: ='HR1'!W32+'HR2'!W32+MV1a!W32+MV1b!W32+'MV2'!W32+'JH1'!W32+'JH2'!W32+'PL1'!W32+'PL2'!W32+'PV1'!W32+'PV2'!W32+'PH1'!W32+'PH2'!W32+'PM1'!W32+'PM2'!W32+'PJ1'!W32+'PJ2'!W32 -> 0.002081000641 | K32: ='HR1'!X32+'HR2'!X32+IF('A3'!$L$24=0,0,MV1a!X32+MV1b!X32+'MV2'!X32)+'JH1'!X32+'JH2'!X32+'PL1'!X32+'PL2'!X32+'PV1'!X32+'PV2'!X32+'PH1'!X32+'PH2'!X32+'PM1'!X32+'PM2'!X32+'PJ1'!X32+'PJ2'!X32 -> 0 | AG32: ='HR1'!R32+'HR2'!R32+MV1a!R32+MV1b!R32+'MV2'!R32+'JH1'!R32+'JH2'!R32 -> 1.310110333 | AH32: ='HR1'!S32+'HR2'!S32+MV1a!S32+MV1b!S32+'MV2'!S32+'JH1'!S32+'JH2'!S32 -> 0.05909529424 | AI32: ='HR1'!T32+'HR2'!T32+MV1a!T32+MV1b!T32+'MV2'!T32+'JH1'!T32+'JH2'!T32 -> 0 | AJ32: ='HR1'!U32+'HR2'!U32+MV1a!U32+MV1b!U32+'MV2'!U32+'JH1'!U32+'JH2'!U32 -> 0 | AL32: =MAX(AN32:AQ32) -> 0 | AN32: ='HR1'!R32+'HR2'!R32+'JH1'!R32+'JH2'!R32 -> 0 | AO32: ='HR1'!S32+'HR2'!S32+'JH1'!S32+'JH2'!S32 -> 0 | AP32: ='HR1'!T32+'HR2'!T32+'JH1'!T32+'JH2'!T32 -> 0 | AQ32: ='HR1'!U32+'HR2'!U32+'JH1'!U32+'JH2'!U32 -> 0
B33: 1.125 | C33: 13.5 | L33: =GL0!AA33+'GL1'!AA33+'GL2'!AA33+'GV1'!AA33+'GV2'!AA33+'HR1'!AA33+'HR2'!AA33+MV1a!AA33+MV1b!AA33+'MV2'!AA33+'JH1'!AA33+'JH2'!AA33+'PL1'!AA33+'PL2'!AA33+'PV1'!AA33+'PV2'!AA33+'PH1'!AA33+'PH2'!AA33+'PM1'!AA33+'PM2'!AA33+'PJ1'!AA33+'PJ2'!AA33 -> 0.02623136019 | M33: ='A1'!$H$20*GL0!AA33 + 'A1'!$I$20*('GL1'!AA33+'GV1'!AA33+'HR1'!AA33+'PL1'!AA33+'PV1'!AA33+'PH1'!AA33) + 'A1'!$J$20*('GL2'!AA33+'GV2'!AA33+'HR2'!AA33+'PL2'!AA33+'PV2'!AA33+'PH2'!AA33) + 'A1'!$K$20*(MV1a!AA33+MV1b!AA33+'JH1'!AA33+'PM1'!AA33+'PJ1'!AA33) + 'A1'!$L$20*('MV2'!AA33+'JH2'!AA33+'PM2'!AA33+'PJ2'!AA33) -> 0.01991631531 | O33: =(1+'A1'!$H$20)*'A1'!$I$9*'A1'!$AD$5*GL0!N33 -> 0.0001717939967 | P33: =(1+'A1'!$I$20)*('A1'!$I$9*'A1'!$AD$5*('GL1'!N33+'GV1'!N33) + 'A1'!$I$9*'A1'!$AF$5*'HR1'!N33 + 'A1'!$I$9*'A1'!$AH$5*('PL1'!N33+'PV1'!N33+'PH1'!N33)) + (1+'A1'!$K$20)*('A1'!$I$9*'A1'!$AD$5*(MV1a!N33+MV1b!N33) + 'A1'!$I$9*'A1'!$AF$5*'JH1'!N33 + 'A1'!$I$9*'A1'!$AH$5*('PM1'!N33+'PJ1'!N33)) -> 0.002705631681 | Q33: =(1+'A1'!$J$20)*('A1'!$I$9*'A1'!$AD$5*('GL2'!N33+'GV2'!N33) + 'A1'!$I$9*'A1'!$AF$5*'HR2'!N33 + 'A1'!$I$9*'A1'!$AH$5*('PL2'!N33+'PV2'!N33+'PH2'!N33)) + (1+'A1'!$L$20)*('A1'!$I$9*'A1'!$AD$5*'MV2'!N33 + 'A1'!$I$9*'A1'!$AF$5*'JH2'!N33 + 'A1'!$I$9*'A1'!$AH$5*('PM2'!N33+'PJ2'!N33)) -> 0.001697044602 | S33: ='A1'!$F$23*SUM(O33:Q33) + 'A1'!$F$24*(L33+M33-SUM(O33:Q33)) + 'A1'!$F$25*J32 -> 0.009978986958 | U33: ='A1'!$F$28*O33 + 'A1'!$F$29*P33 + 'A1'!$F$30*Q33 -> 0.001333853364 | V33: ='A1'!$L$28*'A1'!$F$28*O33 + 'A1'!$L$29*'A1'!$F$29*P33 + 'A1'!$L$30*'A1'!$F$30*Q33 -> 0.02706764184 | X33: =(1+'A1'!$AD$23)*GL0!N33 -> 0.002790093593 | Y33: =(1+'A1'!$AD$23)*('GL1'!N33+'GV1'!N33) + (1+'A1'!$AF$23)*'HR1'!N33 + (1+'A1'!$AH$23)*('PL1'!N33+'PV1'!N33+'PH1'!N33) -> 0.03266826865 | Z33: =(1+'A1'!$AD$23)*('GL2'!N33+'GV2'!N33) + (1+'A1'!$AF$23)*'HR2'!N33 + (1+'A1'!$AH$23)*('PL2'!N33+'PV2'!N33+'PH2'!N33) -> 0.03015408767 | AA33: =(1+'A1'!$AD$23)*(MV1a!N33+MV1b!N33) + (1+'A1'!$AF$23)*'JH1'!N33 + (1+'A1'!$AH$23)*('PM1'!N33+'PJ1'!N33) -> 0.03866452436 | AB33: =(1+'A1'!$AD$23)*'MV2'!N33 + (1+'A1'!$AF$23)*'JH2'!N33 + (1+'A1'!$AH$23)*('PM2'!N33+'PJ2'!N33) -> 0.01548282568 | AD33: ='A1'!$T$29*(L33+M33) -> 0.00769127925 | AE33: ='A1'!$M$28*'A1'!$F$28*O33 + 'A1'!$M$29*'A1'!$F$29*P33 + 'A1'!$M$30*'A1'!$F$30*Q33 -> 0.01973796773
B34: 1.166666667 | C34: 14 | E34: ='HR1'!R34+'HR2'!R34+MV1a!R34+MV1b!R34+'MV2'!R34+'JH1'!R34+'JH2'!R34+'PL1'!R34+'PL2'!R34+'PV1'!R34+'PV2'!R34+'PH1'!R34+'PH2'!R34+'PM1'!R34+'PM2'!R34+'PJ1'!R34+'PJ2'!R34 -> 3.007722969 | F34: ='HR1'!S34+'HR2'!S34+MV1a!S34+MV1b!S34+'MV2'!S34+'JH1'!S34+'JH2'!S34+'PL1'!S34+'PL2'!S34+'PV1'!S34+'PV2'!S34+'PH1'!S34+'PH2'!S34+'PM1'!S34+'PM2'!S34+'PJ1'!S34+'PJ2'!S34 -> 0.1291966779 | G34: ='HR1'!T34+'HR2'!T34+MV1a!T34+MV1b!T34+'MV2'!T34+'JH1'!T34+'JH2'!T34+'PL1'!T34+'PL2'!T34+'PV1'!T34+'PV2'!T34+'PH1'!T34+'PH2'!T34+'PM1'!T34+'PM2'!T34+'PJ1'!T34+'PJ2'!T34 -> 0 | H34: ='HR1'!U34+'HR2'!U34+MV1a!U34+MV1b!U34+'MV2'!U34+'JH1'!U34+'JH2'!U34+'PL1'!U34+'PL2'!U34+'PV1'!U34+'PV2'!U34+'PH1'!U34+'PH2'!U34+'PM1'!U34+'PM2'!U34+'PJ1'!U34+'PJ2'!U34 -> 0 | J34: ='HR1'!W34+'HR2'!W34+MV1a!W34+MV1b!W34+'MV2'!W34+'JH1'!W34+'JH2'!W34+'PL1'!W34+'PL2'!W34+'PV1'!W34+'PV2'!W34+'PH1'!W34+'PH2'!W34+'PM1'!W34+'PM2'!W34+'PJ1'!W34+'PJ2'!W34 -> 0.002080999909 | K34: ='HR1'!X34+'HR2'!X34+IF('A3'!$L$24=0,0,MV1a!X34+MV1b!X34+'MV2'!X34)+'JH1'!X34+'JH2'!X34+'PL1'!X34+'PL2'!X34+'PV1'!X34+'PV2'!X34+'PH1'!X34+'PH2'!X34+'PM1'!X34+'PM2'!X34+'PJ1'!X34+'PJ2'!X34 -> 0 | AG34: ='HR1'!R34+'HR2'!R34+MV1a!R34+MV1b!R34+'MV2'!R34+'JH1'!R34+'JH2'!R34 -> 1.310110334 | AH34: ='HR1'!S34+'HR2'!S34+MV1a!S34+MV1b!S34+'MV2'!S34+'JH1'!S34+'JH2'!S34 -> 0.05909529426 | AI34: ='HR1'!T34+'HR2'!T34+MV1a!T34+MV1b!T34+'MV2'!T34+'JH1'!T34+'JH2'!T34 -> 0 | AJ34: ='HR1'!U34+'HR2'!U34+MV1a!U34+MV1b!U34+'MV2'!U34+'JH1'!U34+'JH2'!U34 -> 0 | AL34: =MAX(AN34:AQ34) -> 0 | AN34: ='HR1'!R34+'HR2'!R34+'JH1'!R34+'JH2'!R34 -> 0 | AO34: ='HR1'!S34+'HR2'!S34+'JH1'!S34+'JH2'!S34 -> 0 | AP34: ='HR1'!T34+'HR2'!T34+'JH1'!T34+'JH2'!T34 -> 0 | AQ34: ='HR1'!U34+'HR2'!U34+'JH1'!U34+'JH2'!U34 -> 0
B35: 1.208333333 | C35: 14.5 | L35: =GL0!AA35+'GL1'!AA35+'GL2'!AA35+'GV1'!AA35+'GV2'!AA35+'HR1'!AA35+'HR2'!AA35+MV1a!AA35+MV1b!AA35+'MV2'!AA35+'JH1'!AA35+'JH2'!AA35+'PL1'!AA35+'PL2'!AA35+'PV1'!AA35+'PV2'!AA35+'PH1'!AA35+'PH2'!AA35+'PM1'!AA35+'PM2'!AA35+'PJ1'!AA35+'PJ2'!AA35 -> 0.0262305557 | M35: ='A1'!$H$20*GL0!AA35 + 'A1'!$I$20*('GL1'!AA35+'GV1'!AA35+'HR1'!AA35+'PL1'!AA35+'PV1'!AA35+'PH1'!AA35) + 'A1'!$J$20*('GL2'!AA35+'GV2'!AA35+'HR2'!AA35+'PL2'!AA35+'PV2'!AA35+'PH2'!AA35) + 'A1'!$K$20*(MV1a!AA35+MV1b!AA35+'JH1'!AA35+'PM1'!AA35+'PJ1'!AA35) + 'A1'!$L$20*('MV2'!AA35+'JH2'!AA35+'PM2'!AA35+'PJ2'!AA35) -> 0.01991570822 | O35: =(1+'A1'!$H$20)*'A1'!$I$9*'A1'!$AD$5*GL0!N35 -> 0.0001717862017 | P35: =(1+'A1'!$I$20)*('A1'!$I$9*'A1'!$AD$5*('GL1'!N35+'GV1'!N35) + 'A1'!$I$9*'A1'!$AF$5*'HR1'!N35 + 'A1'!$I$9*'A1'!$AH$5*('PL1'!N35+'PV1'!N35+'PH1'!N35)) + (1+'A1'!$K$20)*('A1'!$I$9*'A1'!$AD$5*(MV1a!N35+MV1b!N35) + 'A1'!$I$9*'A1'!$AF$5*'JH1'!N35 + 'A1'!$I$9*'A1'!$AH$5*('PM1'!N35+'PJ1'!N35)) -> 0.0027055599 | Q35: =(1+'A1'!$J$20)*('A1'!$I$9*'A1'!$AD$5*('GL2'!N35+'GV2'!N35) + 'A1'!$I$9*'A1'!$AF$5*'HR2'!N35 + 'A1'!$I$9*'A1'!$AH$5*('PL2'!N35+'PV2'!N35+'PH2'!N35)) + (1+'A1'!$L$20)*('A1'!$I$9*'A1'!$AD$5*'MV2'!N35 + 'A1'!$I$9*'A1'!$AF$5*'JH2'!N35 + 'A1'!$I$9*'A1'!$AH$5*('PM2'!N35+'PJ2'!N35)) -> 0.001696991651 | S35: ='A1'!$F$23*SUM(O35:Q35) + 'A1'!$F$24*(L35+M35-SUM(O35:Q35)) + 'A1'!$F$25*J34 -> 0.009978688154 | U35: ='A1'!$F$28*O35 + 'A1'!$F$29*P35 + 'A1'!$F$30*Q35 -> 0.001333813153 | V35: ='A1'!$L$28*'A1'!$F$28*O35 + 'A1'!$L$29*'A1'!$F$29*P35 + 'A1'!$L$30*'A1'!$F$30*Q35 -> 0.02706686283 | X35: =(1+'A1'!$AD$23)*GL0!N35 -> 0.002789966995 | Y35: =(1+'A1'!$AD$23)*('GL1'!N35+'GV1'!N35) + (1+'A1'!$AF$23)*'HR1'!N35 + (1+'A1'!$AH$23)*('PL1'!N35+'PV1'!N35+'PH1'!N35) -> 0.03266724482 | Z35: =(1+'A1'!$AD$23)*('GL2'!N35+'GV2'!N35) + (1+'A1'!$AF$23)*'HR2'!N35 + (1+'A1'!$AH$23)*('PL2'!N35+'PV2'!N35+'PH2'!N35) -> 0.03015320214 | AA35: =(1+'A1'!$AD$23)*(MV1a!N35+MV1b!N35) + (1+'A1'!$AF$23)*'JH1'!N35 + (1+'A1'!$AH$23)*('PM1'!N35+'PJ1'!N35) -> 0.03866359657 | AB35: =(1+'A1'!$AD$23)*'MV2'!N35 + (1+'A1'!$AF$23)*'JH2'!N35 + (1+'A1'!$AH$23)*('PM2'!N35+'PJ2'!N35) -> 0.01548228057 | AD35: ='A1'!$T$29*(L35+M35) -> 0.007691043987 | AE35: ='A1'!$M$28*'A1'!$F$28*O35 + 'A1'!$M$29*'A1'!$F$29*P35 + 'A1'!$M$30*'A1'!$F$30*Q35 -> 0.01973740103
B36: 1.25 | C36: 15 | E36: ='HR1'!R36+'HR2'!R36+MV1a!R36+MV1b!R36+'MV2'!R36+'JH1'!R36+'JH2'!R36+'PL1'!R36+'PL2'!R36+'PV1'!R36+'PV2'!R36+'PH1'!R36+'PH2'!R36+'PM1'!R36+'PM2'!R36+'PJ1'!R36+'PJ2'!R36 -> 3.00772297 | F36: ='HR1'!S36+'HR2'!S36+MV1a!S36+MV1b!S36+'MV2'!S36+'JH1'!S36+'JH2'!S36+'PL1'!S36+'PL2'!S36+'PV1'!S36+'PV2'!S36+'PH1'!S36+'PH2'!S36+'PM1'!S36+'PM2'!S36+'PJ1'!S36+'PJ2'!S36 -> 0.1291966754 | G36: ='HR1'!T36+'HR2'!T36+MV1a!T36+MV1b!T36+'MV2'!T36+'JH1'!T36+'JH2'!T36+'PL1'!T36+'PL2'!T36+'PV1'!T36+'PV2'!T36+'PH1'!T36+'PH2'!T36+'PM1'!T36+'PM2'!T36+'PJ1'!T36+'PJ2'!T36 -> 0 | H36: ='HR1'!U36+'HR2'!U36+MV1a!U36+MV1b!U36+'MV2'!U36+'JH1'!U36+'JH2'!U36+'PL1'!U36+'PL2'!U36+'PV1'!U36+'PV2'!U36+'PH1'!U36+'PH2'!U36+'PM1'!U36+'PM2'!U36+'PJ1'!U36+'PJ2'!U36 -> 0 | J36: ='HR1'!W36+'HR2'!W36+MV1a!W36+MV1b!W36+'MV2'!W36+'JH1'!W36+'JH2'!W36+'PL1'!W36+'PL2'!W36+'PV1'!W36+'PV2'!W36+'PH1'!W36+'PH2'!W36+'PM1'!W36+'PM2'!W36+'PJ1'!W36+'PJ2'!W36 -> 0.002080998989 | K36: ='HR1'!X36+'HR2'!X36+IF('A3'!$L$24=0,0,MV1a!X36+MV1b!X36+'MV2'!X36)+'JH1'!X36+'JH2'!X36+'PL1'!X36+'PL2'!X36+'PV1'!X36+'PV2'!X36+'PH1'!X36+'PH2'!X36+'PM1'!X36+'PM2'!X36+'PJ1'!X36+'PJ2'!X36 -> 0 | AG36: ='HR1'!R36+'HR2'!R36+MV1a!R36+MV1b!R36+'MV2'!R36+'JH1'!R36+'JH2'!R36 -> 1.310110334 | AH36: ='HR1'!S36+'HR2'!S36+MV1a!S36+MV1b!S36+'MV2'!S36+'JH1'!S36+'JH2'!S36 -> 0.05909529428 | AI36: ='HR1'!T36+'HR2'!T36+MV1a!T36+MV1b!T36+'MV2'!T36+'JH1'!T36+'JH2'!T36 -> 0 | AJ36: ='HR1'!U36+'HR2'!U36+MV1a!U36+MV1b!U36+'MV2'!U36+'JH1'!U36+'JH2'!U36 -> 0 | AL36: =MAX(AN36:AQ36) -> 0 | AN36: ='HR1'!R36+'HR2'!R36+'JH1'!R36+'JH2'!R36 -> 0 | AO36: ='HR1'!S36+'HR2'!S36+'JH1'!S36+'JH2'!S36 -> 0 | AP36: ='HR1'!T36+'HR2'!T36+'JH1'!T36+'JH2'!T36 -> 0 | AQ36: ='HR1'!U36+'HR2'!U36+'JH1'!U36+'JH2'!U36 -> 0
B37: 1.291666667 | C37: 15.5 | L37: =GL0!AA37+'GL1'!AA37+'GL2'!AA37+'GV1'!AA37+'GV2'!AA37+'HR1'!AA37+'HR2'!AA37+MV1a!AA37+MV1b!AA37+'MV2'!AA37+'JH1'!AA37+'JH2'!AA37+'PL1'!AA37+'PL2'!AA37+'PV1'!AA37+'PV2'!AA37+'PH1'!AA37+'PH2'!AA37+'PM1'!AA37+'PM2'!AA37+'PJ1'!AA37+'PJ2'!AA37 -> 0.02622965889 | M37: ='A1'!$H$20*GL0!AA37 + 'A1'!$I$20*('GL1'!AA37+'GV1'!AA37+'HR1'!AA37+'PL1'!AA37+'PV1'!AA37+'PH1'!AA37) + 'A1'!$J$20*('GL2'!AA37+'GV2'!AA37+'HR2'!AA37+'PL2'!AA37+'PV2'!AA37+'PH2'!AA37) + 'A1'!$K$20*(MV1a!AA37+MV1b!AA37+'JH1'!AA37+'PM1'!AA37+'PJ1'!AA37) + 'A1'!$L$20*('MV2'!AA37+'JH2'!AA37+'PM2'!AA37+'PJ2'!AA37) -> 0.01991503239 | O37: =(1+'A1'!$H$20)*'A1'!$I$9*'A1'!$AD$5*GL0!N37 -> 0.0001717774691 | P37: =(1+'A1'!$I$20)*('A1'!$I$9*'A1'!$AD$5*('GL1'!N37+'GV1'!N37) + 'A1'!$I$9*'A1'!$AF$5*'HR1'!N37 + 'A1'!$I$9*'A1'!$AH$5*('PL1'!N37+'PV1'!N37+'PH1'!N37)) + (1+'A1'!$K$20)*('A1'!$I$9*'A1'!$AD$5*(MV1a!N37+MV1b!N37) + 'A1'!$I$9*'A1'!$AF$5*'JH1'!N37 + 'A1'!$I$9*'A1'!$AH$5*('PM1'!N37+'PJ1'!N37)) -> 0.002705480048 | Q37: =(1+'A1'!$J$20)*('A1'!$I$9*'A1'!$AD$5*('GL2'!N37+'GV2'!N37) + 'A1'!$I$9*'A1'!$AF$5*'HR2'!N37 + 'A1'!$I$9*'A1'!$AH$5*('PL2'!N37+'PV2'!N37+'PH2'!N37)) + (1+'A1'!$L$20)*('A1'!$I$9*'A1'!$AD$5*'MV2'!N37 + 'A1'!$I$9*'A1'!$AF$5*'JH2'!N37 + 'A1'!$I$9*'A1'!$AH$5*('PM2'!N37+'PJ2'!N37)) -> 0.001696932497 | S37: ='A1'!$F$23*SUM(O37:Q37) + 'A1'!$F$24*(L37+M37-SUM(O37:Q37)) + 'A1'!$F$25*J36 -> 0.009978355179 | U37: ='A1'!$F$28*O37 + 'A1'!$F$29*P37 + 'A1'!$F$30*Q37 -> 0.001333768275 | V37: ='A1'!$L$28*'A1'!$F$28*O37 + 'A1'!$L$29*'A1'!$F$29*P37 + 'A1'!$L$30*'A1'!$F$30*Q37 -> 0.02706599474 | X37: =(1+'A1'!$AD$23)*GL0!N37 -> 0.00278982517 | Y37: =(1+'A1'!$AD$23)*('GL1'!N37+'GV1'!N37) + (1+'A1'!$AF$23)*'HR1'!N37 + (1+'A1'!$AH$23)*('PL1'!N37+'PV1'!N37+'PH1'!N37) -> 0.032666098 | Z37: =(1+'A1'!$AD$23)*('GL2'!N37+'GV2'!N37) + (1+'A1'!$AF$23)*'HR2'!N37 + (1+'A1'!$AH$23)*('PL2'!N37+'PV2'!N37+'PH2'!N37) -> 0.0301522085 | AA37: =(1+'A1'!$AD$23)*(MV1a!N37+MV1b!N37) + (1+'A1'!$AF$23)*'JH1'!N37 + (1+'A1'!$AH$23)*('PM1'!N37+'PJ1'!N37) -> 0.03866257066 | AB37: =(1+'A1'!$AD$23)*'MV2'!N37 + (1+'A1'!$AF$23)*'JH2'!N37 + (1+'A1'!$AH$23)*('PM2'!N37+'PJ2'!N37) -> 0.0154816752 | AD37: ='A1'!$T$29*(L37+M37) -> 0.00769078188 | AE37: ='A1'!$M$28*'A1'!$F$28*O37 + 'A1'!$M$29*'A1'!$F$29*P37 + 'A1'!$M$30*'A1'!$F$30*Q37 -> 0.01973676951
B38: 1.333333333 | C38: 16 | E38: ='HR1'!R38+'HR2'!R38+MV1a!R38+MV1b!R38+'MV2'!R38+'JH1'!R38+'JH2'!R38+'PL1'!R38+'PL2'!R38+'PV1'!R38+'PV2'!R38+'PH1'!R38+'PH2'!R38+'PM1'!R38+'PM2'!R38+'PJ1'!R38+'PJ2'!R38 -> 3.007722971 | F38: ='HR1'!S38+'HR2'!S38+MV1a!S38+MV1b!S38+'MV2'!S38+'JH1'!S38+'JH2'!S38+'PL1'!S38+'PL2'!S38+'PV1'!S38+'PV2'!S38+'PH1'!S38+'PH2'!S38+'PM1'!S38+'PM2'!S38+'PJ1'!S38+'PJ2'!S38 -> 0.1291966727 | G38: ='HR1'!T38+'HR2'!T38+MV1a!T38+MV1b!T38+'MV2'!T38+'JH1'!T38+'JH2'!T38+'PL1'!T38+'PL2'!T38+'PV1'!T38+'PV2'!T38+'PH1'!T38+'PH2'!T38+'PM1'!T38+'PM2'!T38+'PJ1'!T38+'PJ2'!T38 -> 0 | H38: ='HR1'!U38+'HR2'!U38+MV1a!U38+MV1b!U38+'MV2'!U38+'JH1'!U38+'JH2'!U38+'PL1'!U38+'PL2'!U38+'PV1'!U38+'PV2'!U38+'PH1'!U38+'PH2'!U38+'PM1'!U38+'PM2'!U38+'PJ1'!U38+'PJ2'!U38 -> 0 | J38: ='HR1'!W38+'HR2'!W38+MV1a!W38+MV1b!W38+'MV2'!W38+'JH1'!W38+'JH2'!W38+'PL1'!W38+'PL2'!W38+'PV1'!W38+'PV2'!W38+'PH1'!W38+'PH2'!W38+'PM1'!W38+'PM2'!W38+'PJ1'!W38+'PJ2'!W38 -> 0.002080997884 | K38: ='HR1'!X38+'HR2'!X38+IF('A3'!$L$24=0,0,MV1a!X38+MV1b!X38+'MV2'!X38)+'JH1'!X38+'JH2'!X38+'PL1'!X38+'PL2'!X38+'PV1'!X38+'PV2'!X38+'PH1'!X38+'PH2'!X38+'PM1'!X38+'PM2'!X38+'PJ1'!X38+'PJ2'!X38 -> 0 | AG38: ='HR1'!R38+'HR2'!R38+MV1a!R38+MV1b!R38+'MV2'!R38+'JH1'!R38+'JH2'!R38 -> 1.310110334 | AH38: ='HR1'!S38+'HR2'!S38+MV1a!S38+MV1b!S38+'MV2'!S38+'JH1'!S38+'JH2'!S38 -> 0.05909529429 | AI38: ='HR1'!T38+'HR2'!T38+MV1a!T38+MV1b!T38+'MV2'!T38+'JH1'!T38+'JH2'!T38 -> 0 | AJ38: ='HR1'!U38+'HR2'!U38+MV1a!U38+MV1b!U38+'MV2'!U38+'JH1'!U38+'JH2'!U38 -> 0 | AL38: =MAX(AN38:AQ38) -> 0 | AN38: ='HR1'!R38+'HR2'!R38+'JH1'!R38+'JH2'!R38 -> 0 | AO38: ='HR1'!S38+'HR2'!S38+'JH1'!S38+'JH2'!S38 -> 0 | AP38: ='HR1'!T38+'HR2'!T38+'JH1'!T38+'JH2'!T38 -> 0 | AQ38: ='HR1'!U38+'HR2'!U38+'JH1'!U38+'JH2'!U38 -> 0
B39: 1.375 | C39: 16.5 | L39: =GL0!AA39+'GL1'!AA39+'GL2'!AA39+'GV1'!AA39+'GV2'!AA39+'HR1'!AA39+'HR2'!AA39+MV1a!AA39+MV1b!AA39+'MV2'!AA39+'JH1'!AA39+'JH2'!AA39+'PL1'!AA39+'PL2'!AA39+'PV1'!AA39+'PV2'!AA39+'PH1'!AA39+'PH2'!AA39+'PM1'!AA39+'PM2'!AA39+'PJ1'!AA39+'PJ2'!AA39 -> 0.02622867231 | M39: ='A1'!$H$20*GL0!AA39 + 'A1'!$I$20*('GL1'!AA39+'GV1'!AA39+'HR1'!AA39+'PL1'!AA39+'PV1'!AA39+'PH1'!AA39) + 'A1'!$J$20*('GL2'!AA39+'GV2'!AA39+'HR2'!AA39+'PL2'!AA39+'PV2'!AA39+'PH2'!AA39) + 'A1'!$K$20*(MV1a!AA39+MV1b!AA39+'JH1'!AA39+'PM1'!AA39+'PJ1'!AA39) + 'A1'!$L$20*('MV2'!AA39+'JH2'!AA39+'PM2'!AA39+'PJ2'!AA39) -> 0.01991428992 | O39: =(1+'A1'!$H$20)*'A1'!$I$9*'A1'!$AD$5*GL0!N39 -> 0.0001717678153 | P39: =(1+'A1'!$I$20)*('A1'!$I$9*'A1'!$AD$5*('GL1'!N39+'GV1'!N39) + 'A1'!$I$9*'A1'!$AF$5*'HR1'!N39 + 'A1'!$I$9*'A1'!$AH$5*('PL1'!N39+'PV1'!N39+'PH1'!N39)) + (1+'A1'!$K$20)*('A1'!$I$9*'A1'!$AD$5*(MV1a!N39+MV1b!N39) + 'A1'!$I$9*'A1'!$AF$5*'JH1'!N39 + 'A1'!$I$9*'A1'!$AH$5*('PM1'!N39+'PJ1'!N39)) -> 0.002705392386 | Q39: =(1+'A1'!$J$20)*('A1'!$I$9*'A1'!$AD$5*('GL2'!N39+'GV2'!N39) + 'A1'!$I$9*'A1'!$AF$5*'HR2'!N39 + 'A1'!$I$9*'A1'!$AH$5*('PL2'!N39+'PV2'!N39+'PH2'!N39)) + (1+'A1'!$L$20)*('A1'!$I$9*'A1'!$AD$5*'MV2'!N39 + 'A1'!$I$9*'A1'!$AF$5*'JH2'!N39 + 'A1'!$I$9*'A1'!$AH$5*('PM2'!N39+'PJ2'!N39)) -> 0.001696867292 | S39: ='A1'!$F$23*SUM(O39:Q39) + 'A1'!$F$24*(L39+M39-SUM(O39:Q39)) + 'A1'!$F$25*J38 -> 0.009977989009 | U39: ='A1'!$F$28*O39 + 'A1'!$F$29*P39 + 'A1'!$F$30*Q39 -> 0.001333718853 | V39: ='A1'!$L$28*'A1'!$F$28*O39 + 'A1'!$L$29*'A1'!$F$29*P39 + 'A1'!$L$30*'A1'!$F$30*Q39 -> 0.02706504013 | X39: =(1+'A1'!$AD$23)*GL0!N39 -> 0.002789668383 | Y39: =(1+'A1'!$AD$23)*('GL1'!N39+'GV1'!N39) + (1+'A1'!$AF$23)*'HR1'!N39 + (1+'A1'!$AH$23)*('PL1'!N39+'PV1'!N39+'PH1'!N39) -> 0.03266483059 | Z39: =(1+'A1'!$AD$23)*('GL2'!N39+'GV2'!N39) + (1+'A1'!$AF$23)*'HR2'!N39 + (1+'A1'!$AH$23)*('PL2'!N39+'PV2'!N39+'PH2'!N39) -> 0.0301511085 | AA39: =(1+'A1'!$AD$23)*(MV1a!N39+MV1b!N39) + (1+'A1'!$AF$23)*'JH1'!N39 + (1+'A1'!$AH$23)*('PM1'!N39+'PJ1'!N39) -> 0.03866145097 | AB39: =(1+'A1'!$AD$23)*'MV2'!N39 + (1+'A1'!$AF$23)*'JH2'!N39 + (1+'A1'!$AH$23)*('PM2'!N39+'PJ2'!N39) -> 0.0154810118 | AD39: ='A1'!$T$29*(L39+M39) -> 0.007690493705 | AE39: ='A1'!$M$28*'A1'!$F$28*O39 + 'A1'!$M$29*'A1'!$F$29*P39 + 'A1'!$M$30*'A1'!$F$30*Q39 -> 0.01973607506
B40: 1.416666667 | C40: 17 | E40: ='HR1'!R40+'HR2'!R40+MV1a!R40+MV1b!R40+'MV2'!R40+'JH1'!R40+'JH2'!R40+'PL1'!R40+'PL2'!R40+'PV1'!R40+'PV2'!R40+'PH1'!R40+'PH2'!R40+'PM1'!R40+'PM2'!R40+'PJ1'!R40+'PJ2'!R40 -> 3.007722971 | F40: ='HR1'!S40+'HR2'!S40+MV1a!S40+MV1b!S40+'MV2'!S40+'JH1'!S40+'JH2'!S40+'PL1'!S40+'PL2'!S40+'PV1'!S40+'PV2'!S40+'PH1'!S40+'PH2'!S40+'PM1'!S40+'PM2'!S40+'PJ1'!S40+'PJ2'!S40 -> 0.1291966698 | G40: ='HR1'!T40+'HR2'!T40+MV1a!T40+MV1b!T40+'MV2'!T40+'JH1'!T40+'JH2'!T40+'PL1'!T40+'PL2'!T40+'PV1'!T40+'PV2'!T40+'PH1'!T40+'PH2'!T40+'PM1'!T40+'PM2'!T40+'PJ1'!T40+'PJ2'!T40 -> 0 | H40: ='HR1'!U40+'HR2'!U40+MV1a!U40+MV1b!U40+'MV2'!U40+'JH1'!U40+'JH2'!U40+'PL1'!U40+'PL2'!U40+'PV1'!U40+'PV2'!U40+'PH1'!U40+'PH2'!U40+'PM1'!U40+'PM2'!U40+'PJ1'!U40+'PJ2'!U40 -> 0 | J40: ='HR1'!W40+'HR2'!W40+MV1a!W40+MV1b!W40+'MV2'!W40+'JH1'!W40+'JH2'!W40+'PL1'!W40+'PL2'!W40+'PV1'!W40+'PV2'!W40+'PH1'!W40+'PH2'!W40+'PM1'!W40+'PM2'!W40+'PJ1'!W40+'PJ2'!W40 -> 0.002080996599 | K40: ='HR1'!X40+'HR2'!X40+IF('A3'!$L$24=0,0,MV1a!X40+MV1b!X40+'MV2'!X40)+'JH1'!X40+'JH2'!X40+'PL1'!X40+'PL2'!X40+'PV1'!X40+'PV2'!X40+'PH1'!X40+'PH2'!X40+'PM1'!X40+'PM2'!X40+'PJ1'!X40+'PJ2'!X40 -> 0 | AG40: ='HR1'!R40+'HR2'!R40+MV1a!R40+MV1b!R40+'MV2'!R40+'JH1'!R40+'JH2'!R40 -> 1.310110335 | AH40: ='HR1'!S40+'HR2'!S40+MV1a!S40+MV1b!S40+'MV2'!S40+'JH1'!S40+'JH2'!S40 -> 0.05909529431 | AI40: ='HR1'!T40+'HR2'!T40+MV1a!T40+MV1b!T40+'MV2'!T40+'JH1'!T40+'JH2'!T40 -> 0 | AJ40: ='HR1'!U40+'HR2'!U40+MV1a!U40+MV1b!U40+'MV2'!U40+'JH1'!U40+'JH2'!U40 -> 0 | AL40: =MAX(AN40:AQ40) -> 0 | AN40: ='HR1'!R40+'HR2'!R40+'JH1'!R40+'JH2'!R40 -> 0 | AO40: ='HR1'!S40+'HR2'!S40+'JH1'!S40+'JH2'!S40 -> 0 | AP40: ='HR1'!T40+'HR2'!T40+'JH1'!T40+'JH2'!T40 -> 0 | AQ40: ='HR1'!U40+'HR2'!U40+'JH1'!U40+'JH2'!U40 -> 0
B41: 1.458333333 | C41: 17.5 | L41: =GL0!AA41+'GL1'!AA41+'GL2'!AA41+'GV1'!AA41+'GV2'!AA41+'HR1'!AA41+'HR2'!AA41+MV1a!AA41+MV1b!AA41+'MV2'!AA41+'JH1'!AA41+'JH2'!AA41+'PL1'!AA41+'PL2'!AA41+'PV1'!AA41+'PV2'!AA41+'PH1'!AA41+'PH2'!AA41+'PM1'!AA41+'PM2'!AA41+'PJ1'!AA41+'PJ2'!AA41 -> 0.02622759892 | M41: ='A1'!$H$20*GL0!AA41 + 'A1'!$I$20*('GL1'!AA41+'GV1'!AA41+'HR1'!AA41+'PL1'!AA41+'PV1'!AA41+'PH1'!AA41) + 'A1'!$J$20*('GL2'!AA41+'GV2'!AA41+'HR2'!AA41+'PL2'!AA41+'PV2'!AA41+'PH2'!AA41) + 'A1'!$K$20*(MV1a!AA41+MV1b!AA41+'JH1'!AA41+'PM1'!AA41+'PJ1'!AA41) + 'A1'!$L$20*('MV2'!AA41+'JH2'!AA41+'PM2'!AA41+'PJ2'!AA41) -> 0.01991348321 | O41: =(1+'A1'!$H$20)*'A1'!$I$9*'A1'!$AD$5*GL0!N41 -> 0.0001717572611 | P41: =(1+'A1'!$I$20)*('A1'!$I$9*'A1'!$AD$5*('GL1'!N41+'GV1'!N41) + 'A1'!$I$9*'A1'!$AF$5*'HR1'!N41 + 'A1'!$I$9*'A1'!$AH$5*('PL1'!N41+'PV1'!N41+'PH1'!N41)) + (1+'A1'!$K$20)*('A1'!$I$9*'A1'!$AD$5*(MV1a!N41+MV1b!N41) + 'A1'!$I$9*'A1'!$AF$5*'JH1'!N41 + 'A1'!$I$9*'A1'!$AH$5*('PM1'!N41+'PJ1'!N41)) -> 0.002705297208 | Q41: =(1+'A1'!$J$20)*('A1'!$I$9*'A1'!$AD$5*('GL2'!N41+'GV2'!N41) + 'A1'!$I$9*'A1'!$AF$5*'HR2'!N41 + 'A1'!$I$9*'A1'!$AH$5*('PL2'!N41+'PV2'!N41+'PH2'!N41)) + (1+'A1'!$L$20)*('A1'!$I$9*'A1'!$AD$5*'MV2'!N41 + 'A1'!$I$9*'A1'!$AF$5*'JH2'!N41 + 'A1'!$I$9*'A1'!$AH$5*('PM2'!N41+'PJ2'!N41)) -> 0.001696796223 | S41: ='A1'!$F$23*SUM(O41:Q41) + 'A1'!$F$24*(L41+M41-SUM(O41:Q41)) + 'A1'!$F$25*J40 -> 0.00997759078 | U41: ='A1'!$F$28*O41 + 'A1'!$F$29*P41 + 'A1'!$F$30*Q41 -> 0.001333665032 | V41: ='A1'!$L$28*'A1'!$F$28*O41 + 'A1'!$L$29*'A1'!$F$29*P41 + 'A1'!$L$30*'A1'!$F$30*Q41 -> 0.02706400197 | X41: =(1+'A1'!$AD$23)*GL0!N41 -> 0.002789496973 | Y41: =(1+'A1'!$AD$23)*('GL1'!N41+'GV1'!N41) + (1+'A1'!$AF$23)*'HR1'!N41 + (1+'A1'!$AH$23)*('PL1'!N41+'PV1'!N41+'PH1'!N41) -> 0.03266344559 | Z41: =(1+'A1'!$AD$23)*('GL2'!N41+'GV2'!N41) + (1+'A1'!$AF$23)*'HR2'!N41 + (1+'A1'!$AH$23)*('PL2'!N41+'PV2'!N41+'PH2'!N41) -> 0.03014990446 | AA41: =(1+'A1'!$AD$23)*(MV1a!N41+MV1b!N41) + (1+'A1'!$AF$23)*'JH1'!N41 + (1+'A1'!$AH$23)*('PM1'!N41+'PJ1'!N41) -> 0.03866024223 | AB41: =(1+'A1'!$AD$23)*'MV2'!N41 + (1+'A1'!$AF$23)*'JH2'!N41 + (1+'A1'!$AH$23)*('PM2'!N41+'PJ2'!N41) -> 0.0154802929 | AD41: ='A1'!$T$29*(L41+M41) -> 0.007690180356 | AE41: ='A1'!$M$28*'A1'!$F$28*O41 + 'A1'!$M$29*'A1'!$F$29*P41 + 'A1'!$M$30*'A1'!$F$30*Q41 -> 0.01973531983
B42: 1.5 | C42: 18 | E42: ='HR1'!R42+'HR2'!R42+MV1a!R42+MV1b!R42+'MV2'!R42+'JH1'!R42+'JH2'!R42+'PL1'!R42+'PL2'!R42+'PV1'!R42+'PV2'!R42+'PH1'!R42+'PH2'!R42+'PM1'!R42+'PM2'!R42+'PJ1'!R42+'PJ2'!R42 -> 3.007722972 | F42: ='HR1'!S42+'HR2'!S42+MV1a!S42+MV1b!S42+'MV2'!S42+'JH1'!S42+'JH2'!S42+'PL1'!S42+'PL2'!S42+'PV1'!S42+'PV2'!S42+'PH1'!S42+'PH2'!S42+'PM1'!S42+'PM2'!S42+'PJ1'!S42+'PJ2'!S42 -> 0.1291966667 | G42: ='HR1'!T42+'HR2'!T42+MV1a!T42+MV1b!T42+'MV2'!T42+'JH1'!T42+'JH2'!T42+'PL1'!T42+'PL2'!T42+'PV1'!T42+'PV2'!T42+'PH1'!T42+'PH2'!T42+'PM1'!T42+'PM2'!T42+'PJ1'!T42+'PJ2'!T42 -> 0 | H42: ='HR1'!U42+'HR2'!U42+MV1a!U42+MV1b!U42+'MV2'!U42+'JH1'!U42+'JH2'!U42+'PL1'!U42+'PL2'!U42+'PV1'!U42+'PV2'!U42+'PH1'!U42+'PH2'!U42+'PM1'!U42+'PM2'!U42+'PJ1'!U42+'PJ2'!U42 -> 0 | J42: ='HR1'!W42+'HR2'!W42+MV1a!W42+MV1b!W42+'MV2'!W42+'JH1'!W42+'JH2'!W42+'PL1'!W42+'PL2'!W42+'PV1'!W42+'PV2'!W42+'PH1'!W42+'PH2'!W42+'PM1'!W42+'PM2'!W42+'PJ1'!W42+'PJ2'!W42 -> 0.002080995139 | K42: ='HR1'!X42+'HR2'!X42+IF('A3'!$L$24=0,0,MV1a!X42+MV1b!X42+'MV2'!X42)+'JH1'!X42+'JH2'!X42+'PL1'!X42+'PL2'!X42+'PV1'!X42+'PV2'!X42+'PH1'!X42+'PH2'!X42+'PM1'!X42+'PM2'!X42+'PJ1'!X42+'PJ2'!X42 -> 0 | AG42: ='HR1'!R42+'HR2'!R42+MV1a!R42+MV1b!R42+'MV2'!R42+'JH1'!R42+'JH2'!R42 -> 1.310110335 | AH42: ='HR1'!S42+'HR2'!S42+MV1a!S42+MV1b!S42+'MV2'!S42+'JH1'!S42+'JH2'!S42 -> 0.05909529433 | AI42: ='HR1'!T42+'HR2'!T42+MV1a!T42+MV1b!T42+'MV2'!T42+'JH1'!T42+'JH2'!T42 -> 0 | AJ42: ='HR1'!U42+'HR2'!U42+MV1a!U42+MV1b!U42+'MV2'!U42+'JH1'!U42+'JH2'!U42 -> 0 | AL42: =MAX(AN42:AQ42) -> 0 | AN42: ='HR1'!R42+'HR2'!R42+'JH1'!R42+'JH2'!R42 -> 0 | AO42: ='HR1'!S42+'HR2'!S42+'JH1'!S42+'JH2'!S42 -> 0 | AP42: ='HR1'!T42+'HR2'!T42+'JH1'!T42+'JH2'!T42 -> 0 | AQ42: ='HR1'!U42+'HR2'!U42+'JH1'!U42+'JH2'!U42 -> 0
B43: 1.541666667 | C43: 18.5 | L43: =GL0!AA43+'GL1'!AA43+'GL2'!AA43+'GV1'!AA43+'GV2'!AA43+'HR1'!AA43+'HR2'!AA43+MV1a!AA43+MV1b!AA43+'MV2'!AA43+'JH1'!AA43+'JH2'!AA43+'PL1'!AA43+'PL2'!AA43+'PV1'!AA43+'PV2'!AA43+'PH1'!AA43+'PH2'!AA43+'PM1'!AA43+'PM2'!AA43+'PJ1'!AA43+'PJ2'!AA43 -> 0.02622644197 | M43: ='A1'!$H$20*GL0!AA43 + 'A1'!$I$20*('GL1'!AA43+'GV1'!AA43+'HR1'!AA43+'PL1'!AA43+'PV1'!AA43+'PH1'!AA43) + 'A1'!$J$20*('GL2'!AA43+'GV2'!AA43+'HR2'!AA43+'PL2'!AA43+'PV2'!AA43+'PH2'!AA43) + 'A1'!$K$20*(MV1a!AA43+MV1b!AA43+'JH1'!AA43+'PM1'!AA43+'PJ1'!AA43) + 'A1'!$L$20*('MV2'!AA43+'JH2'!AA43+'PM2'!AA43+'PJ2'!AA43) -> 0.01991261484 | O43: =(1+'A1'!$H$20)*'A1'!$I$9*'A1'!$AD$5*GL0!N43 -> 0.0001717458301 | P43: =(1+'A1'!$I$20)*('A1'!$I$9*'A1'!$AD$5*('GL1'!N43+'GV1'!N43) + 'A1'!$I$9*'A1'!$AF$5*'HR1'!N43 + 'A1'!$I$9*'A1'!$AH$5*('PL1'!N43+'PV1'!N43+'PH1'!N43)) + (1+'A1'!$K$20)*('A1'!$I$9*'A1'!$AD$5*(MV1a!N43+MV1b!N43) + 'A1'!$I$9*'A1'!$AF$5*'JH1'!N43 + 'A1'!$I$9*'A1'!$AH$5*('PM1'!N43+'PJ1'!N43)) -> 0.00270519483 | Q43: =(1+'A1'!$J$20)*('A1'!$I$9*'A1'!$AD$5*('GL2'!N43+'GV2'!N43) + 'A1'!$I$9*'A1'!$AF$5*'HR2'!N43 + 'A1'!$I$9*'A1'!$AH$5*('PL2'!N43+'PV2'!N43+'PH2'!N43)) + (1+'A1'!$L$20)*('A1'!$I$9*'A1'!$AD$5*'MV2'!N43 + 'A1'!$I$9*'A1'!$AF$5*'JH2'!N43 + 'A1'!$I$9*'A1'!$AH$5*('PM2'!N43+'PJ2'!N43)) -> 0.001696719495 | S43: ='A1'!$F$23*SUM(O43:Q43) + 'A1'!$F$24*(L43+M43-SUM(O43:Q43)) + 'A1'!$F$25*J42 -> 0.00997716172 | U43: ='A1'!$F$28*O43 + 'A1'!$F$29*P43 + 'A1'!$F$30*Q43 -> 0.001333606973 | V43: ='A1'!$L$28*'A1'!$F$28*O43 + 'A1'!$L$29*'A1'!$F$29*P43 + 'A1'!$L$30*'A1'!$F$30*Q43 -> 0.02706288348 | X43: =(1+'A1'!$AD$23)*GL0!N43 -> 0.002789311324 | Y43: =(1+'A1'!$AD$23)*('GL1'!N43+'GV1'!N43) + (1+'A1'!$AF$23)*'HR1'!N43 + (1+'A1'!$AH$23)*('PL1'!N43+'PV1'!N43+'PH1'!N43) -> 0.03266194634 | Z43: =(1+'A1'!$AD$23)*('GL2'!N43+'GV2'!N43) + (1+'A1'!$AF$23)*'HR2'!N43 + (1+'A1'!$AH$23)*('PL2'!N43+'PV2'!N43+'PH2'!N43) -> 0.03014859903 | AA43: =(1+'A1'!$AD$23)*(MV1a!N43+MV1b!N43) + (1+'A1'!$AF$23)*'JH1'!N43 + (1+'A1'!$AH$23)*('PM1'!N43+'PJ1'!N43) -> 0.0386589494 | AB43: =(1+'A1'!$AD$23)*'MV2'!N43 + (1+'A1'!$AF$23)*'JH2'!N43 + (1+'A1'!$AH$23)*('PM2'!N43+'PJ2'!N43) -> 0.01547952122 | AD43: ='A1'!$T$29*(L43+M43) -> 0.007689842801 | AE43: ='A1'!$M$28*'A1'!$F$28*O43 + 'A1'!$M$29*'A1'!$F$29*P43 + 'A1'!$M$30*'A1'!$F$30*Q43 -> 0.01973450618
B44: 1.583333333 | C44: 19 | E44: ='HR1'!R44+'HR2'!R44+MV1a!R44+MV1b!R44+'MV2'!R44+'JH1'!R44+'JH2'!R44+'PL1'!R44+'PL2'!R44+'PV1'!R44+'PV2'!R44+'PH1'!R44+'PH2'!R44+'PM1'!R44+'PM2'!R44+'PJ1'!R44+'PJ2'!R44 -> 3.007722972 | F44: ='HR1'!S44+'HR2'!S44+MV1a!S44+MV1b!S44+'MV2'!S44+'JH1'!S44+'JH2'!S44+'PL1'!S44+'PL2'!S44+'PV1'!S44+'PV2'!S44+'PH1'!S44+'PH2'!S44+'PM1'!S44+'PM2'!S44+'PJ1'!S44+'PJ2'!S44 -> 0.1291966635 | G44: ='HR1'!T44+'HR2'!T44+MV1a!T44+MV1b!T44+'MV2'!T44+'JH1'!T44+'JH2'!T44+'PL1'!T44+'PL2'!T44+'PV1'!T44+'PV2'!T44+'PH1'!T44+'PH2'!T44+'PM1'!T44+'PM2'!T44+'PJ1'!T44+'PJ2'!T44 -> 0 | H44: ='HR1'!U44+'HR2'!U44+MV1a!U44+MV1b!U44+'MV2'!U44+'JH1'!U44+'JH2'!U44+'PL1'!U44+'PL2'!U44+'PV1'!U44+'PV2'!U44+'PH1'!U44+'PH2'!U44+'PM1'!U44+'PM2'!U44+'PJ1'!U44+'PJ2'!U44 -> 0 | J44: ='HR1'!W44+'HR2'!W44+MV1a!W44+MV1b!W44+'MV2'!W44+'JH1'!W44+'JH2'!W44+'PL1'!W44+'PL2'!W44+'PV1'!W44+'PV2'!W44+'PH1'!W44+'PH2'!W44+'PM1'!W44+'PM2'!W44+'PJ1'!W44+'PJ2'!W44 -> 0.002080993508 | K44: ='HR1'!X44+'HR2'!X44+IF('A3'!$L$24=0,0,MV1a!X44+MV1b!X44+'MV2'!X44)+'JH1'!X44+'JH2'!X44+'PL1'!X44+'PL2'!X44+'PV1'!X44+'PV2'!X44+'PH1'!X44+'PH2'!X44+'PM1'!X44+'PM2'!X44+'PJ1'!X44+'PJ2'!X44 -> 0 | AG44: ='HR1'!R44+'HR2'!R44+MV1a!R44+MV1b!R44+'MV2'!R44+'JH1'!R44+'JH2'!R44 -> 1.310110335 | AH44: ='HR1'!S44+'HR2'!S44+MV1a!S44+MV1b!S44+'MV2'!S44+'JH1'!S44+'JH2'!S44 -> 0.05909529434 | AI44: ='HR1'!T44+'HR2'!T44+MV1a!T44+MV1b!T44+'MV2'!T44+'JH1'!T44+'JH2'!T44 -> 0 | AJ44: ='HR1'!U44+'HR2'!U44+MV1a!U44+MV1b!U44+'MV2'!U44+'JH1'!U44+'JH2'!U44 -> 0 | AL44: =MAX(AN44:AQ44) -> 0 | AN44: ='HR1'!R44+'HR2'!R44+'JH1'!R44+'JH2'!R44 -> 0 | AO44: ='HR1'!S44+'HR2'!S44+'JH1'!S44+'JH2'!S44 -> 0 | AP44: ='HR1'!T44+'HR2'!T44+'JH1'!T44+'JH2'!T44 -> 0 | AQ44: ='HR1'!U44+'HR2'!U44+'JH1'!U44+'JH2'!U44 -> 0
B45: 1.625 | C45: 19.5 | L45: =GL0!AA45+'GL1'!AA45+'GL2'!AA45+'GV1'!AA45+'GV2'!AA45+'HR1'!AA45+'HR2'!AA45+MV1a!AA45+MV1b!AA45+'MV2'!AA45+'JH1'!AA45+'JH2'!AA45+'PL1'!AA45+'PL2'!AA45+'PV1'!AA45+'PV2'!AA45+'PH1'!AA45+'PH2'!AA45+'PM1'!AA45+'PM2'!AA45+'PJ1'!AA45+'PJ2'!AA45 -> 0.02622520481 | M45: ='A1'!$H$20*GL0!AA45 + 'A1'!$I$20*('GL1'!AA45+'GV1'!AA45+'HR1'!AA45+'PL1'!AA45+'PV1'!AA45+'PH1'!AA45) + 'A1'!$J$20*('GL2'!AA45+'GV2'!AA45+'HR2'!AA45+'PL2'!AA45+'PV2'!AA45+'PH2'!AA45) + 'A1'!$K$20*(MV1a!AA45+MV1b!AA45+'JH1'!AA45+'PM1'!AA45+'PJ1'!AA45) + 'A1'!$L$20*('MV2'!AA45+'JH2'!AA45+'PM2'!AA45+'PJ2'!AA45) -> 0.01991168748 | O45: =(1+'A1'!$H$20)*'A1'!$I$9*'A1'!$AD$5*GL0!N45 -> 0.0001717335479 | P45: =(1+'A1'!$I$20)*('A1'!$I$9*'A1'!$AD$5*('GL1'!N45+'GV1'!N45) + 'A1'!$I$9*'A1'!$AF$5*'HR1'!N45 + 'A1'!$I$9*'A1'!$AH$5*('PL1'!N45+'PV1'!N45+'PH1'!N45)) + (1+'A1'!$K$20)*('A1'!$I$9*'A1'!$AD$5*(MV1a!N45+MV1b!N45) + 'A1'!$I$9*'A1'!$AF$5*'JH1'!N45 + 'A1'!$I$9*'A1'!$AH$5*('PM1'!N45+'PJ1'!N45)) -> 0.002705085575 | Q45: =(1+'A1'!$J$20)*('A1'!$I$9*'A1'!$AD$5*('GL2'!N45+'GV2'!N45) + 'A1'!$I$9*'A1'!$AF$5*'HR2'!N45 + 'A1'!$I$9*'A1'!$AH$5*('PL2'!N45+'PV2'!N45+'PH2'!N45)) + (1+'A1'!$L$20)*('A1'!$I$9*'A1'!$AD$5*'MV2'!N45 + 'A1'!$I$9*'A1'!$AF$5*'JH2'!N45 + 'A1'!$I$9*'A1'!$AH$5*('PM2'!N45+'PJ2'!N45)) -> 0.001696637325 | S45: ='A1'!$F$23*SUM(O45:Q45) + 'A1'!$F$24*(L45+M45-SUM(O45:Q45)) + 'A1'!$F$25*J44 -> 0.009976703107 | U45: ='A1'!$F$28*O45 + 'A1'!$F$29*P45 + 'A1'!$F$30*Q45 -> 0.001333544843 | V45: ='A1'!$L$28*'A1'!$F$28*O45 + 'A1'!$L$29*'A1'!$F$29*P45 + 'A1'!$L$30*'A1'!$F$30*Q45 -> 0.02706168801 | X45: =(1+'A1'!$AD$23)*GL0!N45 -> 0.002789111848 | Y45: =(1+'A1'!$AD$23)*('GL1'!N45+'GV1'!N45) + (1+'A1'!$AF$23)*'HR1'!N45 + (1+'A1'!$AH$23)*('PL1'!N45+'PV1'!N45+'PH1'!N45) -> 0.03266033639 | Z45: =(1+'A1'!$AD$23)*('GL2'!N45+'GV2'!N45) + (1+'A1'!$AF$23)*'HR2'!N45 + (1+'A1'!$AH$23)*('PL2'!N45+'PV2'!N45+'PH2'!N45) -> 0.03014719513 | AA45: =(1+'A1'!$AD$23)*(MV1a!N45+MV1b!N45) + (1+'A1'!$AF$23)*'JH1'!N45 + (1+'A1'!$AH$23)*('PM1'!N45+'PJ1'!N45) -> 0.03865757745 | AB45: =(1+'A1'!$AD$23)*'MV2'!N45 + (1+'A1'!$AF$23)*'JH2'!N45 + (1+'A1'!$AH$23)*('PM2'!N45+'PJ2'!N45) -> 0.01547869955 | AD45: ='A1'!$T$29*(L45+M45) -> 0.007689482047 | AE45: ='A1'!$M$28*'A1'!$F$28*O45 + 'A1'!$M$29*'A1'!$F$29*P45 + 'A1'!$M$30*'A1'!$F$30*Q45 -> 0.01973363653
B46: 1.666666667 | C46: 20 | E46: ='HR1'!R46+'HR2'!R46+MV1a!R46+MV1b!R46+'MV2'!R46+'JH1'!R46+'JH2'!R46+'PL1'!R46+'PL2'!R46+'PV1'!R46+'PV2'!R46+'PH1'!R46+'PH2'!R46+'PM1'!R46+'PM2'!R46+'PJ1'!R46+'PJ2'!R46 -> 3.007722973 | F46: ='HR1'!S46+'HR2'!S46+MV1a!S46+MV1b!S46+'MV2'!S46+'JH1'!S46+'JH2'!S46+'PL1'!S46+'PL2'!S46+'PV1'!S46+'PV2'!S46+'PH1'!S46+'PH2'!S46+'PM1'!S46+'PM2'!S46+'PJ1'!S46+'PJ2'!S46 -> 0.1291966601 | G46: ='HR1'!T46+'HR2'!T46+MV1a!T46+MV1b!T46+'MV2'!T46+'JH1'!T46+'JH2'!T46+'PL1'!T46+'PL2'!T46+'PV1'!T46+'PV2'!T46+'PH1'!T46+'PH2'!T46+'PM1'!T46+'PM2'!T46+'PJ1'!T46+'PJ2'!T46 -> 0 | H46: ='HR1'!U46+'HR2'!U46+MV1a!U46+MV1b!U46+'MV2'!U46+'JH1'!U46+'JH2'!U46+'PL1'!U46+'PL2'!U46+'PV1'!U46+'PV2'!U46+'PH1'!U46+'PH2'!U46+'PM1'!U46+'PM2'!U46+'PJ1'!U46+'PJ2'!U46 -> 0 | J46: ='HR1'!W46+'HR2'!W46+MV1a!W46+MV1b!W46+'MV2'!W46+'JH1'!W46+'JH2'!W46+'PL1'!W46+'PL2'!W46+'PV1'!W46+'PV2'!W46+'PH1'!W46+'PH2'!W46+'PM1'!W46+'PM2'!W46+'PJ1'!W46+'PJ2'!W46 -> 0.002080991713 | K46: ='HR1'!X46+'HR2'!X46+IF('A3'!$L$24=0,0,MV1a!X46+MV1b!X46+'MV2'!X46)+'JH1'!X46+'JH2'!X46+'PL1'!X46+'PL2'!X46+'PV1'!X46+'PV2'!X46+'PH1'!X46+'PH2'!X46+'PM1'!X46+'PM2'!X46+'PJ1'!X46+'PJ2'!X46 -> 0 | AG46: ='HR1'!R46+'HR2'!R46+MV1a!R46+MV1b!R46+'MV2'!R46+'JH1'!R46+'JH2'!R46 -> 1.310110336 | AH46: ='HR1'!S46+'HR2'!S46+MV1a!S46+MV1b!S46+'MV2'!S46+'JH1'!S46+'JH2'!S46 -> 0.05909529436 | AI46: ='HR1'!T46+'HR2'!T46+MV1a!T46+MV1b!T46+'MV2'!T46+'JH1'!T46+'JH2'!T46 -> 0 | AJ46: ='HR1'!U46+'HR2'!U46+MV1a!U46+MV1b!U46+'MV2'!U46+'JH1'!U46+'JH2'!U46 -> 0 | AL46: =MAX(AN46:AQ46) -> 0 | AN46: ='HR1'!R46+'HR2'!R46+'JH1'!R46+'JH2'!R46 -> 0 | AO46: ='HR1'!S46+'HR2'!S46+'JH1'!S46+'JH2'!S46 -> 0 | AP46: ='HR1'!T46+'HR2'!T46+'JH1'!T46+'JH2'!T46 -> 0 | AQ46: ='HR1'!U46+'HR2'!U46+'JH1'!U46+'JH2'!U46 -> 0
B47: 1.708333333 | C47: 20.5 | L47: =GL0!AA47+'GL1'!AA47+'GL2'!AA47+'GV1'!AA47+'GV2'!AA47+'HR1'!AA47+'HR2'!AA47+MV1a!AA47+MV1b!AA47+'MV2'!AA47+'JH1'!AA47+'JH2'!AA47+'PL1'!AA47+'PL2'!AA47+'PV1'!AA47+'PV2'!AA47+'PH1'!AA47+'PH2'!AA47+'PM1'!AA47+'PM2'!AA47+'PJ1'!AA47+'PJ2'!AA47 -> 0.02622389083 | M47: ='A1'!$H$20*GL0!AA47 + 'A1'!$I$20*('GL1'!AA47+'GV1'!AA47+'HR1'!AA47+'PL1'!AA47+'PV1'!AA47+'PH1'!AA47) + 'A1'!$J$20*('GL2'!AA47+'GV2'!AA47+'HR2'!AA47+'PL2'!AA47+'PV2'!AA47+'PH2'!AA47) + 'A1'!$K$20*(MV1a!AA47+MV1b!AA47+'JH1'!AA47+'PM1'!AA47+'PJ1'!AA47) + 'A1'!$L$20*('MV2'!AA47+'JH2'!AA47+'PM2'!AA47+'PJ2'!AA47) -> 0.01991070382 | O47: =(1+'A1'!$H$20)*'A1'!$I$9*'A1'!$AD$5*GL0!N47 -> 0.0001717204407 | P47: =(1+'A1'!$I$20)*('A1'!$I$9*'A1'!$AD$5*('GL1'!N47+'GV1'!N47) + 'A1'!$I$9*'A1'!$AF$5*'HR1'!N47 + 'A1'!$I$9*'A1'!$AH$5*('PL1'!N47+'PV1'!N47+'PH1'!N47)) + (1+'A1'!$K$20)*('A1'!$I$9*'A1'!$AD$5*(MV1a!N47+MV1b!N47) + 'A1'!$I$9*'A1'!$AF$5*'JH1'!N47 + 'A1'!$I$9*'A1'!$AH$5*('PM1'!N47+'PJ1'!N47)) -> 0.002704969769 | Q47: =(1+'A1'!$J$20)*('A1'!$I$9*'A1'!$AD$5*('GL2'!N47+'GV2'!N47) + 'A1'!$I$9*'A1'!$AF$5*'HR2'!N47 + 'A1'!$I$9*'A1'!$AH$5*('PL2'!N47+'PV2'!N47+'PH2'!N47)) + (1+'A1'!$L$20)*('A1'!$I$9*'A1'!$AD$5*'MV2'!N47 + 'A1'!$I$9*'A1'!$AF$5*'JH2'!N47 + 'A1'!$I$9*'A1'!$AH$5*('PM2'!N47+'PJ2'!N47)) -> 0.001696549935 | S47: ='A1'!$F$23*SUM(O47:Q47) + 'A1'!$F$24*(L47+M47-SUM(O47:Q47)) + 'A1'!$F$25*J46 -> 0.009976216231 | U47: ='A1'!$F$28*O47 + 'A1'!$F$29*P47 + 'A1'!$F$30*Q47 -> 0.001333478813 | V47: ='A1'!$L$28*'A1'!$F$28*O47 + 'A1'!$L$29*'A1'!$F$29*P47 + 'A1'!$L$30*'A1'!$F$30*Q47 -> 0.02706041892 | X47: =(1+'A1'!$AD$23)*GL0!N47 -> 0.002788898975 | Y47: =(1+'A1'!$AD$23)*('GL1'!N47+'GV1'!N47) + (1+'A1'!$AF$23)*'HR1'!N47 + (1+'A1'!$AH$23)*('PL1'!N47+'PV1'!N47+'PH1'!N47) -> 0.03265861939 | Z47: =(1+'A1'!$AD$23)*('GL2'!N47+'GV2'!N47) + (1+'A1'!$AF$23)*'HR2'!N47 + (1+'A1'!$AH$23)*('PL2'!N47+'PV2'!N47+'PH2'!N47) -> 0.03014569576 | AA47: =(1+'A1'!$AD$23)*(MV1a!N47+MV1b!N47) + (1+'A1'!$AF$23)*'JH1'!N47 + (1+'A1'!$AH$23)*('PM1'!N47+'PJ1'!N47) -> 0.03865613132 | AB47: =(1+'A1'!$AD$23)*'MV2'!N47 + (1+'A1'!$AF$23)*'JH2'!N47 + (1+'A1'!$AH$23)*('PM2'!N47+'PJ2'!N47) -> 0.01547783073 | AD47: ='A1'!$T$29*(L47+M47) -> 0.007689099109 | AE47: ='A1'!$M$28*'A1'!$F$28*O47 + 'A1'!$M$29*'A1'!$F$29*P47 + 'A1'!$M$30*'A1'!$F$30*Q47 -> 0.01973271334
B48: 1.75 | C48: 21 | E48: ='HR1'!R48+'HR2'!R48+MV1a!R48+MV1b!R48+'MV2'!R48+'JH1'!R48+'JH2'!R48+'PL1'!R48+'PL2'!R48+'PV1'!R48+'PV2'!R48+'PH1'!R48+'PH2'!R48+'PM1'!R48+'PM2'!R48+'PJ1'!R48+'PJ2'!R48 -> 3.007722973 | F48: ='HR1'!S48+'HR2'!S48+MV1a!S48+MV1b!S48+'MV2'!S48+'JH1'!S48+'JH2'!S48+'PL1'!S48+'PL2'!S48+'PV1'!S48+'PV2'!S48+'PH1'!S48+'PH2'!S48+'PM1'!S48+'PM2'!S48+'PJ1'!S48+'PJ2'!S48 -> 0.1291966564 | G48: ='HR1'!T48+'HR2'!T48+MV1a!T48+MV1b!T48+'MV2'!T48+'JH1'!T48+'JH2'!T48+'PL1'!T48+'PL2'!T48+'PV1'!T48+'PV2'!T48+'PH1'!T48+'PH2'!T48+'PM1'!T48+'PM2'!T48+'PJ1'!T48+'PJ2'!T48 -> 0 | H48: ='HR1'!U48+'HR2'!U48+MV1a!U48+MV1b!U48+'MV2'!U48+'JH1'!U48+'JH2'!U48+'PL1'!U48+'PL2'!U48+'PV1'!U48+'PV2'!U48+'PH1'!U48+'PH2'!U48+'PM1'!U48+'PM2'!U48+'PJ1'!U48+'PJ2'!U48 -> 0 | J48: ='HR1'!W48+'HR2'!W48+MV1a!W48+MV1b!W48+'MV2'!W48+'JH1'!W48+'JH2'!W48+'PL1'!W48+'PL2'!W48+'PV1'!W48+'PV2'!W48+'PH1'!W48+'PH2'!W48+'PM1'!W48+'PM2'!W48+'PJ1'!W48+'PJ2'!W48 -> 0.002080989757 | K48: ='HR1'!X48+'HR2'!X48+IF('A3'!$L$24=0,0,MV1a!X48+MV1b!X48+'MV2'!X48)+'JH1'!X48+'JH2'!X48+'PL1'!X48+'PL2'!X48+'PV1'!X48+'PV2'!X48+'PH1'!X48+'PH2'!X48+'PM1'!X48+'PM2'!X48+'PJ1'!X48+'PJ2'!X48 -> 0 | AG48: ='HR1'!R48+'HR2'!R48+MV1a!R48+MV1b!R48+'MV2'!R48+'JH1'!R48+'JH2'!R48 -> 1.310110336 | AH48: ='HR1'!S48+'HR2'!S48+MV1a!S48+MV1b!S48+'MV2'!S48+'JH1'!S48+'JH2'!S48 -> 0.05909529438 | AI48: ='HR1'!T48+'HR2'!T48+MV1a!T48+MV1b!T48+'MV2'!T48+'JH1'!T48+'JH2'!T48 -> 0 | AJ48: ='HR1'!U48+'HR2'!U48+MV1a!U48+MV1b!U48+'MV2'!U48+'JH1'!U48+'JH2'!U48 -> 0 | AL48: =MAX(AN48:AQ48) -> 0 | AN48: ='HR1'!R48+'HR2'!R48+'JH1'!R48+'JH2'!R48 -> 0 | AO48: ='HR1'!S48+'HR2'!S48+'JH1'!S48+'JH2'!S48 -> 0 | AP48: ='HR1'!T48+'HR2'!T48+'JH1'!T48+'JH2'!T48 -> 0 | AQ48: ='HR1'!U48+'HR2'!U48+'JH1'!U48+'JH2'!U48 -> 0
B49: 1.791666667 | C49: 21.5 | L49: =GL0!AA49+'GL1'!AA49+'GL2'!AA49+'GV1'!AA49+'GV2'!AA49+'HR1'!AA49+'HR2'!AA49+MV1a!AA49+MV1b!AA49+'MV2'!AA49+'JH1'!AA49+'JH2'!AA49+'PL1'!AA49+'PL2'!AA49+'PV1'!AA49+'PV2'!AA49+'PH1'!AA49+'PH2'!AA49+'PM1'!AA49+'PM2'!AA49+'PJ1'!AA49+'PJ2'!AA49 -> 0.02622250342 | M49: ='A1'!$H$20*GL0!AA49 + 'A1'!$I$20*('GL1'!AA49+'GV1'!AA49+'HR1'!AA49+'PL1'!AA49+'PV1'!AA49+'PH1'!AA49) + 'A1'!$J$20*('GL2'!AA49+'GV2'!AA49+'HR2'!AA49+'PL2'!AA49+'PV2'!AA49+'PH2'!AA49) + 'A1'!$K$20*(MV1a!AA49+MV1b!AA49+'JH1'!AA49+'PM1'!AA49+'PJ1'!AA49) + 'A1'!$L$20*('MV2'!AA49+'JH2'!AA49+'PM2'!AA49+'PJ2'!AA49) -> 0.01990966654 | O49: =(1+'A1'!$H$20)*'A1'!$I$9*'A1'!$AD$5*GL0!N49 -> 0.0001717065354 | P49: =(1+'A1'!$I$20)*('A1'!$I$9*'A1'!$AD$5*('GL1'!N49+'GV1'!N49) + 'A1'!$I$9*'A1'!$AF$5*'HR1'!N49 + 'A1'!$I$9*'A1'!$AH$5*('PL1'!N49+'PV1'!N49+'PH1'!N49)) + (1+'A1'!$K$20)*('A1'!$I$9*'A1'!$AD$5*(MV1a!N49+MV1b!N49) + 'A1'!$I$9*'A1'!$AF$5*'JH1'!N49 + 'A1'!$I$9*'A1'!$AH$5*('PM1'!N49+'PJ1'!N49)) -> 0.002704847732 | Q49: =(1+'A1'!$J$20)*('A1'!$I$9*'A1'!$AD$5*('GL2'!N49+'GV2'!N49) + 'A1'!$I$9*'A1'!$AF$5*'HR2'!N49 + 'A1'!$I$9*'A1'!$AH$5*('PL2'!N49+'PV2'!N49+'PH2'!N49)) + (1+'A1'!$L$20)*('A1'!$I$9*'A1'!$AD$5*'MV2'!N49 + 'A1'!$I$9*'A1'!$AF$5*'JH2'!N49 + 'A1'!$I$9*'A1'!$AH$5*('PM2'!N49+'PJ2'!N49)) -> 0.001696457547 | S49: ='A1'!$F$23*SUM(O49:Q49) + 'A1'!$F$24*(L49+M49-SUM(O49:Q49)) + 'A1'!$F$25*J48 -> 0.009975702373 | U49: ='A1'!$F$28*O49 + 'A1'!$F$29*P49 + 'A1'!$F$30*Q49 -> 0.001333409055 | V49: ='A1'!$L$28*'A1'!$F$28*O49 + 'A1'!$L$29*'A1'!$F$29*P49 + 'A1'!$L$30*'A1'!$F$30*Q49 -> 0.02705907956 | X49: =(1+'A1'!$AD$23)*GL0!N49 -> 0.00278867314 | Y49: =(1+'A1'!$AD$23)*('GL1'!N49+'GV1'!N49) + (1+'A1'!$AF$23)*'HR1'!N49 + (1+'A1'!$AH$23)*('PL1'!N49+'PV1'!N49+'PH1'!N49) -> 0.03265679901 | Z49: =(1+'A1'!$AD$23)*('GL2'!N49+'GV2'!N49) + (1+'A1'!$AF$23)*'HR2'!N49 + (1+'A1'!$AH$23)*('PL2'!N49+'PV2'!N49+'PH2'!N49) -> 0.03014410399 | AA49: =(1+'A1'!$AD$23)*(MV1a!N49+MV1b!N49) + (1+'A1'!$AF$23)*'JH1'!N49 + (1+'A1'!$AH$23)*('PM1'!N49+'PJ1'!N49) -> 0.03865461582 | AB49: =(1+'A1'!$AD$23)*'MV2'!N49 + (1+'A1'!$AF$23)*'JH2'!N49 + (1+'A1'!$AH$23)*('PM2'!N49+'PJ2'!N49) -> 0.01547691753 | AD49: ='A1'!$T$29*(L49+M49) -> 0.007688694993 | AE49: ='A1'!$M$28*'A1'!$F$28*O49 + 'A1'!$M$29*'A1'!$F$29*P49 + 'A1'!$M$30*'A1'!$F$30*Q49 -> 0.01973173906
B50: 1.833333333 | C50: 22 | E50: ='HR1'!R50+'HR2'!R50+MV1a!R50+MV1b!R50+'MV2'!R50+'JH1'!R50+'JH2'!R50+'PL1'!R50+'PL2'!R50+'PV1'!R50+'PV2'!R50+'PH1'!R50+'PH2'!R50+'PM1'!R50+'PM2'!R50+'PJ1'!R50+'PJ2'!R50 -> 3.007722974 | F50: ='HR1'!S50+'HR2'!S50+MV1a!S50+MV1b!S50+'MV2'!S50+'JH1'!S50+'JH2'!S50+'PL1'!S50+'PL2'!S50+'PV1'!S50+'PV2'!S50+'PH1'!S50+'PH2'!S50+'PM1'!S50+'PM2'!S50+'PJ1'!S50+'PJ2'!S50 -> 0.1291966526 | G50: ='HR1'!T50+'HR2'!T50+MV1a!T50+MV1b!T50+'MV2'!T50+'JH1'!T50+'JH2'!T50+'PL1'!T50+'PL2'!T50+'PV1'!T50+'PV2'!T50+'PH1'!T50+'PH2'!T50+'PM1'!T50+'PM2'!T50+'PJ1'!T50+'PJ2'!T50 -> 0 | H50: ='HR1'!U50+'HR2'!U50+MV1a!U50+MV1b!U50+'MV2'!U50+'JH1'!U50+'JH2'!U50+'PL1'!U50+'PL2'!U50+'PV1'!U50+'PV2'!U50+'PH1'!U50+'PH2'!U50+'PM1'!U50+'PM2'!U50+'PJ1'!U50+'PJ2'!U50 -> 0 | J50: ='HR1'!W50+'HR2'!W50+MV1a!W50+MV1b!W50+'MV2'!W50+'JH1'!W50+'JH2'!W50+'PL1'!W50+'PL2'!W50+'PV1'!W50+'PV2'!W50+'PH1'!W50+'PH2'!W50+'PM1'!W50+'PM2'!W50+'PJ1'!W50+'PJ2'!W50 -> 0.002080987647 | K50: ='HR1'!X50+'HR2'!X50+IF('A3'!$L$24=0,0,MV1a!X50+MV1b!X50+'MV2'!X50)+'JH1'!X50+'JH2'!X50+'PL1'!X50+'PL2'!X50+'PV1'!X50+'PV2'!X50+'PH1'!X50+'PH2'!X50+'PM1'!X50+'PM2'!X50+'PJ1'!X50+'PJ2'!X50 -> 0 | AG50: ='HR1'!R50+'HR2'!R50+MV1a!R50+MV1b!R50+'MV2'!R50+'JH1'!R50+'JH2'!R50 -> 1.310110336 | AH50: ='HR1'!S50+'HR2'!S50+MV1a!S50+MV1b!S50+'MV2'!S50+'JH1'!S50+'JH2'!S50 -> 0.05909529439 | AI50: ='HR1'!T50+'HR2'!T50+MV1a!T50+MV1b!T50+'MV2'!T50+'JH1'!T50+'JH2'!T50 -> 0 | AJ50: ='HR1'!U50+'HR2'!U50+MV1a!U50+MV1b!U50+'MV2'!U50+'JH1'!U50+'JH2'!U50 -> 0 | AL50: =MAX(AN50:AQ50) -> 0 | AN50: ='HR1'!R50+'HR2'!R50+'JH1'!R50+'JH2'!R50 -> 0 | AO50: ='HR1'!S50+'HR2'!S50+'JH1'!S50+'JH2'!S50 -> 0 | AP50: ='HR1'!T50+'HR2'!T50+'JH1'!T50+'JH2'!T50 -> 0 | AQ50: ='HR1'!U50+'HR2'!U50+'JH1'!U50+'JH2'!U50 -> 0
B51: 1.875 | C51: 22.5 | L51: =GL0!AA51+'GL1'!AA51+'GL2'!AA51+'GV1'!AA51+'GV2'!AA51+'HR1'!AA51+'HR2'!AA51+MV1a!AA51+MV1b!AA51+'MV2'!AA51+'JH1'!AA51+'JH2'!AA51+'PL1'!AA51+'PL2'!AA51+'PV1'!AA51+'PV2'!AA51+'PH1'!AA51+'PH2'!AA51+'PM1'!AA51+'PM2'!AA51+'PJ1'!AA51+'PJ2'!AA51 -> 0.02622104587 | M51: ='A1'!$H$20*GL0!AA51 + 'A1'!$I$20*('GL1'!AA51+'GV1'!AA51+'HR1'!AA51+'PL1'!AA51+'PV1'!AA51+'PH1'!AA51) + 'A1'!$J$20*('GL2'!AA51+'GV2'!AA51+'HR2'!AA51+'PL2'!AA51+'PV2'!AA51+'PH2'!AA51) + 'A1'!$K$20*(MV1a!AA51+MV1b!AA51+'JH1'!AA51+'PM1'!AA51+'PJ1'!AA51) + 'A1'!$L$20*('MV2'!AA51+'JH2'!AA51+'PM2'!AA51+'PJ2'!AA51) -> 0.01990857823 | O51: =(1+'A1'!$H$20)*'A1'!$I$9*'A1'!$AD$5*GL0!N51 -> 0.0001716918587 | P51: =(1+'A1'!$I$20)*('A1'!$I$9*'A1'!$AD$5*('GL1'!N51+'GV1'!N51) + 'A1'!$I$9*'A1'!$AF$5*'HR1'!N51 + 'A1'!$I$9*'A1'!$AH$5*('PL1'!N51+'PV1'!N51+'PH1'!N51)) + (1+'A1'!$K$20)*('A1'!$I$9*'A1'!$AD$5*(MV1a!N51+MV1b!N51) + 'A1'!$I$9*'A1'!$AF$5*'JH1'!N51 + 'A1'!$I$9*'A1'!$AH$5*('PM1'!N51+'PJ1'!N51)) -> 0.002704719774 | Q51: =(1+'A1'!$J$20)*('A1'!$I$9*'A1'!$AD$5*('GL2'!N51+'GV2'!N51) + 'A1'!$I$9*'A1'!$AF$5*'HR2'!N51 + 'A1'!$I$9*'A1'!$AH$5*('PL2'!N51+'PV2'!N51+'PH2'!N51)) + (1+'A1'!$L$20)*('A1'!$I$9*'A1'!$AD$5*'MV2'!N51 + 'A1'!$I$9*'A1'!$AF$5*'JH2'!N51 + 'A1'!$I$9*'A1'!$AH$5*('PM2'!N51+'PJ2'!N51)) -> 0.001696360379 | S51: ='A1'!$F$23*SUM(O51:Q51) + 'A1'!$F$24*(L51+M51-SUM(O51:Q51)) + 'A1'!$F$25*J50 -> 0.009975162784 | U51: ='A1'!$F$28*O51 + 'A1'!$F$29*P51 + 'A1'!$F$30*Q51 -> 0.001333335735 | V51: ='A1'!$L$28*'A1'!$F$28*O51 + 'A1'!$L$29*'A1'!$F$29*P51 + 'A1'!$L$30*'A1'!$F$30*Q51 -> 0.0270576732 | X51: =(1+'A1'!$AD$23)*GL0!N51 -> 0.002788434777 | Y51: =(1+'A1'!$AD$23)*('GL1'!N51+'GV1'!N51) + (1+'A1'!$AF$23)*'HR1'!N51 + (1+'A1'!$AH$23)*('PL1'!N51+'PV1'!N51+'PH1'!N51) -> 0.03265487885 | Z51: =(1+'A1'!$AD$23)*('GL2'!N51+'GV2'!N51) + (1+'A1'!$AF$23)*'HR2'!N51 + (1+'A1'!$AH$23)*('PL2'!N51+'PV2'!N51+'PH2'!N51) -> 0.03014242288 | AA51: =(1+'A1'!$AD$23)*(MV1a!N51+MV1b!N51) + (1+'A1'!$AF$23)*'JH1'!N51 + (1+'A1'!$AH$23)*('PM1'!N51+'PJ1'!N51) -> 0.03865303555 | AB51: =(1+'A1'!$AD$23)*'MV2'!N51 + (1+'A1'!$AF$23)*'JH2'!N51 + (1+'A1'!$AH$23)*('PM2'!N51+'PJ2'!N51) -> 0.01547596269 | AD51: ='A1'!$T$29*(L51+M51) -> 0.007688270685 | AE51: ='A1'!$M$28*'A1'!$F$28*O51 + 'A1'!$M$29*'A1'!$F$29*P51 + 'A1'!$M$30*'A1'!$F$30*Q51 -> 0.01973071605
B52: 1.916666667 | C52: 23 | E52: ='HR1'!R52+'HR2'!R52+MV1a!R52+MV1b!R52+'MV2'!R52+'JH1'!R52+'JH2'!R52+'PL1'!R52+'PL2'!R52+'PV1'!R52+'PV2'!R52+'PH1'!R52+'PH2'!R52+'PM1'!R52+'PM2'!R52+'PJ1'!R52+'PJ2'!R52 -> 3.007722974 | F52: ='HR1'!S52+'HR2'!S52+MV1a!S52+MV1b!S52+'MV2'!S52+'JH1'!S52+'JH2'!S52+'PL1'!S52+'PL2'!S52+'PV1'!S52+'PV2'!S52+'PH1'!S52+'PH2'!S52+'PM1'!S52+'PM2'!S52+'PJ1'!S52+'PJ2'!S52 -> 0.1291966486 | G52: ='HR1'!T52+'HR2'!T52+MV1a!T52+MV1b!T52+'MV2'!T52+'JH1'!T52+'JH2'!T52+'PL1'!T52+'PL2'!T52+'PV1'!T52+'PV2'!T52+'PH1'!T52+'PH2'!T52+'PM1'!T52+'PM2'!T52+'PJ1'!T52+'PJ2'!T52 -> 0 | H52: ='HR1'!U52+'HR2'!U52+MV1a!U52+MV1b!U52+'MV2'!U52+'JH1'!U52+'JH2'!U52+'PL1'!U52+'PL2'!U52+'PV1'!U52+'PV2'!U52+'PH1'!U52+'PH2'!U52+'PM1'!U52+'PM2'!U52+'PJ1'!U52+'PJ2'!U52 -> 0 | J52: ='HR1'!W52+'HR2'!W52+MV1a!W52+MV1b!W52+'MV2'!W52+'JH1'!W52+'JH2'!W52+'PL1'!W52+'PL2'!W52+'PV1'!W52+'PV2'!W52+'PH1'!W52+'PH2'!W52+'PM1'!W52+'PM2'!W52+'PJ1'!W52+'PJ2'!W52 -> 0.002080985386 | K52: ='HR1'!X52+'HR2'!X52+IF('A3'!$L$24=0,0,MV1a!X52+MV1b!X52+'MV2'!X52)+'JH1'!X52+'JH2'!X52+'PL1'!X52+'PL2'!X52+'PV1'!X52+'PV2'!X52+'PH1'!X52+'PH2'!X52+'PM1'!X52+'PM2'!X52+'PJ1'!X52+'PJ2'!X52 -> 0 | AG52: ='HR1'!R52+'HR2'!R52+MV1a!R52+MV1b!R52+'MV2'!R52+'JH1'!R52+'JH2'!R52 -> 1.310110337 | AH52: ='HR1'!S52+'HR2'!S52+MV1a!S52+MV1b!S52+'MV2'!S52+'JH1'!S52+'JH2'!S52 -> 0.05909529441 | AI52: ='HR1'!T52+'HR2'!T52+MV1a!T52+MV1b!T52+'MV2'!T52+'JH1'!T52+'JH2'!T52 -> 0 | AJ52: ='HR1'!U52+'HR2'!U52+MV1a!U52+MV1b!U52+'MV2'!U52+'JH1'!U52+'JH2'!U52 -> 0 | AL52: =MAX(AN52:AQ52) -> 0 | AN52: ='HR1'!R52+'HR2'!R52+'JH1'!R52+'JH2'!R52 -> 0 | AO52: ='HR1'!S52+'HR2'!S52+'JH1'!S52+'JH2'!S52 -> 0 | AP52: ='HR1'!T52+'HR2'!T52+'JH1'!T52+'JH2'!T52 -> 0 | AQ52: ='HR1'!U52+'HR2'!U52+'JH1'!U52+'JH2'!U52 -> 0
B53: 1.958333333 | C53: 23.5 | L53: =GL0!AA53+'GL1'!AA53+'GL2'!AA53+'GV1'!AA53+'GV2'!AA53+'HR1'!AA53+'HR2'!AA53+MV1a!AA53+MV1b!AA53+'MV2'!AA53+'JH1'!AA53+'JH2'!AA53+'PL1'!AA53+'PL2'!AA53+'PV1'!AA53+'PV2'!AA53+'PH1'!AA53+'PH2'!AA53+'PM1'!AA53+'PM2'!AA53+'PJ1'!AA53+'PJ2'!AA53 -> 0.02621952139 | M53: ='A1'!$H$20*GL0!AA53 + 'A1'!$I$20*('GL1'!AA53+'GV1'!AA53+'HR1'!AA53+'PL1'!AA53+'PV1'!AA53+'PH1'!AA53) + 'A1'!$J$20*('GL2'!AA53+'GV2'!AA53+'HR2'!AA53+'PL2'!AA53+'PV2'!AA53+'PH2'!AA53) + 'A1'!$K$20*(MV1a!AA53+MV1b!AA53+'JH1'!AA53+'PM1'!AA53+'PJ1'!AA53) + 'A1'!$L$20*('MV2'!AA53+'JH2'!AA53+'PM2'!AA53+'PJ2'!AA53) -> 0.01990744142 | O53: =(1+'A1'!$H$20)*'A1'!$I$9*'A1'!$AD$5*GL0!N53 -> 0.0001716764371 | P53: =(1+'A1'!$I$20)*('A1'!$I$9*'A1'!$AD$5*('GL1'!N53+'GV1'!N53) + 'A1'!$I$9*'A1'!$AF$5*'HR1'!N53 + 'A1'!$I$9*'A1'!$AH$5*('PL1'!N53+'PV1'!N53+'PH1'!N53)) + (1+'A1'!$K$20)*('A1'!$I$9*'A1'!$AD$5*(MV1a!N53+MV1b!N53) + 'A1'!$I$9*'A1'!$AF$5*'JH1'!N53 + 'A1'!$I$9*'A1'!$AH$5*('PM1'!N53+'PJ1'!N53)) -> 0.002704586193 | Q53: =(1+'A1'!$J$20)*('A1'!$I$9*'A1'!$AD$5*('GL2'!N53+'GV2'!N53) + 'A1'!$I$9*'A1'!$AF$5*'HR2'!N53 + 'A1'!$I$9*'A1'!$AH$5*('PL2'!N53+'PV2'!N53+'PH2'!N53)) + (1+'A1'!$L$20)*('A1'!$I$9*'A1'!$AD$5*'MV2'!N53 + 'A1'!$I$9*'A1'!$AF$5*'JH2'!N53 + 'A1'!$I$9*'A1'!$AH$5*('PM2'!N53+'PJ2'!N53)) -> 0.001696258647 | S53: ='A1'!$F$23*SUM(O53:Q53) + 'A1'!$F$24*(L53+M53-SUM(O53:Q53)) + 'A1'!$F$25*J52 -> 0.009974598677 | U53: ='A1'!$F$28*O53 + 'A1'!$F$29*P53 + 'A1'!$F$30*Q53 -> 0.001333259016 | V53: ='A1'!$L$28*'A1'!$F$28*O53 + 'A1'!$L$29*'A1'!$F$29*P53 + 'A1'!$L$30*'A1'!$F$30*Q53 -> 0.02705620298 | X53: =(1+'A1'!$AD$23)*GL0!N53 -> 0.002788184316 | Y53: =(1+'A1'!$AD$23)*('GL1'!N53+'GV1'!N53) + (1+'A1'!$AF$23)*'HR1'!N53 + (1+'A1'!$AH$23)*('PL1'!N53+'PV1'!N53+'PH1'!N53) -> 0.03265286246 | Z53: =(1+'A1'!$AD$23)*('GL2'!N53+'GV2'!N53) + (1+'A1'!$AF$23)*'HR2'!N53 + (1+'A1'!$AH$23)*('PL2'!N53+'PV2'!N53+'PH2'!N53) -> 0.03014065547 | AA53: =(1+'A1'!$AD$23)*(MV1a!N53+MV1b!N53) + (1+'A1'!$AF$23)*'JH1'!N53 + (1+'A1'!$AH$23)*('PM1'!N53+'PJ1'!N53) -> 0.03865139491 | AB53: =(1+'A1'!$AD$23)*'MV2'!N53 + (1+'A1'!$AF$23)*'JH2'!N53 + (1+'A1'!$AH$23)*('PM2'!N53+'PJ2'!N53) -> 0.01547496881 | AD53: ='A1'!$T$29*(L53+M53) -> 0.007687827136 | AE53: ='A1'!$M$28*'A1'!$F$28*O53 + 'A1'!$M$29*'A1'!$F$29*P53 + 'A1'!$M$30*'A1'!$F$30*Q53 -> 0.01972964662
B54: 2 | C54: 24 | E54: ='HR1'!R54+'HR2'!R54+MV1a!R54+MV1b!R54+'MV2'!R54+'JH1'!R54+'JH2'!R54+'PL1'!R54+'PL2'!R54+'PV1'!R54+'PV2'!R54+'PH1'!R54+'PH2'!R54+'PM1'!R54+'PM2'!R54+'PJ1'!R54+'PJ2'!R54 -> 3.007722975 | F54: ='HR1'!S54+'HR2'!S54+MV1a!S54+MV1b!S54+'MV2'!S54+'JH1'!S54+'JH2'!S54+'PL1'!S54+'PL2'!S54+'PV1'!S54+'PV2'!S54+'PH1'!S54+'PH2'!S54+'PM1'!S54+'PM2'!S54+'PJ1'!S54+'PJ2'!S54 -> 0.1291966445 | G54: ='HR1'!T54+'HR2'!T54+MV1a!T54+MV1b!T54+'MV2'!T54+'JH1'!T54+'JH2'!T54+'PL1'!T54+'PL2'!T54+'PV1'!T54+'PV2'!T54+'PH1'!T54+'PH2'!T54+'PM1'!T54+'PM2'!T54+'PJ1'!T54+'PJ2'!T54 -> 0 | H54: ='HR1'!U54+'HR2'!U54+MV1a!U54+MV1b!U54+'MV2'!U54+'JH1'!U54+'JH2'!U54+'PL1'!U54+'PL2'!U54+'PV1'!U54+'PV2'!U54+'PH1'!U54+'PH2'!U54+'PM1'!U54+'PM2'!U54+'PJ1'!U54+'PJ2'!U54 -> 0 | J54: ='HR1'!W54+'HR2'!W54+MV1a!W54+MV1b!W54+'MV2'!W54+'JH1'!W54+'JH2'!W54+'PL1'!W54+'PL2'!W54+'PV1'!W54+'PV2'!W54+'PH1'!W54+'PH2'!W54+'PM1'!W54+'PM2'!W54+'PJ1'!W54+'PJ2'!W54 -> 0.00208098298 | K54: ='HR1'!X54+'HR2'!X54+IF('A3'!$L$24=0,0,MV1a!X54+MV1b!X54+'MV2'!X54)+'JH1'!X54+'JH2'!X54+'PL1'!X54+'PL2'!X54+'PV1'!X54+'PV2'!X54+'PH1'!X54+'PH2'!X54+'PM1'!X54+'PM2'!X54+'PJ1'!X54+'PJ2'!X54 -> 0 | AG54: ='HR1'!R54+'HR2'!R54+MV1a!R54+MV1b!R54+'MV2'!R54+'JH1'!R54+'JH2'!R54 -> 1.310110337 | AH54: ='HR1'!S54+'HR2'!S54+MV1a!S54+MV1b!S54+'MV2'!S54+'JH1'!S54+'JH2'!S54 -> 0.05909529442 | AI54: ='HR1'!T54+'HR2'!T54+MV1a!T54+MV1b!T54+'MV2'!T54+'JH1'!T54+'JH2'!T54 -> 0 | AJ54: ='HR1'!U54+'HR2'!U54+MV1a!U54+MV1b!U54+'MV2'!U54+'JH1'!U54+'JH2'!U54 -> 0 | AL54: =MAX(AN54:AQ54) -> 0 | AN54: ='HR1'!R54+'HR2'!R54+'JH1'!R54+'JH2'!R54 -> 0 | AO54: ='HR1'!S54+'HR2'!S54+'JH1'!S54+'JH2'!S54 -> 0 | AP54: ='HR1'!T54+'HR2'!T54+'JH1'!T54+'JH2'!T54 -> 0 | AQ54: ='HR1'!U54+'HR2'!U54+'JH1'!U54+'JH2'!U54 -> 0
B55: 2.041666667 | C55: 24.5 | L55: =GL0!AA55+'GL1'!AA55+'GL2'!AA55+'GV1'!AA55+'GV2'!AA55+'HR1'!AA55+'HR2'!AA55+MV1a!AA55+MV1b!AA55+'MV2'!AA55+'JH1'!AA55+'JH2'!AA55+'PL1'!AA55+'PL2'!AA55+'PV1'!AA55+'PV2'!AA55+'PH1'!AA55+'PH2'!AA55+'PM1'!AA55+'PM2'!AA55+'PJ1'!AA55+'PJ2'!AA55 -> 0.02621793306 | M55: ='A1'!$H$20*GL0!AA55 + 'A1'!$I$20*('GL1'!AA55+'GV1'!AA55+'HR1'!AA55+'PL1'!AA55+'PV1'!AA55+'PH1'!AA55) + 'A1'!$J$20*('GL2'!AA55+'GV2'!AA55+'HR2'!AA55+'PL2'!AA55+'PV2'!AA55+'PH2'!AA55) + 'A1'!$K$20*(MV1a!AA55+MV1b!AA55+'JH1'!AA55+'PM1'!AA55+'PJ1'!AA55) + 'A1'!$L$20*('MV2'!AA55+'JH2'!AA55+'PM2'!AA55+'PJ2'!AA55) -> 0.01990625852 | O55: =(1+'A1'!$H$20)*'A1'!$I$9*'A1'!$AD$5*GL0!N55 -> 0.0001716602964 | P55: =(1+'A1'!$I$20)*('A1'!$I$9*'A1'!$AD$5*('GL1'!N55+'GV1'!N55) + 'A1'!$I$9*'A1'!$AF$5*'HR1'!N55 + 'A1'!$I$9*'A1'!$AH$5*('PL1'!N55+'PV1'!N55+'PH1'!N55)) + (1+'A1'!$K$20)*('A1'!$I$9*'A1'!$AD$5*(MV1a!N55+MV1b!N55) + 'A1'!$I$9*'A1'!$AF$5*'JH1'!N55 + 'A1'!$I$9*'A1'!$AH$5*('PM1'!N55+'PJ1'!N55)) -> 0.002704447276 | Q55: =(1+'A1'!$J$20)*('A1'!$I$9*'A1'!$AD$5*('GL2'!N55+'GV2'!N55) + 'A1'!$I$9*'A1'!$AF$5*'HR2'!N55 + 'A1'!$I$9*'A1'!$AH$5*('PL2'!N55+'PV2'!N55+'PH2'!N55)) + (1+'A1'!$L$20)*('A1'!$I$9*'A1'!$AD$5*'MV2'!N55 + 'A1'!$I$9*'A1'!$AF$5*'JH2'!N55 + 'A1'!$I$9*'A1'!$AH$5*('PM2'!N55+'PJ2'!N55)) -> 0.001696152556 | S55: ='A1'!$F$23*SUM(O55:Q55) + 'A1'!$F$24*(L55+M55-SUM(O55:Q55)) + 'A1'!$F$25*J54 -> 0.009974011217 | U55: ='A1'!$F$28*O55 + 'A1'!$F$29*P55 + 'A1'!$F$30*Q55 -> 0.001333179056 | V55: ='A1'!$L$28*'A1'!$F$28*O55 + 'A1'!$L$29*'A1'!$F$29*P55 + 'A1'!$L$30*'A1'!$F$30*Q55 -> 0.02705467194 | X55: =(1+'A1'!$AD$23)*GL0!N55 -> 0.002787922177 | Y55: =(1+'A1'!$AD$23)*('GL1'!N55+'GV1'!N55) + (1+'A1'!$AF$23)*'HR1'!N55 + (1+'A1'!$AH$23)*('PL1'!N55+'PV1'!N55+'PH1'!N55) -> 0.03265075329 | Z55: =(1+'A1'!$AD$23)*('GL2'!N55+'GV2'!N55) + (1+'A1'!$AF$23)*'HR2'!N55 + (1+'A1'!$AH$23)*('PL2'!N55+'PV2'!N55+'PH2'!N55) -> 0.03013880472 | AA55: =(1+'A1'!$AD$23)*(MV1a!N55+MV1b!N55) + (1+'A1'!$AF$23)*'JH1'!N55 + (1+'A1'!$AH$23)*('PM1'!N55+'PJ1'!N55) -> 0.03864969805 | AB55: =(1+'A1'!$AD$23)*'MV2'!N55 + (1+'A1'!$AF$23)*'JH2'!N55 + (1+'A1'!$AH$23)*('PM2'!N55+'PJ2'!N55) -> 0.01547393841 | AD55: ='A1'!$T$29*(L55+M55) -> 0.007687365263 | AE55: ='A1'!$M$28*'A1'!$F$28*O55 + 'A1'!$M$29*'A1'!$F$29*P55 + 'A1'!$M$30*'A1'!$F$30*Q55 -> 0.01972853298
B56: 2.083333333 | C56: 25 | E56: ='HR1'!R56+'HR2'!R56+MV1a!R56+MV1b!R56+'MV2'!R56+'JH1'!R56+'JH2'!R56+'PL1'!R56+'PL2'!R56+'PV1'!R56+'PV2'!R56+'PH1'!R56+'PH2'!R56+'PM1'!R56+'PM2'!R56+'PJ1'!R56+'PJ2'!R56 -> 3.007722975 | F56: ='HR1'!S56+'HR2'!S56+MV1a!S56+MV1b!S56+'MV2'!S56+'JH1'!S56+'JH2'!S56+'PL1'!S56+'PL2'!S56+'PV1'!S56+'PV2'!S56+'PH1'!S56+'PH2'!S56+'PM1'!S56+'PM2'!S56+'PJ1'!S56+'PJ2'!S56 -> 0.1291966401 | G56: ='HR1'!T56+'HR2'!T56+MV1a!T56+MV1b!T56+'MV2'!T56+'JH1'!T56+'JH2'!T56+'PL1'!T56+'PL2'!T56+'PV1'!T56+'PV2'!T56+'PH1'!T56+'PH2'!T56+'PM1'!T56+'PM2'!T56+'PJ1'!T56+'PJ2'!T56 -> 0 | H56: ='HR1'!U56+'HR2'!U56+MV1a!U56+MV1b!U56+'MV2'!U56+'JH1'!U56+'JH2'!U56+'PL1'!U56+'PL2'!U56+'PV1'!U56+'PV2'!U56+'PH1'!U56+'PH2'!U56+'PM1'!U56+'PM2'!U56+'PJ1'!U56+'PJ2'!U56 -> 0 | J56: ='HR1'!W56+'HR2'!W56+MV1a!W56+MV1b!W56+'MV2'!W56+'JH1'!W56+'JH2'!W56+'PL1'!W56+'PL2'!W56+'PV1'!W56+'PV2'!W56+'PH1'!W56+'PH2'!W56+'PM1'!W56+'PM2'!W56+'PJ1'!W56+'PJ2'!W56 -> 0.002080980433 | K56: ='HR1'!X56+'HR2'!X56+IF('A3'!$L$24=0,0,MV1a!X56+MV1b!X56+'MV2'!X56)+'JH1'!X56+'JH2'!X56+'PL1'!X56+'PL2'!X56+'PV1'!X56+'PV2'!X56+'PH1'!X56+'PH2'!X56+'PM1'!X56+'PM2'!X56+'PJ1'!X56+'PJ2'!X56 -> 0 | AG56: ='HR1'!R56+'HR2'!R56+MV1a!R56+MV1b!R56+'MV2'!R56+'JH1'!R56+'JH2'!R56 -> 1.310110338 | AH56: ='HR1'!S56+'HR2'!S56+MV1a!S56+MV1b!S56+'MV2'!S56+'JH1'!S56+'JH2'!S56 -> 0.05909529444 | AI56: ='HR1'!T56+'HR2'!T56+MV1a!T56+MV1b!T56+'MV2'!T56+'JH1'!T56+'JH2'!T56 -> 0 | AJ56: ='HR1'!U56+'HR2'!U56+MV1a!U56+MV1b!U56+'MV2'!U56+'JH1'!U56+'JH2'!U56 -> 0 | AL56: =MAX(AN56:AQ56) -> 0 | AN56: ='HR1'!R56+'HR2'!R56+'JH1'!R56+'JH2'!R56 -> 0 | AO56: ='HR1'!S56+'HR2'!S56+'JH1'!S56+'JH2'!S56 -> 0 | AP56: ='HR1'!T56+'HR2'!T56+'JH1'!T56+'JH2'!T56 -> 0 | AQ56: ='HR1'!U56+'HR2'!U56+'JH1'!U56+'JH2'!U56 -> 0
B57: 2.125 | C57: 25.5 | L57: =GL0!AA57+'GL1'!AA57+'GL2'!AA57+'GV1'!AA57+'GV2'!AA57+'HR1'!AA57+'HR2'!AA57+MV1a!AA57+MV1b!AA57+'MV2'!AA57+'JH1'!AA57+'JH2'!AA57+'PL1'!AA57+'PL2'!AA57+'PV1'!AA57+'PV2'!AA57+'PH1'!AA57+'PH2'!AA57+'PM1'!AA57+'PM2'!AA57+'PJ1'!AA57+'PJ2'!AA57 -> 0.02621628383 | M57: ='A1'!$H$20*GL0!AA57 + 'A1'!$I$20*('GL1'!AA57+'GV1'!AA57+'HR1'!AA57+'PL1'!AA57+'PV1'!AA57+'PH1'!AA57) + 'A1'!$J$20*('GL2'!AA57+'GV2'!AA57+'HR2'!AA57+'PL2'!AA57+'PV2'!AA57+'PH2'!AA57) + 'A1'!$K$20*(MV1a!AA57+MV1b!AA57+'JH1'!AA57+'PM1'!AA57+'PJ1'!AA57) + 'A1'!$L$20*('MV2'!AA57+'JH2'!AA57+'PM2'!AA57+'PJ2'!AA57) -> 0.01990503182 | O57: =(1+'A1'!$H$20)*'A1'!$I$9*'A1'!$AD$5*GL0!N57 -> 0.0001716434622 | P57: =(1+'A1'!$I$20)*('A1'!$I$9*'A1'!$AD$5*('GL1'!N57+'GV1'!N57) + 'A1'!$I$9*'A1'!$AF$5*'HR1'!N57 + 'A1'!$I$9*'A1'!$AH$5*('PL1'!N57+'PV1'!N57+'PH1'!N57)) + (1+'A1'!$K$20)*('A1'!$I$9*'A1'!$AD$5*(MV1a!N57+MV1b!N57) + 'A1'!$I$9*'A1'!$AF$5*'JH1'!N57 + 'A1'!$I$9*'A1'!$AH$5*('PM1'!N57+'PJ1'!N57)) -> 0.002704303293 | Q57: =(1+'A1'!$J$20)*('A1'!$I$9*'A1'!$AD$5*('GL2'!N57+'GV2'!N57) + 'A1'!$I$9*'A1'!$AF$5*'HR2'!N57 + 'A1'!$I$9*'A1'!$AH$5*('PL2'!N57+'PV2'!N57+'PH2'!N57)) + (1+'A1'!$L$20)*('A1'!$I$9*'A1'!$AD$5*'MV2'!N57 + 'A1'!$I$9*'A1'!$AF$5*'JH2'!N57 + 'A1'!$I$9*'A1'!$AH$5*('PM2'!N57+'PJ2'!N57)) -> 0.001696042306 | S57: ='A1'!$F$23*SUM(O57:Q57) + 'A1'!$F$24*(L57+M57-SUM(O57:Q57)) + 'A1'!$F$25*J56 -> 0.009973401518 | U57: ='A1'!$F$28*O57 + 'A1'!$F$29*P57 + 'A1'!$F$30*Q57 -> 0.001333096005 | V57: ='A1'!$L$28*'A1'!$F$28*O57 + 'A1'!$L$29*'A1'!$F$29*P57 + 'A1'!$L$30*'A1'!$F$30*Q57 -> 0.02705308298 | X57: =(1+'A1'!$AD$23)*GL0!N57 -> 0.002787648773 | Y57: =(1+'A1'!$AD$23)*('GL1'!N57+'GV1'!N57) + (1+'A1'!$AF$23)*'HR1'!N57 + (1+'A1'!$AH$23)*('PL1'!N57+'PV1'!N57+'PH1'!N57) -> 0.03264855465 | Z57: =(1+'A1'!$AD$23)*('GL2'!N57+'GV2'!N57) + (1+'A1'!$AF$23)*'HR2'!N57 + (1+'A1'!$AH$23)*('PL2'!N57+'PV2'!N57+'PH2'!N57) -> 0.03013687353 | AA57: =(1+'A1'!$AD$23)*(MV1a!N57+MV1b!N57) + (1+'A1'!$AF$23)*'JH1'!N57 + (1+'A1'!$AH$23)*('PM1'!N57+'PJ1'!N57) -> 0.03864794888 | AB57: =(1+'A1'!$AD$23)*'MV2'!N57 + (1+'A1'!$AF$23)*'JH2'!N57 + (1+'A1'!$AH$23)*('PM2'!N57+'PJ2'!N57) -> 0.01547287386 | AD57: ='A1'!$T$29*(L57+M57) -> 0.007686885942 | AE57: ='A1'!$M$28*'A1'!$F$28*O57 + 'A1'!$M$29*'A1'!$F$29*P57 + 'A1'!$M$30*'A1'!$F$30*Q57 -> 0.01972737724
B58: 2.166666667 | C58: 26 | E58: ='HR1'!R58+'HR2'!R58+MV1a!R58+MV1b!R58+'MV2'!R58+'JH1'!R58+'JH2'!R58+'PL1'!R58+'PL2'!R58+'PV1'!R58+'PV2'!R58+'PH1'!R58+'PH2'!R58+'PM1'!R58+'PM2'!R58+'PJ1'!R58+'PJ2'!R58 -> 3.007722976 | F58: ='HR1'!S58+'HR2'!S58+MV1a!S58+MV1b!S58+'MV2'!S58+'JH1'!S58+'JH2'!S58+'PL1'!S58+'PL2'!S58+'PV1'!S58+'PV2'!S58+'PH1'!S58+'PH2'!S58+'PM1'!S58+'PM2'!S58+'PJ1'!S58+'PJ2'!S58 -> 0.1291966355 | G58: ='HR1'!T58+'HR2'!T58+MV1a!T58+MV1b!T58+'MV2'!T58+'JH1'!T58+'JH2'!T58+'PL1'!T58+'PL2'!T58+'PV1'!T58+'PV2'!T58+'PH1'!T58+'PH2'!T58+'PM1'!T58+'PM2'!T58+'PJ1'!T58+'PJ2'!T58 -> 0 | H58: ='HR1'!U58+'HR2'!U58+MV1a!U58+MV1b!U58+'MV2'!U58+'JH1'!U58+'JH2'!U58+'PL1'!U58+'PL2'!U58+'PV1'!U58+'PV2'!U58+'PH1'!U58+'PH2'!U58+'PM1'!U58+'PM2'!U58+'PJ1'!U58+'PJ2'!U58 -> 0 | J58: ='HR1'!W58+'HR2'!W58+MV1a!W58+MV1b!W58+'MV2'!W58+'JH1'!W58+'JH2'!W58+'PL1'!W58+'PL2'!W58+'PV1'!W58+'PV2'!W58+'PH1'!W58+'PH2'!W58+'PM1'!W58+'PM2'!W58+'PJ1'!W58+'PJ2'!W58 -> 0.002080977748 | K58: ='HR1'!X58+'HR2'!X58+IF('A3'!$L$24=0,0,MV1a!X58+MV1b!X58+'MV2'!X58)+'JH1'!X58+'JH2'!X58+'PL1'!X58+'PL2'!X58+'PV1'!X58+'PV2'!X58+'PH1'!X58+'PH2'!X58+'PM1'!X58+'PM2'!X58+'PJ1'!X58+'PJ2'!X58 -> 0 | AG58: ='HR1'!R58+'HR2'!R58+MV1a!R58+MV1b!R58+'MV2'!R58+'JH1'!R58+'JH2'!R58 -> 1.310110338 | AH58: ='HR1'!S58+'HR2'!S58+MV1a!S58+MV1b!S58+'MV2'!S58+'JH1'!S58+'JH2'!S58 -> 0.05909529445 | AI58: ='HR1'!T58+'HR2'!T58+MV1a!T58+MV1b!T58+'MV2'!T58+'JH1'!T58+'JH2'!T58 -> 0 | AJ58: ='HR1'!U58+'HR2'!U58+MV1a!U58+MV1b!U58+'MV2'!U58+'JH1'!U58+'JH2'!U58 -> 0 | AL58: =MAX(AN58:AQ58) -> 0 | AN58: ='HR1'!R58+'HR2'!R58+'JH1'!R58+'JH2'!R58 -> 0 | AO58: ='HR1'!S58+'HR2'!S58+'JH1'!S58+'JH2'!S58 -> 0 | AP58: ='HR1'!T58+'HR2'!T58+'JH1'!T58+'JH2'!T58 -> 0 | AQ58: ='HR1'!U58+'HR2'!U58+'JH1'!U58+'JH2'!U58 -> 0
B59: 2.208333333 | C59: 26.5 | L59: =GL0!AA59+'GL1'!AA59+'GL2'!AA59+'GV1'!AA59+'GV2'!AA59+'HR1'!AA59+'HR2'!AA59+MV1a!AA59+MV1b!AA59+'MV2'!AA59+'JH1'!AA59+'JH2'!AA59+'PL1'!AA59+'PL2'!AA59+'PV1'!AA59+'PV2'!AA59+'PH1'!AA59+'PH2'!AA59+'PM1'!AA59+'PM2'!AA59+'PJ1'!AA59+'PJ2'!AA59 -> 0.02621457651 | M59: ='A1'!$H$20*GL0!AA59 + 'A1'!$I$20*('GL1'!AA59+'GV1'!AA59+'HR1'!AA59+'PL1'!AA59+'PV1'!AA59+'PH1'!AA59) + 'A1'!$J$20*('GL2'!AA59+'GV2'!AA59+'HR2'!AA59+'PL2'!AA59+'PV2'!AA59+'PH2'!AA59) + 'A1'!$K$20*(MV1a!AA59+MV1b!AA59+'JH1'!AA59+'PM1'!AA59+'PJ1'!AA59) + 'A1'!$L$20*('MV2'!AA59+'JH2'!AA59+'PM2'!AA59+'PJ2'!AA59) -> 0.01990376353 | O59: =(1+'A1'!$H$20)*'A1'!$I$9*'A1'!$AD$5*GL0!N59 -> 0.0001716259589 | P59: =(1+'A1'!$I$20)*('A1'!$I$9*'A1'!$AD$5*('GL1'!N59+'GV1'!N59) + 'A1'!$I$9*'A1'!$AF$5*'HR1'!N59 + 'A1'!$I$9*'A1'!$AH$5*('PL1'!N59+'PV1'!N59+'PH1'!N59)) + (1+'A1'!$K$20)*('A1'!$I$9*'A1'!$AD$5*(MV1a!N59+MV1b!N59) + 'A1'!$I$9*'A1'!$AF$5*'JH1'!N59 + 'A1'!$I$9*'A1'!$AH$5*('PM1'!N59+'PJ1'!N59)) -> 0.002704154502 | Q59: =(1+'A1'!$J$20)*('A1'!$I$9*'A1'!$AD$5*('GL2'!N59+'GV2'!N59) + 'A1'!$I$9*'A1'!$AF$5*'HR2'!N59 + 'A1'!$I$9*'A1'!$AH$5*('PL2'!N59+'PV2'!N59+'PH2'!N59)) + (1+'A1'!$L$20)*('A1'!$I$9*'A1'!$AD$5*'MV2'!N59 + 'A1'!$I$9*'A1'!$AF$5*'JH2'!N59 + 'A1'!$I$9*'A1'!$AH$5*('PM2'!N59+'PJ2'!N59)) -> 0.001695928087 | S59: ='A1'!$F$23*SUM(O59:Q59) + 'A1'!$F$24*(L59+M59-SUM(O59:Q59)) + 'A1'!$F$25*J58 -> 0.009972770642 | U59: ='A1'!$F$28*O59 + 'A1'!$F$29*P59 + 'A1'!$F$30*Q59 -> 0.001333010008 | V59: ='A1'!$L$28*'A1'!$F$28*O59 + 'A1'!$L$29*'A1'!$F$29*P59 + 'A1'!$L$30*'A1'!$F$30*Q59 -> 0.02705143886 | X59: =(1+'A1'!$AD$23)*GL0!N59 -> 0.002787364504 | Y59: =(1+'A1'!$AD$23)*('GL1'!N59+'GV1'!N59) + (1+'A1'!$AF$23)*'HR1'!N59 + (1+'A1'!$AH$23)*('PL1'!N59+'PV1'!N59+'PH1'!N59) -> 0.03264626976 | Z59: =(1+'A1'!$AD$23)*('GL2'!N59+'GV2'!N59) + (1+'A1'!$AF$23)*'HR2'!N59 + (1+'A1'!$AH$23)*('PL2'!N59+'PV2'!N59+'PH2'!N59) -> 0.0301348647 | AA59: =(1+'A1'!$AD$23)*(MV1a!N59+MV1b!N59) + (1+'A1'!$AF$23)*'JH1'!N59 + (1+'A1'!$AH$23)*('PM1'!N59+'PJ1'!N59) -> 0.03864615105 | AB59: =(1+'A1'!$AD$23)*'MV2'!N59 + (1+'A1'!$AF$23)*'JH2'!N59 + (1+'A1'!$AH$23)*('PM2'!N59+'PJ2'!N59) -> 0.01547177741 | AD59: ='A1'!$T$29*(L59+M59) -> 0.007686390007 | AE59: ='A1'!$M$28*'A1'!$F$28*O59 + 'A1'!$M$29*'A1'!$F$29*P59 + 'A1'!$M$30*'A1'!$F$30*Q59 -> 0.01972618142
B60: 2.25 | C60: 27 | E60: ='HR1'!R60+'HR2'!R60+MV1a!R60+MV1b!R60+'MV2'!R60+'JH1'!R60+'JH2'!R60+'PL1'!R60+'PL2'!R60+'PV1'!R60+'PV2'!R60+'PH1'!R60+'PH2'!R60+'PM1'!R60+'PM2'!R60+'PJ1'!R60+'PJ2'!R60 -> 3.007722976 | F60: ='HR1'!S60+'HR2'!S60+MV1a!S60+MV1b!S60+'MV2'!S60+'JH1'!S60+'JH2'!S60+'PL1'!S60+'PL2'!S60+'PV1'!S60+'PV2'!S60+'PH1'!S60+'PH2'!S60+'PM1'!S60+'PM2'!S60+'PJ1'!S60+'PJ2'!S60 -> 0.1291966308 | G60: ='HR1'!T60+'HR2'!T60+MV1a!T60+MV1b!T60+'MV2'!T60+'JH1'!T60+'JH2'!T60+'PL1'!T60+'PL2'!T60+'PV1'!T60+'PV2'!T60+'PH1'!T60+'PH2'!T60+'PM1'!T60+'PM2'!T60+'PJ1'!T60+'PJ2'!T60 -> 0 | H60: ='HR1'!U60+'HR2'!U60+MV1a!U60+MV1b!U60+'MV2'!U60+'JH1'!U60+'JH2'!U60+'PL1'!U60+'PL2'!U60+'PV1'!U60+'PV2'!U60+'PH1'!U60+'PH2'!U60+'PM1'!U60+'PM2'!U60+'PJ1'!U60+'PJ2'!U60 -> 0 | J60: ='HR1'!W60+'HR2'!W60+MV1a!W60+MV1b!W60+'MV2'!W60+'JH1'!W60+'JH2'!W60+'PL1'!W60+'PL2'!W60+'PV1'!W60+'PV2'!W60+'PH1'!W60+'PH2'!W60+'PM1'!W60+'PM2'!W60+'PJ1'!W60+'PJ2'!W60 -> 0.00208097493 | K60: ='HR1'!X60+'HR2'!X60+IF('A3'!$L$24=0,0,MV1a!X60+MV1b!X60+'MV2'!X60)+'JH1'!X60+'JH2'!X60+'PL1'!X60+'PL2'!X60+'PV1'!X60+'PV2'!X60+'PH1'!X60+'PH2'!X60+'PM1'!X60+'PM2'!X60+'PJ1'!X60+'PJ2'!X60 -> 0 | AG60: ='HR1'!R60+'HR2'!R60+MV1a!R60+MV1b!R60+'MV2'!R60+'JH1'!R60+'JH2'!R60 -> 1.310110338 | AH60: ='HR1'!S60+'HR2'!S60+MV1a!S60+MV1b!S60+'MV2'!S60+'JH1'!S60+'JH2'!S60 -> 0.05909529447 | AI60: ='HR1'!T60+'HR2'!T60+MV1a!T60+MV1b!T60+'MV2'!T60+'JH1'!T60+'JH2'!T60 -> 0 | AJ60: ='HR1'!U60+'HR2'!U60+MV1a!U60+MV1b!U60+'MV2'!U60+'JH1'!U60+'JH2'!U60 -> 0 | AL60: =MAX(AN60:AQ60) -> 0 | AN60: ='HR1'!R60+'HR2'!R60+'JH1'!R60+'JH2'!R60 -> 0 | AO60: ='HR1'!S60+'HR2'!S60+'JH1'!S60+'JH2'!S60 -> 0 | AP60: ='HR1'!T60+'HR2'!T60+'JH1'!T60+'JH2'!T60 -> 0 | AQ60: ='HR1'!U60+'HR2'!U60+'JH1'!U60+'JH2'!U60 -> 0
B61: 2.291666667 | C61: 27.5 | L61: =GL0!AA61+'GL1'!AA61+'GL2'!AA61+'GV1'!AA61+'GV2'!AA61+'HR1'!AA61+'HR2'!AA61+MV1a!AA61+MV1b!AA61+'MV2'!AA61+'JH1'!AA61+'JH2'!AA61+'PL1'!AA61+'PL2'!AA61+'PV1'!AA61+'PV2'!AA61+'PH1'!AA61+'PH2'!AA61+'PM1'!AA61+'PM2'!AA61+'PJ1'!AA61+'PJ2'!AA61 -> 0.02621281379 | M61: ='A1'!$H$20*GL0!AA61 + 'A1'!$I$20*('GL1'!AA61+'GV1'!AA61+'HR1'!AA61+'PL1'!AA61+'PV1'!AA61+'PH1'!AA61) + 'A1'!$J$20*('GL2'!AA61+'GV2'!AA61+'HR2'!AA61+'PL2'!AA61+'PV2'!AA61+'PH2'!AA61) + 'A1'!$K$20*(MV1a!AA61+MV1b!AA61+'JH1'!AA61+'PM1'!AA61+'PJ1'!AA61) + 'A1'!$L$20*('MV2'!AA61+'JH2'!AA61+'PM2'!AA61+'PJ2'!AA61) -> 0.01990245572 | O61: =(1+'A1'!$H$20)*'A1'!$I$9*'A1'!$AD$5*GL0!N61 -> 0.0001716078105 | P61: =(1+'A1'!$I$20)*('A1'!$I$9*'A1'!$AD$5*('GL1'!N61+'GV1'!N61) + 'A1'!$I$9*'A1'!$AF$5*'HR1'!N61 + 'A1'!$I$9*'A1'!$AH$5*('PL1'!N61+'PV1'!N61+'PH1'!N61)) + (1+'A1'!$K$20)*('A1'!$I$9*'A1'!$AD$5*(MV1a!N61+MV1b!N61) + 'A1'!$I$9*'A1'!$AF$5*'JH1'!N61 + 'A1'!$I$9*'A1'!$AH$5*('PM1'!N61+'PJ1'!N61)) -> 0.002704001146 | Q61: =(1+'A1'!$J$20)*('A1'!$I$9*'A1'!$AD$5*('GL2'!N61+'GV2'!N61) + 'A1'!$I$9*'A1'!$AF$5*'HR2'!N61 + 'A1'!$I$9*'A1'!$AH$5*('PL2'!N61+'PV2'!N61+'PH2'!N61)) + (1+'A1'!$L$20)*('A1'!$I$9*'A1'!$AD$5*'MV2'!N61 + 'A1'!$I$9*'A1'!$AF$5*'JH2'!N61 + 'A1'!$I$9*'A1'!$AH$5*('PM2'!N61+'PJ2'!N61)) -> 0.001695810081 | S61: ='A1'!$F$23*SUM(O61:Q61) + 'A1'!$F$24*(L61+M61-SUM(O61:Q61)) + 'A1'!$F$25*J60 -> 0.009972119598 | U61: ='A1'!$F$28*O61 + 'A1'!$F$29*P61 + 'A1'!$F$30*Q61 -> 0.001332921201 | V61: ='A1'!$L$28*'A1'!$F$28*O61 + 'A1'!$L$29*'A1'!$F$29*P61 + 'A1'!$L$30*'A1'!$F$30*Q61 -> 0.0270497422 | X61: =(1+'A1'!$AD$23)*GL0!N61 -> 0.002787069757 | Y61: =(1+'A1'!$AD$23)*('GL1'!N61+'GV1'!N61) + (1+'A1'!$AF$23)*'HR1'!N61 + (1+'A1'!$AH$23)*('PL1'!N61+'PV1'!N61+'PH1'!N61) -> 0.03264390173 | Z61: =(1+'A1'!$AD$23)*('GL2'!N61+'GV2'!N61) + (1+'A1'!$AF$23)*'HR2'!N61 + (1+'A1'!$AH$23)*('PL2'!N61+'PV2'!N61+'PH2'!N61) -> 0.03013278095 | AA61: =(1+'A1'!$AD$23)*(MV1a!N61+MV1b!N61) + (1+'A1'!$AF$23)*'JH1'!N61 + (1+'A1'!$AH$23)*('PM1'!N61+'PJ1'!N61) -> 0.03864430797 | AB61: =(1+'A1'!$AD$23)*'MV2'!N61 + (1+'A1'!$AF$23)*'JH2'!N61 + (1+'A1'!$AH$23)*('PM2'!N61+'PJ2'!N61) -> 0.01547065119 | AD61: ='A1'!$T$29*(L61+M61) -> 0.007685878251 | AE61: ='A1'!$M$28*'A1'!$F$28*O61 + 'A1'!$M$29*'A1'!$F$29*P61 + 'A1'!$M$30*'A1'!$F$30*Q61 -> 0.01972494742
B62: 2.333333333 | C62: 28 | E62: ='HR1'!R62+'HR2'!R62+MV1a!R62+MV1b!R62+'MV2'!R62+'JH1'!R62+'JH2'!R62+'PL1'!R62+'PL2'!R62+'PV1'!R62+'PV2'!R62+'PH1'!R62+'PH2'!R62+'PM1'!R62+'PM2'!R62+'PJ1'!R62+'PJ2'!R62 -> 3.007722977 | F62: ='HR1'!S62+'HR2'!S62+MV1a!S62+MV1b!S62+'MV2'!S62+'JH1'!S62+'JH2'!S62+'PL1'!S62+'PL2'!S62+'PV1'!S62+'PV2'!S62+'PH1'!S62+'PH2'!S62+'PM1'!S62+'PM2'!S62+'PJ1'!S62+'PJ2'!S62 -> 0.1291966259 | G62: ='HR1'!T62+'HR2'!T62+MV1a!T62+MV1b!T62+'MV2'!T62+'JH1'!T62+'JH2'!T62+'PL1'!T62+'PL2'!T62+'PV1'!T62+'PV2'!T62+'PH1'!T62+'PH2'!T62+'PM1'!T62+'PM2'!T62+'PJ1'!T62+'PJ2'!T62 -> 0 | H62: ='HR1'!U62+'HR2'!U62+MV1a!U62+MV1b!U62+'MV2'!U62+'JH1'!U62+'JH2'!U62+'PL1'!U62+'PL2'!U62+'PV1'!U62+'PV2'!U62+'PH1'!U62+'PH2'!U62+'PM1'!U62+'PM2'!U62+'PJ1'!U62+'PJ2'!U62 -> 0 | J62: ='HR1'!W62+'HR2'!W62+MV1a!W62+MV1b!W62+'MV2'!W62+'JH1'!W62+'JH2'!W62+'PL1'!W62+'PL2'!W62+'PV1'!W62+'PV2'!W62+'PH1'!W62+'PH2'!W62+'PM1'!W62+'PM2'!W62+'PJ1'!W62+'PJ2'!W62 -> 0.002080971981 | K62: ='HR1'!X62+'HR2'!X62+IF('A3'!$L$24=0,0,MV1a!X62+MV1b!X62+'MV2'!X62)+'JH1'!X62+'JH2'!X62+'PL1'!X62+'PL2'!X62+'PV1'!X62+'PV2'!X62+'PH1'!X62+'PH2'!X62+'PM1'!X62+'PM2'!X62+'PJ1'!X62+'PJ2'!X62 -> 0 | AG62: ='HR1'!R62+'HR2'!R62+MV1a!R62+MV1b!R62+'MV2'!R62+'JH1'!R62+'JH2'!R62 -> 1.310110339 | AH62: ='HR1'!S62+'HR2'!S62+MV1a!S62+MV1b!S62+'MV2'!S62+'JH1'!S62+'JH2'!S62 -> 0.05909529449 | AI62: ='HR1'!T62+'HR2'!T62+MV1a!T62+MV1b!T62+'MV2'!T62+'JH1'!T62+'JH2'!T62 -> 0 | AJ62: ='HR1'!U62+'HR2'!U62+MV1a!U62+MV1b!U62+'MV2'!U62+'JH1'!U62+'JH2'!U62 -> 0 | AL62: =MAX(AN62:AQ62) -> 0 | AN62: ='HR1'!R62+'HR2'!R62+'JH1'!R62+'JH2'!R62 -> 0 | AO62: ='HR1'!S62+'HR2'!S62+'JH1'!S62+'JH2'!S62 -> 0 | AP62: ='HR1'!T62+'HR2'!T62+'JH1'!T62+'JH2'!T62 -> 0 | AQ62: ='HR1'!U62+'HR2'!U62+'JH1'!U62+'JH2'!U62 -> 0
B63: 2.375 | C63: 28.5 | L63: =GL0!AA63+'GL1'!AA63+'GL2'!AA63+'GV1'!AA63+'GV2'!AA63+'HR1'!AA63+'HR2'!AA63+MV1a!AA63+MV1b!AA63+'MV2'!AA63+'JH1'!AA63+'JH2'!AA63+'PL1'!AA63+'PL2'!AA63+'PV1'!AA63+'PV2'!AA63+'PH1'!AA63+'PH2'!AA63+'PM1'!AA63+'PM2'!AA63+'PJ1'!AA63+'PJ2'!AA63 -> 0.02621099821 | M63: ='A1'!$H$20*GL0!AA63 + 'A1'!$I$20*('GL1'!AA63+'GV1'!AA63+'HR1'!AA63+'PL1'!AA63+'PV1'!AA63+'PH1'!AA63) + 'A1'!$J$20*('GL2'!AA63+'GV2'!AA63+'HR2'!AA63+'PL2'!AA63+'PV2'!AA63+'PH2'!AA63) + 'A1'!$K$20*(MV1a!AA63+MV1b!AA63+'JH1'!AA63+'PM1'!AA63+'PJ1'!AA63) + 'A1'!$L$20*('MV2'!AA63+'JH2'!AA63+'PM2'!AA63+'PJ2'!AA63) -> 0.01990111036 | O63: =(1+'A1'!$H$20)*'A1'!$I$9*'A1'!$AD$5*GL0!N63 -> 0.0001715890403 | P63: =(1+'A1'!$I$20)*('A1'!$I$9*'A1'!$AD$5*('GL1'!N63+'GV1'!N63) + 'A1'!$I$9*'A1'!$AF$5*'HR1'!N63 + 'A1'!$I$9*'A1'!$AH$5*('PL1'!N63+'PV1'!N63+'PH1'!N63)) + (1+'A1'!$K$20)*('A1'!$I$9*'A1'!$AD$5*(MV1a!N63+MV1b!N63) + 'A1'!$I$9*'A1'!$AF$5*'JH1'!N63 + 'A1'!$I$9*'A1'!$AH$5*('PM1'!N63+'PJ1'!N63)) -> 0.002703843453 | Q63: =(1+'A1'!$J$20)*('A1'!$I$9*'A1'!$AD$5*('GL2'!N63+'GV2'!N63) + 'A1'!$I$9*'A1'!$AF$5*'HR2'!N63 + 'A1'!$I$9*'A1'!$AH$5*('PL2'!N63+'PV2'!N63+'PH2'!N63)) + (1+'A1'!$L$20)*('A1'!$I$9*'A1'!$AD$5*'MV2'!N63 + 'A1'!$I$9*'A1'!$AF$5*'JH2'!N63 + 'A1'!$I$9*'A1'!$AH$5*('PM2'!N63+'PJ2'!N63)) -> 0.001695688461 | S63: ='A1'!$F$23*SUM(O63:Q63) + 'A1'!$F$24*(L63+M63-SUM(O63:Q63)) + 'A1'!$F$25*J62 -> 0.009971449344 | U63: ='A1'!$F$28*O63 + 'A1'!$F$29*P63 + 'A1'!$F$30*Q63 -> 0.001332829715 | V63: ='A1'!$L$28*'A1'!$F$28*O63 + 'A1'!$L$29*'A1'!$F$29*P63 + 'A1'!$L$30*'A1'!$F$30*Q63 -> 0.02704799548 | X63: =(1+'A1'!$AD$23)*GL0!N63 -> 0.002786764911 | Y63: =(1+'A1'!$AD$23)*('GL1'!N63+'GV1'!N63) + (1+'A1'!$AF$23)*'HR1'!N63 + (1+'A1'!$AH$23)*('PL1'!N63+'PV1'!N63+'PH1'!N63) -> 0.03264145353 | Z63: =(1+'A1'!$AD$23)*('GL2'!N63+'GV2'!N63) + (1+'A1'!$AF$23)*'HR2'!N63 + (1+'A1'!$AH$23)*('PL2'!N63+'PV2'!N63+'PH2'!N63) -> 0.03013062493 | AA63: =(1+'A1'!$AD$23)*(MV1a!N63+MV1b!N63) + (1+'A1'!$AF$23)*'JH1'!N63 + (1+'A1'!$AH$23)*('PM1'!N63+'PJ1'!N63) -> 0.03864242282 | AB63: =(1+'A1'!$AD$23)*'MV2'!N63 + (1+'A1'!$AF$23)*'JH2'!N63 + (1+'A1'!$AH$23)*('PM2'!N63+'PJ2'!N63) -> 0.01546949717 | AD63: ='A1'!$T$29*(L63+M63) -> 0.007685351428 | AE63: ='A1'!$M$28*'A1'!$F$28*O63 + 'A1'!$M$29*'A1'!$F$29*P63 + 'A1'!$M$30*'A1'!$F$30*Q63 -> 0.01972367705
B64: 2.416666667 | C64: 29 | E64: ='HR1'!R64+'HR2'!R64+MV1a!R64+MV1b!R64+'MV2'!R64+'JH1'!R64+'JH2'!R64+'PL1'!R64+'PL2'!R64+'PV1'!R64+'PV2'!R64+'PH1'!R64+'PH2'!R64+'PM1'!R64+'PM2'!R64+'PJ1'!R64+'PJ2'!R64 -> 3.007722977 | F64: ='HR1'!S64+'HR2'!S64+MV1a!S64+MV1b!S64+'MV2'!S64+'JH1'!S64+'JH2'!S64+'PL1'!S64+'PL2'!S64+'PV1'!S64+'PV2'!S64+'PH1'!S64+'PH2'!S64+'PM1'!S64+'PM2'!S64+'PJ1'!S64+'PJ2'!S64 -> 0.1291966208 | G64: ='HR1'!T64+'HR2'!T64+MV1a!T64+MV1b!T64+'MV2'!T64+'JH1'!T64+'JH2'!T64+'PL1'!T64+'PL2'!T64+'PV1'!T64+'PV2'!T64+'PH1'!T64+'PH2'!T64+'PM1'!T64+'PM2'!T64+'PJ1'!T64+'PJ2'!T64 -> 0 | H64: ='HR1'!U64+'HR2'!U64+MV1a!U64+MV1b!U64+'MV2'!U64+'JH1'!U64+'JH2'!U64+'PL1'!U64+'PL2'!U64+'PV1'!U64+'PV2'!U64+'PH1'!U64+'PH2'!U64+'PM1'!U64+'PM2'!U64+'PJ1'!U64+'PJ2'!U64 -> 0 | J64: ='HR1'!W64+'HR2'!W64+MV1a!W64+MV1b!W64+'MV2'!W64+'JH1'!W64+'JH2'!W64+'PL1'!W64+'PL2'!W64+'PV1'!W64+'PV2'!W64+'PH1'!W64+'PH2'!W64+'PM1'!W64+'PM2'!W64+'PJ1'!W64+'PJ2'!W64 -> 0.002080968905 | K64: ='HR1'!X64+'HR2'!X64+IF('A3'!$L$24=0,0,MV1a!X64+MV1b!X64+'MV2'!X64)+'JH1'!X64+'JH2'!X64+'PL1'!X64+'PL2'!X64+'PV1'!X64+'PV2'!X64+'PH1'!X64+'PH2'!X64+'PM1'!X64+'PM2'!X64+'PJ1'!X64+'PJ2'!X64 -> 0 | AG64: ='HR1'!R64+'HR2'!R64+MV1a!R64+MV1b!R64+'MV2'!R64+'JH1'!R64+'JH2'!R64 -> 1.310110339 | AH64: ='HR1'!S64+'HR2'!S64+MV1a!S64+MV1b!S64+'MV2'!S64+'JH1'!S64+'JH2'!S64 -> 0.0590952945 | AI64: ='HR1'!T64+'HR2'!T64+MV1a!T64+MV1b!T64+'MV2'!T64+'JH1'!T64+'JH2'!T64 -> 0 | AJ64: ='HR1'!U64+'HR2'!U64+MV1a!U64+MV1b!U64+'MV2'!U64+'JH1'!U64+'JH2'!U64 -> 0 | AL64: =MAX(AN64:AQ64) -> 0 | AN64: ='HR1'!R64+'HR2'!R64+'JH1'!R64+'JH2'!R64 -> 0 | AO64: ='HR1'!S64+'HR2'!S64+'JH1'!S64+'JH2'!S64 -> 0 | AP64: ='HR1'!T64+'HR2'!T64+'JH1'!T64+'JH2'!T64 -> 0 | AQ64: ='HR1'!U64+'HR2'!U64+'JH1'!U64+'JH2'!U64 -> 0
B65: 2.458333333 | C65: 29.5 | L65: =GL0!AA65+'GL1'!AA65+'GL2'!AA65+'GV1'!AA65+'GV2'!AA65+'HR1'!AA65+'HR2'!AA65+MV1a!AA65+MV1b!AA65+'MV2'!AA65+'JH1'!AA65+'JH2'!AA65+'PL1'!AA65+'PL2'!AA65+'PV1'!AA65+'PV2'!AA65+'PH1'!AA65+'PH2'!AA65+'PM1'!AA65+'PM2'!AA65+'PJ1'!AA65+'PJ2'!AA65 -> 0.02620913219 | M65: ='A1'!$H$20*GL0!AA65 + 'A1'!$I$20*('GL1'!AA65+'GV1'!AA65+'HR1'!AA65+'PL1'!AA65+'PV1'!AA65+'PH1'!AA65) + 'A1'!$J$20*('GL2'!AA65+'GV2'!AA65+'HR2'!AA65+'PL2'!AA65+'PV2'!AA65+'PH2'!AA65) + 'A1'!$K$20*(MV1a!AA65+MV1b!AA65+'JH1'!AA65+'PM1'!AA65+'PJ1'!AA65) + 'A1'!$L$20*('MV2'!AA65+'JH2'!AA65+'PM2'!AA65+'PJ2'!AA65) -> 0.0198997293 | O65: =(1+'A1'!$H$20)*'A1'!$I$9*'A1'!$AD$5*GL0!N65 -> 0.0001715696706 | P65: =(1+'A1'!$I$20)*('A1'!$I$9*'A1'!$AD$5*('GL1'!N65+'GV1'!N65) + 'A1'!$I$9*'A1'!$AF$5*'HR1'!N65 + 'A1'!$I$9*'A1'!$AH$5*('PL1'!N65+'PV1'!N65+'PH1'!N65)) + (1+'A1'!$K$20)*('A1'!$I$9*'A1'!$AD$5*(MV1a!N65+MV1b!N65) + 'A1'!$I$9*'A1'!$AF$5*'JH1'!N65 + 'A1'!$I$9*'A1'!$AH$5*('PM1'!N65+'PJ1'!N65)) -> 0.002703681641 | Q65: =(1+'A1'!$J$20)*('A1'!$I$9*'A1'!$AD$5*('GL2'!N65+'GV2'!N65) + 'A1'!$I$9*'A1'!$AF$5*'HR2'!N65 + 'A1'!$I$9*'A1'!$AH$5*('PL2'!N65+'PV2'!N65+'PH2'!N65)) + (1+'A1'!$L$20)*('A1'!$I$9*'A1'!$AD$5*'MV2'!N65 + 'A1'!$I$9*'A1'!$AF$5*'JH2'!N65 + 'A1'!$I$9*'A1'!$AH$5*('PM2'!N65+'PJ2'!N65)) -> 0.001695563393 | S65: ='A1'!$F$23*SUM(O65:Q65) + 'A1'!$F$24*(L65+M65-SUM(O65:Q65)) + 'A1'!$F$25*J64 -> 0.009970760787 | U65: ='A1'!$F$28*O65 + 'A1'!$F$29*P65 + 'A1'!$F$30*Q65 -> 0.001332735674 | V65: ='A1'!$L$28*'A1'!$F$28*O65 + 'A1'!$L$29*'A1'!$F$29*P65 + 'A1'!$L$30*'A1'!$F$30*Q65 -> 0.02704620106 | X65: =(1+'A1'!$AD$23)*GL0!N65 -> 0.00278645033 | Y65: =(1+'A1'!$AD$23)*('GL1'!N65+'GV1'!N65) + (1+'A1'!$AF$23)*'HR1'!N65 + (1+'A1'!$AH$23)*('PL1'!N65+'PV1'!N65+'PH1'!N65) -> 0.03263892803 | Z65: =(1+'A1'!$AD$23)*('GL2'!N65+'GV2'!N65) + (1+'A1'!$AF$23)*'HR2'!N65 + (1+'A1'!$AH$23)*('PL2'!N65+'PV2'!N65+'PH2'!N65) -> 0.03012839917 | AA65: =(1+'A1'!$AD$23)*(MV1a!N65+MV1b!N65) + (1+'A1'!$AF$23)*'JH1'!N65 + (1+'A1'!$AH$23)*('PM1'!N65+'PJ1'!N65) -> 0.03864049853 | AB65: =(1+'A1'!$AD$23)*'MV2'!N65 + (1+'A1'!$AF$23)*'JH2'!N65 + (1+'A1'!$AH$23)*('PM2'!N65+'PJ2'!N65) -> 0.01546831721 | AD65: ='A1'!$T$29*(L65+M65) -> 0.007684810249 | AE65: ='A1'!$M$28*'A1'!$F$28*O65 + 'A1'!$M$29*'A1'!$F$29*P65 + 'A1'!$M$30*'A1'!$F$30*Q65 -> 0.01972237202
